Workbook

Sheet Introduction
C4: Joint Monitoring Programme for Water Supply, Sanitation and Hygiene
C6: Estimates on household water, sanitation and hygiene by wealth quintile and sub-national region in
C7: =+Water!B5 -> Dominican Republic
C9: Updated May 2021
C11: Follow the links below to find the following information:
C13: JMP Estimates
C14: WASH status and trends by wealth quintile (customized quintiles made without water and sanitation assets)
C15: Water
C16: Sanitation
C17: Hygiene
C19: Data inputs
C20: customized wealth quintiles and subnational data:
C21: =IF(INDIRECT(CONCATENATE("Water","!B105"))=0,"",INDIRECT(CONCATENATE("Water","!B105"))) -> MICS00
C22: =IF(INDIRECT(CONCATENATE("Water","!B106"))=0,"",INDIRECT(CONCATENATE("Water","!B106"))) -> DHS02
C23: =IF(INDIRECT(CONCATENATE("Water","!B107"))=0,"",INDIRECT(CONCATENATE("Water","!B107"))) -> WHS03
C24: =IF(INDIRECT(CONCATENATE("Water","!B108"))=0,"",INDIRECT(CONCATENATE("Water","!B108"))) -> DHS07
C25: =IF(INDIRECT(CONCATENATE("Water","!B109"))=0,"",INDIRECT(CONCATENATE("Water","!B109"))) -> DHS13
C26: =IF(INDIRECT(CONCATENATE("Water","!B110"))=0,"",INDIRECT(CONCATENATE("Water","!B110"))) -> MICS14
C27: =IF(INDIRECT(CONCATENATE("Water","!B111"))=0,"",INDIRECT(CONCATENATE("Water","!B111"))) -> 
C28: =IF(INDIRECT(CONCATENATE("Water","!B112"))=0,"",INDIRECT(CONCATENATE("Water","!B112"))) -> 
C29: =IF(INDIRECT(CONCATENATE("Water","!B113"))=0,"",INDIRECT(CONCATENATE("Water","!B113"))) -> 
C30: =IF(INDIRECT(CONCATENATE("Water","!B114"))=0,"",INDIRECT(CONCATENATE("Water","!B114"))) -> 
C31: =IF(INDIRECT(CONCATENATE("Water","!B115"))=0,"",INDIRECT(CONCATENATE("Water","!B115"))) -> 
C32: =IF(INDIRECT(CONCATENATE("Water","!B116"))=0,"",INDIRECT(CONCATENATE("Water","!B116"))) -> 
L55: =+IF(ISNUMBER(M48), "", "Insufficient data to estimate safely managed sanitation services at national level") -> Insufficient data to estimate safely managed sanitation services at national level

Sheet Water
A1: BGD
B4: Summary of trends in use of drinking water by wealth quintile (%)
B5: =IF(ISERROR(INDIRECT(CONCATENATE($B105,"!A2"))),"",INDIRECT(CONCATENATE($B105,"!A2"))) -> Dominican Republic
B7: =B118 -> National use of drinking water sources, 2000–2020 | J7: =B218 -> Urban use of drinking water sources, 2000–2020 | R7: =B318 -> Rural use of drinking water sources, 2000–2020
B31: =IF(ISERROR(INDIRECT(CONCATENATE($B105,"!A2"))),"",INDIRECT(CONCATENATE($B105,"!A2"))) -> Dominican Republic | F31: Poorest | J31: Poor | N31: Middle | R31: Rich | V31: Richest
F32: Basic | G32: Limited | H32: Unimproved | I32: Surface water | J32: Basic | K32: Limited | L32: Unimproved | M32: Surface water | N32: Basic | O32: Limited | P32: Unimproved | Q32: Surface water | R32: Basic | S32: Limited | T32: Unimproved | U32: Surface water | V32: Basic | W32: Limited | X32: Unimproved | Y32: Surface water
B33: NATIONAL | D33: Estimate | E33: =C99 -> 2000 | F33: =E99 -> 79.51877218 | G33: =F99 -> 2.50755621 | H33: 7.749011736 | I33: 10.22465988 | J33: =J99 -> 91.38745724 | K33: =K99 -> 1.788599595 | L33: 5.033160956 | M33: 1.790782212 | N33: =O99 -> 93.89009775 | O33: =P99 -> 0.9851963308 | P33: 4.062155968 | Q33: 1.062549952 | R33: =T99 -> 96.06101946 | S33: =U99 -> 0.946400601 | T33: 2.520649094 | U33: 0.471930845 | V33: =Y99 -> 97.43736071 | W33: =Z99 -> 0.4385769018 | X33: 2.017545757 | Y33: 0.1065166317
E34: =C100 -> 2020 | F34: =E100 -> 93.75372915 | G34: 2.956443356 | H34: 1.304663988 | I34: 1.985163507 | J34: =J100 -> 95.07041107 | K34: 1.860680928 | L34: 2.549668599 | M34: 0.5192394064 | N34: =O100 -> 96.0297332 | O34: 1.007647697 | P34: 2.857328452 | Q34: 0.1052906537 | R34: =T100 -> 95.96366826 | S34: 0.9454414895 | T34: 3.052461716 | U34: 0.03842853147 | V34: =Y100 -> 98.05424881 | W34: 0.441353587 | X34: 1.490622051 | Y34: 0.01377555191
B36: URBAN | D36: Estimate | E36: =C199 -> 2000 | F36: =E199 -> 91.86502057 | G36: =F199 -> 1.862459244 | H36: 5.873387929 | I36: 0.3991322541 | J36: =J199 -> 93.70374415 | K36: =K199 -> 1.862507312 | L36: 4.190282316 | M36: 0.2434662215 | N36: =O199 -> 95.12479464 | O36: =P199 -> 1.41750234 | P36: 2.935902381 | Q36: 0.5218006433 | R36: =T199 -> 96.46609298 | S36: =U199 -> 0.6082889249 | T36: 2.66540931 | U36: 0.2602087892 | V36: =Y199 -> 97.22759035 | W36: =Z199 -> 0.6628569794 | X36: 2.035584464 | Y36: 0.07396820418
E37: =C200 -> 2020 | F37: =E200 -> 94.56102849 | G37: 1.917117751 | H37: 2.885633801 | I37: 0.6362199562 | J37: =J200 -> 94.49565673 | K37: 1.878247804 | L37: 3.497608124 | M37: 0.1284873453 | N37: =O200 -> 95.05707642 | O37: 1.416493237 | P37: 3.518292109 | Q37: 0.008138235867 | R37: =T200 -> 96.47556584 | S37: 0.6083486583 | T37: 2.909360437 | U37: 0.00672506151 | V37: =Y200 -> 98.08568144 | W37: 0.668707085 | X37: 1.220449599 | Y37: 0.02516187281
B39: RURAL | D39: Estimate | E39: =C299 -> 2000 | F39: =E299 -> 66.67662883 | G39: =F299 -> 3.429715574 | H39: 10.383007 | I39: 19.5106486 | J39: =J299 -> 85.89490146 | K39: =K299 -> 2.030452081 | L39: 4.62201642 | M39: 7.452630034 | N39: =O299 -> 88.95159888 | O39: =P299 -> 1.89774968 | P39: 5.204051022 | Q39: 3.946600423 | R39: =T299 -> 92.42482449 | S39: =U299 -> 1.063308231 | T39: 3.863460489 | U39: 2.648406794 | V39: =Y299 -> 97.49688644 | W39: =Z299 -> 0.464879915 | X39: 1.734227722 | Y39: 0.3040059209
E40: =C300 -> 2020 | F40: =E300 -> 88.68561766 | G40: 4.561814979 | H40: 0.6568640139 | I40: 6.095703352 | J40: =J300 -> 93.05209659 | K40: 2.199639559 | L40: 2.005886674 | M40: 2.742377174 | N40: =O300 -> 95.44086645 | O40: 2.03619582 | P40: 1.282418542 | Q40: 1.240519188 | R40: =T300 -> 96.24387046 | S40: 1.107244728 | T40: 1.741638658 | U40: 0.907246154 | V40: =Y300 -> 97.71545101 | W40: 0.4659220639 | X40: 1.540027086 | Y40: 0.2785998365
A97: NATIONAL | D97: Poorest | I97: Poor | N97: Middle | S97: Rich | X97: Richest
D98: Improved | E98: Basic | F98: Limited | G98: Unimproved | H98: Surface water | I98: Improved | J98: Basic | K98: Limited | L98: Unimproved | M98: Surface water | N98: Improved | O98: Basic | P98: Limited | Q98: Unimproved | R98: Surface water | S98: Improved | T98: Basic | U98: Limited | V98: Unimproved | W98: Surface water | X98: Improved | Y98: Basic | Z98: Limited | AA98: Unimproved | AB98: Surface water
A99: Forecast period: | C99: =MinBase(C105:C116) -> 2000 | D99: =IF((D101+H101)>100,D101*100/(D101+H101),D101) -> 82.02632839 | E99: =D99*AVERAGEIF(E105:E116,">0")/100 -> 79.51877218 | F99: =D99*(100-AVERAGEIF(E105:E116,">0"))/100 -> 2.50755621 | G99: =100-(E99+F99+H99) -> 7.749011736 | H99: =IF((D101+H101)>100,H101*100/(D101+H101),H101) -> 10.22465988 | I99: =IF((I101+M101)>100,I101*100/(I101+M101),I101) -> 93.17605683 | J99: =I99*AVERAGEIF(J105:J116,">0")/100 -> 91.38745724 | K99: =I99*(100-AVERAGEIF(J105:J116,">0"))/100 -> 1.788599595 | L99: =100-(J99+K99+M99) -> 5.033160956 | M99: =IF((I101+M101)>100,M101*100/(I101+M101),M101) -> 1.790782212 | N99: =IF((N101+R101)>100,N101*100/(N101+R101),N101) -> 94.87529408 | O99: =N99*AVERAGEIF(O105:O116,">0")/100 -> 93.89009775 | P99: =N99*(100-AVERAGEIF(O105:O116,">0"))/100 -> 0.9851963308 | Q99: =100-(O99+P99+R99) -> 4.062155968 | R99: =IF((N101+R101)>100,R101*100/(N101+R101),R101) -> 1.062549952 | S99: =IF((S101+W101)>100,S101*100/(S101+W101),S101) -> 97.00742006 | T99: =S99*AVERAGEIF(T105:T116,">0")/100 -> 96.06101946 | U99: =S99*(100-AVERAGEIF(T105:T116,">0"))/100 -> 0.946400601 | V99: =100-(T99+U99+W99) -> 2.520649094 | W99: =IF((S101+W101)>100,W101*100/(S101+W101),W101) -> 0.471930845 | X99: =IF((X101+AB101)>100,X101*100/(X101+AB101),X101) -> 97.87593761 | Y99: =X99*AVERAGEIF(Y105:Y116,">0")/100 -> 97.43736071 | Z99: =X99*(100-AVERAGEIF(Y105:Y116,">0"))/100 -> 0.4385769018 | AA99: =100-(Y99+Z99+AB99) -> 2.017545757 | AB99: =IF((X101+AB101)>100,AB101*100/(X101+AB101),AB101) -> 0.1065166317
C100: =MaxTarget(C105:C116) -> 2020 | D100: =IF((D102+H102)>100,D102*100/(D102+H102),D102) -> 96.7101725 | E100: =D100*AVERAGEIF(E105:E116,">0")/100 -> 93.75372915 | F100: =D100*(100-AVERAGEIF(E105:E116,">0"))/100 -> 2.956443356 | G100: =100-(E100+F100+H100) -> 1.304663988 | H100: =IF((D102+H102)>100,H102*100/(D102+H102),H102) -> 1.985163507 | I100: =IF((I102+M102)>100,I102*100/(I102+M102),I102) -> 96.93109199 | J100: =I100*AVERAGEIF(J105:J116,">0")/100 -> 95.07041107 | K100: =I100*(100-AVERAGEIF(J105:J116,">0"))/100 -> 1.860680928 | L100: =100-(J100+K100+M100) -> 2.549668599 | M100: =IF((I102+M102)>100,M102*100/(I102+M102),M102) -> 0.5192394064 | N100: =IF((N102+R102)>100,N102*100/(N102+R102),N102) -> 97.03738089 | O100: =N100*AVERAGEIF(O105:O116,">0")/100 -> 96.0297332 | P100: =N100*(100-AVERAGEIF(O105:O116,">0"))/100 -> 1.007647697 | Q100: =100-(O100+P100+R100) -> 2.857328452 | R100: =IF((N102+R102)>100,R102*100/(N102+R102),R102) -> 0.1052906537 | S100: =IF((S102+W102)>100,S102*100/(S102+W102),S102) -> 96.90910975 | T100: =S100*AVERAGEIF(T105:T116,">0")/100 -> 95.96366826 | U100: =S100*(100-AVERAGEIF(T105:T116,">0"))/100 -> 0.9454414895 | V100: =100-(T100+U100+W100) -> 3.052461716 | W100: =IF((S102+W102)>100,W102*100/(S102+W102),W102) -> 0.03842853147 | X100: =IF((X102+AB102)>100,X102*100/(X102+AB102),X102) -> 98.4956024 | Y100: =X100*AVERAGEIF(Y105:Y116,">0")/100 -> 98.05424881 | Z100: =X100*(100-AVERAGEIF(Y105:Y116,">0"))/100 -> 0.441353587 | AA100: =100-(Y100+Z100+AB100) -> 1.490622051 | AB100: =IF((X102+AB102)>100,AB102*100/(X102+AB102),AB102) -> 0.01377555191
A101: Regression period: | C101: =MinRegYear(C99,C105:C116) -> 2000 | D101: =IF(MAX(C105:C116)-MIN(C105:C116)<5,AVERAGEIF(C105:C116,">0",D105:D116), IF(FORECAST($C101,D$105:D$116,$C$105:$C$116)<0,0, IF(FORECAST($C101,D$105:D$116,$C$105:$C$116)>100,100, FORECAST($C101,D$105:D$116,$C$105:$C$116)))) -> 82.02632839 | H101: =IF(MAX(C105:C116)-MIN(C105:C116)<5,AVERAGEIF(C105:C116,">0",H105:H116), IF(FORECAST($C101,H$105:H$116,$C$105:$C$116)<0,0, IF(FORECAST($C101,H$105:H$116,$C$105:$C$116)>100,100, FORECAST($C101,H$105:H$116,$C$105:$C$116)))) -> 10.22465988 | I101: =IF(MAX(C105:C116)-MIN(C105:C116)<5,AVERAGEIF(C105:C116,">0",I105:I116), IF(FORECAST($C101,I$105:I$116,$C$105:$C$116)<0,0, IF(FORECAST($C101,I$105:I$116,$C$105:$C$116)>100,100, FORECAST($C101,I$105:I$116,$C$105:$C$116)))) -> 93.17605683 | M101: =IF(MAX(C105:C116)-MIN(C105:C116)<5,AVERAGEIF(C105:C116,">0",M105:M116), IF(FORECAST($C101,M$105:M$116,$C$105:$C$116)<0,0, IF(FORECAST($C101,M$105:M$116,$C$105:$C$116)>100,100, FORECAST($C101,M$105:M$116,$C$105:$C$116)))) -> 1.790782212 | N101: =IF(MAX(C105:C116)-MIN(C105:C116)<5,AVERAGEIF(C105:C116,">0",N105:N116), IF(FORECAST($C101,N$105:N$116,$C$105:$C$116)<0,0, IF(FORECAST($C101,N$105:N$116,$C$105:$C$116)>100,100, FORECAST($C101,N$105:N$116,$C$105:$C$116)))) -> 94.87529408 | R101: =IF(MAX(C105:C116)-MIN(C105:C116)<5,AVERAGEIF(C105:C116,">0",R105:R116), IF(FORECAST($C101,R$105:R$116,$C$105:$C$116)<0,0, IF(FORECAST($C101,R$105:R$116,$C$105:$C$116)>100,100, FORECAST($C101,R$105:R$116,$C$105:$C$116)))) -> 1.062549952 | S101: =IF(MAX(C105:C116)-MIN(C105:C116)<5,AVERAGEIF(C105:C116,">0",S105:S116), IF(FORECAST($C101,S$105:S$116,$C$105:$C$116)<0,0, IF(FORECAST($C101,S$105:S$116,$C$105:$C$116)>100,100, FORECAST($C101,S$105:S$116,$C$105:$C$116)))) -> 97.00742006 | W101: =IF(MAX(C105:C116)-MIN(C105:C116)<5,AVERAGEIF(C105:C116,">0",W105:W116), IF(FORECAST($C101,W$105:W$116,$C$105:$C$116)<0,0, IF(FORECAST($C101,W$105:W$116,$C$105:$C$116)>100,100, FORECAST($C101,W$105:W$116,$C$105:$C$116)))) -> 0.471930845 | X101: =IF(MAX(C105:C116)-MIN(C105:C116)<5,AVERAGEIF(C105:C116,">0",X105:X116), IF(FORECAST($C101,X$105:X$116,$C$105:$C$116)<0,0, IF(FORECAST($C101,X$105:X$116,$C$105:$C$116)>100,100, FORECAST($C101,X$105:X$116,$C$105:$C$116)))) -> 97.87593761 | AB101: =IF(MAX(C105:C116)-MIN(C105:C116)<5,AVERAGEIF(C105:C116,">0",AB105:AB116), IF(FORECAST($C101,AB$105:AB$116,$C$105:$C$116)<0,0, IF(FORECAST($C101,AB$105:AB$116,$C$105:$C$116)>100,100, FORECAST($C101,AB$105:AB$116,$C$105:$C$116)))) -> 0.1065166317
C102: =MaxRegYear(C100,C105:C116) -> 2016 | D102: =IF(MAX(C105:C116)-MIN(C105:C116)<5,AVERAGEIF(C105:C116,">0",D105:D116), IF(FORECAST($C102,D$105:D$116,$C$105:$C$116)<0,0, IF(FORECAST($C102,D$105:D$116,$C$105:$C$116)>100,100, FORECAST($C102,D$105:D$116,$C$105:$C$116)))) -> 96.7101725 | H102: =IF(MAX(C105:C116)-MIN(C105:C116)<5,AVERAGEIF(C105:C116,">0",H105:H116), IF(FORECAST($C102,H$105:H$116,$C$105:$C$116)<0,0, IF(FORECAST($C102,H$105:H$116,$C$105:$C$116)>100,100, FORECAST($C102,H$105:H$116,$C$105:$C$116)))) -> 1.985163507 | I102: =IF(MAX(C105:C116)-MIN(C105:C116)<5,AVERAGEIF(C105:C116,">0",I105:I116), IF(FORECAST($C102,I$105:I$116,$C$105:$C$116)<0,0, IF(FORECAST($C102,I$105:I$116,$C$105:$C$116)>100,100, FORECAST($C102,I$105:I$116,$C$105:$C$116)))) -> 96.93109199 | M102: =IF(MAX(C105:C116)-MIN(C105:C116)<5,AVERAGEIF(C105:C116,">0",M105:M116), IF(FORECAST($C102,M$105:M$116,$C$105:$C$116)<0,0, IF(FORECAST($C102,M$105:M$116,$C$105:$C$116)>100,100, FORECAST($C102,M$105:M$116,$C$105:$C$116)))) -> 0.5192394064 | N102: =IF(MAX(C105:C116)-MIN(C105:C116)<5,AVERAGEIF(C105:C116,">0",N105:N116), IF(FORECAST($C102,N$105:N$116,$C$105:$C$116)<0,0, IF(FORECAST($C102,N$105:N$116,$C$105:$C$116)>100,100, FORECAST($C102,N$105:N$116,$C$105:$C$116)))) -> 97.03738089 | R102: =IF(MAX(C105:C116)-MIN(C105:C116)<5,AVERAGEIF(C105:C116,">0",R105:R116), IF(FORECAST($C102,R$105:R$116,$C$105:$C$116)<0,0, IF(FORECAST($C102,R$105:R$116,$C$105:$C$116)>100,100, FORECAST($C102,R$105:R$116,$C$105:$C$116)))) -> 0.1052906537 | S102: =IF(MAX(C105:C116)-MIN(C105:C116)<5,AVERAGEIF(C105:C116,">0",S105:S116), IF(FORECAST($C102,S$105:S$116,$C$105:$C$116)<0,0, IF(FORECAST($C102,S$105:S$116,$C$105:$C$116)>100,100, FORECAST($C102,S$105:S$116,$C$105:$C$116)))) -> 96.90910975 | W102: =IF(MAX(C105:C116)-MIN(C105:C116)<5,AVERAGEIF(C105:C116,">0",W105:W116), IF(FORECAST($C102,W$105:W$116,$C$105:$C$116)<0,0, IF(FORECAST($C102,W$105:W$116,$C$105:$C$116)>100,100, FORECAST($C102,W$105:W$116,$C$105:$C$116)))) -> 0.03842853147 | X102: =IF(MAX(C105:C116)-MIN(C105:C116)<5,AVERAGEIF(C105:C116,">0",X105:X116), IF(FORECAST($C102,X$105:X$116,$C$105:$C$116)<0,0, IF(FORECAST($C102,X$105:X$116,$C$105:$C$116)>100,100, FORECAST($C102,X$105:X$116,$C$105:$C$116)))) -> 98.4956024 | AB102: =IF(MAX(C105:C116)-MIN(C105:C116)<5,AVERAGEIF(C105:C116,">0",AB105:AB116), IF(FORECAST($C102,AB$105:AB$116,$C$105:$C$116)<0,0, IF(FORECAST($C102,AB$105:AB$116,$C$105:$C$116)>100,100, FORECAST($C102,AB$105:AB$116,$C$105:$C$116)))) -> 0.01377555191
B104: Survey | C104: Year | D104: Improved | E104: % Improved < = 30min | H104: Surface water | I104: Improved | J104: % Improved < = 30min | M104: Surface water | N104: Improved | O104: % Improved < = 30min | R104: Surface water | S104: Improved | T104: % Improved < = 30min | W104: Surface water | X104: Improved | Y104: % Improved < = 30min | AB104: Surface water
B105: MICS00 | C105: 2000 | D105: =IF(ISERROR(INDIRECT(CONCATENATE($B105,"!C16"))),"",INDIRECT(CONCATENATE($B105,"!C16"))) -> 82.36372884 | E105: =IF(ISERROR(INDIRECT(CONCATENATE($B105,"!C23"))),"",INDIRECT(CONCATENATE($B105,"!C23"))) -> 96.11915958 | H105: =IF(ISERROR(INDIRECT(CONCATENATE($B105,"!C21"))),"",INDIRECT(CONCATENATE($B105,"!C21"))) -> 8.379183696 | I105: =IF(ISERROR(INDIRECT(CONCATENATE($B105,"!D16"))),"",INDIRECT(CONCATENATE($B105,"!D16"))) -> 94.63793729 | J105: =IF(ISERROR(INDIRECT(CONCATENATE($B105,"!D23"))),"",INDIRECT(CONCATENATE($B105,"!D23"))) -> 97.0536688 | M105: =IF(ISERROR(INDIRECT(CONCATENATE($B105,"!D21"))),"",INDIRECT(CONCATENATE($B105,"!D21"))) -> 1.61684539 | N105: =IF(ISERROR(INDIRECT(CONCATENATE($B105,"!E16"))),"",INDIRECT(CONCATENATE($B105,"!E16"))) -> 97.20285291 | O105: =IF(ISERROR(INDIRECT(CONCATENATE($B105,"!E23"))),"",INDIRECT(CONCATENATE($B105,"!E23"))) -> 99.12297502 | R105: =IF(ISERROR(INDIRECT(CONCATENATE($B105,"!E21"))),"",INDIRECT(CONCATENATE($B105,"!E21"))) -> 1.053844991 | S105: =IF(ISERROR(INDIRECT(CONCATENATE($B105,"!F16"))),"",INDIRECT(CONCATENATE($B105,"!F16"))) -> 99.37160173 | T105: =IF(ISERROR(INDIRECT(CONCATENATE($B105,"!F23"))),"",INDIRECT(CONCATENATE($B105,"!F23"))) -> 99.52089442 | W105: =IF(ISERROR(INDIRECT(CONCATENATE($B105,"!F21"))),"",INDIRECT(CONCATENATE($B105,"!F21"))) -> 0.3557754897 | X105: =IF(ISERROR(INDIRECT(CONCATENATE($B105,"!G16"))),"",INDIRECT(CONCATENATE($B105,"!G16"))) -> 99.07441268 | Y105: =IF(ISERROR(INDIRECT(CONCATENATE($B105,"!G23"))),"",INDIRECT(CONCATENATE($B105,"!G23"))) -> 99.13847588 | AB105: =IF(ISERROR(INDIRECT(CONCATENATE($B105,"!G221"))),"",INDIRECT(CONCATENATE($B105,"!G21"))) -> 0
B106: DHS02 | C106: 2002 | D106: 84.87693789 | E106: N/A | H106: 11.47252907 | I106: 97.79300861 | J106: N/A | M106: 1.565830675 | N106: 98.13186668 | O106: N/A | R106: 0.9708550432 | S106: 99.29362881 | T106: N/A | W106: 0.5828892251 | X106: 99.57351966 | Y106: N/A | AB106: 0.2501944685
B107: WHS03 | D107: 65.57982896 | E107: 92.63087536 | H107: 20.78129579 | I107: 73.50707857 | J107: 95.84839981 | M107: 8.425637794 | N107: 86.1239218 | O107: 96.65895564 | R107: 3.109888115 | S107: 96.17300378 | T107: 97.00136808 | W107: 1.559808092 | X107: 97.14805328 | Y107: 99.18446329 | AB107: 0.5426945733
B108: DHS07 | C108: 2007 | D108: 85.65859613 | E108: 98.59375903 | H108: 6.571788991 | I108: 84.37328699 | J108: 99.15141959 | M108: 1.703470346 | N108: 85.66201815 | O108: 99.63316718 | R108: 0.6047394097 | S108: 87.99236932 | T108: 99.6651226 | W108: 0.2313053261 | X108: 92.76732356 | Y108: 99.92851634 | AB108: 0.01724979312
B109: DHS13 | C109: 2013 | D109: 96.59519597 | E109: 99.21455467 | H109: 2.369699341 | I109: 99.10901202 | J109: 99.19589344 | M109: 0.701956656 | N109: 99.32474744 | O109: 99.82856522 | R109: 0.3441633824 | S109: 99.05130893 | T109: 99.11583379 | W109: 0.1209089568 | X109: 99.81729874 | Y109: 99.70376144 | AB109: 0
B110: MICS14 | C110: 2014 | D110: 93.67583237 | E110: 98.15658216 | H110: 3.791231458 | I110: 98.41586837 | J110: 99.15266124 | M110: 0.5048366812 | N110: 98.91968056 | O110: 99.5642775 | R110: 0.185313513 | S110: 99.10699331 | T110: 99.81880064 | W110: 0.09339502204 | X110: 99.5413792 | Y110: 99.80430948 | AB110: 0.05647146735
D111: =IF(ISERROR(INDIRECT(CONCATENATE($B111,"!C16"))),"",INDIRECT(CONCATENATE($B111,"!C16"))) ->  | E111: =IF(ISERROR(INDIRECT(CONCATENATE($B111,"!C23"))),"",INDIRECT(CONCATENATE($B111,"!C23"))) ->  | H111: =IF(ISERROR(INDIRECT(CONCATENATE($B111,"!C21"))),"",INDIRECT(CONCATENATE($B111,"!C21"))) ->  | I111: =IF(ISERROR(INDIRECT(CONCATENATE($B111,"!D16"))),"",INDIRECT(CONCATENATE($B111,"!D16"))) ->  | J111: =IF(ISERROR(INDIRECT(CONCATENATE($B111,"!D23"))),"",INDIRECT(CONCATENATE($B111,"!D23"))) ->  | M111: =IF(ISERROR(INDIRECT(CONCATENATE($B111,"!D21"))),"",INDIRECT(CONCATENATE($B111,"!D21"))) ->  | N111: =IF(ISERROR(INDIRECT(CONCATENATE($B111,"!E16"))),"",INDIRECT(CONCATENATE($B111,"!E16"))) ->  | O111: =IF(ISERROR(INDIRECT(CONCATENATE($B111,"!E23"))),"",INDIRECT(CONCATENATE($B111,"!E23"))) ->  | R111: =IF(ISERROR(INDIRECT(CONCATENATE($B111,"!E21"))),"",INDIRECT(CONCATENATE($B111,"!E21"))) ->  | S111: =IF(ISERROR(INDIRECT(CONCATENATE($B111,"!F16"))),"",INDIRECT(CONCATENATE($B111,"!F16"))) ->  | T111: =IF(ISERROR(INDIRECT(CONCATENATE($B111,"!F23"))),"",INDIRECT(CONCATENATE($B111,"!F23"))) ->  | W111: =IF(ISERROR(INDIRECT(CONCATENATE($B111,"!F21"))),"",INDIRECT(CONCATENATE($B111,"!F21"))) ->  | X111: =IF(ISERROR(INDIRECT(CONCATENATE($B111,"!G16"))),"",INDIRECT(CONCATENATE($B111,"!G16"))) ->  | Y111: =IF(ISERROR(INDIRECT(CONCATENATE($B111,"!G23"))),"",INDIRECT(CONCATENATE($B111,"!G23"))) ->  | AB111: =IF(ISERROR(INDIRECT(CONCATENATE($B111,"!G221"))),"",INDIRECT(CONCATENATE($B111,"!G21"))) -> 
D112: =IF(ISERROR(INDIRECT(CONCATENATE($B112,"!C16"))),"",INDIRECT(CONCATENATE($B112,"!C16"))) ->  | E112: =IF(ISERROR(INDIRECT(CONCATENATE($B112,"!C23"))),"",INDIRECT(CONCATENATE($B112,"!C23"))) ->  | H112: =IF(ISERROR(INDIRECT(CONCATENATE($B112,"!C21"))),"",INDIRECT(CONCATENATE($B112,"!C21"))) ->  | I112: =IF(ISERROR(INDIRECT(CONCATENATE($B112,"!D16"))),"",INDIRECT(CONCATENATE($B112,"!D16"))) ->  | J112: =IF(ISERROR(INDIRECT(CONCATENATE($B112,"!D23"))),"",INDIRECT(CONCATENATE($B112,"!D23"))) ->  | M112: =IF(ISERROR(INDIRECT(CONCATENATE($B112,"!D21"))),"",INDIRECT(CONCATENATE($B112,"!D21"))) ->  | N112: =IF(ISERROR(INDIRECT(CONCATENATE($B112,"!E16"))),"",INDIRECT(CONCATENATE($B112,"!E16"))) ->  | O112: =IF(ISERROR(INDIRECT(CONCATENATE($B112,"!E23"))),"",INDIRECT(CONCATENATE($B112,"!E23"))) ->  | R112: =IF(ISERROR(INDIRECT(CONCATENATE($B112,"!E21"))),"",INDIRECT(CONCATENATE($B112,"!E21"))) ->  | S112: =IF(ISERROR(INDIRECT(CONCATENATE($B112,"!F16"))),"",INDIRECT(CONCATENATE($B112,"!F16"))) ->  | T112: =IF(ISERROR(INDIRECT(CONCATENATE($B112,"!F23"))),"",INDIRECT(CONCATENATE($B112,"!F23"))) ->  | W112: =IF(ISERROR(INDIRECT(CONCATENATE($B112,"!F21"))),"",INDIRECT(CONCATENATE($B112,"!F21"))) ->  | X112: =IF(ISERROR(INDIRECT(CONCATENATE($B112,"!G16"))),"",INDIRECT(CONCATENATE($B112,"!G16"))) ->  | Y112: =IF(ISERROR(INDIRECT(CONCATENATE($B112,"!G23"))),"",INDIRECT(CONCATENATE($B112,"!G23"))) ->  | AB112: =IF(ISERROR(INDIRECT(CONCATENATE($B112,"!G221"))),"",INDIRECT(CONCATENATE($B112,"!G21"))) -> 
B118: =CONCATENATE("National use of drinking water sources, ",C99,"–",C100) -> National use of drinking water sources, 2000–2020 | S118: Data points used for regression
E153: =IF(ISERROR(INDIRECT(CONCATENATE($B153,"!M18"))),"",INDIRECT(CONCATENATE($B153,"!M18"))) ->  | F153: =IF(ISERROR(INDIRECT(CONCATENATE($B153,"!M19"))),"",INDIRECT(CONCATENATE($B153,"!M19"))) ->  | G153: =IF(ISERROR(INDIRECT(CONCATENATE($B153,"!M20"))),"",INDIRECT(CONCATENATE($B153,"!M20"))) ->  | H153: =IF(ISERROR(INDIRECT(CONCATENATE($B153,"!M21"))),"",INDIRECT(CONCATENATE($B153,"!M21"))) ->  | J153: =IF(ISERROR(INDIRECT(CONCATENATE($B153,"!N18"))),"",INDIRECT(CONCATENATE($B153,"!N18"))) ->  | K153: =IF(ISERROR(INDIRECT(CONCATENATE($B153,"!N19"))),"",INDIRECT(CONCATENATE($B153,"!N19"))) ->  | L153: =IF(ISERROR(INDIRECT(CONCATENATE($B153,"!N20"))),"",INDIRECT(CONCATENATE($B153,"!N20"))) ->  | M153: =IF(ISERROR(INDIRECT(CONCATENATE($B153,"!N21"))),"",INDIRECT(CONCATENATE($B153,"!N21"))) ->  | O153: =IF(ISERROR(INDIRECT(CONCATENATE($B153,"!O18"))),"",INDIRECT(CONCATENATE($B153,"!O18"))) ->  | P153: =IF(ISERROR(INDIRECT(CONCATENATE($B153,"!O19"))),"",INDIRECT(CONCATENATE($B153,"!O19"))) ->  | Q153: =IF(ISERROR(INDIRECT(CONCATENATE($B153,"!O20"))),"",INDIRECT(CONCATENATE($B153,"!O20"))) ->  | R153: =IF(ISERROR(INDIRECT(CONCATENATE($B153,"!O21"))),"",INDIRECT(CONCATENATE($B153,"!O21"))) ->  | T153: =IF(ISERROR(INDIRECT(CONCATENATE($B153,"!P18"))),"",INDIRECT(CONCATENATE($B153,"!P18"))) ->  | U153: =IF(ISERROR(INDIRECT(CONCATENATE($B153,"!P19"))),"",INDIRECT(CONCATENATE($B153,"!P19"))) ->  | V153: =IF(ISERROR(INDIRECT(CONCATENATE($B153,"!P20"))),"",INDIRECT(CONCATENATE($B153,"!P20"))) ->  | W153: =IF(ISERROR(INDIRECT(CONCATENATE($B153,"!P21"))),"",INDIRECT(CONCATENATE($B153,"!P21"))) ->  | Y153: =IF(ISERROR(INDIRECT(CONCATENATE($B153,"!Q18"))),"",INDIRECT(CONCATENATE($B153,"!Q18"))) ->  | Z153: =IF(ISERROR(INDIRECT(CONCATENATE($B153,"!Q19"))),"",INDIRECT(CONCATENATE($B153,"!Q19"))) ->  | AA153: =IF(ISERROR(INDIRECT(CONCATENATE($B153,"!Q20"))),"",INDIRECT(CONCATENATE($B153,"!Q20"))) ->  | AB153: =IF(ISERROR(INDIRECT(CONCATENATE($B153,"!Q21"))),"",INDIRECT(CONCATENATE($B153,"!Q1"))) -> 
A197: URBAN | D197: Poorest | I197: Poor | N197: Middle | S197: Rich | X197: Richest
D198: Improved | E198: Basic | F198: Limited | G198: Unimproved | H198: Surface water | I198: Improved | J198: Basic | K198: Limited | L198: Unimproved | M198: Surface water | N198: Improved | O198: Basic | P198: Limited | Q198: Unimproved | R198: Surface water | S198: Improved | T198: Basic | U198: Limited | V198: Unimproved | W198: Surface water | X198: Improved | Y198: Basic | Z198: Limited | AA198: Unimproved | AB198: Surface water
A199: Forecast period: | C199: =MinBase(C205:C216) -> 2000 | D199: =IF((D201+H201)>100,D201*100/(D201+H201),D201) -> 93.72747982 | E199: =D199*AVERAGEIF(E205:E216,">0")/100 -> 91.86502057 | F199: =D199*(100-AVERAGEIF(E205:E216,">0"))/100 -> 1.862459244 | G199: =100-(E199+F199+H199) -> 5.873387929 | H199: =IF((D201+H201)>100,H201*100/(D201+H201),H201) -> 0.3991322541 | I199: =IF((I201+M201)>100,I201*100/(I201+M201),I201) -> 95.56625146 | J199: =I199*AVERAGEIF(J205:J216,">0")/100 -> 93.70374415 | K199: =I199*(100-AVERAGEIF(J205:J216,">0"))/100 -> 1.862507312 | L199: =100-(J199+K199+M199) -> 4.190282316 | M199: =IF((I201+M201)>100,M201*100/(I201+M201),M201) -> 0.2434662215 | N199: =IF((N201+R201)>100,N201*100/(N201+R201),N201) -> 96.54229698 | O199: =N199*AVERAGEIF(O205:O216,">0")/100 -> 95.12479464 | P199: =N199*(100-AVERAGEIF(O205:O216,">0"))/100 -> 1.41750234 | Q199: =100-(O199+P199+R199) -> 2.935902381 | R199: =IF((N201+R201)>100,R201*100/(N201+R201),R201) -> 0.5218006433 | S199: =IF((S201+W201)>100,S201*100/(S201+W201),S201) -> 97.0743819 | T199: =S199*AVERAGEIF(T205:T216,">0")/100 -> 96.46609298 | U199: =S199*(100-AVERAGEIF(T205:T216,">0"))/100 -> 0.6082889249 | V199: =100-(T199+U199+W199) -> 2.66540931 | W199: =IF((S201+W201)>100,W201*100/(S201+W201),W201) -> 0.2602087892 | X199: =IF((X201+AB201)>100,X201*100/(X201+AB201),X201) -> 97.89044733 | Y199: =X199*AVERAGEIF(Y205:Y216,">0")/100 -> 97.22759035 | Z199: =X199*(100-AVERAGEIF(Y205:Y216,">0"))/100 -> 0.6628569794 | AA199: =100-(Y199+Z199+AB199) -> 2.035584464 | AB199: =IF((X201+AB201)>100,AB201*100/(X201+AB201),AB201) -> 0.07396820418
C200: =MaxTarget(C205:C216) -> 2020 | D200: =IF((D202+H202)>100,D202*100/(D202+H202),D202) -> 96.47814624 | E200: =D200*AVERAGEIF(E205:E216,">0")/100 -> 94.56102849 | F200: =D200*(100-AVERAGEIF(E205:E216,">0"))/100 -> 1.917117751 | G200: =100-(E200+F200+H200) -> 2.885633801 | H200: =IF((D202+H202)>100,H202*100/(D202+H202),H202) -> 0.6362199562 | I200: =IF((I202+M202)>100,I202*100/(I202+M202),I202) -> 96.37390453 | J200: =I200*AVERAGEIF(J205:J216,">0")/100 -> 94.49565673 | K200: =I200*(100-AVERAGEIF(J205:J216,">0"))/100 -> 1.878247804 | L200: =100-(J200+K200+M200) -> 3.497608124 | M200: =IF((I202+M202)>100,M202*100/(I202+M202),M202) -> 0.1284873453 | N200: =IF((N202+R202)>100,N202*100/(N202+R202),N202) -> 96.47356965 | O200: =N200*AVERAGEIF(O205:O216,">0")/100 -> 95.05707642 | P200: =N200*(100-AVERAGEIF(O205:O216,">0"))/100 -> 1.416493237 | Q200: =100-(O200+P200+R200) -> 3.518292109 | R200: =IF((N202+R202)>100,R202*100/(N202+R202),R202) -> 0.008138235867 | S200: =IF((S202+W202)>100,S202*100/(S202+W202),S202) -> 97.0839145 | T200: =S200*AVERAGEIF(T205:T216,">0")/100 -> 96.47556584 | U200: =S200*(100-AVERAGEIF(T205:T216,">0"))/100 -> 0.6083486583 | V200: =100-(T200+U200+W200) -> 2.909360437 | W200: =IF((S202+W202)>100,W202*100/(S202+W202),W202) -> 0.00672506151 | X200: =IF((X202+AB202)>100,X202*100/(X202+AB202),X202) -> 98.75438853 | Y200: =X200*AVERAGEIF(Y205:Y216,">0")/100 -> 98.08568144 | Z200: =X200*(100-AVERAGEIF(Y205:Y216,">0"))/100 -> 0.668707085 | AA200: =100-(Y200+Z200+AB200) -> 1.220449599 | AB200: =IF((X202+AB202)>100,AB202*100/(X202+AB202),AB202) -> 0.02516187281
A201: Regression period: | C201: =MinRegYear(C199,C205:C216) -> 2000 | D201: =IF(MAX(C205:C216)-MIN(C205:C216)<5,AVERAGEIF(C205:C216,">0",D205:D216), IF(FORECAST($C201,D$205:D$216,$C$205:$C$216)<0,0, IF(FORECAST($C201,D$205:D$216,$C$205:$C$216)>100,100, FORECAST($C201,D$205:D$216,$C$205:$C$216)))) -> 93.72747982 | H201: =IF(MAX(C205:C216)-MIN(C205:C216)<5,AVERAGEIF(C205:C216,">0",H205:H216), IF(FORECAST($C201,H$205:H$216,$C$205:$C$216)<0,0, IF(FORECAST($C201,H$205:H$216,$C$205:$C$216)>100,100, FORECAST($C201,H$205:H$216,$C$205:$C$216)))) -> 0.3991322541 | I201: =IF(MAX(C205:C216)-MIN(C205:C216)<5,AVERAGEIF(C205:C216,">0",I205:I216), IF(FORECAST($C201,I$205:I$216,$C$205:$C$216)<0,0, IF(FORECAST($C201,I$205:I$216,$C$205:$C$216)>100,100, FORECAST($C201,I$205:I$216,$C$205:$C$216)))) -> 95.56625146 | M201: =IF(MAX(C205:C216)-MIN(C205:C216)<5,AVERAGEIF(C205:C216,">0",M205:M216), IF(FORECAST($C201,M$205:M$216,$C$205:$C$216)<0,0, IF(FORECAST($C201,M$205:M$216,$C$205:$C$216)>100,100, FORECAST($C201,M$205:M$216,$C$205:$C$216)))) -> 0.2434662215 | N201: =IF(MAX(C205:C216)-MIN(C205:C216)<5,AVERAGEIF(C205:C216,">0",N205:N216), IF(FORECAST($C201,N$205:N$216,$C$205:$C$216)<0,0, IF(FORECAST($C201,N$205:N$216,$C$205:$C$216)>100,100, FORECAST($C201,N$205:N$216,$C$205:$C$216)))) -> 96.54229698 | R201: =IF(MAX(C205:C216)-MIN(C205:C216)<5,AVERAGEIF(C205:C216,">0",R205:R216), IF(FORECAST($C201,R$205:R$216,$C$205:$C$216)<0,0, IF(FORECAST($C201,R$205:R$216,$C$205:$C$216)>100,100, FORECAST($C201,R$205:R$216,$C$205:$C$216)))) -> 0.5218006433 | S201: =IF(MAX(C205:C216)-MIN(C205:C216)<5,AVERAGEIF(C205:C216,">0",S205:S216), IF(FORECAST($C201,S$205:S$216,$C$205:$C$216)<0,0, IF(FORECAST($C201,S$205:S$216,$C$205:$C$216)>100,100, FORECAST($C201,S$205:S$216,$C$205:$C$216)))) -> 97.0743819 | W201: =IF(MAX(C205:C216)-MIN(C205:C216)<5,AVERAGEIF(C205:C216,">0",W205:W216), IF(FORECAST($C201,W$205:W$216,$C$205:$C$216)<0,0, IF(FORECAST($C201,W$205:W$216,$C$205:$C$216)>100,100, FORECAST($C201,W$205:W$216,$C$205:$C$216)))) -> 0.2602087892 | X201: =IF(MAX(C205:C216)-MIN(C205:C216)<5,AVERAGEIF(C205:C216,">0",X205:X216), IF(FORECAST($C201,X$205:X$216,$C$205:$C$216)<0,0, IF(FORECAST($C201,X$205:X$216,$C$205:$C$216)>100,100, FORECAST($C201,X$205:X$216,$C$205:$C$216)))) -> 97.89044733 | AB201: =IF(MAX(C205:C216)-MIN(C205:C216)<5,AVERAGEIF(C205:C216,">0",AB205:AB216), IF(FORECAST($C201,AB$205:AB$216,$C$205:$C$216)<0,0, IF(FORECAST($C201,AB$205:AB$216,$C$205:$C$216)>100,100, FORECAST($C201,AB$205:AB$216,$C$205:$C$216)))) -> 0.07396820418
C202: =MaxRegYear(C200,C205:C216) -> 2016 | D202: =IF(MAX(C205:C216)-MIN(C205:C216)<5,AVERAGEIF(C205:C216,">0",D205:D216), IF(FORECAST($C202,D$205:D$216,$C$205:$C$216)<0,0, IF(FORECAST($C202,D$205:D$216,$C$205:$C$216)>100,100, FORECAST($C202,D$205:D$216,$C$205:$C$216)))) -> 96.47814624 | H202: =IF(MAX(C205:C216)-MIN(C205:C216)<5,AVERAGEIF(C205:C216,">0",H205:H216), IF(FORECAST($C202,H$205:H$216,$C$205:$C$216)<0,0, IF(FORECAST($C202,H$205:H$216,$C$205:$C$216)>100,100, FORECAST($C202,H$205:H$216,$C$205:$C$216)))) -> 0.6362199562 | I202: =IF(MAX(C205:C216)-MIN(C205:C216)<5,AVERAGEIF(C205:C216,">0",I205:I216), IF(FORECAST($C202,I$205:I$216,$C$205:$C$216)<0,0, IF(FORECAST($C202,I$205:I$216,$C$205:$C$216)>100,100, FORECAST($C202,I$205:I$216,$C$205:$C$216)))) -> 96.37390453 | M202: =IF(MAX(C205:C216)-MIN(C205:C216)<5,AVERAGEIF(C205:C216,">0",M205:M216), IF(FORECAST($C202,M$205:M$216,$C$205:$C$216)<0,0, IF(FORECAST($C202,M$205:M$216,$C$205:$C$216)>100,100, FORECAST($C202,M$205:M$216,$C$205:$C$216)))) -> 0.1284873453 | N202: =IF(MAX(C205:C216)-MIN(C205:C216)<5,AVERAGEIF(C205:C216,">0",N205:N216), IF(FORECAST($C202,N$205:N$216,$C$205:$C$216)<0,0, IF(FORECAST($C202,N$205:N$216,$C$205:$C$216)>100,100, FORECAST($C202,N$205:N$216,$C$205:$C$216)))) -> 96.47356965 | R202: =IF(MAX(C205:C216)-MIN(C205:C216)<5,AVERAGEIF(C205:C216,">0",R205:R216), IF(FORECAST($C202,R$205:R$216,$C$205:$C$216)<0,0, IF(FORECAST($C202,R$205:R$216,$C$205:$C$216)>100,100, FORECAST($C202,R$205:R$216,$C$205:$C$216)))) -> 0.008138235867 | S202: =IF(MAX(C205:C216)-MIN(C205:C216)<5,AVERAGEIF(C205:C216,">0",S205:S216), IF(FORECAST($C202,S$205:S$216,$C$205:$C$216)<0,0, IF(FORECAST($C202,S$205:S$216,$C$205:$C$216)>100,100, FORECAST($C202,S$205:S$216,$C$205:$C$216)))) -> 97.0839145 | W202: =IF(MAX(C205:C216)-MIN(C205:C216)<5,AVERAGEIF(C205:C216,">0",W205:W216), IF(FORECAST($C202,W$205:W$216,$C$205:$C$216)<0,0, IF(FORECAST($C202,W$205:W$216,$C$205:$C$216)>100,100, FORECAST($C202,W$205:W$216,$C$205:$C$216)))) -> 0.00672506151 | X202: =IF(MAX(C205:C216)-MIN(C205:C216)<5,AVERAGEIF(C205:C216,">0",X205:X216), IF(FORECAST($C202,X$205:X$216,$C$205:$C$216)<0,0, IF(FORECAST($C202,X$205:X$216,$C$205:$C$216)>100,100, FORECAST($C202,X$205:X$216,$C$205:$C$216)))) -> 98.75438853 | AB202: =IF(MAX(C205:C216)-MIN(C205:C216)<5,AVERAGEIF(C205:C216,">0",AB205:AB216), IF(FORECAST($C202,AB$205:AB$216,$C$205:$C$216)<0,0, IF(FORECAST($C202,AB$205:AB$216,$C$205:$C$216)>100,100, FORECAST($C202,AB$205:AB$216,$C$205:$C$216)))) -> 0.02516187281
B204: Survey | C204: Year | D204: Improved | E204: % Improved < = 30min | H204: Surface water | I204: Improved | J204: % Improved < = 30min | M204: Surface water | N204: Improved | O204: % Improved < = 30min | R204: Surface water | S204: Improved | T204: % Improved < = 30min | W204: Surface water | X204: Improved | Y204: % Improved < = 30min | AB204: Surface water
B205: MICS00 | C205: 2000 | D205: =IF(ISERROR(INDIRECT(CONCATENATE($B205,"!H16"))),"",INDIRECT(CONCATENATE($B205,"!H16"))) -> 94.48278882 | E205: =IF(ISERROR(INDIRECT(CONCATENATE($B205,"!H23"))),"",INDIRECT(CONCATENATE($B205,"!H23"))) -> 96.95836544 | H205: =IF(ISERROR(INDIRECT(CONCATENATE($B205,"!H21"))),"",INDIRECT(CONCATENATE($B205,"!H21"))) -> 0.2819560627 | I205: =IF(ISERROR(INDIRECT(CONCATENATE($B205,"!I16"))),"",INDIRECT(CONCATENATE($B205,"!I16"))) -> 98.74455153 | J205: =IF(ISERROR(INDIRECT(CONCATENATE($B205,"!I23"))),"",INDIRECT(CONCATENATE($B205,"!I23"))) -> 99.66079494 | M205: =IF(ISERROR(INDIRECT(CONCATENATE($B205,"!I21"))),"",INDIRECT(CONCATENATE($B205,"!I21"))) -> 0.0995361992 | N205: =IF(ISERROR(INDIRECT(CONCATENATE($B205,"!J16"))),"",INDIRECT(CONCATENATE($B205,"!J16"))) -> 99.19890548 | O205: =IF(ISERROR(INDIRECT(CONCATENATE($B205,"!J23"))),"",INDIRECT(CONCATENATE($B205,"!J23"))) -> 99.75538197 | R205: =IF(ISERROR(INDIRECT(CONCATENATE($B205,"!J21"))),"",INDIRECT(CONCATENATE($B205,"!J21"))) -> 0.6037234434 | S205: =IF(ISERROR(INDIRECT(CONCATENATE($B205,"!K16"))),"",INDIRECT(CONCATENATE($B205,"!K16"))) -> 99.71879109 | T205: =IF(ISERROR(INDIRECT(CONCATENATE($B205,"!K23"))),"",INDIRECT(CONCATENATE($B205,"!K23"))) -> 99.23737612 | W205: =IF(ISERROR(INDIRECT(CONCATENATE($B205,"!K21"))),"",INDIRECT(CONCATENATE($B205,"!K21"))) -> 0 | X205: =IF(ISERROR(INDIRECT(CONCATENATE($B205,"!L16"))),"",INDIRECT(CONCATENATE($B205,"!L16"))) -> 98.70168412 | Y205: =IF(ISERROR(INDIRECT(CONCATENATE($B205,"!L23"))),"",INDIRECT(CONCATENATE($B205,"!L23"))) -> 99.17163083 | AB205: =IF(ISERROR(INDIRECT(CONCATENATE($B205,"!L221"))),"",INDIRECT(CONCATENATE($B205,"!L21"))) -> 0
B206: DHS02 | C206: 2002 | D206: 98.98752266 | E206: N/A | H206: 0.4575444093 | I206: 98.88356865 | J206: N/A | M206: 0.3929353814 | N206: 99.57147192 | O206: N/A | R206: 0.3903177505 | S206: 99.33209979 | T206: N/A | W206: 0.5966388224 | X206: 99.57802756 | Y206: N/A | AB206: 0.1788128154
B207: WHS03 | D207: 74.64754209 | E207: 94.55598033 | H207: 0.7042710256 | I207: 78.84586702 | J207: 91.57545095 | M207: 0.279605716 | N207: 95.29422222 | O207: 94.06367929 | R207: 0.2570473904 | S207: 97.29608343 | T207: 98.38458807 | W207: 0 | X207: 98.12468395 | Y207: 98.12810686 | AB207: 0
B208: DHS07 | C208: 2007 | D208: 84.66727602 | E208: 99.66473581 | H208: 0.6505803449 | I208: 83.56637747 | J208: 99.68535016 | M208: 0.2128811532 | N208: 85.6162314 | O208: 99.79687365 | R208: 0.2505196741 | S208: 87.57656541 | T208: 99.88825079 | W208: 0.03828453548 | X208: 93.77242332 | Y208: 99.93920451 | AB208: 0.01526158952
B209: DHS13 | C209: 2013 | D209: 98.23889825 | E209: 99.65696826 | H209: 0.8528628343 | I209: 99.60249747 | J209: 99.82278172 | M209: 0.06094063203 | N209: 99.11272826 | O209: 99.432238 | R209: 0.09070750115 | S209: 99.49599173 | T209: 99.43554573 | W209: 0.05696617836 | X209: 99.75202163 | Y209: 99.59816295 | AB209: 0
B210: MICS14 | C210: 2014 | D210: 98.44991279 | E210: 99.22844753 | H210: 0.2861649489 | I210: 98.8514816 | J210: 99.51103518 | M210: 0.1923352701 | N210: 99.05751135 | O210: 99.61047317 | R210: 0.1179944308 | S210: 99.26990983 | T210: 99.92113192 | W210: 0.03881602237 | X210: 99.59194773 | Y210: 99.77718665 | AB210: 0.06595237043
B218: =CONCATENATE("Urban use of drinking water sources, ",C199,"–",C200) -> Urban use of drinking water sources, 2000–2020 | S218: Data points used for regression
E253: =IF(ISERROR(INDIRECT(CONCATENATE($B253,"!M18"))),"",INDIRECT(CONCATENATE($B253,"!M18"))) ->  | F253: =IF(ISERROR(INDIRECT(CONCATENATE($B253,"!M19"))),"",INDIRECT(CONCATENATE($B253,"!M19"))) ->  | G253: =IF(ISERROR(INDIRECT(CONCATENATE($B253,"!M20"))),"",INDIRECT(CONCATENATE($B253,"!M20"))) ->  | H253: =IF(ISERROR(INDIRECT(CONCATENATE($B253,"!M21"))),"",INDIRECT(CONCATENATE($B253,"!M21"))) ->  | J253: =IF(ISERROR(INDIRECT(CONCATENATE($B253,"!N18"))),"",INDIRECT(CONCATENATE($B253,"!N18"))) ->  | K253: =IF(ISERROR(INDIRECT(CONCATENATE($B253,"!N19"))),"",INDIRECT(CONCATENATE($B253,"!N19"))) ->  | L253: =IF(ISERROR(INDIRECT(CONCATENATE($B253,"!N20"))),"",INDIRECT(CONCATENATE($B253,"!N20"))) ->  | M253: =IF(ISERROR(INDIRECT(CONCATENATE($B253,"!N21"))),"",INDIRECT(CONCATENATE($B253,"!N21"))) ->  | O253: =IF(ISERROR(INDIRECT(CONCATENATE($B253,"!O18"))),"",INDIRECT(CONCATENATE($B253,"!O18"))) ->  | P253: =IF(ISERROR(INDIRECT(CONCATENATE($B253,"!O19"))),"",INDIRECT(CONCATENATE($B253,"!O19"))) ->  | Q253: =IF(ISERROR(INDIRECT(CONCATENATE($B253,"!O20"))),"",INDIRECT(CONCATENATE($B253,"!O20"))) ->  | R253: =IF(ISERROR(INDIRECT(CONCATENATE($B253,"!O21"))),"",INDIRECT(CONCATENATE($B253,"!O21"))) ->  | T253: =IF(ISERROR(INDIRECT(CONCATENATE($B253,"!P18"))),"",INDIRECT(CONCATENATE($B253,"!P18"))) ->  | U253: =IF(ISERROR(INDIRECT(CONCATENATE($B253,"!P19"))),"",INDIRECT(CONCATENATE($B253,"!P19"))) ->  | V253: =IF(ISERROR(INDIRECT(CONCATENATE($B253,"!P20"))),"",INDIRECT(CONCATENATE($B253,"!P20"))) ->  | W253: =IF(ISERROR(INDIRECT(CONCATENATE($B253,"!P21"))),"",INDIRECT(CONCATENATE($B253,"!P21"))) ->  | Y253: =IF(ISERROR(INDIRECT(CONCATENATE($B253,"!Q18"))),"",INDIRECT(CONCATENATE($B253,"!Q18"))) ->  | Z253: =IF(ISERROR(INDIRECT(CONCATENATE($B253,"!Q19"))),"",INDIRECT(CONCATENATE($B253,"!Q19"))) ->  | AA253: =IF(ISERROR(INDIRECT(CONCATENATE($B253,"!Q20"))),"",INDIRECT(CONCATENATE($B253,"!Q20"))) ->  | AB253: =IF(ISERROR(INDIRECT(CONCATENATE($B253,"!Q21"))),"",INDIRECT(CONCATENATE($B253,"!Q1"))) -> 
E254: =IF(ISERROR(INDIRECT(CONCATENATE($B254,"!M18"))),"",INDIRECT(CONCATENATE($B254,"!M18"))) ->  | F254: =IF(ISERROR(INDIRECT(CONCATENATE($B254,"!M19"))),"",INDIRECT(CONCATENATE($B254,"!M19"))) ->  | G254: =IF(ISERROR(INDIRECT(CONCATENATE($B254,"!M20"))),"",INDIRECT(CONCATENATE($B254,"!M20"))) ->  | H254: =IF(ISERROR(INDIRECT(CONCATENATE($B254,"!M21"))),"",INDIRECT(CONCATENATE($B254,"!M21"))) ->  | J254: =IF(ISERROR(INDIRECT(CONCATENATE($B254,"!N18"))),"",INDIRECT(CONCATENATE($B254,"!N18"))) ->  | K254: =IF(ISERROR(INDIRECT(CONCATENATE($B254,"!N19"))),"",INDIRECT(CONCATENATE($B254,"!N19"))) ->  | L254: =IF(ISERROR(INDIRECT(CONCATENATE($B254,"!N20"))),"",INDIRECT(CONCATENATE($B254,"!N20"))) ->  | M254: =IF(ISERROR(INDIRECT(CONCATENATE($B254,"!N21"))),"",INDIRECT(CONCATENATE($B254,"!N21"))) ->  | O254: =IF(ISERROR(INDIRECT(CONCATENATE($B254,"!O18"))),"",INDIRECT(CONCATENATE($B254,"!O18"))) ->  | P254: =IF(ISERROR(INDIRECT(CONCATENATE($B254,"!O19"))),"",INDIRECT(CONCATENATE($B254,"!O19"))) ->  | Q254: =IF(ISERROR(INDIRECT(CONCATENATE($B254,"!O20"))),"",INDIRECT(CONCATENATE($B254,"!O20"))) ->  | R254: =IF(ISERROR(INDIRECT(CONCATENATE($B254,"!O21"))),"",INDIRECT(CONCATENATE($B254,"!O21"))) ->  | T254: =IF(ISERROR(INDIRECT(CONCATENATE($B254,"!P18"))),"",INDIRECT(CONCATENATE($B254,"!P18"))) ->  | U254: =IF(ISERROR(INDIRECT(CONCATENATE($B254,"!P19"))),"",INDIRECT(CONCATENATE($B254,"!P19"))) ->  | V254: =IF(ISERROR(INDIRECT(CONCATENATE($B254,"!P20"))),"",INDIRECT(CONCATENATE($B254,"!P20"))) ->  | W254: =IF(ISERROR(INDIRECT(CONCATENATE($B254,"!P21"))),"",INDIRECT(CONCATENATE($B254,"!P21"))) ->  | Y254: =IF(ISERROR(INDIRECT(CONCATENATE($B254,"!Q18"))),"",INDIRECT(CONCATENATE($B254,"!Q18"))) ->  | Z254: =IF(ISERROR(INDIRECT(CONCATENATE($B254,"!Q19"))),"",INDIRECT(CONCATENATE($B254,"!Q19"))) ->  | AA254: =IF(ISERROR(INDIRECT(CONCATENATE($B254,"!Q20"))),"",INDIRECT(CONCATENATE($B254,"!Q20"))) ->  | AB254: =IF(ISERROR(INDIRECT(CONCATENATE($B254,"!Q21"))),"",INDIRECT(CONCATENATE($B254,"!Q1"))) -> 
E255: =IF(ISERROR(INDIRECT(CONCATENATE($B255,"!M18"))),"",INDIRECT(CONCATENATE($B255,"!M18"))) ->  | F255: =IF(ISERROR(INDIRECT(CONCATENATE($B255,"!M19"))),"",INDIRECT(CONCATENATE($B255,"!M19"))) ->  | G255: =IF(ISERROR(INDIRECT(CONCATENATE($B255,"!M20"))),"",INDIRECT(CONCATENATE($B255,"!M20"))) ->  | H255: =IF(ISERROR(INDIRECT(CONCATENATE($B255,"!M21"))),"",INDIRECT(CONCATENATE($B255,"!M21"))) ->  | J255: =IF(ISERROR(INDIRECT(CONCATENATE($B255,"!N18"))),"",INDIRECT(CONCATENATE($B255,"!N18"))) ->  | K255: =IF(ISERROR(INDIRECT(CONCATENATE($B255,"!N19"))),"",INDIRECT(CONCATENATE($B255,"!N19"))) ->  | L255: =IF(ISERROR(INDIRECT(CONCATENATE($B255,"!N20"))),"",INDIRECT(CONCATENATE($B255,"!N20"))) ->  | M255: =IF(ISERROR(INDIRECT(CONCATENATE($B255,"!N21"))),"",INDIRECT(CONCATENATE($B255,"!N21"))) ->  | O255: =IF(ISERROR(INDIRECT(CONCATENATE($B255,"!O18"))),"",INDIRECT(CONCATENATE($B255,"!O18"))) ->  | P255: =IF(ISERROR(INDIRECT(CONCATENATE($B255,"!O19"))),"",INDIRECT(CONCATENATE($B255,"!O19"))) ->  | Q255: =IF(ISERROR(INDIRECT(CONCATENATE($B255,"!O20"))),"",INDIRECT(CONCATENATE($B255,"!O20"))) ->  | R255: =IF(ISERROR(INDIRECT(CONCATENATE($B255,"!O21"))),"",INDIRECT(CONCATENATE($B255,"!O21"))) ->  | T255: =IF(ISERROR(INDIRECT(CONCATENATE($B255,"!P18"))),"",INDIRECT(CONCATENATE($B255,"!P18"))) ->  | U255: =IF(ISERROR(INDIRECT(CONCATENATE($B255,"!P19"))),"",INDIRECT(CONCATENATE($B255,"!P19"))) ->  | V255: =IF(ISERROR(INDIRECT(CONCATENATE($B255,"!P20"))),"",INDIRECT(CONCATENATE($B255,"!P20"))) ->  | W255: =IF(ISERROR(INDIRECT(CONCATENATE($B255,"!P21"))),"",INDIRECT(CONCATENATE($B255,"!P21"))) ->  | Y255: =IF(ISERROR(INDIRECT(CONCATENATE($B255,"!Q18"))),"",INDIRECT(CONCATENATE($B255,"!Q18"))) ->  | Z255: =IF(ISERROR(INDIRECT(CONCATENATE($B255,"!Q19"))),"",INDIRECT(CONCATENATE($B255,"!Q19"))) ->  | AA255: =IF(ISERROR(INDIRECT(CONCATENATE($B255,"!Q20"))),"",INDIRECT(CONCATENATE($B255,"!Q20"))) ->  | AB255: =IF(ISERROR(INDIRECT(CONCATENATE($B255,"!Q21"))),"",INDIRECT(CONCATENATE($B255,"!Q1"))) -> 
E256: =IF(ISERROR(INDIRECT(CONCATENATE($B256,"!M18"))),"",INDIRECT(CONCATENATE($B256,"!M18"))) ->  | F256: =IF(ISERROR(INDIRECT(CONCATENATE($B256,"!M19"))),"",INDIRECT(CONCATENATE($B256,"!M19"))) ->  | G256: =IF(ISERROR(INDIRECT(CONCATENATE($B256,"!M20"))),"",INDIRECT(CONCATENATE($B256,"!M20"))) ->  | H256: =IF(ISERROR(INDIRECT(CONCATENATE($B256,"!M21"))),"",INDIRECT(CONCATENATE($B256,"!M21"))) ->  | J256: =IF(ISERROR(INDIRECT(CONCATENATE($B256,"!N18"))),"",INDIRECT(CONCATENATE($B256,"!N18"))) ->  | K256: =IF(ISERROR(INDIRECT(CONCATENATE($B256,"!N19"))),"",INDIRECT(CONCATENATE($B256,"!N19"))) ->  | L256: =IF(ISERROR(INDIRECT(CONCATENATE($B256,"!N20"))),"",INDIRECT(CONCATENATE($B256,"!N20"))) ->  | M256: =IF(ISERROR(INDIRECT(CONCATENATE($B256,"!N21"))),"",INDIRECT(CONCATENATE($B256,"!N21"))) ->  | O256: =IF(ISERROR(INDIRECT(CONCATENATE($B256,"!O18"))),"",INDIRECT(CONCATENATE($B256,"!O18"))) ->  | P256: =IF(ISERROR(INDIRECT(CONCATENATE($B256,"!O19"))),"",INDIRECT(CONCATENATE($B256,"!O19"))) ->  | Q256: =IF(ISERROR(INDIRECT(CONCATENATE($B256,"!O20"))),"",INDIRECT(CONCATENATE($B256,"!O20"))) ->  | R256: =IF(ISERROR(INDIRECT(CONCATENATE($B256,"!O21"))),"",INDIRECT(CONCATENATE($B256,"!O21"))) ->  | T256: =IF(ISERROR(INDIRECT(CONCATENATE($B256,"!P18"))),"",INDIRECT(CONCATENATE($B256,"!P18"))) ->  | U256: =IF(ISERROR(INDIRECT(CONCATENATE($B256,"!P19"))),"",INDIRECT(CONCATENATE($B256,"!P19"))) ->  | V256: =IF(ISERROR(INDIRECT(CONCATENATE($B256,"!P20"))),"",INDIRECT(CONCATENATE($B256,"!P20"))) ->  | W256: =IF(ISERROR(INDIRECT(CONCATENATE($B256,"!P21"))),"",INDIRECT(CONCATENATE($B256,"!P21"))) ->  | Y256: =IF(ISERROR(INDIRECT(CONCATENATE($B256,"!Q18"))),"",INDIRECT(CONCATENATE($B256,"!Q18"))) ->  | Z256: =IF(ISERROR(INDIRECT(CONCATENATE($B256,"!Q19"))),"",INDIRECT(CONCATENATE($B256,"!Q19"))) ->  | AA256: =IF(ISERROR(INDIRECT(CONCATENATE($B256,"!Q20"))),"",INDIRECT(CONCATENATE($B256,"!Q20"))) ->  | AB256: =IF(ISERROR(INDIRECT(CONCATENATE($B256,"!Q21"))),"",INDIRECT(CONCATENATE($B256,"!Q1"))) -> 
E257: =IF(ISERROR(INDIRECT(CONCATENATE($B257,"!M18"))),"",INDIRECT(CONCATENATE($B257,"!M18"))) ->  | F257: =IF(ISERROR(INDIRECT(CONCATENATE($B257,"!M19"))),"",INDIRECT(CONCATENATE($B257,"!M19"))) ->  | G257: =IF(ISERROR(INDIRECT(CONCATENATE($B257,"!M20"))),"",INDIRECT(CONCATENATE($B257,"!M20"))) ->  | H257: =IF(ISERROR(INDIRECT(CONCATENATE($B257,"!M21"))),"",INDIRECT(CONCATENATE($B257,"!M21"))) ->  | J257: =IF(ISERROR(INDIRECT(CONCATENATE($B257,"!N18"))),"",INDIRECT(CONCATENATE($B257,"!N18"))) ->  | K257: =IF(ISERROR(INDIRECT(CONCATENATE($B257,"!N19"))),"",INDIRECT(CONCATENATE($B257,"!N19"))) ->  | L257: =IF(ISERROR(INDIRECT(CONCATENATE($B257,"!N20"))),"",INDIRECT(CONCATENATE($B257,"!N20"))) ->  | M257: =IF(ISERROR(INDIRECT(CONCATENATE($B257,"!N21"))),"",INDIRECT(CONCATENATE($B257,"!N21"))) ->  | O257: =IF(ISERROR(INDIRECT(CONCATENATE($B257,"!O18"))),"",INDIRECT(CONCATENATE($B257,"!O18"))) ->  | P257: =IF(ISERROR(INDIRECT(CONCATENATE($B257,"!O19"))),"",INDIRECT(CONCATENATE($B257,"!O19"))) ->  | Q257: =IF(ISERROR(INDIRECT(CONCATENATE($B257,"!O20"))),"",INDIRECT(CONCATENATE($B257,"!O20"))) ->  | R257: =IF(ISERROR(INDIRECT(CONCATENATE($B257,"!O21"))),"",INDIRECT(CONCATENATE($B257,"!O21"))) ->  | T257: =IF(ISERROR(INDIRECT(CONCATENATE($B257,"!P18"))),"",INDIRECT(CONCATENATE($B257,"!P18"))) ->  | U257: =IF(ISERROR(INDIRECT(CONCATENATE($B257,"!P19"))),"",INDIRECT(CONCATENATE($B257,"!P19"))) ->  | V257: =IF(ISERROR(INDIRECT(CONCATENATE($B257,"!P20"))),"",INDIRECT(CONCATENATE($B257,"!P20"))) ->  | W257: =IF(ISERROR(INDIRECT(CONCATENATE($B257,"!P21"))),"",INDIRECT(CONCATENATE($B257,"!P21"))) ->  | Y257: =IF(ISERROR(INDIRECT(CONCATENATE($B257,"!Q18"))),"",INDIRECT(CONCATENATE($B257,"!Q18"))) ->  | Z257: =IF(ISERROR(INDIRECT(CONCATENATE($B257,"!Q19"))),"",INDIRECT(CONCATENATE($B257,"!Q19"))) ->  | AA257: =IF(ISERROR(INDIRECT(CONCATENATE($B257,"!Q20"))),"",INDIRECT(CONCATENATE($B257,"!Q20"))) ->  | AB257: =IF(ISERROR(INDIRECT(CONCATENATE($B257,"!Q21"))),"",INDIRECT(CONCATENATE($B257,"!Q1"))) -> 
A297: RURAL | D297: Poorest | I297: Poor | N297: Middle | S297: Rich | X297: Richest
D298: Improved | E298: Basic | F298: Limited | G298: Unimproved | H298: Surface water | I298: Improved | J298: Basic | K298: Limited | L298: Unimproved | M298: Surface water | N298: Improved | O298: Basic | P298: Limited | Q298: Unimproved | R298: Surface water | S298: Improved | T298: Basic | U298: Limited | V298: Unimproved | W298: Surface water | X298: Improved | Y298: Basic | Z298: Limited | AA298: Unimproved | AB298: Surface water
A299: Forecast period: | C299: 2000 | D299: =IF((D301+H301)>100,D301*100/(D301+H301),D301) -> 70.1063444 | E299: =D299*AVERAGEIF(E305:E316,">0")/100 -> 66.67662883 | F299: =D299*(100-AVERAGEIF(E305:E316,">0"))/100 -> 3.429715574 | G299: =100-(E299+F299+H299) -> 10.383007 | H299: =IF((D301+H301)>100,H301*100/(D301+H301),H301) -> 19.5106486 | I299: =IF((I301+M301)>100,I301*100/(I301+M301),I301) -> 87.92535355 | J299: =I299*AVERAGEIF(J305:J316,">0")/100 -> 85.89490146 | K299: =I299*(100-AVERAGEIF(J305:J316,">0"))/100 -> 2.030452081 | L299: =100-(J299+K299+M299) -> 4.62201642 | M299: =IF((I301+M301)>100,M301*100/(I301+M301),M301) -> 7.452630034 | N299: =IF((N301+R301)>100,N301*100/(N301+R301),N301) -> 90.84934856 | O299: =N299*AVERAGEIF(O305:O316,">0")/100 -> 88.95159888 | P299: =N299*(100-AVERAGEIF(O305:O316,">0"))/100 -> 1.89774968 | Q299: =100-(O299+P299+R299) -> 5.204051022 | R299: =IF((N301+R301)>100,R301*100/(N301+R301),R301) -> 3.946600423 | S299: =IF((S301+W301)>100,S301*100/(S301+W301),S301) -> 93.48813272 | T299: =S299*AVERAGEIF(T305:T316,">0")/100 -> 92.42482449 | U299: =S299*(100-AVERAGEIF(T305:T316,">0"))/100 -> 1.063308231 | V299: =100-(T299+U299+W299) -> 3.863460489 | W299: =IF((S301+W301)>100,W301*100/(S301+W301),W301) -> 2.648406794 | X299: =IF((X301+AB301)>100,X301*100/(X301+AB301),X301) -> 97.96176636 | Y299: =X299*AVERAGEIF(Y305:Y316,">0")/100 -> 97.49688644 | Z299: =X299*(100-AVERAGEIF(Y305:Y316,">0"))/100 -> 0.464879915 | AA299: =100-(Y299+Z299+AB299) -> 1.734227722 | AB299: =IF((X301+AB301)>100,AB301*100/(X301+AB301),AB301) -> 0.3040059209
C300: 2020 | D300: =IF((D302+H302)>100,D302*100/(D302+H302),D302) -> 93.24743263 | E300: =D300*AVERAGEIF(E305:E316,">0")/100 -> 88.68561766 | F300: =D300*(100-AVERAGEIF(E305:E316,">0"))/100 -> 4.561814979 | G300: =100-(E300+F300+H300) -> 0.6568640139 | H300: =IF((D302+H302)>100,H302*100/(D302+H302),H302) -> 6.095703352 | I300: =IF((I302+M302)>100,I302*100/(I302+M302),I302) -> 95.25173615 | J300: =I300*AVERAGEIF(J305:J316,">0")/100 -> 93.05209659 | K300: =I300*(100-AVERAGEIF(J305:J316,">0"))/100 -> 2.199639559 | L300: =100-(J300+K300+M300) -> 2.005886674 | M300: =IF((I302+M302)>100,M302*100/(I302+M302),M302) -> 2.742377174 | N300: =IF((N302+R302)>100,N302*100/(N302+R302),N302) -> 97.47706227 | O300: =N300*AVERAGEIF(O305:O316,">0")/100 -> 95.44086645 | P300: =N300*(100-AVERAGEIF(O305:O316,">0"))/100 -> 2.03619582 | Q300: =100-(O300+P300+R300) -> 1.282418542 | R300: =IF((N302+R302)>100,R302*100/(N302+R302),R302) -> 1.240519188 | S300: =IF((S302+W302)>100,S302*100/(S302+W302),S302) -> 97.35111519 | T300: =S300*AVERAGEIF(T305:T316,">0")/100 -> 96.24387046 | U300: =S300*(100-AVERAGEIF(T305:T316,">0"))/100 -> 1.107244728 | V300: =100-(T300+U300+W300) -> 1.741638658 | W300: =IF((S302+W302)>100,W302*100/(S302+W302),W302) -> 0.907246154 | X300: =IF((X302+AB302)>100,X302*100/(X302+AB302),X302) -> 98.18137308 | Y300: =X300*AVERAGEIF(Y305:Y316,">0")/100 -> 97.71545101 | Z300: =X300*(100-AVERAGEIF(Y305:Y316,">0"))/100 -> 0.4659220639 | AA300: =100-(Y300+Z300+AB300) -> 1.540027086 | AB300: =IF((X302+AB302)>100,AB302*100/(X302+AB302),AB302) -> 0.2785998365
A301: Regression period: | C301: =MinRegYear(C299,C305:C316) -> 2000 | D301: =IF(MAX(C305:C316)-MIN(C305:C316)<5,AVERAGEIF(C305:C316,">0",D305:D316), IF(FORECAST($C301,D$305:D$316,$C$305:$C$316)<0,0, IF(FORECAST($C301,D$305:D$316,$C$305:$C$316)>100,100, FORECAST($C301,D$305:D$316,$C$305:$C$316)))) -> 70.1063444 | H301: =IF(MAX(C305:C316)-MIN(C305:C316)<5,AVERAGEIF(C305:C316,">0",H305:H316), IF(FORECAST($C301,H$305:H$316,$C$305:$C$316)<0,0, IF(FORECAST($C301,H$305:H$316,$C$305:$C$316)>100,100, FORECAST($C301,H$305:H$316,$C$305:$C$316)))) -> 19.5106486 | I301: =IF(MAX(C305:C316)-MIN(C305:C316)<5,AVERAGEIF(C305:C316,">0",I305:I316), IF(FORECAST($C301,I$305:I$316,$C$305:$C$316)<0,0, IF(FORECAST($C301,I$305:I$316,$C$305:$C$316)>100,100, FORECAST($C301,I$305:I$316,$C$305:$C$316)))) -> 87.92535355 | M301: =IF(MAX(C305:C316)-MIN(C305:C316)<5,AVERAGEIF(C305:C316,">0",M305:M316), IF(FORECAST($C301,M$305:M$316,$C$305:$C$316)<0,0, IF(FORECAST($C301,M$305:M$316,$C$305:$C$316)>100,100, FORECAST($C301,M$305:M$316,$C$305:$C$316)))) -> 7.452630034 | N301: =IF(MAX(C305:C316)-MIN(C305:C316)<5,AVERAGEIF(C305:C316,">0",N305:N316), IF(FORECAST($C301,N$305:N$316,$C$305:$C$316)<0,0, IF(FORECAST($C301,N$305:N$316,$C$305:$C$316)>100,100, FORECAST($C301,N$305:N$316,$C$305:$C$316)))) -> 90.84934856 | R301: =IF(MAX(C305:C316)-MIN(C305:C316)<5,AVERAGEIF(C305:C316,">0",R305:R316), IF(FORECAST($C301,R$305:R$316,$C$305:$C$316)<0,0, IF(FORECAST($C301,R$305:R$316,$C$305:$C$316)>100,100, FORECAST($C301,R$305:R$316,$C$305:$C$316)))) -> 3.946600423 | S301: =IF(MAX(C305:C316)-MIN(C305:C316)<5,AVERAGEIF(C305:C316,">0",S305:S316), IF(FORECAST($C301,S$305:S$316,$C$305:$C$316)<0,0, IF(FORECAST($C301,S$305:S$316,$C$305:$C$316)>100,100, FORECAST($C301,S$305:S$316,$C$305:$C$316)))) -> 93.48813272 | W301: =IF(MAX(C305:C316)-MIN(C305:C316)<5,AVERAGEIF(C305:C316,">0",W305:W316), IF(FORECAST($C301,W$305:W$316,$C$305:$C$316)<0,0, IF(FORECAST($C301,W$305:W$316,$C$305:$C$316)>100,100, FORECAST($C301,W$305:W$316,$C$305:$C$316)))) -> 2.648406794 | X301: =IF(MAX(C305:C316)-MIN(C305:C316)<5,AVERAGEIF(C305:C316,">0",X305:X316), IF(FORECAST($C301,X$305:X$316,$C$305:$C$316)<0,0, IF(FORECAST($C301,X$305:X$316,$C$305:$C$316)>100,100, FORECAST($C301,X$305:X$316,$C$305:$C$316)))) -> 97.96176636 | AB301: =IF(MAX(C305:C316)-MIN(C305:C316)<5,AVERAGEIF(C305:C316,">0",AB305:AB316), IF(FORECAST($C301,AB$305:AB$316,$C$305:$C$316)<0,0, IF(FORECAST($C301,AB$305:AB$316,$C$305:$C$316)>100,100, FORECAST($C301,AB$305:AB$316,$C$305:$C$316)))) -> 0.3040059209
C302: =MaxRegYear(C300,C305:C316) -> 2016 | D302: =IF(MAX(C305:C316)-MIN(C305:C316)<5,AVERAGEIF(C305:C316,">0",D305:D316), IF(FORECAST($C302,D$305:D$316,$C$305:$C$316)<0,0, IF(FORECAST($C302,D$305:D$316,$C$305:$C$316)>100,100, FORECAST($C302,D$305:D$316,$C$305:$C$316)))) -> 93.24743263 | H302: =IF(MAX(C305:C316)-MIN(C305:C316)<5,AVERAGEIF(C305:C316,">0",H305:H316), IF(FORECAST($C302,H$305:H$316,$C$305:$C$316)<0,0, IF(FORECAST($C302,H$305:H$316,$C$305:$C$316)>100,100, FORECAST($C302,H$305:H$316,$C$305:$C$316)))) -> 6.095703352 | I302: =IF(MAX(C305:C316)-MIN(C305:C316)<5,AVERAGEIF(C305:C316,">0",I305:I316), IF(FORECAST($C302,I$305:I$316,$C$305:$C$316)<0,0, IF(FORECAST($C302,I$305:I$316,$C$305:$C$316)>100,100, FORECAST($C302,I$305:I$316,$C$305:$C$316)))) -> 95.25173615 | M302: =IF(MAX(C305:C316)-MIN(C305:C316)<5,AVERAGEIF(C305:C316,">0",M305:M316), IF(FORECAST($C302,M$305:M$316,$C$305:$C$316)<0,0, IF(FORECAST($C302,M$305:M$316,$C$305:$C$316)>100,100, FORECAST($C302,M$305:M$316,$C$305:$C$316)))) -> 2.742377174 | N302: =IF(MAX(C305:C316)-MIN(C305:C316)<5,AVERAGEIF(C305:C316,">0",N305:N316), IF(FORECAST($C302,N$305:N$316,$C$305:$C$316)<0,0, IF(FORECAST($C302,N$305:N$316,$C$305:$C$316)>100,100, FORECAST($C302,N$305:N$316,$C$305:$C$316)))) -> 97.47706227 | R302: =IF(MAX(C305:C316)-MIN(C305:C316)<5,AVERAGEIF(C305:C316,">0",R305:R316), IF(FORECAST($C302,R$305:R$316,$C$305:$C$316)<0,0, IF(FORECAST($C302,R$305:R$316,$C$305:$C$316)>100,100, FORECAST($C302,R$305:R$316,$C$305:$C$316)))) -> 1.240519188 | S302: =IF(MAX(C305:C316)-MIN(C305:C316)<5,AVERAGEIF(C305:C316,">0",S305:S316), IF(FORECAST($C302,S$305:S$316,$C$305:$C$316)<0,0, IF(FORECAST($C302,S$305:S$316,$C$305:$C$316)>100,100, FORECAST($C302,S$305:S$316,$C$305:$C$316)))) -> 97.35111519 | W302: =IF(MAX(C305:C316)-MIN(C305:C316)<5,AVERAGEIF(C305:C316,">0",W305:W316), IF(FORECAST($C302,W$305:W$316,$C$305:$C$316)<0,0, IF(FORECAST($C302,W$305:W$316,$C$305:$C$316)>100,100, FORECAST($C302,W$305:W$316,$C$305:$C$316)))) -> 0.907246154 | X302: =IF(MAX(C305:C316)-MIN(C305:C316)<5,AVERAGEIF(C305:C316,">0",X305:X316), IF(FORECAST($C302,X$305:X$316,$C$305:$C$316)<0,0, IF(FORECAST($C302,X$305:X$316,$C$305:$C$316)>100,100, FORECAST($C302,X$305:X$316,$C$305:$C$316)))) -> 98.18137308 | AB302: =IF(MAX(C305:C316)-MIN(C305:C316)<5,AVERAGEIF(C305:C316,">0",AB305:AB316), IF(FORECAST($C302,AB$305:AB$316,$C$305:$C$316)<0,0, IF(FORECAST($C302,AB$305:AB$316,$C$305:$C$316)>100,100, FORECAST($C302,AB$305:AB$316,$C$305:$C$316)))) -> 0.2785998365
B304: Survey | C304: Year | D304: Improved | E304: % Improved < = 30min | H304: Surface water | I304: Improved | J304: % Improved < = 30min | M304: Surface water | N304: Improved | O304: % Improved < = 30min | R304: Surface water | S304: Improved | T304: % Improved < = 30min | W304: Surface water | X304: Improved | Y304: % Improved < = 30min | AB304: Surface water
B305: MICS00 | C305: 2000 | D305: =IF(ISERROR(INDIRECT(CONCATENATE($B305,"!M16"))),"",INDIRECT(CONCATENATE($B305,"!M16"))) -> 71.53940157 | E305: =IF(ISERROR(INDIRECT(CONCATENATE($B305,"!M23"))),"",INDIRECT(CONCATENATE($B305,"!M23"))) -> 93.37755937 | H305: =IF(ISERROR(INDIRECT(CONCATENATE($B305,"!M21"))),"",INDIRECT(CONCATENATE($B305,"!M21"))) -> 14.82119712 | I305: =IF(ISERROR(INDIRECT(CONCATENATE($B305,"!N16"))),"",INDIRECT(CONCATENATE($B305,"!N16"))) -> 89.89777814 | J305: =IF(ISERROR(INDIRECT(CONCATENATE($B305,"!N23"))),"",INDIRECT(CONCATENATE($B305,"!N23"))) -> 97.11435629 | M305: =IF(ISERROR(INDIRECT(CONCATENATE($B305,"!N21"))),"",INDIRECT(CONCATENATE($B305,"!N21"))) -> 5.548307303 | N305: =IF(ISERROR(INDIRECT(CONCATENATE($B305,"!O16"))),"",INDIRECT(CONCATENATE($B305,"!O16"))) -> 90.9723419 | O305: =IF(ISERROR(INDIRECT(CONCATENATE($B305,"!O23"))),"",INDIRECT(CONCATENATE($B305,"!O23"))) -> 96.98240313 | R305: =IF(ISERROR(INDIRECT(CONCATENATE($B305,"!O21"))),"",INDIRECT(CONCATENATE($B305,"!O21"))) -> 3.375827795 | S305: =IF(ISERROR(INDIRECT(CONCATENATE($B305,"!P16"))),"",INDIRECT(CONCATENATE($B305,"!P16"))) -> 94.80856011 | T305: =IF(ISERROR(INDIRECT(CONCATENATE($B305,"!P23"))),"",INDIRECT(CONCATENATE($B305,"!P23"))) -> 98.83761087 | W305: =IF(ISERROR(INDIRECT(CONCATENATE($B305,"!P21"))),"",INDIRECT(CONCATENATE($B305,"!P21"))) -> 2.534657894 | X305: =IF(ISERROR(INDIRECT(CONCATENATE($B305,"!Q16"))),"",INDIRECT(CONCATENATE($B305,"!Q16"))) -> 99.42969739 | Y305: =IF(ISERROR(INDIRECT(CONCATENATE($B305,"!Q23"))),"",INDIRECT(CONCATENATE($B305,"!Q23"))) -> 98.52163837 | AB305: =IF(ISERROR(INDIRECT(CONCATENATE($B305,"!Q221"))),"",INDIRECT(CONCATENATE($B305,"!Q21"))) -> 0
B306: DHS02 | C306: 2002 | D306: 69.18256889 | E306: N/A | H306: 23.6252865 | I306: 89.62972029 | J306: N/A | M306: 8.410935598 | N306: 94.88507638 | O306: N/A | R306: 3.574924277 | S306: 95.30963168 | T306: N/A | W306: 2.365427394 | X306: 99.07827467 | Y306: N/A | AB306: 0.4944411884
B307: WHS03 | D307: 57.0817837 | E307: 89.47710733 | H307: 31.99409648 | I307: 68.26001751 | J307: 96.14078259 | M307: 20.83653033 | N307: 68.19764489 | O307: 97.86777287 | R307: 19.58167499 | S307: 89.1326639 | T307: 98.45900536 | W307: 7.891553279 | X307: 94.34407897 | Y307: 100 | AB307: 4.374987698
B308: DHS07 | C308: 2007 | D308: 83.20928822 | E308: 97.68271713 | H308: 13.58628806 | I308: 85.41195092 | J308: 98.20215621 | M308: 6.661633708 | N308: 87.63158984 | O308: 98.26679748 | R308: 4.046503904 | S308: 89.99857699 | T308: 99.0966862 | W308: 2.22857191 | X308: 93.03980838 | Y308: 99.25560415 | AB308: 0.5948064733
B309: DHS13 | C309: 2013 | D309: 93.79159279 | E309: 98.40608983 | H309: 5.152507719 | I309: 96.83213327 | J309: 99.09892414 | M309: 2.832846661 | N309: 98.84698005 | O309: 97.86614665 | R309: 1.153019953 | S309: 98.3345826 | T309: 99.18249127 | W309: 1.216749921 | X309: 99.64672411 | Y309: 99.9787171 | AB309: 0.102704034
B310: MICS14 | C310: 2014 | D310: 84.87631907 | E310: 96.59571894 | H310: 10.1843368 | I310: 94.33954598 | J310: 97.89732687 | M310: 3.211357965 | N310: 96.82311047 | O310: 98.57239286 | R310: 1.494043406 | S310: 97.68102277 | T310: 98.73734423 | W310: 0.9790154095 | X310: 99.10844236 | Y310: 99.87127837 | AB310: 0.270914219
B318: =CONCATENATE("Rural use of drinking water sources, ",C299,"–",C300) -> Rural use of drinking water sources, 2000–2020 | S318: Data points used for regression

Sheet Sanitation
B4: Summary of trends in use of sanitation facilities by wealth quintile (%)
B5: =IF(ISERROR(INDIRECT(CONCATENATE($B105,"!A2"))),"",INDIRECT(CONCATENATE($B105,"!A2"))) -> Dominican Republic
B7: =B118 -> National use of sanitation facilities, 2000–2020 | J7: =B218 -> Urban use of sanitation facilities, 2000–2020 | R7: =B318 -> Rural use of sanitation facilities, 2000–2020
B31: =IF(ISERROR(INDIRECT(CONCATENATE($B105,"!A2"))),"",INDIRECT(CONCATENATE($B105,"!A2"))) -> Dominican Republic | F31: Poorest | J31: Poor | N31: Middle | R31: Rich | V31: Richest
F32: Basic | G32: Limited | H32: Unimproved | I32: Open defecation | J32: Basic | K32: Limited | L32: Unimproved | M32: Open defecation | N32: Basic | O32: Limited | P32: Unimproved | Q32: Open defecation | R32: Basic | S32: Limited | T32: Unimproved | U32: Open defecation | V32: Basic | W32: Limited | X32: Unimproved | Y32: Open defecation
B33: NATIONAL | D33: Estimate | E33: =C99 -> 2000 | F33: =E99 -> 52.09149212 | G33: =F99 -> 22.9944477 | H33: 9.807921034 | I33: 15.10613914 | J33: =J99 -> 72.04256051 | K33: =K99 -> 17.80011174 | L33: 6.756122319 | M33: 3.401205429 | N33: =O99 -> 84.1975047 | O33: =P99 -> 10.84576853 | P33: 3.615047317 | Q33: 1.341679449 | R33: =T99 -> 93.31678216 | S33: =U99 -> 5.337889214 | T33: 0.9080282574 | U33: 0.4373003671 | V33: =Y99 -> 98.54644404 | W33: =Z99 -> 1.349750825 | X33: 0.1038051321 | Y33: 0
E34: =C100 -> 2020 | F34: =E100 -> 60.19471312 | G34: 26.57140594 | H34: 4.492846364 | I34: 8.741034577 | J34: =J100 -> 76.03022381 | K34: 18.78537451 | L34: 2.667286269 | M34: 2.517115413 | N34: =O100 -> 86.93990488 | O34: 11.19902648 | P34: 1.300441957 | Q34: 0.5606266894 | R34: =T100 -> 93.75069564 | S34: 5.362709852 | T34: 0.8549481071 | U34: 0.03164640476 | V34: =Y100 -> 98.19669564 | W34: 1.344960462 | X34: 0.3781114256 | Y34: 0.08023247512
B36: URBAN | D36: Estimate | E36: =C199 -> 2000 | F36: =E199 -> 57.90749387 | G36: =F199 -> 27.36190387 | H36: 8.607156789 | I36: 6.12344547 | J36: =J199 -> 78.7558542 | K36: =K199 -> 16.11637074 | L36: 3.034381784 | M36: 2.09339328 | N36: =O199 -> 89.86663161 | O36: =P199 -> 8.391726614 | P36: 1.075080091 | Q36: 0.6665616893 | R36: =T199 -> 95.96325473 | S36: =U199 -> 3.819743317 | T36: 0.1049380823 | U36: 0.1120638678 | V36: =Y199 -> 99.42689629 | W36: =Z199 -> 0.5147256878 | X36: 0.05837801897 | Y36: 0
E37: =C200 -> 2020 | F37: =E200 -> 60.51082094 | G37: 28.59200347 | H37: 4.729397945 | I37: 6.167777642 | J37: =J200 -> 79.79256825 | K37: 16.32852091 | L37: 2.61998637 | M37: 1.258924466 | N37: =O200 -> 90.00065245 | O37: 8.404241452 | P37: 1.273831986 | Q37: 0.3212741109 | R37: =T200 -> 95.43133788 | S37: 3.798570777 | T37: 0.7637295113 | U37: 0.006361834962 | V37: =Y200 -> 99.01573611 | W37: 0.512597142 | X37: 0.3708307894 | Y37: 0.1008359549
B39: RURAL | D39: Estimate | E39: =C299 -> 2000 | F39: =E299 -> 44.63926569 | G39: =F299 -> 20.30542361 | H39: 10.13013593 | I39: 24.92517476 | J39: =J299 -> 63.66915283 | K39: =K299 -> 18.86949153 | L39: 9.327120542 | M39: 8.134235098 | N39: =O299 -> 74.57124068 | O39: =P299 -> 15.20708391 | P39: 7.071430441 | Q39: 3.150244969 | R39: =T299 -> 81.84453006 | S39: =U299 -> 10.13792467 | T39: 6.622441925 | U39: 1.395103343 | V39: =Y299 -> 93.27472037 | W39: =Z299 -> 4.404741855 | X39: 1.801393698 | Y39: 0.5191440775
E40: =C300 -> 2020 | F40: =E300 -> 55.57582545 | G40: 25.28022495 | H40: 4.197567101 | I40: 14.9463825 | J40: =J300 -> 69.10251865 | K40: 20.47976662 | L40: 3.945492747 | M40: 6.47222198 | N40: =O300 -> 76.92944655 | O40: 15.68798558 | P40: 2.723254471 | Q40: 4.659313401 | R40: =T300 -> 87.63473541 | S40: 10.85514628 | T40: 0.3072941065 | U40: 1.202824204 | V40: =Y300 -> 95.02299338 | W40: 4.487301108 | X40: 0.4155838828 | Y40: 0.07412163335
A97: NATIONAL | D97: Poorest | I97: Poor | N97: Middle | S97: Rich | X97: Richest
D98: Improved | E98: Basic | F98: Limited | G98: Unimproved | H98: Open defecation | I98: Improved | J98: Basic | K98: Limited | L98: Unimproved | M98: Open defecation | N98: Improved | O98: Basic | P98: Limited | Q98: Unimproved | R98: Open defecation | S98: Improved | T98: Basic | U98: Limited | V98: Unimproved | W98: Open defecation | X98: Improved | Y98: Basic | Z98: Limited | AA98: Unimproved | AB98: Open defecation
A99: Forecast period: | C99: 2000 | D99: =IF((D101+H101)>100,D101*100/(D101+H101),D101) -> 75.08593982 | E99: =D99*AVERAGEIF(E105:E116,">0")/100 -> 52.09149212 | F99: =D99*(100-AVERAGEIF(E105:E116,">0"))/100 -> 22.9944477 | G99: =100-(E99+F99+H99) -> 9.807921034 | H99: =IF((D101+H101)>100,H101*100/(D101+H101),H101) -> 15.10613914 | I99: =IF((I101+M101)>100,I101*100/(I101+M101),I101) -> 89.84267225 | J99: =I99*AVERAGEIF(J105:J116,">0")/100 -> 72.04256051 | K99: =I99*(100-AVERAGEIF(J105:J116,">0"))/100 -> 17.80011174 | L99: =100-(J99+K99+M99) -> 6.756122319 | M99: =IF((I101+M101)>100,M101*100/(I101+M101),M101) -> 3.401205429 | N99: =IF((N101+R101)>100,N101*100/(N101+R101),N101) -> 95.04327323 | O99: =N99*AVERAGEIF(O105:O116,">0")/100 -> 84.1975047 | P99: =N99*(100-AVERAGEIF(O105:O116,">0"))/100 -> 10.84576853 | Q99: =100-(O99+P99+R99) -> 3.615047317 | R99: =IF((N101+R101)>100,R101*100/(N101+R101),R101) -> 1.341679449 | S99: =IF((S101+W101)>100,S101*100/(S101+W101),S101) -> 98.65467138 | T99: =S99*AVERAGEIF(T105:T116,">0")/100 -> 93.31678216 | U99: =S99*(100-AVERAGEIF(T105:T116,">0"))/100 -> 5.337889214 | V99: =100-(T99+U99+W99) -> 0.9080282574 | W99: =IF((S101+W101)>100,W101*100/(S101+W101),W101) -> 0.4373003671 | X99: =IF((X101+AB101)>100,X101*100/(X101+AB101),X101) -> 99.89619487 | Y99: =X99*AVERAGEIF(Y105:Y116,">0")/100 -> 98.54644404 | Z99: =X99*(100-AVERAGEIF(Y105:Y116,">0"))/100 -> 1.349750825 | AA99: =100-(Y99+Z99+AB99) -> 0.1038051321 | AB99: =IF((X101+AB101)>100,AB101*100/(X101+AB101),AB101) -> 0
C100: 2020 | D100: =IF((D102+H102)>100,D102*100/(D102+H102),D102) -> 86.76611906 | E100: =D100*AVERAGEIF(E105:E116,">0")/100 -> 60.19471312 | F100: =D100*(100-AVERAGEIF(E105:E116,">0"))/100 -> 26.57140594 | G100: =100-(E100+F100+H100) -> 4.492846364 | H100: =IF((D102+H102)>100,H102*100/(D102+H102),H102) -> 8.741034577 | I100: =IF((I102+M102)>100,I102*100/(I102+M102),I102) -> 94.81559832 | J100: =I100*AVERAGEIF(J105:J116,">0")/100 -> 76.03022381 | K100: =I100*(100-AVERAGEIF(J105:J116,">0"))/100 -> 18.78537451 | L100: =100-(J100+K100+M100) -> 2.667286269 | M100: =IF((I102+M102)>100,M102*100/(I102+M102),M102) -> 2.517115413 | N100: =IF((N102+R102)>100,N102*100/(N102+R102),N102) -> 98.13893135 | O100: =N100*AVERAGEIF(O105:O116,">0")/100 -> 86.93990488 | P100: =N100*(100-AVERAGEIF(O105:O116,">0"))/100 -> 11.19902648 | Q100: =100-(O100+P100+R100) -> 1.300441957 | R100: =IF((N102+R102)>100,R102*100/(N102+R102),R102) -> 0.5606266894 | S100: =IF((S102+W102)>100,S102*100/(S102+W102),S102) -> 99.11340549 | T100: =S100*AVERAGEIF(T105:T116,">0")/100 -> 93.75069564 | U100: =S100*(100-AVERAGEIF(T105:T116,">0"))/100 -> 5.362709852 | V100: =100-(T100+U100+W100) -> 0.8549481071 | W100: =IF((S102+W102)>100,W102*100/(S102+W102),W102) -> 0.03164640476 | X100: =IF((X102+AB102)>100,X102*100/(X102+AB102),X102) -> 99.5416561 | Y100: =X100*AVERAGEIF(Y105:Y116,">0")/100 -> 98.19669564 | Z100: =X100*(100-AVERAGEIF(Y105:Y116,">0"))/100 -> 1.344960462 | AA100: =100-(Y100+Z100+AB100) -> 0.3781114256 | AB100: =IF((X102+AB102)>100,AB102*100/(X102+AB102),AB102) -> 0.08023247512
A101: Regression period: | C101: =MinRegYear(C99,C105:C116) -> 2000 | D101: =IF(MAX(C105:C116)-MIN(C105:C116)<5,AVERAGEIF(C105:C116,">0",D105:D116), IF(FORECAST($C101,D$105:D$116,$C$105:$C$116)<0,0, IF(FORECAST($C101,D$105:D$116,$C$105:$C$116)>100,100, FORECAST($C101,D$105:D$116,$C$105:$C$116)))) -> 75.08593982 | H101: =IF(MAX(C105:C116)-MIN(C105:C116)<5,AVERAGEIF(C105:C116,">0",H105:H116), IF(FORECAST($C101,H$105:H$116,$C$105:$C$116)<0,0, IF(FORECAST($C101,H$105:H$116,$C$105:$C$116)>100,100, FORECAST($C101,H$105:H$116,$C$105:$C$116)))) -> 15.10613914 | I101: =IF(MAX(C105:C116)-MIN(C105:C116)<5,AVERAGEIF(C105:C116,">0",I105:I116), IF(FORECAST($C101,I$105:I$116,$C$105:$C$116)<0,0, IF(FORECAST($C101,I$105:I$116,$C$105:$C$116)>100,100, FORECAST($C101,I$105:I$116,$C$105:$C$116)))) -> 89.84267225 | M101: =IF(MAX(C105:C116)-MIN(C105:C116)<5,AVERAGEIF(C105:C116,">0",M105:M116), IF(FORECAST($C101,M$105:M$116,$C$105:$C$116)<0,0, IF(FORECAST($C101,M$105:M$116,$C$105:$C$116)>100,100, FORECAST($C101,M$105:M$116,$C$105:$C$116)))) -> 3.401205429 | N101: =IF(MAX(C105:C116)-MIN(C105:C116)<5,AVERAGEIF(C105:C116,">0",N105:N116), IF(FORECAST($C101,N$105:N$116,$C$105:$C$116)<0,0, IF(FORECAST($C101,N$105:N$116,$C$105:$C$116)>100,100, FORECAST($C101,N$105:N$116,$C$105:$C$116)))) -> 95.04327323 | R101: =IF(MAX(C105:C116)-MIN(C105:C116)<5,AVERAGEIF(C105:C116,">0",R105:R116), IF(FORECAST($C101,R$105:R$116,$C$105:$C$116)<0,0, IF(FORECAST($C101,R$105:R$116,$C$105:$C$116)>100,100, FORECAST($C101,R$105:R$116,$C$105:$C$116)))) -> 1.341679449 | S101: =IF(MAX(C105:C116)-MIN(C105:C116)<5,AVERAGEIF(C105:C116,">0",S105:S116), IF(FORECAST($C101,S$105:S$116,$C$105:$C$116)<0,0, IF(FORECAST($C101,S$105:S$116,$C$105:$C$116)>100,100, FORECAST($C101,S$105:S$116,$C$105:$C$116)))) -> 98.65467138 | W101: =IF(MAX(C105:C116)-MIN(C105:C116)<5,AVERAGEIF(C105:C116,">0",W105:W116), IF(FORECAST($C101,W$105:W$116,$C$105:$C$116)<0,0, IF(FORECAST($C101,W$105:W$116,$C$105:$C$116)>100,100, FORECAST($C101,W$105:W$116,$C$105:$C$116)))) -> 0.4373003671 | X101: =IF(MAX(C105:C116)-MIN(C105:C116)<5,AVERAGEIF(C105:C116,">0",X105:X116), IF(FORECAST($C101,X$105:X$116,$C$105:$C$116)<0,0, IF(FORECAST($C101,X$105:X$116,$C$105:$C$116)>100,100, FORECAST($C101,X$105:X$116,$C$105:$C$116)))) -> 99.89619487 | AB101: =IF(MAX(C105:C116)-MIN(C105:C116)<5,AVERAGEIF(C105:C116,">0",AB105:AB116), IF(FORECAST($C101,AB$105:AB$116,$C$105:$C$116)<0,0, IF(FORECAST($C101,AB$105:AB$116,$C$105:$C$116)>100,100, FORECAST($C101,AB$105:AB$116,$C$105:$C$116)))) -> 0
C102: =MaxRegYear(C100,C105:C116) -> 2016 | D102: =IF(MAX(C105:C116)-MIN(C105:C116)<5,AVERAGEIF(C105:C116,">0",D105:D116), IF(FORECAST($C102,D$105:D$116,$C$105:$C$116)<0,0, IF(FORECAST($C102,D$105:D$116,$C$105:$C$116)>100,100, FORECAST($C102,D$105:D$116,$C$105:$C$116)))) -> 86.76611906 | H102: =IF(MAX(C105:C116)-MIN(C105:C116)<5,AVERAGEIF(C105:C116,">0",H105:H116), IF(FORECAST($C102,H$105:H$116,$C$105:$C$116)<0,0, IF(FORECAST($C102,H$105:H$116,$C$105:$C$116)>100,100, FORECAST($C102,H$105:H$116,$C$105:$C$116)))) -> 8.741034577 | I102: =IF(MAX(C105:C116)-MIN(C105:C116)<5,AVERAGEIF(C105:C116,">0",I105:I116), IF(FORECAST($C102,I$105:I$116,$C$105:$C$116)<0,0, IF(FORECAST($C102,I$105:I$116,$C$105:$C$116)>100,100, FORECAST($C102,I$105:I$116,$C$105:$C$116)))) -> 94.81559832 | M102: =IF(MAX(C105:C116)-MIN(C105:C116)<5,AVERAGEIF(C105:C116,">0",M105:M116), IF(FORECAST($C102,M$105:M$116,$C$105:$C$116)<0,0, IF(FORECAST($C102,M$105:M$116,$C$105:$C$116)>100,100, FORECAST($C102,M$105:M$116,$C$105:$C$116)))) -> 2.517115413 | N102: =IF(MAX(C105:C116)-MIN(C105:C116)<5,AVERAGEIF(C105:C116,">0",N105:N116), IF(FORECAST($C102,N$105:N$116,$C$105:$C$116)<0,0, IF(FORECAST($C102,N$105:N$116,$C$105:$C$116)>100,100, FORECAST($C102,N$105:N$116,$C$105:$C$116)))) -> 98.13893135 | R102: =IF(MAX(C105:C116)-MIN(C105:C116)<5,AVERAGEIF(C105:C116,">0",R105:R116), IF(FORECAST($C102,R$105:R$116,$C$105:$C$116)<0,0, IF(FORECAST($C102,R$105:R$116,$C$105:$C$116)>100,100, FORECAST($C102,R$105:R$116,$C$105:$C$116)))) -> 0.5606266894 | S102: =IF(MAX(C105:C116)-MIN(C105:C116)<5,AVERAGEIF(C105:C116,">0",S105:S116), IF(FORECAST($C102,S$105:S$116,$C$105:$C$116)<0,0, IF(FORECAST($C102,S$105:S$116,$C$105:$C$116)>100,100, FORECAST($C102,S$105:S$116,$C$105:$C$116)))) -> 99.11340549 | W102: =IF(MAX(C105:C116)-MIN(C105:C116)<5,AVERAGEIF(C105:C116,">0",W105:W116), IF(FORECAST($C102,W$105:W$116,$C$105:$C$116)<0,0, IF(FORECAST($C102,W$105:W$116,$C$105:$C$116)>100,100, FORECAST($C102,W$105:W$116,$C$105:$C$116)))) -> 0.03164640476 | X102: =IF(MAX(C105:C116)-MIN(C105:C116)<5,AVERAGEIF(C105:C116,">0",X105:X116), IF(FORECAST($C102,X$105:X$116,$C$105:$C$116)<0,0, IF(FORECAST($C102,X$105:X$116,$C$105:$C$116)>100,100, FORECAST($C102,X$105:X$116,$C$105:$C$116)))) -> 99.5416561 | AB102: =IF(MAX(C105:C116)-MIN(C105:C116)<5,AVERAGEIF(C105:C116,">0",AB105:AB116), IF(FORECAST($C102,AB$105:AB$116,$C$105:$C$116)<0,0, IF(FORECAST($C102,AB$105:AB$116,$C$105:$C$116)>100,100, FORECAST($C102,AB$105:AB$116,$C$105:$C$116)))) -> 0.08023247512
B104: Survey | C104: Year | D104: Improved | E104: Not shared | H104: Open defecation | I104: Improved | J104: Not shared | M104: Open defecation | N104: Improved | O104: Not shared | R104: Open defecation | S104: Improved | T104: Not shared | W104: Open defecation | X104: Improved | Y104: Not shared | AB104: Open defecation
B105: MICS00 | C105: 2000 | D105: =IF(ISERROR(INDIRECT(CONCATENATE($B105,"!C122"))),"",INDIRECT(CONCATENATE($B105,"!C122"))) -> 76.709796 | E105: =IF(ISERROR(INDIRECT(CONCATENATE($B105,"!C129"))),"",INDIRECT(CONCATENATE($B105,"!C129"))) -> N/A | H105: =IF(ISERROR(INDIRECT(CONCATENATE($B105,"!C127"))),"",INDIRECT(CONCATENATE($B105,"!C127"))) -> 12.93162082 | I105: =IF(ISERROR(INDIRECT(CONCATENATE($B105,"!D122"))),"",INDIRECT(CONCATENATE($B105,"!D122"))) -> 91.28654436 | J105: =IF(ISERROR(INDIRECT(CONCATENATE($B105,"!D129"))),"",INDIRECT(CONCATENATE($B105,"!D129"))) -> N/A | M105: =IF(ISERROR(INDIRECT(CONCATENATE($B105,"!D127"))),"",INDIRECT(CONCATENATE($B105,"!D127"))) -> 0.7961789453 | N105: =IF(ISERROR(INDIRECT(CONCATENATE($B105,"!E122"))),"",INDIRECT(CONCATENATE($B105,"!E122"))) -> 94.84504466 | O105: =IF(ISERROR(INDIRECT(CONCATENATE($B105,"!E129"))),"",INDIRECT(CONCATENATE($B105,"!E129"))) -> N/A | R105: =IF(ISERROR(INDIRECT(CONCATENATE($B105,"!E127"))),"",INDIRECT(CONCATENATE($B105,"!E127"))) -> 1.012420173 | S105: =IF(ISERROR(INDIRECT(CONCATENATE($B105,"!F122"))),"",INDIRECT(CONCATENATE($B105,"!F122"))) -> 98.65841731 | T105: =IF(ISERROR(INDIRECT(CONCATENATE($B105,"!F129"))),"",INDIRECT(CONCATENATE($B105,"!F129"))) -> N/A | W105: =IF(ISERROR(INDIRECT(CONCATENATE($B105,"!F127"))),"",INDIRECT(CONCATENATE($B105,"!F127"))) -> 0.2132266868 | X105: =IF(ISERROR(INDIRECT(CONCATENATE($B105,"!G122"))),"",INDIRECT(CONCATENATE($B105,"!G122"))) -> 99.90847371 | Y105: =IF(ISERROR(INDIRECT(CONCATENATE($B105,"!G129"))),"",INDIRECT(CONCATENATE($B105,"!G129"))) -> N/A | AB105: =IF(ISERROR(INDIRECT(CONCATENATE($B105,"!G2127"))),"",INDIRECT(CONCATENATE($B105,"!G127"))) -> 0
B106: DHS02 | C106: 2002 | D106: 75.72079157 | E106: N/A | H106: 16.58680903 | I106: 89.05998946 | J106: N/A | M106: 5.811012269 | N106: 95.40931926 | O106: N/A | R106: 1.529935748 | S106: 98.26697342 | T106: N/A | W106: 0.7687815541 | X106: 99.73609601 | Y106: N/A | AB106: 0
B107: WHS03 | D107: 65.03363092 | E107: 76.29716363 | H107: 15.89987818 | I107: 75.06959431 | J107: 77.25124886 | M107: 3.615303772 | N107: 85.11162884 | O107: 83.1245915 | R107: 1.999419265 | S107: 95.90887828 | T107: 89.41074363 | W107: 0.6381975024 | X107: 98.0551659 | Y107: 96.92831759 | AB107: 0.2580586471
B108: DHS07 | C108: 2007 | D108: 78.7293728 | E108: N/A | H108: 12.74420802 | I108: 91.61844518 | J108: N/A | M108: 3.881990912 | N108: 96.74855807 | O108: N/A | R108: 1.123264117 | S108: 99.51866653 | T108: N/A | W108: 0.06818145276 | X108: 99.8645635 | Y108: N/A | AB108: 0.0236511331
B109: DHS13 | C109: 2013 | D109: 82.01066486 | E109: 65.87512561 | H109: 10.10243785 | I109: 93.31972322 | J109: 82.93886959 | M109: 2.836411913 | N109: 98.12808949 | O109: 91.82469291 | R109: 1.022982461 | S109: 99.67233344 | T109: 97.85392699 | W109: 0 | X109: 99.96125097 | Y109: 99.82715802 | AB109: 0
B110: MICS14 | C110: 2014 | D110: 88.53947717 | E110: 65.95519337 | H110: 8.844134724 | I110: 95.11774268 | J110: 80.37227368 | M110: 1.691230571 | N110: 97.05058545 | O110: 90.81651418 | R110: 0.2624260362 | S110: 98.18911793 | T110: 96.50328743 | W110: 0.2235907266 | X110: 99.21287791 | Y110: 99.19106421 | AB110: 0.1313469766
B118: =CONCATENATE("National use of sanitation facilities, ",C99,"–",C100) -> National use of sanitation facilities, 2000–2020 | S118: Data points used for regression
A197: URBAN | D197: Poorest | I197: Poor | N197: Middle | S197: Rich | X197: Richest
D198: Improved | E198: Basic | F198: Limited | G198: Unimproved | H198: Open defecation | I198: Improved | J198: Basic | K198: Limited | L198: Unimproved | M198: Open defecation | N198: Improved | O198: Basic | P198: Limited | Q198: Unimproved | R198: Open defecation | S198: Improved | T198: Basic | U198: Limited | V198: Unimproved | W198: Open defecation | X198: Improved | Y198: Basic | Z198: Limited | AA198: Unimproved | AB198: Open defecation
A199: Forecast period: | C199: =MinBase(C205:C216) -> 2000 | D199: =IF((D201+H201)>100,D201*100/(D201+H201),D201) -> 85.26939774 | E199: =D199*AVERAGEIF(E205:E216,">0")/100 -> 57.90749387 | F199: =D199*(100-AVERAGEIF(E205:E216,">0"))/100 -> 27.36190387 | G199: =100-(E199+F199+H199) -> 8.607156789 | H199: =IF((D201+H201)>100,H201*100/(D201+H201),H201) -> 6.12344547 | I199: =IF((I201+M201)>100,I201*100/(I201+M201),I201) -> 94.87222494 | J199: =I199*AVERAGEIF(J205:J216,">0")/100 -> 78.7558542 | K199: =I199*(100-AVERAGEIF(J205:J216,">0"))/100 -> 16.11637074 | L199: =100-(J199+K199+M199) -> 3.034381784 | M199: =IF((I201+M201)>100,M201*100/(I201+M201),M201) -> 2.09339328 | N199: =IF((N201+R201)>100,N201*100/(N201+R201),N201) -> 98.25835822 | O199: =N199*AVERAGEIF(O205:O216,">0")/100 -> 89.86663161 | P199: =N199*(100-AVERAGEIF(O205:O216,">0"))/100 -> 8.391726614 | Q199: =100-(O199+P199+R199) -> 1.075080091 | R199: =IF((N201+R201)>100,R201*100/(N201+R201),R201) -> 0.6665616893 | S199: =IF((S201+W201)>100,S201*100/(S201+W201),S201) -> 99.78299805 | T199: =S199*AVERAGEIF(T205:T216,">0")/100 -> 95.96325473 | U199: =S199*(100-AVERAGEIF(T205:T216,">0"))/100 -> 3.819743317 | V199: =100-(T199+U199+W199) -> 0.1049380823 | W199: =IF((S201+W201)>100,W201*100/(S201+W201),W201) -> 0.1120638678 | X199: =IF((X201+AB201)>100,X201*100/(X201+AB201),X201) -> 99.94162198 | Y199: =X199*AVERAGEIF(Y205:Y216,">0")/100 -> 99.42689629 | Z199: =X199*(100-AVERAGEIF(Y205:Y216,">0"))/100 -> 0.5147256878 | AA199: =100-(Y199+Z199+AB199) -> 0.05837801897 | AB199: =IF((X201+AB201)>100,AB201*100/(X201+AB201),AB201) -> 0
C200: =MaxTarget(C205:C216) -> 2020 | D200: =IF((D202+H202)>100,D202*100/(D202+H202),D202) -> 89.10282441 | E200: =D200*AVERAGEIF(E205:E216,">0")/100 -> 60.51082094 | F200: =D200*(100-AVERAGEIF(E205:E216,">0"))/100 -> 28.59200347 | G200: =100-(E200+F200+H200) -> 4.729397945 | H200: =IF((D202+H202)>100,H202*100/(D202+H202),H202) -> 6.167777642 | I200: =IF((I202+M202)>100,I202*100/(I202+M202),I202) -> 96.12108916 | J200: =I200*AVERAGEIF(J205:J216,">0")/100 -> 79.79256825 | K200: =I200*(100-AVERAGEIF(J205:J216,">0"))/100 -> 16.32852091 | L200: =100-(J200+K200+M200) -> 2.61998637 | M200: =IF((I202+M202)>100,M202*100/(I202+M202),M202) -> 1.258924466 | N200: =IF((N202+R202)>100,N202*100/(N202+R202),N202) -> 98.4048939 | O200: =N200*AVERAGEIF(O205:O216,">0")/100 -> 90.00065245 | P200: =N200*(100-AVERAGEIF(O205:O216,">0"))/100 -> 8.404241452 | Q200: =100-(O200+P200+R200) -> 1.273831986 | R200: =IF((N202+R202)>100,R202*100/(N202+R202),R202) -> 0.3212741109 | S200: =IF((S202+W202)>100,S202*100/(S202+W202),S202) -> 99.22990865 | T200: =S200*AVERAGEIF(T205:T216,">0")/100 -> 95.43133788 | U200: =S200*(100-AVERAGEIF(T205:T216,">0"))/100 -> 3.798570777 | V200: =100-(T200+U200+W200) -> 0.7637295113 | W200: =IF((S202+W202)>100,W202*100/(S202+W202),W202) -> 0.006361834962 | X200: =IF((X202+AB202)>100,X202*100/(X202+AB202),X202) -> 99.52833326 | Y200: =X200*AVERAGEIF(Y205:Y216,">0")/100 -> 99.01573611 | Z200: =X200*(100-AVERAGEIF(Y205:Y216,">0"))/100 -> 0.512597142 | AA200: =100-(Y200+Z200+AB200) -> 0.3708307894 | AB200: =IF((X202+AB202)>100,AB202*100/(X202+AB202),AB202) -> 0.1008359549
A201: Regression period: | C201: =MinRegYear(C199,C205:C216) -> 2000 | D201: =IF(MAX(C205:C216)-MIN(C205:C216)<5,AVERAGEIF(C205:C216,">0",D205:D216), IF(FORECAST($C201,D$205:D$216,$C$205:$C$216)<0,0, IF(FORECAST($C201,D$205:D$216,$C$205:$C$216)>100,100, FORECAST($C201,D$205:D$216,$C$205:$C$216)))) -> 85.26939774 | H201: =IF(MAX(C205:C216)-MIN(C205:C216)<5,AVERAGEIF(C205:C216,">0",H205:H216), IF(FORECAST($C201,H$205:H$216,$C$205:$C$216)<0,0, IF(FORECAST($C201,H$205:H$216,$C$205:$C$216)>100,100, FORECAST($C201,H$205:H$216,$C$205:$C$216)))) -> 6.12344547 | I201: =IF(MAX(C205:C216)-MIN(C205:C216)<5,AVERAGEIF(C205:C216,">0",I205:I216), IF(FORECAST($C201,I$205:I$216,$C$205:$C$216)<0,0, IF(FORECAST($C201,I$205:I$216,$C$205:$C$216)>100,100, FORECAST($C201,I$205:I$216,$C$205:$C$216)))) -> 94.87222494 | M201: =IF(MAX(C205:C216)-MIN(C205:C216)<5,AVERAGEIF(C205:C216,">0",M205:M216), IF(FORECAST($C201,M$205:M$216,$C$205:$C$216)<0,0, IF(FORECAST($C201,M$205:M$216,$C$205:$C$216)>100,100, FORECAST($C201,M$205:M$216,$C$205:$C$216)))) -> 2.09339328 | N201: =IF(MAX(C205:C216)-MIN(C205:C216)<5,AVERAGEIF(C205:C216,">0",N205:N216), IF(FORECAST($C201,N$205:N$216,$C$205:$C$216)<0,0, IF(FORECAST($C201,N$205:N$216,$C$205:$C$216)>100,100, FORECAST($C201,N$205:N$216,$C$205:$C$216)))) -> 98.25835822 | R201: =IF(MAX(C205:C216)-MIN(C205:C216)<5,AVERAGEIF(C205:C216,">0",R205:R216), IF(FORECAST($C201,R$205:R$216,$C$205:$C$216)<0,0, IF(FORECAST($C201,R$205:R$216,$C$205:$C$216)>100,100, FORECAST($C201,R$205:R$216,$C$205:$C$216)))) -> 0.6665616893 | S201: =IF(MAX(C205:C216)-MIN(C205:C216)<5,AVERAGEIF(C205:C216,">0",S205:S216), IF(FORECAST($C201,S$205:S$216,$C$205:$C$216)<0,0, IF(FORECAST($C201,S$205:S$216,$C$205:$C$216)>100,100, FORECAST($C201,S$205:S$216,$C$205:$C$216)))) -> 99.78299805 | W201: =IF(MAX(C205:C216)-MIN(C205:C216)<5,AVERAGEIF(C205:C216,">0",W205:W216), IF(FORECAST($C201,W$205:W$216,$C$205:$C$216)<0,0, IF(FORECAST($C201,W$205:W$216,$C$205:$C$216)>100,100, FORECAST($C201,W$205:W$216,$C$205:$C$216)))) -> 0.1120638678 | X201: =IF(MAX(C205:C216)-MIN(C205:C216)<5,AVERAGEIF(C205:C216,">0",X205:X216), IF(FORECAST($C201,X$205:X$216,$C$205:$C$216)<0,0, IF(FORECAST($C201,X$205:X$216,$C$205:$C$216)>100,100, FORECAST($C201,X$205:X$216,$C$205:$C$216)))) -> 99.94162198 | AB201: =IF(MAX(C205:C216)-MIN(C205:C216)<5,AVERAGEIF(C205:C216,">0",AB205:AB216), IF(FORECAST($C201,AB$205:AB$216,$C$205:$C$216)<0,0, IF(FORECAST($C201,AB$205:AB$216,$C$205:$C$216)>100,100, FORECAST($C201,AB$205:AB$216,$C$205:$C$216)))) -> 0
C202: =MaxRegYear(C200,C205:C216) -> 2016 | D202: =IF(MAX(C205:C216)-MIN(C205:C216)<5,AVERAGEIF(C205:C216,">0",D205:D216), IF(FORECAST($C202,D$205:D$216,$C$205:$C$216)<0,0, IF(FORECAST($C202,D$205:D$216,$C$205:$C$216)>100,100, FORECAST($C202,D$205:D$216,$C$205:$C$216)))) -> 89.10282441 | H202: =IF(MAX(C205:C216)-MIN(C205:C216)<5,AVERAGEIF(C205:C216,">0",H205:H216), IF(FORECAST($C202,H$205:H$216,$C$205:$C$216)<0,0, IF(FORECAST($C202,H$205:H$216,$C$205:$C$216)>100,100, FORECAST($C202,H$205:H$216,$C$205:$C$216)))) -> 6.167777642 | I202: =IF(MAX(C205:C216)-MIN(C205:C216)<5,AVERAGEIF(C205:C216,">0",I205:I216), IF(FORECAST($C202,I$205:I$216,$C$205:$C$216)<0,0, IF(FORECAST($C202,I$205:I$216,$C$205:$C$216)>100,100, FORECAST($C202,I$205:I$216,$C$205:$C$216)))) -> 96.12108916 | M202: =IF(MAX(C205:C216)-MIN(C205:C216)<5,AVERAGEIF(C205:C216,">0",M205:M216), IF(FORECAST($C202,M$205:M$216,$C$205:$C$216)<0,0, IF(FORECAST($C202,M$205:M$216,$C$205:$C$216)>100,100, FORECAST($C202,M$205:M$216,$C$205:$C$216)))) -> 1.258924466 | N202: =IF(MAX(C205:C216)-MIN(C205:C216)<5,AVERAGEIF(C205:C216,">0",N205:N216), IF(FORECAST($C202,N$205:N$216,$C$205:$C$216)<0,0, IF(FORECAST($C202,N$205:N$216,$C$205:$C$216)>100,100, FORECAST($C202,N$205:N$216,$C$205:$C$216)))) -> 98.4048939 | R202: =IF(MAX(C205:C216)-MIN(C205:C216)<5,AVERAGEIF(C205:C216,">0",R205:R216), IF(FORECAST($C202,R$205:R$216,$C$205:$C$216)<0,0, IF(FORECAST($C202,R$205:R$216,$C$205:$C$216)>100,100, FORECAST($C202,R$205:R$216,$C$205:$C$216)))) -> 0.3212741109 | S202: =IF(MAX(C205:C216)-MIN(C205:C216)<5,AVERAGEIF(C205:C216,">0",S205:S216), IF(FORECAST($C202,S$205:S$216,$C$205:$C$216)<0,0, IF(FORECAST($C202,S$205:S$216,$C$205:$C$216)>100,100, FORECAST($C202,S$205:S$216,$C$205:$C$216)))) -> 99.22990865 | W202: =IF(MAX(C205:C216)-MIN(C205:C216)<5,AVERAGEIF(C205:C216,">0",W205:W216), IF(FORECAST($C202,W$205:W$216,$C$205:$C$216)<0,0, IF(FORECAST($C202,W$205:W$216,$C$205:$C$216)>100,100, FORECAST($C202,W$205:W$216,$C$205:$C$216)))) -> 0.006361834962 | X202: =IF(MAX(C205:C216)-MIN(C205:C216)<5,AVERAGEIF(C205:C216,">0",X205:X216), IF(FORECAST($C202,X$205:X$216,$C$205:$C$216)<0,0, IF(FORECAST($C202,X$205:X$216,$C$205:$C$216)>100,100, FORECAST($C202,X$205:X$216,$C$205:$C$216)))) -> 99.52833326 | AB202: =IF(MAX(C205:C216)-MIN(C205:C216)<5,AVERAGEIF(C205:C216,">0",AB205:AB216), IF(FORECAST($C202,AB$205:AB$216,$C$205:$C$216)<0,0, IF(FORECAST($C202,AB$205:AB$216,$C$205:$C$216)>100,100, FORECAST($C202,AB$205:AB$216,$C$205:$C$216)))) -> 0.1008359549
B204: Survey | C204: Year | D204: Improved | E204: Not shared | H204: Open defecation | I204: Improved | J204: Not shared | M204: Open defecation | N204: Improved | O204: Not shared | R204: Open defecation | S204: Improved | T204: Not shared | W204: Open defecation | X204: Improved | Y204: Not shared | AB204: Open defecation
B205: MICS00 | C205: 2000 | D205: =IF(ISERROR(INDIRECT(CONCATENATE($B205,"!H122"))),"",INDIRECT(CONCATENATE($B205,"!H122"))) -> 88.33027955 | E205: =IF(ISERROR(INDIRECT(CONCATENATE($B205,"!H129"))),"",INDIRECT(CONCATENATE($B205,"!H129"))) -> N/A | H205: =IF(ISERROR(INDIRECT(CONCATENATE($B205,"!H127"))),"",INDIRECT(CONCATENATE($B205,"!H127"))) -> 1.500591904 | I205: =IF(ISERROR(INDIRECT(CONCATENATE($B205,"!I122"))),"",INDIRECT(CONCATENATE($B205,"!I122"))) -> 96.06956029 | J205: =IF(ISERROR(INDIRECT(CONCATENATE($B205,"!I129"))),"",INDIRECT(CONCATENATE($B205,"!I129"))) -> N/A | M205: =IF(ISERROR(INDIRECT(CONCATENATE($B205,"!I127"))),"",INDIRECT(CONCATENATE($B205,"!I127"))) -> 0.8322307941 | N205: =IF(ISERROR(INDIRECT(CONCATENATE($B205,"!J122"))),"",INDIRECT(CONCATENATE($B205,"!J122"))) -> 98.54955043 | O205: =IF(ISERROR(INDIRECT(CONCATENATE($B205,"!J129"))),"",INDIRECT(CONCATENATE($B205,"!J129"))) -> N/A | R205: =IF(ISERROR(INDIRECT(CONCATENATE($B205,"!J127"))),"",INDIRECT(CONCATENATE($B205,"!J127"))) -> 0.4999625015 | S205: =IF(ISERROR(INDIRECT(CONCATENATE($B205,"!K122"))),"",INDIRECT(CONCATENATE($B205,"!K122"))) -> 99.89632396 | T205: =IF(ISERROR(INDIRECT(CONCATENATE($B205,"!K129"))),"",INDIRECT(CONCATENATE($B205,"!K129"))) -> N/A | W205: =IF(ISERROR(INDIRECT(CONCATENATE($B205,"!K127"))),"",INDIRECT(CONCATENATE($B205,"!K127"))) -> 0 | X205: =IF(ISERROR(INDIRECT(CONCATENATE($B205,"!L122"))),"",INDIRECT(CONCATENATE($B205,"!L122"))) -> 99.8962259 | Y205: =IF(ISERROR(INDIRECT(CONCATENATE($B205,"!L129"))),"",INDIRECT(CONCATENATE($B205,"!L129"))) -> N/A | AB205: =IF(ISERROR(INDIRECT(CONCATENATE($B205,"!L2127"))),"",INDIRECT(CONCATENATE($B205,"!L127"))) -> 0
B206: DHS02 | C206: 2002 | D206: 82.38645236 | E206: N/A | H206: 10.9052281 | I206: 93.69606713 | J206: N/A | M206: 2.968619032 | N206: 97.48821703 | O206: N/A | R206: 0.9059963125 | S206: 99.36215348 | T206: N/A | W206: 0.2520645847 | X206: 99.85365164 | Y206: N/A | AB206: 0
B207: WHS03 | D207: 67.07916803 | E207: 71.29084848 | H207: 6.063001203 | I207: 76.55363437 | J207: 77.62577805 | M207: 0.7215109464 | N207: 94.75480423 | O207: 86.76842709 | R207: 0.5666179949 | S207: 96.64991336 | T207: 92.62193789 | W207: 0.1892171499 | X207: 98.50597802 | Y207: 99.1488534 | AB207: 0
B208: DHS07 | C208: 2007 | D208: 86.78678847 | E208: N/A | H208: 7.177087696 | I208: 95.20824616 | J208: N/A | M208: 2.5397594 | N208: 99.02264117 | O208: N/A | R208: 0.333288329 | S208: 99.83085048 | T208: N/A | W208: 0.03103543749 | X208: 99.85753404 | Y208: N/A | AB208: 0
B209: DHS13 | C209: 2013 | D209: 86.99533026 | E209: 66.83910029 | H209: 6.324793671 | I209: 96.58392028 | J209: 85.208825 | M209: 1.637126326 | N209: 98.86101018 | O209: 94.25361982 | R209: 0.6027276276 | S209: 99.93874765 | T209: 98.65605975 | W209: 0 | X209: 100 | Y209: 99.97966357 | AB209: 0
B210: MICS14 | C210: 2014 | D210: 90.47334808 | E210: 65.60373087 | H210: 4.809273366 | I210: 95.61327533 | J210: 86.20305023 | M210: 0.6116760147 | N210: 97.70007757 | O210: 93.35654001 | R210: 0.2139366245 | S210: 98.64246354 | T210: 97.23785158 | W210: 0.03938974294 | X210: 99.1707987 | Y210: 99.32640398 | AB210: 0.1748116773
B218: =CONCATENATE("Urban use of sanitation facilities, ",C199,"–",C200) -> Urban use of sanitation facilities, 2000–2020 | S218: Data points used for regression
A297: RURAL | D297: Poorest | I297: Poor | N297: Middle | S297: Rich | X297: Richest
D298: Improved | E298: Basic | F298: Limited | G298: Unimproved | H298: Open defecation | I298: Improved | J298: Basic | K298: Limited | L298: Unimproved | M298: Open defecation | N298: Improved | O298: Basic | P298: Limited | Q298: Unimproved | R298: Open defecation | S298: Improved | T298: Basic | U298: Limited | V298: Unimproved | W298: Open defecation | X298: Improved | Y298: Basic | Z298: Limited | AA298: Unimproved | AB298: Open defecation
A299: Forecast period: | C299: 2000 | D299: =IF((D301+H301)>100,D301*100/(D301+H301),D301) -> 64.94468931 | E299: =D299*AVERAGEIF(E305:E316,">0")/100 -> 44.63926569 | F299: =D299*(100-AVERAGEIF(E305:E316,">0"))/100 -> 20.30542361 | G299: =100-(E299+F299+H299) -> 10.13013593 | H299: =IF((D301+H301)>100,H301*100/(D301+H301),H301) -> 24.92517476 | I299: =IF((I301+M301)>100,I301*100/(I301+M301),I301) -> 82.53864436 | J299: =I299*AVERAGEIF(J305:J316,">0")/100 -> 63.66915283 | K299: =I299*(100-AVERAGEIF(J305:J316,">0"))/100 -> 18.86949153 | L299: =100-(J299+K299+M299) -> 9.327120542 | M299: =IF((I301+M301)>100,M301*100/(I301+M301),M301) -> 8.134235098 | N299: =IF((N301+R301)>100,N301*100/(N301+R301),N301) -> 89.77832459 | O299: =N299*AVERAGEIF(O305:O316,">0")/100 -> 74.57124068 | P299: =N299*(100-AVERAGEIF(O305:O316,">0"))/100 -> 15.20708391 | Q299: =100-(O299+P299+R299) -> 7.071430441 | R299: =IF((N301+R301)>100,R301*100/(N301+R301),R301) -> 3.150244969 | S299: =IF((S301+W301)>100,S301*100/(S301+W301),S301) -> 91.98245473 | T299: =S299*AVERAGEIF(T305:T316,">0")/100 -> 81.84453006 | U299: =S299*(100-AVERAGEIF(T305:T316,">0"))/100 -> 10.13792467 | V299: =100-(T299+U299+W299) -> 6.622441925 | W299: =IF((S301+W301)>100,W301*100/(S301+W301),W301) -> 1.395103343 | X299: =IF((X301+AB301)>100,X301*100/(X301+AB301),X301) -> 97.67946222 | Y299: =X299*AVERAGEIF(Y305:Y316,">0")/100 -> 93.27472037 | Z299: =X299*(100-AVERAGEIF(Y305:Y316,">0"))/100 -> 4.404741855 | AA299: =100-(Y299+Z299+AB299) -> 1.801393698 | AB299: =IF((X301+AB301)>100,AB301*100/(X301+AB301),AB301) -> 0.5191440775
C300: 2020 | D300: =IF((D302+H302)>100,D302*100/(D302+H302),D302) -> 80.85605039 | E300: =D300*AVERAGEIF(E305:E316,">0")/100 -> 55.57582545 | F300: =D300*(100-AVERAGEIF(E305:E316,">0"))/100 -> 25.28022495 | G300: =100-(E300+F300+H300) -> 4.197567101 | H300: =IF((D302+H302)>100,H302*100/(D302+H302),H302) -> 14.9463825 | I300: =IF((I302+M302)>100,I302*100/(I302+M302),I302) -> 89.58228527 | J300: =I300*AVERAGEIF(J305:J316,">0")/100 -> 69.10251865 | K300: =I300*(100-AVERAGEIF(J305:J316,">0"))/100 -> 20.47976662 | L300: =100-(J300+K300+M300) -> 3.945492747 | M300: =IF((I302+M302)>100,M302*100/(I302+M302),M302) -> 6.47222198 | N300: =IF((N302+R302)>100,N302*100/(N302+R302),N302) -> 92.61743213 | O300: =N300*AVERAGEIF(O305:O316,">0")/100 -> 76.92944655 | P300: =N300*(100-AVERAGEIF(O305:O316,">0"))/100 -> 15.68798558 | Q300: =100-(O300+P300+R300) -> 2.723254471 | R300: =IF((N302+R302)>100,R302*100/(N302+R302),R302) -> 4.659313401 | S300: =IF((S302+W302)>100,S302*100/(S302+W302),S302) -> 98.48988169 | T300: =S300*AVERAGEIF(T305:T316,">0")/100 -> 87.63473541 | U300: =S300*(100-AVERAGEIF(T305:T316,">0"))/100 -> 10.85514628 | V300: =100-(T300+U300+W300) -> 0.3072941065 | W300: =IF((S302+W302)>100,W302*100/(S302+W302),W302) -> 1.202824204 | X300: =IF((X302+AB302)>100,X302*100/(X302+AB302),X302) -> 99.51029448 | Y300: =X300*AVERAGEIF(Y305:Y316,">0")/100 -> 95.02299338 | Z300: =X300*(100-AVERAGEIF(Y305:Y316,">0"))/100 -> 4.487301108 | AA300: =100-(Y300+Z300+AB300) -> 0.4155838828 | AB300: =IF((X302+AB302)>100,AB302*100/(X302+AB302),AB302) -> 0.07412163335
A301: Regression period: | C301: =MinRegYear(C299,C305:C316) -> 2000 | D301: =IF(MAX(C305:C316)-MIN(C305:C316)<5,AVERAGEIF(C305:C316,">0",D305:D316), IF(FORECAST($C301,D$305:D$316,$C$305:$C$316)<0,0, IF(FORECAST($C301,D$305:D$316,$C$305:$C$316)>100,100, FORECAST($C301,D$305:D$316,$C$305:$C$316)))) -> 64.94468931 | H301: =IF(MAX(C305:C316)-MIN(C305:C316)<5,AVERAGEIF(C305:C316,">0",H305:H316), IF(FORECAST($C301,H$305:H$316,$C$305:$C$316)<0,0, IF(FORECAST($C301,H$305:H$316,$C$305:$C$316)>100,100, FORECAST($C301,H$305:H$316,$C$305:$C$316)))) -> 24.92517476 | I301: =IF(MAX(C305:C316)-MIN(C305:C316)<5,AVERAGEIF(C305:C316,">0",I305:I316), IF(FORECAST($C301,I$305:I$316,$C$305:$C$316)<0,0, IF(FORECAST($C301,I$305:I$316,$C$305:$C$316)>100,100, FORECAST($C301,I$305:I$316,$C$305:$C$316)))) -> 82.53864436 | M301: =IF(MAX(C305:C316)-MIN(C305:C316)<5,AVERAGEIF(C305:C316,">0",M305:M316), IF(FORECAST($C301,M$305:M$316,$C$305:$C$316)<0,0, IF(FORECAST($C301,M$305:M$316,$C$305:$C$316)>100,100, FORECAST($C301,M$305:M$316,$C$305:$C$316)))) -> 8.134235098 | N301: =IF(MAX(C305:C316)-MIN(C305:C316)<5,AVERAGEIF(C305:C316,">0",N305:N316), IF(FORECAST($C301,N$305:N$316,$C$305:$C$316)<0,0, IF(FORECAST($C301,N$305:N$316,$C$305:$C$316)>100,100, FORECAST($C301,N$305:N$316,$C$305:$C$316)))) -> 89.77832459 | R301: =IF(MAX(C305:C316)-MIN(C305:C316)<5,AVERAGEIF(C305:C316,">0",R305:R316), IF(FORECAST($C301,R$305:R$316,$C$305:$C$316)<0,0, IF(FORECAST($C301,R$305:R$316,$C$305:$C$316)>100,100, FORECAST($C301,R$305:R$316,$C$305:$C$316)))) -> 3.150244969 | S301: =IF(MAX(C305:C316)-MIN(C305:C316)<5,AVERAGEIF(C305:C316,">0",S305:S316), IF(FORECAST($C301,S$305:S$316,$C$305:$C$316)<0,0, IF(FORECAST($C301,S$305:S$316,$C$305:$C$316)>100,100, FORECAST($C301,S$305:S$316,$C$305:$C$316)))) -> 91.98245473 | W301: =IF(MAX(C305:C316)-MIN(C305:C316)<5,AVERAGEIF(C305:C316,">0",W305:W316), IF(FORECAST($C301,W$305:W$316,$C$305:$C$316)<0,0, IF(FORECAST($C301,W$305:W$316,$C$305:$C$316)>100,100, FORECAST($C301,W$305:W$316,$C$305:$C$316)))) -> 1.395103343 | X301: =IF(MAX(C305:C316)-MIN(C305:C316)<5,AVERAGEIF(C305:C316,">0",X305:X316), IF(FORECAST($C301,X$305:X$316,$C$305:$C$316)<0,0, IF(FORECAST($C301,X$305:X$316,$C$305:$C$316)>100,100, FORECAST($C301,X$305:X$316,$C$305:$C$316)))) -> 97.67946222 | AB301: =IF(MAX(C305:C316)-MIN(C305:C316)<5,AVERAGEIF(C305:C316,">0",AB305:AB316), IF(FORECAST($C301,AB$305:AB$316,$C$305:$C$316)<0,0, IF(FORECAST($C301,AB$305:AB$316,$C$305:$C$316)>100,100, FORECAST($C301,AB$305:AB$316,$C$305:$C$316)))) -> 0.5191440775
C302: =MaxRegYear(C300,C305:C316) -> 2016 | D302: =IF(MAX(C305:C316)-MIN(C305:C316)<5,AVERAGEIF(C305:C316,">0",D305:D316), IF(FORECAST($C302,D$305:D$316,$C$305:$C$316)<0,0, IF(FORECAST($C302,D$305:D$316,$C$305:$C$316)>100,100, FORECAST($C302,D$305:D$316,$C$305:$C$316)))) -> 80.85605039 | H302: =IF(MAX(C305:C316)-MIN(C305:C316)<5,AVERAGEIF(C305:C316,">0",H305:H316), IF(FORECAST($C302,H$305:H$316,$C$305:$C$316)<0,0, IF(FORECAST($C302,H$305:H$316,$C$305:$C$316)>100,100, FORECAST($C302,H$305:H$316,$C$305:$C$316)))) -> 14.9463825 | I302: =IF(MAX(C305:C316)-MIN(C305:C316)<5,AVERAGEIF(C305:C316,">0",I305:I316), IF(FORECAST($C302,I$305:I$316,$C$305:$C$316)<0,0, IF(FORECAST($C302,I$305:I$316,$C$305:$C$316)>100,100, FORECAST($C302,I$305:I$316,$C$305:$C$316)))) -> 89.58228527 | M302: =IF(MAX(C305:C316)-MIN(C305:C316)<5,AVERAGEIF(C305:C316,">0",M305:M316), IF(FORECAST($C302,M$305:M$316,$C$305:$C$316)<0,0, IF(FORECAST($C302,M$305:M$316,$C$305:$C$316)>100,100, FORECAST($C302,M$305:M$316,$C$305:$C$316)))) -> 6.47222198 | N302: =IF(MAX(C305:C316)-MIN(C305:C316)<5,AVERAGEIF(C305:C316,">0",N305:N316), IF(FORECAST($C302,N$305:N$316,$C$305:$C$316)<0,0, IF(FORECAST($C302,N$305:N$316,$C$305:$C$316)>100,100, FORECAST($C302,N$305:N$316,$C$305:$C$316)))) -> 92.61743213 | R302: =IF(MAX(C305:C316)-MIN(C305:C316)<5,AVERAGEIF(C305:C316,">0",R305:R316), IF(FORECAST($C302,R$305:R$316,$C$305:$C$316)<0,0, IF(FORECAST($C302,R$305:R$316,$C$305:$C$316)>100,100, FORECAST($C302,R$305:R$316,$C$305:$C$316)))) -> 4.659313401 | S302: =IF(MAX(C305:C316)-MIN(C305:C316)<5,AVERAGEIF(C305:C316,">0",S305:S316), IF(FORECAST($C302,S$305:S$316,$C$305:$C$316)<0,0, IF(FORECAST($C302,S$305:S$316,$C$305:$C$316)>100,100, FORECAST($C302,S$305:S$316,$C$305:$C$316)))) -> 98.48988169 | W302: =IF(MAX(C305:C316)-MIN(C305:C316)<5,AVERAGEIF(C305:C316,">0",W305:W316), IF(FORECAST($C302,W$305:W$316,$C$305:$C$316)<0,0, IF(FORECAST($C302,W$305:W$316,$C$305:$C$316)>100,100, FORECAST($C302,W$305:W$316,$C$305:$C$316)))) -> 1.202824204 | X302: =IF(MAX(C305:C316)-MIN(C305:C316)<5,AVERAGEIF(C305:C316,">0",X305:X316), IF(FORECAST($C302,X$305:X$316,$C$305:$C$316)<0,0, IF(FORECAST($C302,X$305:X$316,$C$305:$C$316)>100,100, FORECAST($C302,X$305:X$316,$C$305:$C$316)))) -> 99.51029448 | AB302: =IF(MAX(C305:C316)-MIN(C305:C316)<5,AVERAGEIF(C305:C316,">0",AB305:AB316), IF(FORECAST($C302,AB$305:AB$316,$C$305:$C$316)<0,0, IF(FORECAST($C302,AB$305:AB$316,$C$305:$C$316)>100,100, FORECAST($C302,AB$305:AB$316,$C$305:$C$316)))) -> 0.07412163335
B304: Survey | C304: Year | D304: Improved | E304: Not shared | H304: Open defecation | I304: Improved | J304: Not shared | M304: Open defecation | N304: Improved | O304: Not shared | R304: Open defecation | S304: Improved | T304: Not shared | W304: Open defecation | X304: Improved | Y304: Not shared | AB304: Open defecation
B305: MICS00 | C305: 2000 | D305: =IF(ISERROR(INDIRECT(CONCATENATE($B305,"!M122"))),"",INDIRECT(CONCATENATE($B305,"!M122"))) -> 65.87323957 | E305: =IF(ISERROR(INDIRECT(CONCATENATE($B305,"!M129"))),"",INDIRECT(CONCATENATE($B305,"!M129"))) -> N/A | H305: =IF(ISERROR(INDIRECT(CONCATENATE($B305,"!M127"))),"",INDIRECT(CONCATENATE($B305,"!M127"))) -> 24.65253551 | I305: =IF(ISERROR(INDIRECT(CONCATENATE($B305,"!N122"))),"",INDIRECT(CONCATENATE($B305,"!N122"))) -> 84.57056295 | J305: =IF(ISERROR(INDIRECT(CONCATENATE($B305,"!N129"))),"",INDIRECT(CONCATENATE($B305,"!N129"))) -> N/A | M305: =IF(ISERROR(INDIRECT(CONCATENATE($B305,"!N127"))),"",INDIRECT(CONCATENATE($B305,"!N127"))) -> 5.435279266 | N305: =IF(ISERROR(INDIRECT(CONCATENATE($B305,"!O122"))),"",INDIRECT(CONCATENATE($B305,"!O122"))) -> 91.10888258 | O305: =IF(ISERROR(INDIRECT(CONCATENATE($B305,"!O129"))),"",INDIRECT(CONCATENATE($B305,"!O129"))) -> N/A | R305: =IF(ISERROR(INDIRECT(CONCATENATE($B305,"!O127"))),"",INDIRECT(CONCATENATE($B305,"!O127"))) -> 1.11230583 | S305: =IF(ISERROR(INDIRECT(CONCATENATE($B305,"!P122"))),"",INDIRECT(CONCATENATE($B305,"!P122"))) -> 92.29453703 | T305: =IF(ISERROR(INDIRECT(CONCATENATE($B305,"!P129"))),"",INDIRECT(CONCATENATE($B305,"!P129"))) -> N/A | W305: =IF(ISERROR(INDIRECT(CONCATENATE($B305,"!P127"))),"",INDIRECT(CONCATENATE($B305,"!P127"))) -> 0.6405052418 | X305: =IF(ISERROR(INDIRECT(CONCATENATE($B305,"!Q122"))),"",INDIRECT(CONCATENATE($B305,"!Q122"))) -> 97.25796676 | Y305: =IF(ISERROR(INDIRECT(CONCATENATE($B305,"!Q129"))),"",INDIRECT(CONCATENATE($B305,"!Q129"))) -> N/A | AB305: =IF(ISERROR(INDIRECT(CONCATENATE($B305,"!Q2127"))),"",INDIRECT(CONCATENATE($B305,"!Q127"))) -> 0.4242846427
B306: DHS02 | C306: 2002 | D306: 67.23206479 | E306: N/A | H306: 24.11371596 | I306: 83.27256611 | J306: N/A | M306: 9.951603715 | N306: 89.78798578 | O306: N/A | R306: 5.422274057 | S306: 92.6370936 | T306: N/A | W306: 2.330364893 | X306: 98.36566169 | Y306: N/A | AB306: 0.6903468169
B307: WHS03 | D307: 57.36395797 | E307: 79.67442928 | H307: 23.72050119 | I307: 72.96964315 | J307: 77.11996049 | M307: 12.12225118 | N307: 78.96785677 | O307: 84.69683412 | R307: 5.139651487 | S307: 89.63445151 | T307: 82.61953544 | W307: 4.412174255 | X307: 96.99503224 | Y307: 90.6101901 | AB307: 1.124817596
B308: DHS07 | C308: 2007 | D308: 70.01775961 | E308: N/A | H308: 20.3007831 | I308: 82.02418326 | J308: N/A | M308: 9.510847277 | N308: 89.31412356 | O308: N/A | R308: 4.217242991 | S308: 94.52181959 | T308: N/A | W308: 1.172362399 | X308: 98.51784016 | Y308: N/A | AB308: 0.1478223138
B309: DHS13 | C309: 2013 | D309: 74.50855351 | E309: 61.75799398 | H309: 17.21436319 | I309: 86.74552055 | J309: 81.01256637 | M309: 5.541587585 | N309: 89.54418863 | O309: 84.0064534 | R309: 5.059300543 | S309: 96.95950215 | T309: 94.12041032 | W309: 1.262024388 | X309: 99.31808304 | Y309: 99.31493499 | AB309: 0
B310: MICS14 | C310: 2014 | D310: 82.8923915 | E310: 64.77042183 | H310: 15.89219348 | I310: 91.92858097 | J310: 73.28326626 | M310: 6.492328132 | N310: 95.52443435 | O310: 80.48127131 | R310: 3.335505398 | S310: 98.14103196 | T310: 90.19529847 | W310: 1.137631729 | X310: 99.05713206 | Y310: 96.54672348 | AB310: 0.3319661147
B318: =CONCATENATE("Rural use of sanitation facilities, ",C299,"–",C300) -> Rural use of sanitation facilities, 2000–2020 | S318: Data points used for regression

Sheet Hygiene
B4: Access to hygiene facilities by wealth quintile (%)
B5: =IF(ISERROR(INDIRECT(CONCATENATE($E$32,"!A2"))),"",INDIRECT(CONCATENATE($E$32,"!A2"))) -> Dominican Republic
B7: =CONCATENATE("National ",IF(ISERROR(INDIRECT(CONCATENATE($E$32,"!A2"))),"",INDIRECT(CONCATENATE($E$32,"!A210")))) -> National Access to hygiene facilities | K7: =CONCATENATE("Urban ",IF(ISERROR(INDIRECT(CONCATENATE($E$32,"!A2"))),"",INDIRECT(CONCATENATE($E$32,"!A210")))) -> Urban Access to hygiene facilities | S7: =CONCATENATE("Rural ",IF(ISERROR(INDIRECT(CONCATENATE($E$32,"!A2"))),"",INDIRECT(CONCATENATE($E$32,"!A210")))) -> Rural Access to hygiene facilities
E32: =INDEX(B88:B100,A88) -> MICS14 | G32: =IF(ISERROR(INDIRECT(CONCATENATE($E$32,"!A2"))),"",INDIRECT(CONCATENATE($E$32,"!A2"))) -> Dominican Republic | K32: Poorest | N32: Poor | Q32: Middle | T32: Rich | W32: Richest
K33: Basic | L33: Limited | M33: No facility | N33: Basic | O33: Limited | P33: No facility | Q33: Basic | R33: Limited | S33: No facility | T33: Basic | U33: Limited | V33: No facility | W33: Basic | X33: Limited | Y33: No facility
B34: >>> Select Survey : | G34: NATIONAL | J34: =IF(ISERROR(INDIRECT(CONCATENATE(#REF!,"!A2"))),"",INDIRECT(CONCATENATE(#REF!,"!A210"))) ->  | K34: =IF(ISERROR(INDIRECT(CONCATENATE($E$32,"!C222"))),"",INDIRECT(CONCATENATE($E$32,"!C222"))) -> 24.03901735 | L34: =IF(ISERROR(INDIRECT(CONCATENATE($E$32,"!C223"))),"",INDIRECT(CONCATENATE($E$32,"!C223"))) -> 20.34615376 | M34: =IF(ISERROR(INDIRECT(CONCATENATE($E$32,"!C224"))),"",INDIRECT(CONCATENATE($E$32,"!C224"))) -> 55.61482889 | N34: =IF(ISERROR(INDIRECT(CONCATENATE($E$32,"!D222"))),"",INDIRECT(CONCATENATE($E$32,"!D222"))) -> 41.49512429 | O34: =IF(ISERROR(INDIRECT(CONCATENATE($E$32,"!D223"))),"",INDIRECT(CONCATENATE($E$32,"!D223"))) -> 16.72859191 | P34: =IF(ISERROR(INDIRECT(CONCATENATE($E$32,"!D224"))),"",INDIRECT(CONCATENATE($E$32,"!D224"))) -> 41.77628379 | Q34: =IF(ISERROR(INDIRECT(CONCATENATE($E$32,"!E222"))),"",INDIRECT(CONCATENATE($E$32,"!E222"))) -> 58.5209032 | R34: =IF(ISERROR(INDIRECT(CONCATENATE($E$32,"!E223"))),"",INDIRECT(CONCATENATE($E$32,"!E223"))) -> 17.03075042 | S34: =IF(ISERROR(INDIRECT(CONCATENATE($E$32,"!E224"))),"",INDIRECT(CONCATENATE($E$32,"!E224"))) -> 24.44834638 | T34: =IF(ISERROR(INDIRECT(CONCATENATE($E$32,"!F222"))),"",INDIRECT(CONCATENATE($E$32,"!F222"))) -> 72.30934006 | U34: =IF(ISERROR(INDIRECT(CONCATENATE($E$32,"!F223"))),"",INDIRECT(CONCATENATE($E$32,"!F223"))) -> 14.44963582 | V34: =IF(ISERROR(INDIRECT(CONCATENATE($E$32,"!F224"))),"",INDIRECT(CONCATENATE($E$32,"!F224"))) -> 13.24102412 | W34: =IF(ISERROR(INDIRECT(CONCATENATE($E$32,"!G222"))),"",INDIRECT(CONCATENATE($E$32,"!G222"))) -> 83.03433536 | X34: =IF(ISERROR(INDIRECT(CONCATENATE($E$32,"!G223"))),"",INDIRECT(CONCATENATE($E$32,"!G223"))) -> 9.158458416 | Y34: =IF(ISERROR(INDIRECT(CONCATENATE($E$32,"!G224"))),"",INDIRECT(CONCATENATE($E$32,"!G224"))) -> 7.80720622
G37: URBAN | J37: =IF(ISERROR(INDIRECT(CONCATENATE(#REF!,"!A2"))),"",INDIRECT(CONCATENATE(#REF!,"!A210"))) ->  | K37: =IF(ISERROR(INDIRECT(CONCATENATE($E$32,"!H222"))),"",INDIRECT(CONCATENATE($E$32,"!H222"))) -> 29.25649156 | L37: =IF(ISERROR(INDIRECT(CONCATENATE($E$32,"!H223"))),"",INDIRECT(CONCATENATE($E$32,"!H223"))) -> 19.53213782 | M37: =IF(ISERROR(INDIRECT(CONCATENATE($E$32,"!H224"))),"",INDIRECT(CONCATENATE($E$32,"!H224"))) -> 51.21137063 | N37: =IF(ISERROR(INDIRECT(CONCATENATE($E$32,"!I222"))),"",INDIRECT(CONCATENATE($E$32,"!I222"))) -> 48.75995861 | O37: =IF(ISERROR(INDIRECT(CONCATENATE($E$32,"!I223"))),"",INDIRECT(CONCATENATE($E$32,"!I223"))) -> 17.38558608 | P37: =IF(ISERROR(INDIRECT(CONCATENATE($E$32,"!I224"))),"",INDIRECT(CONCATENATE($E$32,"!I224"))) -> 33.85445531 | Q37: =IF(ISERROR(INDIRECT(CONCATENATE($E$32,"!J222"))),"",INDIRECT(CONCATENATE($E$32,"!J222"))) -> 62.61976057 | R37: =IF(ISERROR(INDIRECT(CONCATENATE($E$32,"!J223"))),"",INDIRECT(CONCATENATE($E$32,"!J223"))) -> 18.35738857 | S37: =IF(ISERROR(INDIRECT(CONCATENATE($E$32,"!J224"))),"",INDIRECT(CONCATENATE($E$32,"!J224"))) -> 19.02285086 | T37: =IF(ISERROR(INDIRECT(CONCATENATE($E$32,"!K222"))),"",INDIRECT(CONCATENATE($E$32,"!K222"))) -> 75.86222734 | U37: =IF(ISERROR(INDIRECT(CONCATENATE($E$32,"!K223"))),"",INDIRECT(CONCATENATE($E$32,"!K223"))) -> 12.90583787 | V37: =IF(ISERROR(INDIRECT(CONCATENATE($E$32,"!K224"))),"",INDIRECT(CONCATENATE($E$32,"!K224"))) -> 11.23193479 | W37: =IF(ISERROR(INDIRECT(CONCATENATE($E$32,"!L222"))),"",INDIRECT(CONCATENATE($E$32,"!L222"))) -> 83.67673665 | X37: =IF(ISERROR(INDIRECT(CONCATENATE($E$32,"!L223"))),"",INDIRECT(CONCATENATE($E$32,"!L223"))) -> 8.58275343 | Y37: =IF(ISERROR(INDIRECT(CONCATENATE($E$32,"!L224"))),"",INDIRECT(CONCATENATE($E$32,"!L224"))) -> 7.740509921
G40: RURAL | J40: =IF(ISERROR(INDIRECT(CONCATENATE(#REF!,"!A2"))),"",INDIRECT(CONCATENATE(#REF!,"!A210"))) ->  | K40: =IF(ISERROR(INDIRECT(CONCATENATE($E$32,"!M222"))),"",INDIRECT(CONCATENATE($E$32,"!M222"))) -> 19.36251801 | L40: =IF(ISERROR(INDIRECT(CONCATENATE($E$32,"!M223"))),"",INDIRECT(CONCATENATE($E$32,"!M223"))) -> 19.16321067 | M40: =IF(ISERROR(INDIRECT(CONCATENATE($E$32,"!M224"))),"",INDIRECT(CONCATENATE($E$32,"!M224"))) -> 61.47427131 | N40: =IF(ISERROR(INDIRECT(CONCATENATE($E$32,"!N222"))),"",INDIRECT(CONCATENATE($E$32,"!N222"))) -> 25.9174239 | O40: =IF(ISERROR(INDIRECT(CONCATENATE($E$32,"!N223"))),"",INDIRECT(CONCATENATE($E$32,"!N223"))) -> 19.63566512 | P40: =IF(ISERROR(INDIRECT(CONCATENATE($E$32,"!N224"))),"",INDIRECT(CONCATENATE($E$32,"!N224"))) -> 54.44691098 | Q40: =IF(ISERROR(INDIRECT(CONCATENATE($E$32,"!O222"))),"",INDIRECT(CONCATENATE($E$32,"!O222"))) -> 38.55221784 | R40: =IF(ISERROR(INDIRECT(CONCATENATE($E$32,"!O223"))),"",INDIRECT(CONCATENATE($E$32,"!O223"))) -> 17.75388969 | S40: =IF(ISERROR(INDIRECT(CONCATENATE($E$32,"!O224"))),"",INDIRECT(CONCATENATE($E$32,"!O224"))) -> 43.69389247 | T40: =IF(ISERROR(INDIRECT(CONCATENATE($E$32,"!P222"))),"",INDIRECT(CONCATENATE($E$32,"!P222"))) -> 56.3355449 | U40: =IF(ISERROR(INDIRECT(CONCATENATE($E$32,"!P223"))),"",INDIRECT(CONCATENATE($E$32,"!P223"))) -> 14.2806915 | V40: =IF(ISERROR(INDIRECT(CONCATENATE($E$32,"!P224"))),"",INDIRECT(CONCATENATE($E$32,"!P224"))) -> 29.3837636 | W40: =IF(ISERROR(INDIRECT(CONCATENATE($E$32,"!Q222"))),"",INDIRECT(CONCATENATE($E$32,"!Q222"))) -> 75.87759956 | X40: =IF(ISERROR(INDIRECT(CONCATENATE($E$32,"!Q223"))),"",INDIRECT(CONCATENATE($E$32,"!Q223"))) -> 10.62966838 | Y40: =IF(ISERROR(INDIRECT(CONCATENATE($E$32,"!Q224"))),"",INDIRECT(CONCATENATE($E$32,"!Q224"))) -> 13.49273206
A88: 6 | B88: MICS00
B89: DHS02
B90: WHS03
B91: DHS07
B92: DHS13
B93: MICS14
B94: Template

Sheet MICS00
A2: =A1026 -> Dominican Republic
A3: =A1034 -> 2000
A4: Use of drinking water sources
A5: by wealth quintile and sub-national region
A6: Notes:
A7: WHO/UNICEF JMP customised wealth index excludes water,
A8: sanitation and hygiene assets.
A9: Survey used for analysis: | B9: =A1025 -> MICS00
A10: =B1028 -> 
A11: =B1027 -> 
A14: Use of drinking water sources | C14: NATIONAL wealth index quintile | H14: URBAN wealth index quintile | M14: RURAL wealth index quintile | R14: SUB-REGIONS: | BA14: Raw numbers of respondents: | BB14: Use of drinking water sources | BC14: NATIONAL wealth index quintile | BH14: URBAN wealth index quintile | BM14: RURAL wealth index quintile | BR14: SUB-REGIONS:
A15: Weighted percentage (used in graphs) | C15: Poorest | D15: Poor | E15: Middle | F15: Rich | G15: Richest | H15: Poorest | I15: Poor | J15: Middle | K15: Rich | L15: Richest | M15: Poorest | N15: Poor | O15: Middle | P15: Rich | Q15: Richest | R15: Cibao Central | S15: Cibao Occidental | T15: Cibao Oriental | U15: Distrito Nacional | V15: El Valle | W15: Enriquillo | X15: Resto Valdesia | Y15: Yuma | BA15: Water data, raw numbers (weighted) | BC15: Poorest | BD15: Poor | BE15: Middle | BF15: Rich | BG15: Richest | BH15: Poorest | BI15: Poor | BJ15: Middle | BK15: Rich | BL15: Richest | BM15: Poorest | BN15: Poor | BO15: Middle | BP15: Rich | BQ15: Richest | BR15: Cibao Central | BS15: Cibao Occidental | BT15: Cibao Oriental | BU15: Distrito Nacional | BV15: El Valle | BW15: Enriquillo | BX15: Resto Valdesia | BY15: Yuma
A16: Water | B16: Improved | C16: 82.36372884 | D16: 94.63793729 | E16: 97.20285291 | F16: 99.37160173 | G16: 99.07441268 | H16: 94.48278882 | I16: 98.74455153 | J16: 99.19890548 | K16: 99.71879109 | L16: 98.70168412 | M16: 71.53940157 | N16: 89.89777814 | O16: 90.9723419 | P16: 94.80856011 | Q16: 99.42969739 | R16: 98.26964672 | S16: 95.74565416 | T16: 89.63620981 | U16: 99.24722662 | V16: 79.11512845 | W16: 91.96242171 | X16: 88.33938294 | Y16: 92.24393132 | BA16: Water | BB16: Improved | BC16: N/A | BD16: N/A | BE16: N/A | BF16: N/A | BG16: N/A | BH16: N/A | BI16: N/A | BJ16: N/A | BK16: N/A | BL16: N/A | BM16: N/A | BN16: N/A | BO16: N/A | BP16: N/A | BQ16: N/A | BR16: N/A | BS16: N/A | BT16: N/A | BU16: N/A | BV16: N/A | BW16: N/A | BX16: N/A | BY16: N/A
B17: Not Improved | C17: 17.63627116 | D17: 5.362062711 | E17: 2.797147091 | F17: 0.6283982694 | G17: 0.9255873228 | H17: 5.517211179 | I17: 1.255448468 | J17: 0.8010945189 | K17: 0.281208912 | L17: 1.298315884 | M17: 28.46059843 | N17: 10.10222186 | O17: 9.0276581 | P17: 5.191439893 | Q17: 0.5703026123 | R17: 1.73035328 | S17: 4.254345837 | T17: 10.36379019 | U17: 0.7527733756 | V17: 20.88487155 | W17: 8.037578288 | X17: 11.66061706 | Y17: 7.75606868 | BB17: Not Improved | BC17: N/A | BD17: N/A | BE17: N/A | BF17: N/A | BG17: N/A | BH17: N/A | BI17: N/A | BJ17: N/A | BK17: N/A | BL17: N/A | BM17: N/A | BN17: N/A | BO17: N/A | BP17: N/A | BQ17: N/A | BR17: N/A | BS17: N/A | BT17: N/A | BU17: N/A | BV17: N/A | BW17: N/A | BX17: N/A | BY17: N/A
A18: Water ladder | B18: Basic | C18: 79.16485816 | D18: 91.84959022 | E18: 96.35035961 | F18: 98.89550684 | G18: 98.22086272 | H18: 91.6076397 | I18: 98.40960502 | J18: 98.95624708 | K18: 98.95831177 | L18: 97.8840698 | M18: 66.80174717 | N18: 87.30364856 | O18: 88.22716335 | P18: 93.70651571 | Q18: 97.95976689 | R18: 97.8370584 | S18: 94.0073193 | T18: 88.24027073 | U18: 98.17749604 | V18: 75.8210376 | W18: 91.17954071 | X18: 82.84936479 | Y18: 91.17821196 | BA18: Water ladder | BB18: Basic | BC18: N/A | BD18: N/A | BE18: N/A | BF18: N/A | BG18: N/A | BH18: N/A | BI18: N/A | BJ18: N/A | BK18: N/A | BL18: N/A | BM18: N/A | BN18: N/A | BO18: N/A | BP18: N/A | BQ18: N/A | BR18: N/A | BS18: N/A | BT18: N/A | BU18: N/A | BV18: N/A | BW18: N/A | BX18: N/A | BY18: N/A
B19: Limited | C19: 3.196305319 | D19: 2.788347073 | E19: 0.8524932976 | F19: 0.4760948892 | G19: 0.8535499587 | H19: 2.873779495 | I19: 0.3349465166 | J19: 0.2426584058 | K19: 0.7604793184 | L19: 0.8176143181 | M19: 4.737654392 | N19: 2.594129579 | O19: 2.745178546 | P19: 1.102044396 | Q19: 1.469930496 | R19: 0.4325883201 | S19: 1.738334858 | T19: 1.395939086 | U19: 1.069730586 | V19: 3.284150405 | W19: 0.7828810021 | X19: 5.490018149 | Y19: 1.065719361 | BB19: Limited | BC19: N/A | BD19: N/A | BE19: N/A | BF19: N/A | BG19: N/A | BH19: N/A | BI19: N/A | BJ19: N/A | BK19: N/A | BL19: N/A | BM19: N/A | BN19: N/A | BO19: N/A | BP19: N/A | BQ19: N/A | BR19: N/A | BS19: N/A | BT19: N/A | BU19: N/A | BV19: N/A | BW19: N/A | BX19: N/A | BY19: N/A
B20: Unimproved | C20: 9.259652828 | D20: 3.745217322 | E20: 1.7433021 | F20: 0.2726227797 | G20: 0.9255873228 | H20: 5.236624744 | I20: 1.155912268 | J20: 0.1973710755 | K20: 0.281208912 | L20: 1.298315884 | M20: 13.63940132 | N20: 4.553914559 | O20: 5.651830305 | P20: 2.656781998 | Q20: 0.5703026123 | R20: 1.369863014 | S20: 1.64684355 | T20: 5.62605753 | U20: 0.7527733756 | V20: 7.615421228 | W20: 2.400835073 | X20: 9.482758621 | Y20: 4.085257549 | BB20: Unimproved | BC20: N/A | BD20: N/A | BE20: N/A | BF20: N/A | BG20: N/A | BH20: N/A | BI20: N/A | BJ20: N/A | BK20: N/A | BL20: N/A | BM20: N/A | BN20: N/A | BO20: N/A | BP20: N/A | BQ20: N/A | BR20: N/A | BS20: N/A | BT20: N/A | BU20: N/A | BV20: N/A | BW20: N/A | BX20: N/A | BY20: N/A
B21: Surface water | C21: 8.379183696 | D21: 1.61684539 | E21: 1.053844991 | F21: 0.3557754897 | G21: 0 | H21: 0.2819560627 | I21: 0.0995361992 | J21: 0.6037234434 | K21: 0 | L21: 0 | M21: 14.82119712 | N21: 5.548307303 | O21: 3.375827795 | P21: 2.534657894 | Q21: 0 | R21: 0.3604902668 | S21: 2.607502287 | T21: 4.737732657 | U21: 0 | V21: 13.27939077 | W21: 5.636743215 | X21: 2.177858439 | Y21: 3.670811131 | BB21: Surface water | BC21: N/A | BD21: N/A | BE21: N/A | BF21: N/A | BG21: N/A | BH21: N/A | BI21: N/A | BJ21: N/A | BK21: N/A | BL21: N/A | BM21: N/A | BN21: N/A | BO21: N/A | BP21: N/A | BQ21: N/A | BR21: N/A | BS21: N/A | BT21: N/A | BU21: N/A | BV21: N/A | BW21: N/A | BX21: N/A | BY21: N/A
A22: Improved water point at more than 30 minutes | B22: Yes | C22: 3.880840416 | D22: 2.946331199 | E22: 0.8770249762 | F22: 0.4791055804 | G22: 0.8615241167 | H22: 3.041634556 | I22: 0.3392050613 | J22: 0.2446180274 | K22: 0.7626238848 | L22: 0.8283691666 | M22: 6.622440625 | N22: 2.885643708 | O22: 3.017596874 | P22: 1.162389129 | Q22: 1.478361631 | R22: 0.4402054292 | S22: 1.815575729 | T22: 1.557338367 | U22: 1.077844311 | V22: 4.151624549 | W22: 0.8513053348 | X22: 6.214689266 | Y22: 1.155327343 | BA22: Improved water point at more than 30 minutes | BB22: Yes | BC22: N/A | BD22: N/A | BE22: N/A | BF22: N/A | BG22: N/A | BH22: N/A | BI22: N/A | BJ22: N/A | BK22: N/A | BL22: N/A | BM22: N/A | BN22: N/A | BO22: N/A | BP22: N/A | BQ22: N/A | BR22: N/A | BS22: N/A | BT22: N/A | BU22: N/A | BV22: N/A | BW22: N/A | BX22: N/A | BY22: N/A
B23: No | C23: 96.11915958 | D23: 97.0536688 | E23: 99.12297502 | F23: 99.52089442 | G23: 99.13847588 | H23: 96.95836544 | I23: 99.66079494 | J23: 99.75538197 | K23: 99.23737612 | L23: 99.17163083 | M23: 93.37755937 | N23: 97.11435629 | O23: 96.98240313 | P23: 98.83761087 | Q23: 98.52163837 | R23: 99.55979457 | S23: 98.18442427 | T23: 98.44266163 | U23: 98.92215569 | V23: 95.84837545 | W23: 99.14869467 | X23: 93.78531073 | Y23: 98.84467266 | BB23: No | BC23: N/A | BD23: N/A | BE23: N/A | BF23: N/A | BG23: N/A | BH23: N/A | BI23: N/A | BJ23: N/A | BK23: N/A | BL23: N/A | BM23: N/A | BN23: N/A | BO23: N/A | BP23: N/A | BQ23: N/A | BR23: N/A | BS23: N/A | BT23: N/A | BU23: N/A | BV23: N/A | BW23: N/A | BX23: N/A | BY23: N/A
A24: Manually calculated ratios | B24: Improved wells | C24: =(C61+C62)/(C61+C62+C66)*100 -> 60.41456307 | D24: =(D61+D62)/(D61+D62+D66)*100 -> 79.03466531 | E24: =(E61+E62)/(E61+E62+E66)*100 -> 45.07125911 | F24: =(F61+F62)/(F61+F62+F66)*100 -> 90.45601476 | G24: 100 | H24: =(H61+H62)/(H61+H62+H66)*100 -> 84.16068349 | I24: =(I61+I62)/(I61+I62+I66)*100 -> 0 | J24: =(J61+J62)/(J61+J62+J66)*100 -> 100 | K24: =(K61+K62)/(K61+K62+K66)*100 -> 100 | L24: 100 | M24: =(M61+M62)/(M61+M62+M66)*100 -> 51.50295392 | N24: 76.48829563 | O24: 70.14228717 | P24: 45.50596884 | Q24: 62.79621588 | R24: 100 | S24: 100 | T24: 69.51871658 | U24: 100 | V24: 87.27272727 | W24: 50 | X24: 36.52173913 | Y24: 100
B25: Improved springs
B26: Other
C27: NATIONAL wealth index quintile | H27: URBAN wealth index quintile | M27: RURAL wealth index quintile | R27: SUB-REGIONS: | BA27: Raw numbers of respondents: | BB27: Use of drinking water sources | BC27: NATIONAL wealth index quintile | BH27: URBAN wealth index quintile | BM27: RURAL wealth index quintile | BR27: SUB-REGIONS:
A28: Percentage based on weighted population | C28: Poorest | D28: Poor | E28: Middle | F28: Rich | G28: Richest | H28: Poorest | I28: Poor | J28: Middle | K28: Rich | L28: Richest | M28: Poorest | N28: Poor | O28: Middle | P28: Rich | Q28: Richest | R28: Cibao Central | S28: Cibao Occidental | T28: Cibao Oriental | U28: Distrito Nacional | V28: El Valle | W28: Enriquillo | X28: Resto Valdesia | Y28: Yuma | BA28: Water data, raw numbers (weighted) | BC28: Poorest | BD28: Poor | BE28: Middle | BF28: Rich | BG28: Richest | BH28: Poorest | BI28: Poor | BJ28: Middle | BK28: Rich | BL28: Richest | BM28: Poorest | BN28: Poor | BO28: Middle | BP28: Rich | BQ28: Richest | BR28: Cibao Central | BS28: Cibao Occidental | BT28: Cibao Oriental | BU28: Distrito Nacional | BV28: El Valle | BW28: Enriquillo | BX28: Resto Valdesia | BY28: Yuma
A29: Piped water | B29: Yes | C29: 51.44769046 | D29: 49.52323559 | E29: 45.41381675 | F29: 30.93221219 | G29: 16.8099671 | H29: 58.28888133 | I29: 47.06611714 | J29: 32.80338983 | K29: 18.78714656 | L29: 16.08848209 | M29: 43.45060364 | N29: 50.53458934 | O29: 47.40406132 | P29: 44.03741897 | Q29: 38.72836197 | R29: 55.22710887 | S29: 42.04025618 | T29: 18.31641286 | U29: 26.82250396 | V29: 55.51855376 | W29: 87.2651357 | X29: 46.86932849 | Y29: 19.59739491 | BA29: Piped water | BB29: Yes | BC29: N/A | BD29: N/A | BE29: N/A | BF29: N/A | BG29: N/A | BH29: N/A | BI29: N/A | BJ29: N/A | BK29: N/A | BL29: N/A | BM29: N/A | BN29: N/A | BO29: N/A | BP29: N/A | BQ29: N/A | BR29: N/A | BS29: N/A | BT29: N/A | BU29: N/A | BV29: N/A | BW29: N/A | BX29: N/A | BY29: N/A
B30: No | C30: 48.55230954 | D30: 50.47676441 | E30: 54.58618325 | F30: 69.06778781 | G30: 83.1900329 | H30: 41.71111867 | I30: 52.93388286 | J30: 67.19661017 | K30: 81.21285344 | L30: 83.91151791 | M30: 56.54939636 | N30: 49.46541066 | O30: 52.59593868 | P30: 55.96258103 | Q30: 61.27163803 | R30: 44.77289113 | S30: 57.95974382 | T30: 81.68358714 | U30: 73.17749604 | V30: 44.48144624 | W30: 12.7348643 | X30: 53.13067151 | Y30: 80.40260509 | BB30: No | BC30: N/A | BD30: N/A | BE30: N/A | BF30: N/A | BG30: N/A | BH30: N/A | BI30: N/A | BJ30: N/A | BK30: N/A | BL30: N/A | BM30: N/A | BN30: N/A | BO30: N/A | BP30: N/A | BQ30: N/A | BR30: N/A | BS30: N/A | BT30: N/A | BU30: N/A | BV30: N/A | BW30: N/A | BX30: N/A | BY30: N/A
A31: Piped water on premises | B31: Yes | C31: 36.99806743 | D31: 42.28831354 | E31: 40.76212367 | F31: 28.08622803 | G31: 16.41404662 | H31: 49.46988908 | I31: 42.37708515 | J31: 29.72171726 | K31: 17.89276856 | L31: 16.08848209 | M31: 25.08314609 | N31: 39.83103554 | O31: 38.13956611 | P31: 38.28504452 | Q31: 35.95722768 | R31: 49.35111752 | S31: 38.65507777 | T31: 16.8358714 | U31: 22.90015848 | V31: 46.09895338 | W31: 76.87891441 | X31: 32.57713249 | Y31: 15.15689757 | BA31: Piped water on premises | BB31: Yes | BC31: N/A | BD31: N/A | BE31: N/A | BF31: N/A | BG31: N/A | BH31: N/A | BI31: N/A | BJ31: N/A | BK31: N/A | BL31: N/A | BM31: N/A | BN31: N/A | BO31: N/A | BP31: N/A | BQ31: N/A | BR31: N/A | BS31: N/A | BT31: N/A | BU31: N/A | BV31: N/A | BW31: N/A | BX31: N/A | BY31: N/A
B32: No | C32: 63.00193257 | D32: 57.71168646 | E32: 59.23787633 | F32: 71.91377197 | G32: 83.58595338 | H32: 50.53011092 | I32: 57.62291485 | J32: 70.27828274 | K32: 82.10723144 | L32: 83.91151791 | M32: 74.91685391 | N32: 60.16896446 | O32: 61.86043389 | P32: 61.71495548 | Q32: 64.04277232 | R32: 50.64888248 | S32: 61.34492223 | T32: 83.1641286 | U32: 77.09984152 | V32: 53.90104662 | W32: 23.12108559 | X32: 67.42286751 | Y32: 84.84310243 | BB32: No | BC32: N/A | BD32: N/A | BE32: N/A | BF32: N/A | BG32: N/A | BH32: N/A | BI32: N/A | BJ32: N/A | BK32: N/A | BL32: N/A | BM32: N/A | BN32: N/A | BO32: N/A | BP32: N/A | BQ32: N/A | BR32: N/A | BS32: N/A | BT32: N/A | BU32: N/A | BV32: N/A | BW32: N/A | BX32: N/A | BY32: N/A
A33: Piped water into dwelling | B33: Yes | C33: N/A | D33: N/A | E33: N/A | F33: N/A | G33: N/A | H33: N/A | I33: N/A | J33: N/A | K33: N/A | L33: N/A | M33: N/A | N33: N/A | O33: N/A | P33: N/A | Q33: N/A | R33: N/A | S33: N/A | T33: N/A | U33: N/A | V33: N/A | W33: N/A | X33: N/A | Y33: N/A | BA33: Piped water into dwelling | BB33: Yes | BC33: N/A | BD33: N/A | BE33: N/A | BF33: N/A | BG33: N/A | BH33: N/A | BI33: N/A | BJ33: N/A | BK33: N/A | BL33: N/A | BM33: N/A | BN33: N/A | BO33: N/A | BP33: N/A | BQ33: N/A | BR33: N/A | BS33: N/A | BT33: N/A | BU33: N/A | BV33: N/A | BW33: N/A | BX33: N/A | BY33: N/A
B34: No | C34: N/A | D34: N/A | E34: N/A | F34: N/A | G34: N/A | H34: N/A | I34: N/A | J34: N/A | K34: N/A | L34: N/A | M34: N/A | N34: N/A | O34: N/A | P34: N/A | Q34: N/A | R34: N/A | S34: N/A | T34: N/A | U34: N/A | V34: N/A | W34: N/A | X34: N/A | Y34: N/A | BB34: No | BC34: N/A | BD34: N/A | BE34: N/A | BF34: N/A | BG34: N/A | BH34: N/A | BI34: N/A | BJ34: N/A | BK34: N/A | BL34: N/A | BM34: N/A | BN34: N/A | BO34: N/A | BP34: N/A | BQ34: N/A | BR34: N/A | BS34: N/A | BT34: N/A | BU34: N/A | BV34: N/A | BW34: N/A | BX34: N/A | BY34: N/A
A35: Water source on premises | B35: Yes | C35: 60.5335646 | D35: 71.88993308 | E35: 74.11222011 | F35: 67.806206 | G35: 81.14680692 | H35: 69.74466662 | I35: 70.8831895 | J35: 66.43882672 | K35: 73.19872715 | L35: 83.49831785 | M35: 47.33747142 | N35: 68.51977195 | O35: 76.4081958 | P35: 76.40611253 | Q35: 75.07109381 | R35: 80.49747657 | S35: 72.68984446 | T35: 66.70896785 | U35: 72.50396197 | V35: 61.46527117 | W35: 80.79331942 | X35: 63.33938294 | Y35: 59.26583777 | BA35: Water source on premises | BB35: Yes | BC35: N/A | BD35: N/A | BE35: N/A | BF35: N/A | BG35: N/A | BH35: N/A | BI35: N/A | BJ35: N/A | BK35: N/A | BL35: N/A | BM35: N/A | BN35: N/A | BO35: N/A | BP35: N/A | BQ35: N/A | BR35: N/A | BS35: N/A | BT35: N/A | BU35: N/A | BV35: N/A | BW35: N/A | BX35: N/A | BY35: N/A
B36: No | C36: 39.4664354 | D36: 28.11006692 | E36: 25.88777989 | F36: 32.193794 | G36: 18.85319308 | H36: 30.25533338 | I36: 29.1168105 | J36: 33.56117328 | K36: 26.80127285 | L36: 16.50168215 | M36: 52.66252858 | N36: 31.48022805 | O36: 23.5918042 | P36: 23.59388747 | Q36: 24.92890619 | R36: 19.50252343 | S36: 27.31015554 | T36: 33.29103215 | U36: 27.49603803 | V36: 38.53472883 | W36: 19.20668058 | X36: 36.66061706 | Y36: 40.73416223 | BB36: No | BC36: N/A | BD36: N/A | BE36: N/A | BF36: N/A | BG36: N/A | BH36: N/A | BI36: N/A | BJ36: N/A | BK36: N/A | BL36: N/A | BM36: N/A | BN36: N/A | BO36: N/A | BP36: N/A | BQ36: N/A | BR36: N/A | BS36: N/A | BT36: N/A | BU36: N/A | BV36: N/A | BW36: N/A | BX36: N/A | BY36: N/A
A37: Improved Water source on premises | B37: Yes | C37: 72.58278867 | D37: 74.9300574 | E37: 76.18380456 | F37: 68.14716098 | G37: 81.12960631 | H37: 73.37393356 | I37: 71.78440572 | J37: 66.82605819 | K37: 73.25652321 | L37: 83.41829114 | M37: 64.95554332 | N37: 75.55376852 | O37: 81.63389058 | P37: 80.439228 | Q37: 75.50168188 | R37: 81.80484226 | S37: 75.44194935 | T37: 74.23312883 | U37: 72.49500998 | V37: 77.02946482 | W37: 86.83314415 | X37: 70.00513611 | Y37: 63.73555841 | BA37: Improved water source on premises | BB37: Yes | BC37: N/A | BD37: N/A | BE37: N/A | BF37: N/A | BG37: N/A | BH37: N/A | BI37: N/A | BJ37: N/A | BK37: N/A | BL37: N/A | BM37: N/A | BN37: N/A | BO37: N/A | BP37: N/A | BQ37: N/A | BR37: N/A | BS37: N/A | BT37: N/A | BU37: N/A | BV37: N/A | BW37: N/A | BX37: N/A | BY37: N/A
B38: No | C38: 27.41721133 | D38: 25.0699426 | E38: 23.81619544 | F38: 31.85283902 | G38: 18.87039369 | H38: 26.62606644 | I38: 28.21559428 | J38: 33.17394181 | K38: 26.74347679 | L38: 16.58170886 | M38: 35.04445668 | N38: 24.44623148 | O38: 18.36610942 | P38: 19.560772 | Q38: 24.49831812 | R38: 18.19515774 | S38: 24.55805065 | T38: 25.76687117 | U38: 27.50499002 | V38: 22.97053518 | W38: 13.16685585 | X38: 29.99486389 | Y38: 36.26444159 | BB38: No | BC38: N/A | BD38: N/A | BE38: N/A | BF38: N/A | BG38: N/A | BH38: N/A | BI38: N/A | BJ38: N/A | BK38: N/A | BL38: N/A | BM38: N/A | BN38: N/A | BO38: N/A | BP38: N/A | BQ38: N/A | BR38: N/A | BS38: N/A | BT38: N/A | BU38: N/A | BV38: N/A | BW38: N/A | BX38: N/A | BY38: N/A
A39: Piped water on premises available when needed | B39: Yes | C39: N/A | D39: N/A | E39: N/A | F39: N/A | G39: N/A | H39: N/A | I39: N/A | J39: N/A | K39: N/A | L39: N/A | M39: N/A | N39: N/A | O39: N/A | P39: N/A | Q39: N/A | R39: N/A | S39: N/A | T39: N/A | U39: N/A | V39: N/A | W39: N/A | X39: N/A | Y39: N/A | BA39: Piped water on premises available when needed | BB39: Yes | BC39: N/A | BD39: N/A | BE39: N/A | BF39: N/A | BG39: N/A | BH39: N/A | BI39: N/A | BJ39: N/A | BK39: N/A | BL39: N/A | BM39: N/A | BN39: N/A | BO39: N/A | BP39: N/A | BQ39: N/A | BR39: N/A | BS39: N/A | BT39: N/A | BU39: N/A | BV39: N/A | BW39: N/A | BX39: N/A | BY39: N/A
B40: No | C40: N/A | D40: N/A | E40: N/A | F40: N/A | G40: N/A | H40: N/A | I40: N/A | J40: N/A | K40: N/A | L40: N/A | M40: N/A | N40: N/A | O40: N/A | P40: N/A | Q40: N/A | R40: N/A | S40: N/A | T40: N/A | U40: N/A | V40: N/A | W40: N/A | X40: N/A | Y40: N/A | BB40: No | BC40: N/A | BD40: N/A | BE40: N/A | BF40: N/A | BG40: N/A | BH40: N/A | BI40: N/A | BJ40: N/A | BK40: N/A | BL40: N/A | BM40: N/A | BN40: N/A | BO40: N/A | BP40: N/A | BQ40: N/A | BR40: N/A | BS40: N/A | BT40: N/A | BU40: N/A | BV40: N/A | BW40: N/A | BX40: N/A | BY40: N/A
A41: Water point at more than 30 minutes | B41: Yes | C41: 7.627752807 | D41: 3.780055113 | E41: 1.345809487 | F41: 0.4760948892 | G41: 1.011011317 | H41: 3.880388425 | I41: 0.3349465166 | J41: 0.2426584058 | K41: 0.8934804194 | L41: 0.9528705665 | M41: 11.809488 | N41: 5.170266038 | O41: 4.842312225 | P41: 2.099613803 | Q41: 1.660031367 | R41: 0.6849315068 | S41: 2.698993596 | T41: 5.076142132 | U41: 1.18858954 | V41: 7.520228463 | W41: 3.340292276 | X41: 7.123411978 | Y41: 3.019538188 | BA41: Water point at more than 30 minutes | BB41: Yes | BC41: N/A | BD41: N/A | BE41: N/A | BF41: N/A | BG41: N/A | BH41: N/A | BI41: N/A | BJ41: N/A | BK41: N/A | BL41: N/A | BM41: N/A | BN41: N/A | BO41: N/A | BP41: N/A | BQ41: N/A | BR41: N/A | BS41: N/A | BT41: N/A | BU41: N/A | BV41: N/A | BW41: N/A | BX41: N/A | BY41: N/A
B42: No | C42: 92.37224719 | D42: 96.21994489 | E42: 98.65419051 | F42: 99.52390511 | G42: 98.98898868 | H42: 96.11961158 | I42: 99.66505348 | J42: 99.75734159 | K42: 99.10651958 | L42: 99.04712943 | M42: 88.190512 | N42: 94.82973396 | O42: 95.15768778 | P42: 97.9003862 | Q42: 98.33996863 | R42: 99.31506849 | S42: 97.3010064 | T42: 94.92385787 | U42: 98.81141046 | V42: 92.47977154 | W42: 96.65970772 | X42: 92.87658802 | Y42: 96.98046181 | BB42: No | BC42: N/A | BD42: N/A | BE42: N/A | BF42: N/A | BG42: N/A | BH42: N/A | BI42: N/A | BJ42: N/A | BK42: N/A | BL42: N/A | BM42: N/A | BN42: N/A | BO42: N/A | BP42: N/A | BQ42: N/A | BR42: N/A | BS42: N/A | BT42: N/A | BU42: N/A | BV42: N/A | BW42: N/A | BX42: N/A | BY42: N/A
A43: Water source available when needed | B43: Yes | C43: N/A | D43: N/A | E43: N/A | F43: N/A | G43: N/A | H43: N/A | I43: N/A | J43: N/A | K43: N/A | L43: N/A | M43: N/A | N43: N/A | O43: N/A | P43: N/A | Q43: N/A | R43: N/A | S43: N/A | T43: N/A | U43: N/A | V43: N/A | W43: N/A | X43: N/A | Y43: N/A | BA43: Water source available when needed | BB43: Yes | BC43: N/A | BD43: N/A | BE43: N/A | BF43: N/A | BG43: N/A | BH43: N/A | BI43: N/A | BJ43: N/A | BK43: N/A | BL43: N/A | BM43: N/A | BN43: N/A | BO43: N/A | BP43: N/A | BQ43: N/A | BR43: N/A | BS43: N/A | BT43: N/A | BU43: N/A | BV43: N/A | BW43: N/A | BX43: N/A | BY43: N/A
B44: No | C44: N/A | D44: N/A | E44: N/A | F44: N/A | G44: N/A | H44: N/A | I44: N/A | J44: N/A | K44: N/A | L44: N/A | M44: N/A | N44: N/A | O44: N/A | P44: N/A | Q44: N/A | R44: N/A | S44: N/A | T44: N/A | U44: N/A | V44: N/A | W44: N/A | X44: N/A | Y44: N/A | BB44: No | BC44: N/A | BD44: N/A | BE44: N/A | BF44: N/A | BG44: N/A | BH44: N/A | BI44: N/A | BJ44: N/A | BK44: N/A | BL44: N/A | BM44: N/A | BN44: N/A | BO44: N/A | BP44: N/A | BQ44: N/A | BR44: N/A | BS44: N/A | BT44: N/A | BU44: N/A | BV44: N/A | BW44: N/A | BX44: N/A | BY44: N/A
A45: Improved water source available when needed | B45: Yes | C45: N/A | D45: N/A | E45: N/A | F45: N/A | G45: N/A | H45: N/A | I45: N/A | J45: N/A | K45: N/A | L45: N/A | M45: N/A | N45: N/A | O45: N/A | P45: N/A | Q45: N/A | R45: N/A | S45: N/A | T45: N/A | U45: N/A | V45: N/A | W45: N/A | X45: N/A | Y45: N/A | BA45: Improved water source available when needed | BB45: Yes | BC45: N/A | BD45: N/A | BE45: N/A | BF45: N/A | BG45: N/A | BH45: N/A | BI45: N/A | BJ45: N/A | BK45: N/A | BL45: N/A | BM45: N/A | BN45: N/A | BO45: N/A | BP45: N/A | BQ45: N/A | BR45: N/A | BS45: N/A | BT45: N/A | BU45: N/A | BV45: N/A | BW45: N/A | BX45: N/A | BY45: N/A
B46: No | C46: N/A | D46: N/A | E46: N/A | F46: N/A | G46: N/A | H46: N/A | I46: N/A | J46: N/A | K46: N/A | L46: N/A | M46: N/A | N46: N/A | O46: N/A | P46: N/A | Q46: N/A | R46: N/A | S46: N/A | T46: N/A | U46: N/A | V46: N/A | W46: N/A | X46: N/A | Y46: N/A | BB46: No | BC46: N/A | BD46: N/A | BE46: N/A | BF46: N/A | BG46: N/A | BH46: N/A | BI46: N/A | BJ46: N/A | BK46: N/A | BL46: N/A | BM46: N/A | BN46: N/A | BO46: N/A | BP46: N/A | BQ46: N/A | BR46: N/A | BS46: N/A | BT46: N/A | BU46: N/A | BV46: N/A | BW46: N/A | BX46: N/A | BY46: N/A
A47: Microbiological quality at point of collection | B47: Not contaminated (No E. coli in 100 mL) | C47: N/A | D47: N/A | E47: N/A | F47: N/A | G47: N/A | H47: N/A | I47: N/A | J47: N/A | K47: N/A | L47: N/A | M47: N/A | N47: N/A | O47: N/A | P47: N/A | Q47: N/A | R47: N/A | S47: N/A | T47: N/A | U47: N/A | V47: N/A | W47: N/A | X47: N/A | Y47: N/A | BA47: Microbiological quality at point of collection | BB47: Not contaminated (No E. coli in 100 mL) | BC47: N/A | BD47: N/A | BE47: N/A | BF47: N/A | BG47: N/A | BH47: N/A | BI47: N/A | BJ47: N/A | BK47: N/A | BL47: N/A | BM47: N/A | BN47: N/A | BO47: N/A | BP47: N/A | BQ47: N/A | BR47: N/A | BS47: N/A | BT47: N/A | BU47: N/A | BV47: N/A | BW47: N/A | BX47: N/A | BY47: N/A
B48: Contaminated (E. coli detected in 100 mL) | C48: N/A | D48: N/A | E48: N/A | F48: N/A | G48: N/A | H48: N/A | I48: N/A | J48: N/A | K48: N/A | L48: N/A | M48: N/A | N48: N/A | O48: N/A | P48: N/A | Q48: N/A | R48: N/A | S48: N/A | T48: N/A | U48: N/A | V48: N/A | W48: N/A | X48: N/A | Y48: N/A | BB48: Contaminated (E. coli detected in 100 mL) | BC48: N/A | BD48: N/A | BE48: N/A | BF48: N/A | BG48: N/A | BH48: N/A | BI48: N/A | BJ48: N/A | BK48: N/A | BL48: N/A | BM48: N/A | BN48: N/A | BO48: N/A | BP48: N/A | BQ48: N/A | BR48: N/A | BS48: N/A | BT48: N/A | BU48: N/A | BV48: N/A | BW48: N/A | BX48: N/A | BY48: N/A
B49: Highly contaminated (>100 CFU/100 mL) | C49: N/A | D49: N/A | E49: N/A | F49: N/A | G49: N/A | H49: N/A | I49: N/A | J49: N/A | K49: N/A | L49: N/A | M49: N/A | N49: N/A | O49: N/A | P49: N/A | Q49: N/A | R49: N/A | S49: N/A | T49: N/A | U49: N/A | V49: N/A | W49: N/A | X49: N/A | Y49: N/A | BB49: Highly contaminated (>100 CFU/100 mL) | BC49: N/A | BD49: N/A | BE49: N/A | BF49: N/A | BG49: N/A | BH49: N/A | BI49: N/A | BJ49: N/A | BK49: N/A | BL49: N/A | BM49: N/A | BN49: N/A | BO49: N/A | BP49: N/A | BQ49: N/A | BR49: N/A | BS49: N/A | BT49: N/A | BU49: N/A | BV49: N/A | BW49: N/A | BX49: N/A | BY49: N/A
A50: Microbiological quality of improved water sources at point of collection | B50: Not contaminated (No E. coli in 100 mL) | C50: N/A | D50: N/A | E50: N/A | F50: N/A | G50: N/A | H50: N/A | I50: N/A | J50: N/A | K50: N/A | L50: N/A | M50: N/A | N50: N/A | O50: N/A | P50: N/A | Q50: N/A | R50: N/A | S50: N/A | T50: N/A | U50: N/A | V50: N/A | W50: N/A | X50: N/A | Y50: N/A | BA50: Microbiological quality of improved water sources at point of collection | BB50: Not contaminated (No E. coli in 100 mL) | BC50: N/A | BD50: N/A | BE50: N/A | BF50: N/A | BG50: N/A | BH50: N/A | BI50: N/A | BJ50: N/A | BK50: N/A | BL50: N/A | BM50: N/A | BN50: N/A | BO50: N/A | BP50: N/A | BQ50: N/A | BR50: N/A | BS50: N/A | BT50: N/A | BU50: N/A | BV50: N/A | BW50: N/A | BX50: N/A | BY50: N/A
B51: Contaminated (E. coli detected in 100 mL) | C51: N/A | D51: N/A | E51: N/A | F51: N/A | G51: N/A | H51: N/A | I51: N/A | J51: N/A | K51: N/A | L51: N/A | M51: N/A | N51: N/A | O51: N/A | P51: N/A | Q51: N/A | R51: N/A | S51: N/A | T51: N/A | U51: N/A | V51: N/A | W51: N/A | X51: N/A | Y51: N/A | BB51: Contaminated (E. coli detected in 100 mL) | BC51: N/A | BD51: N/A | BE51: N/A | BF51: N/A | BG51: N/A | BH51: N/A | BI51: N/A | BJ51: N/A | BK51: N/A | BL51: N/A | BM51: N/A | BN51: N/A | BO51: N/A | BP51: N/A | BQ51: N/A | BR51: N/A | BS51: N/A | BT51: N/A | BU51: N/A | BV51: N/A | BW51: N/A | BX51: N/A | BY51: N/A
B52: Highly contaminated (>100 CFU/100 mL) | C52: N/A | D52: N/A | E52: N/A | F52: N/A | G52: N/A | H52: N/A | I52: N/A | J52: N/A | K52: N/A | L52: N/A | M52: N/A | N52: N/A | O52: N/A | P52: N/A | Q52: N/A | R52: N/A | S52: N/A | T52: N/A | U52: N/A | V52: N/A | W52: N/A | X52: N/A | Y52: N/A | BB52: Highly contaminated (>100 CFU/100 mL) | BC52: N/A | BD52: N/A | BE52: N/A | BF52: N/A | BG52: N/A | BH52: N/A | BI52: N/A | BJ52: N/A | BK52: N/A | BL52: N/A | BM52: N/A | BN52: N/A | BO52: N/A | BP52: N/A | BQ52: N/A | BR52: N/A | BS52: N/A | BT52: N/A | BU52: N/A | BV52: N/A | BW52: N/A | BX52: N/A | BY52: N/A
A53: Microbiological quality of piped on premises at point of collection | B53: Not contaminated (No E. coli in 100 mL) | C53: N/A | D53: N/A | E53: N/A | F53: N/A | G53: N/A | H53: N/A | I53: N/A | J53: N/A | K53: N/A | L53: N/A | M53: N/A | N53: N/A | O53: N/A | P53: N/A | Q53: N/A | R53: N/A | S53: N/A | T53: N/A | U53: N/A | V53: N/A | W53: N/A | X53: N/A | Y53: N/A | BA53: Microbiological quality of piped on premises at point of collection | BB53: Not contaminated (No E. coli in 100 mL) | BC53: N/A | BD53: N/A | BE53: N/A | BF53: N/A | BG53: N/A | BH53: N/A | BI53: N/A | BJ53: N/A | BK53: N/A | BL53: N/A | BM53: N/A | BN53: N/A | BO53: N/A | BP53: N/A | BQ53: N/A | BR53: N/A | BS53: N/A | BT53: N/A | BU53: N/A | BV53: N/A | BW53: N/A | BX53: N/A | BY53: N/A
B54: Contaminated (E. coli detected in 100 mL) | C54: N/A | D54: N/A | E54: N/A | F54: N/A | G54: N/A | H54: N/A | I54: N/A | J54: N/A | K54: N/A | L54: N/A | M54: N/A | N54: N/A | O54: N/A | P54: N/A | Q54: N/A | R54: N/A | S54: N/A | T54: N/A | U54: N/A | V54: N/A | W54: N/A | X54: N/A | Y54: N/A | BB54: Contaminated (E. coli detected in 100 mL) | BC54: N/A | BD54: N/A | BE54: N/A | BF54: N/A | BG54: N/A | BH54: N/A | BI54: N/A | BJ54: N/A | BK54: N/A | BL54: N/A | BM54: N/A | BN54: N/A | BO54: N/A | BP54: N/A | BQ54: N/A | BR54: N/A | BS54: N/A | BT54: N/A | BU54: N/A | BV54: N/A | BW54: N/A | BX54: N/A | BY54: N/A
B55: Highly contaminated (>100 CFU/100 mL) | C55: N/A | D55: N/A | E55: N/A | F55: N/A | G55: N/A | H55: N/A | I55: N/A | J55: N/A | K55: N/A | L55: N/A | M55: N/A | N55: N/A | O55: N/A | P55: N/A | Q55: N/A | R55: N/A | S55: N/A | T55: N/A | U55: N/A | V55: N/A | W55: N/A | X55: N/A | Y55: N/A | BB55: Highly contaminated (>100 CFU/100 mL) | BC55: N/A | BD55: N/A | BE55: N/A | BF55: N/A | BG55: N/A | BH55: N/A | BI55: N/A | BJ55: N/A | BK55: N/A | BL55: N/A | BM55: N/A | BN55: N/A | BO55: N/A | BP55: N/A | BQ55: N/A | BR55: N/A | BS55: N/A | BT55: N/A | BU55: N/A | BV55: N/A | BW55: N/A | BX55: N/A | BY55: N/A
C56: NATIONAL wealth index quintile | H56: URBAN wealth index quintile | M56: RURAL wealth index quintile | R56: SUB-REGIONS: | BA56: Raw numbers of respondents: | BB56: Use of drinking water sources | BC56: NATIONAL wealth index quintile | BH56: URBAN wealth index quintile | BM56: RURAL wealth index quintile | BR56: SUB-REGIONS:
A57: Percentage based on weighted population | C57: Poorest | D57: Poor | E57: Middle | F57: Rich | G57: Richest | H57: Poorest | I57: Poor | J57: Middle | K57: Rich | L57: Richest | M57: Poorest | N57: Poor | O57: Middle | P57: Rich | Q57: Richest | R57: Cibao Central | S57: Cibao Occidental | T57: Cibao Oriental | U57: Distrito Nacional | V57: El Valle | W57: Enriquillo | X57: Resto Valdesia | Y57: Yuma | BA57: Water data, raw numbers (weighted) | BC57: Poorest | BD57: Poor | BE57: Middle | BF57: Rich | BG57: Richest | BH57: Poorest | BI57: Poor | BJ57: Middle | BK57: Rich | BL57: Richest | BM57: Poorest | BN57: Poor | BO57: Middle | BP57: Rich | BQ57: Richest | BR57: Cibao Central | BS57: Cibao Occidental | BT57: Cibao Oriental | BU57: Distrito Nacional | BV57: El Valle | BW57: Enriquillo | BX57: Resto Valdesia | BY57: Yuma
A58: Principal fuente de agua para beber | B58: Tubería dentro de la vivienda | C58: 5.243748886 | D58: 10.20479774 | E58: 17.61409704 | F58: 19.38575131 | G58: 14.52108053 | H58: 9.247855385 | I58: 17.30730178 | J58: 18.63757255 | K58: 14.13621945 | L58: 15.42468831 | M58: 2.569622809 | N58: 7.578170228 | O58: 6.324586446 | P58: 18.21636121 | Q58: 21.07642676 | R58: 28.44268205 | S58: 18.48124428 | T58: 8.375634518 | U58: 8.755942948 | V58: 6.993339676 | W58: 21.50313152 | X58: 6.896551724 | Y58: 4.795737123
B59: Tubería en el patio/parcela | C59: 31.75431855 | D59: 32.0835158 | E59: 23.14802663 | F59: 8.700476719 | G59: 1.892966097 | H59: 40.22203369 | I59: 25.06978337 | J59: 11.0841447 | K59: 3.756549111 | L59: 0.6637937797 | M59: 22.51352328 | N59: 32.25286531 | O59: 31.81497966 | P59: 20.06868332 | Q59: 14.88080092 | R59: 20.90843547 | S59: 20.17383349 | T59: 8.460236887 | U59: 14.14421553 | V59: 39.1056137 | W59: 55.37578288 | X59: 25.68058076 | Y59: 10.36116045
B60: Llave pública | C60: 14.44962303 | D60: 7.234922051 | E60: 4.651693078 | F60: 2.845984156 | G60: 0.3959204737 | H60: 8.818992251 | I60: 4.689031988 | J60: 3.081672572 | K60: 0.894378004 | L60: 0 | M60: 18.36745755 | N60: 10.7035538 | O60: 9.264495215 | P60: 5.752374453 | Q60: 2.771134291 | R60: 5.875991348 | S60: 3.385178408 | T60: 1.480541455 | U60: 3.922345483 | V60: 9.419600381 | W60: 10.38622129 | X60: 14.29219601 | Y60: 4.440497336
B61: Pozo con tubería/pozo con bomba | C61: 3.049128276 | D61: 1.380160357 | E61: 0.7215944861 | F61: 0.8313487534 | G61: 0 | H61: 0.2449832132 | I61: 0 | J61: 0.5426706706 | K61: 0.4353698683 | L61: 0 | M61: 2.937224344 | N61: 5.856397993 | O61: 1.627526938 | P61: 1.609607389 | Q61: 0.7486989941 | R61: 0.2523431867 | S61: 5.901189387 | T61: 4.526226734 | U61: 0.3565768621 | V61: 2.283539486 | W61: 0 | X61: 1.08892922 | Y61: 0
B62: Pozo protegido/cubierto | C62: 0.3737029071 | D62: 0.8050753656 | E62: 0.02618423725 | F62: 0.1563115916 | G62: 0 | H62: 0.7390605986 | I62: 0 | J62: 0 | K62: 0.266002202 | L62: 0 | M62: 0.9068057886 | N62: 0.2714768365 | O62: 0.6273814073 | P62: 0.06297708317 | Q62: 0 | R62: 0 | S62: 0 | T62: 0.972927242 | U62: 0.2377179081 | V62: 0 | W62: 0.260960334 | X62: 0.8166969147 | Y62: 0
B63: Manantial protegido | C63: 0.5066995601 | D63: 0.3811415565 | E63: 0.1187772539 | F63: 0.5120870812 | G63: 0.1583681895 | H63: 0 | I63: 0.2912748142 | J63: 0.4664898089 | K63: 0 | L63: 0.2705124968 | M63: 1.197861771 | N63: 0.03179872408 | O63: 0.8009909167 | P63: 0 | Q63: 0.5769094896 | R63: 0.5767844268 | S63: 0.2287282708 | T63: 1.14213198 | U63: 0 | V63: 0 | W63: 0 | X63: 0.7713248639 | Y63: 0
B64: Agua lluvia | C64: 16.21133708 | D64: 13.28345524 | E64: 13.51591498 | F64: 6.942537547 | G64: 1.985389077 | H64: 6.455218926 | I64: 4.067379339 | J64: 3.500405133 | K64: 1.714854149 | L64: 1.795958075 | M64: 17.45975798 | N64: 23.69443693 | O64: 19.6316922 | P64: 23.75604991 | Q64: 16.42720166 | R64: 13.55443403 | S64: 5.763952425 | T64: 36.92893401 | U64: 3.763866878 | V64: 0 | W64: 0.4697286013 | X64: 10.34482759 | Y64: 12.96625222
B65: Agua embotellada | C65: 7.933500391 | D65: 26.54679737 | E65: 35.67194893 | F65: 58.92970476 | G65: 79.47306681 | H65: 28.17668364 | I65: 46.15042975 | J65: 61.61313363 | K65: 77.19273122 | L65: 80.54673145 | M65: 2.140484236 | N65: 6.474809114 | O65: 15.10260713 | P65: 23.19638741 | Q65: 40.2417465 | R65: 24.36914203 | S65: 36.45928637 | T65: 27.74957699 | U65: 67.90808241 | V65: 17.84015224 | W65: 2.60960334 | X65: 26.63339383 | Y65: 59.38425104
B66: Pozo no protegido/descubierto | C66: 2.242741833 | D66: 0.5796721999 | E66: 0.9113245238 | F66: 0.1042077277 | G66: 0 | H66: 0.185200271 | I66: 0.09264387412 | J66: 0 | K66: 0 | L66: 0 | M66: 3.619677946 | N66: 1.883644814 | O66: 0.9598547258 | P66: 2.002943189 | Q66: 0.4435686984 | R66: 0 | S66: 0 | T66: 2.411167513 | U66: 0 | V66: 0.3330161751 | W66: 0.260960334 | X66: 3.31215971 | Y66: 1.420959147
B67: Manantial no protegido | C67: 2.816342118 | D67: 0.8166313344 | E67: 0.02917801776 | F67: 0.05210386385 | G67: 0 | H67: 0.2895272348 | I67: 0 | J67: 0 | K67: 0 | L67: 0 | M67: 6.119510998 | N67: 1.130907647 | O67: 1.194150873 | P67: 0.03508879089 | Q67: 0.1267339138 | R67: 0.2162941601 | S67: 0.4574565416 | T67: 1.099830795 | U67: 0 | V67: 0.09514747859 | W67: 0 | X67: 4.582577132 | Y67: 0.3552397869
B68: Charca/estanque, río o arroyo | C68: 8.377965042 | D68: 1.61684539 | E68: 1.053844991 | F68: 0.3557754897 | G68: 0 | H68: 0.2818860855 | I68: 0.0995361992 | J68: 0.6037234434 | K68: 0 | L68: 0 | M68: 14.82119712 | N68: 5.548307303 | O68: 3.375827795 | P68: 2.534657894 | Q68: 0 | R68: 0.3604902668 | S68: 2.607502287 | T68: 4.737732657 | U68: 0 | V68: 13.27307326 | W68: 5.636743215 | X68: 2.177858439 | Y68: 3.670811131
B69: Camión-tanque, vendedor | C69: 2.841670161 | D69: 2.718071812 | E69: 1.734616275 | F69: 1.067399807 | G69: 0.6476215031 | H69: 0.5779611122 | I69: 1.169350496 | J69: 0.2728164119 | K69: 1.32268709 | L69: 0 | M69: 3.446663814 | N69: 3.034269196 | O69: 5.778081993 | P69: 2.146119336 | Q69: 2.706778775 | R69: 4.289834174 | S69: 5.352241537 | T69: 0 | U69: 0.1584786054 | V69: 3.472882969 | W69: 1.356993737 | X69: 1.814882033 | Y69: 0.2960331557
B70: Otra | C70: 4.097415344 | D70: 2.348913787 | E70: 0.8027995582 | F70: 0.1163111882 | G70: 0.9255873228 | H70: 4.760597587 | I70: 1.063268394 | J70: 0.1973710755 | K70: 0.281208912 | L70: 1.298315884 | M70: 3.653173838 | N70: 1.539362098 | O70: 3.497824706 | P70: 0.6187500181 | Q70: 0 | R70: 1.153568854 | S70: 1.189387008 | T70: 2.115059222 | U70: 0.7527733756 | V70: 6.850618459 | W70: 2.139874739 | X70: 1.588021779 | Y70: 2.309058615
B71: No responde | C71: 0.1018068246 | D71: 0 | E71: 0 | F71: 0 | G71: 0 | H71: 0 | I71: 0 | J71: 0 | K71: 0 | L71: 0 | M71: 0.2470385327 | N71: 0 | O71: 0 | P71: 0 | Q71: 0 | R71: 0 | S71: 0 | T71: 0 | U71: 0 | V71: 0.3330161751 | W71: 0 | X71: 0 | Y71: 0
A108: =A1026 -> Dominican Republic
A109: =A1034 -> 2000
A110: Use of sanitation facilities
A111: by wealth quintile and sub-national region
A112: Notes:
A113: WHO/UNICEF JMP customised wealth index excludes water,
A114: sanitation and hygiene assets.
A115: Survey used for analysis: | B115: =A1025 -> MICS00
A116: =B1030 -> Ratio of Improved latrines based on: | B116: DHS02
A117: =B1029 -> Ratio of Shared improved based on: | B117: DHS13
A120: Use of sanitation facilities | C120: NATIONAL wealth index quintile | H120: URBAN wealth index quintile | M120: RURAL wealth index quintile | R120: SUB-REGIONS: | BA120: Raw numbers of respondents: | BB120: Use of sanitation facilities | BC120: NATIONAL wealth index quintile | BH120: URBAN wealth index quintile | BM120: RURAL wealth index quintile | BR120: SUB-REGIONS:
A121: Weighted percentage (used in graphs) | C121: Poorest | D121: Poor | E121: Middle | F121: Rich | G121: Richest | H121: Poorest | I121: Poor | J121: Middle | K121: Rich | L121: Richest | M121: Poorest | N121: Poor | O121: Middle | P121: Rich | Q121: Richest | R121: Cibao Central | S121: Cibao Occidental | T121: Cibao Oriental | U121: Distrito Nacional | V121: El Valle | W121: Enriquillo | X121: Resto Valdesia | Y121: Yuma | BA121: Sanitation data, raw numbers (weighted) | BC121: Poorest | BD121: Poor | BE121: Middle | BF121: Rich | BG121: Richest | BH121: Poorest | BI121: Poor | BJ121: Middle | BK121: Rich | BL121: Richest | BM121: Poorest | BN121: Poor | BO121: Middle | BP121: Rich | BQ121: Richest | BR121: Cibao Central | BS121: Cibao Occidental | BT121: Cibao Oriental | BU121: Distrito Nacional | BV121: El Valle | BW121: Enriquillo | BX121: Resto Valdesia | BY121: Yuma
A122: Sanitation | B122: Improved | C122: =C153+(C154+C155+C156)*[1]DHS02!C130/100 -> 76.709796 | D122: =D153+(D154+D155+D156)*[1]DHS02!D130/100 -> 91.28654436 | E122: =E153+(E154+E155+E156)*[1]DHS02!E130/100 -> 94.84504466 | F122: =F153+(F154+F155+F156)*[1]DHS02!F130/100 -> 98.65841731 | G122: =G153+(G154+G155+G156)*[1]DHS02!G130/100 -> 99.90847371 | H122: =H153+(H154+H155+H156)*[1]DHS02!H130/100 -> 88.33027955 | I122: =I153+(I154+I155+I156)*[1]DHS02!I130/100 -> 96.06956029 | J122: =J153+(J154+J155+J156)*[1]DHS02!J130/100 -> 98.54955043 | K122: =K153+(K154+K155+K156)*[1]DHS02!K130/100 -> 99.89632396 | L122: =L153+(L154+L155+L156)*[1]DHS02!L130/100 -> 99.8962259 | M122: =M153+(M154+M155+M156)*[1]DHS02!M130/100 -> 65.87323957 | N122: =N153+(N154+N155+N156)*[1]DHS02!N130/100 -> 84.57056295 | O122: =O153+(O154+O155+O156)*[1]DHS02!O130/100 -> 91.10888258 | P122: =P153+(P154+P155+P156)*[1]DHS02!P130/100 -> 92.29453703 | Q122: =Q153+(Q154+Q155+Q156)*[1]DHS02!Q130/100 -> 97.25796676 | R122: N/A | S122: N/A | T122: N/A | U122: N/A | V122: N/A | W122: N/A | X122: N/A | Y122: N/A | BA122: Sanitation | BB122: Improved | BC122: N/A | BD122: N/A | BE122: N/A | BF122: N/A | BG122: N/A | BH122: N/A | BI122: N/A | BJ122: N/A | BK122: N/A | BL122: N/A | BM122: N/A | BN122: N/A | BO122: N/A | BP122: N/A | BQ122: N/A | BR122: N/A | BS122: N/A | BT122: N/A | BU122: N/A | BV122: N/A | BW122: N/A | BX122: N/A | BY122: N/A
B123: Not Improved | C123: =100-C122 -> 23.290204 | D123: =100-D122 -> 8.713455636 | E123: 5.154955338 | F123: 1.341582687 | G123: 0.09152628679 | H123: 11.66972045 | I123: 3.930439707 | J123: 1.450449565 | K123: 0.1036760409 | L123: 0.1037741034 | M123: 34.12676043 | N123: 15.42943705 | O123: 8.891117419 | P123: 7.705462971 | Q123: 2.742033239 | R123: N/A | S123: N/A | T123: N/A | U123: N/A | V123: N/A | W123: N/A | X123: N/A | Y123: N/A | BB123: Not Improved | BC123: N/A | BD123: N/A | BE123: N/A | BF123: N/A | BG123: N/A | BH123: N/A | BI123: N/A | BJ123: N/A | BK123: N/A | BL123: N/A | BM123: N/A | BN123: N/A | BO123: N/A | BP123: N/A | BQ123: N/A | BR123: N/A | BS123: N/A | BT123: N/A | BU123: N/A | BV123: N/A | BW123: N/A | BX123: N/A | BY123: N/A
A124: Sanitation ladder | B124: Basic | C124: =C122*[1]DHS13!C129/100 -> 50.53267447 | D124: =D122*[1]DHS13!D129/100 -> 75.71202799 | E124: =E122*[1]DHS13!E129/100 -> 87.091171 | F124: =F122*[1]DHS13!F129/100 -> 96.54113564 | G124: =G122*[1]DHS13!G129/100 -> 99.73578993 | H124: =H122*[1]DHS13!H129/100 -> 59.03916414 | I124: =I122*[1]DHS13!I129/100 -> 81.85974351 | J124: =J122*[1]DHS13!J129/100 -> 92.8865186 | K124: =K122*[1]DHS13!K129/100 -> 98.55377706 | L124: =L122*[1]DHS13!L129/100 -> 99.87591057 | M124: =M122*[1]DHS13!M129/100 -> 40.68199133 | N124: =N122*[1]DHS13!N129/100 -> 68.51278344 | O124: =O122*[1]DHS13!O129/100 -> 76.53734099 | P124: =P122*[1]DHS13!P129/100 -> 86.86799696 | Q124: =Q122*[1]DHS13!Q129/100 -> 96.59168646 | R124: N/A | S124: N/A | T124: N/A | U124: N/A | V124: N/A | W124: N/A | X124: N/A | Y124: N/A | BA124: Sanitation ladder | BB124: Basic | BC124: N/A | BD124: N/A | BE124: N/A | BF124: N/A | BG124: N/A | BH124: N/A | BI124: N/A | BJ124: N/A | BK124: N/A | BL124: N/A | BM124: N/A | BN124: N/A | BO124: N/A | BP124: N/A | BQ124: N/A | BR124: N/A | BS124: N/A | BT124: N/A | BU124: N/A | BV124: N/A | BW124: N/A | BX124: N/A | BY124: N/A
B125: Limited | C125: =C122*[1]DHS13!C128/100 -> 26.17712153 | D125: =D122*[1]DHS13!D128/100 -> 15.57451638 | E125: =E122*[1]DHS13!E128/100 -> 7.753873663 | F125: =F122*[1]DHS13!F128/100 -> 2.117281669 | G125: =G122*[1]DHS13!G128/100 -> 0.1726837808 | H125: =H122*[1]DHS13!H128/100 -> 29.29111541 | I125: =I122*[1]DHS13!I128/100 -> 14.20981678 | J125: =J122*[1]DHS13!J128/100 -> 5.663031834 | K125: =K122*[1]DHS13!K128/100 -> 1.342546903 | L125: =L122*[1]DHS13!L128/100 -> 0.02031532934 | M125: =M122*[1]DHS13!M128/100 -> 25.19124824 | N125: =N122*[1]DHS13!N128/100 -> 16.05777951 | O125: =O122*[1]DHS13!O128/100 -> 14.57154159 | P125: =P122*[1]DHS13!P128/100 -> 5.426540073 | Q125: =Q122*[1]DHS13!Q128/100 -> 0.6662802973 | R125: N/A | S125: N/A | T125: N/A | U125: N/A | V125: N/A | W125: N/A | X125: N/A | Y125: N/A | BB125: Limited | BC125: N/A | BD125: N/A | BE125: N/A | BF125: N/A | BG125: N/A | BH125: N/A | BI125: N/A | BJ125: N/A | BK125: N/A | BL125: N/A | BM125: N/A | BN125: N/A | BO125: N/A | BP125: N/A | BQ125: N/A | BR125: N/A | BS125: N/A | BT125: N/A | BU125: N/A | BV125: N/A | BW125: N/A | BX125: N/A | BY125: N/A
B126: Unimproved | C126: =100-(C124+C125+C127) -> 10.35858318 | D126: =100-(D124+D125+D127) -> 7.917276691 | E126: 4.142535165 | F126: 1.128356 | G126: 0.09152628679 | H126: 10.16912855 | I126: 3.098208913 | J126: 0.9504870635 | K126: 0.1036760409 | L126: 0.1037741034 | M126: 9.474224925 | N126: 9.99415778 | O126: 7.778811589 | P126: 7.064957729 | Q126: 2.317748597 | R126: N/A | S126: N/A | T126: N/A | U126: N/A | V126: N/A | W126: N/A | X126: N/A | Y126: N/A | BB126: Unimproved | BC126: N/A | BD126: N/A | BE126: N/A | BF126: N/A | BG126: N/A | BH126: N/A | BI126: N/A | BJ126: N/A | BK126: N/A | BL126: N/A | BM126: N/A | BN126: N/A | BO126: N/A | BP126: N/A | BQ126: N/A | BR126: N/A | BS126: N/A | BT126: N/A | BU126: N/A | BV126: N/A | BW126: N/A | BX126: N/A | BY126: N/A
B127: Open defecation | C127: =C158+C159 -> 12.93162082 | D127: =D158+D159 -> 0.7961789453 | E127: 1.012420173 | F127: 0.2132266868 | G127: 0 | H127: 1.500591904 | I127: 0.8322307941 | J127: 0.4999625015 | K127: 0 | L127: 0 | M127: 24.65253551 | N127: 5.435279266 | O127: 1.11230583 | P127: 0.6405052418 | Q127: 0.4242846427 | R127: N/A | S127: N/A | T127: N/A | U127: N/A | V127: N/A | W127: N/A | X127: N/A | Y127: N/A | BB127: Open defecation | BC127: N/A | BD127: N/A | BE127: N/A | BF127: N/A | BG127: N/A | BH127: N/A | BI127: N/A | BJ127: N/A | BK127: N/A | BL127: N/A | BM127: N/A | BN127: N/A | BO127: N/A | BP127: N/A | BQ127: N/A | BR127: N/A | BS127: N/A | BT127: N/A | BU127: N/A | BV127: N/A | BW127: N/A | BX127: N/A | BY127: N/A
A128: Shared among Improved Sanitation | B128: Yes | C128: N/A | D128: N/A | E128: N/A | F128: N/A | G128: N/A | H128: N/A | I128: N/A | J128: N/A | K128: N/A | L128: N/A | M128: N/A | N128: N/A | O128: N/A | P128: N/A | Q128: N/A | R128: N/A | S128: N/A | T128: N/A | U128: N/A | V128: N/A | W128: N/A | X128: N/A | Y128: N/A | BA128: Shared among improved sanitation facilities | BB128: Yes | BC128: N/A | BD128: N/A | BE128: N/A | BF128: N/A | BG128: N/A | BH128: N/A | BI128: N/A | BJ128: N/A | BK128: N/A | BL128: N/A | BM128: N/A | BN128: N/A | BO128: N/A | BP128: N/A | BQ128: N/A | BR128: N/A | BS128: N/A | BT128: N/A | BU128: N/A | BV128: N/A | BW128: N/A | BX128: N/A | BY128: N/A
B129: No | C129: N/A | D129: N/A | E129: N/A | F129: N/A | G129: N/A | H129: N/A | I129: N/A | J129: N/A | K129: N/A | L129: N/A | M129: N/A | N129: N/A | O129: N/A | P129: N/A | Q129: N/A | R129: N/A | S129: N/A | T129: N/A | U129: N/A | V129: N/A | W129: N/A | X129: N/A | Y129: N/A | BB129: No | BC129: N/A | BD129: N/A | BE129: N/A | BF129: N/A | BG129: N/A | BH129: N/A | BI129: N/A | BJ129: N/A | BK129: N/A | BL129: N/A | BM129: N/A | BN129: N/A | BO129: N/A | BP129: N/A | BQ129: N/A | BR129: N/A | BS129: N/A | BT129: N/A | BU129: N/A | BV129: N/A | BW129: N/A | BX129: N/A | BY129: N/A
A130: Manually calculated ratios | B130: Improved latrines
B131: Other
B132: Other
C133: NATIONAL wealth index quintile | H133: URBAN wealth index quintile | M133: RURAL wealth index quintile | R133: SUB-REGIONS: | BA133: Raw numbers of respondents: | BB133: Use of sanitation facilities | BC133: NATIONAL wealth index quintile | BH133: URBAN wealth index quintile | BM133: RURAL wealth index quintile | BR133: SUB-REGIONS:
A134: Percentage based on weighted population | C134: Poorest | D134: Poor | E134: Middle | F134: Rich | G134: Richest | H134: Poorest | I134: Poor | J134: Middle | K134: Rich | L134: Richest | M134: Poorest | N134: Poor | O134: Middle | P134: Rich | Q134: Richest | R134: Cibao Central | S134: Cibao Occidental | T134: Cibao Oriental | U134: Distrito Nacional | V134: El Valle | W134: Enriquillo | X134: Resto Valdesia | Y134: Yuma | BA134: Sanitation data, raw numbers (weighted) | BC134: Poorest | BD134: Poor | BE134: Middle | BF134: Rich | BG134: Richest | BH134: Poorest | BI134: Poor | BJ134: Middle | BK134: Rich | BL134: Richest | BM134: Poorest | BN134: Poor | BO134: Middle | BP134: Rich | BQ134: Richest | BR134: Cibao Central | BS134: Cibao Occidental | BT134: Cibao Oriental | BU134: Distrito Nacional | BV134: El Valle | BW134: Enriquillo | BX134: Resto Valdesia | BY134: Yuma
A135: Sanitation type | B135: Sewer connection | C135: N/A | D135: N/A | E135: N/A | F135: N/A | G135: N/A | H135: N/A | I135: N/A | J135: N/A | K135: N/A | L135: N/A | M135: N/A | N135: N/A | O135: N/A | P135: N/A | Q135: N/A | R135: N/A | S135: N/A | T135: N/A | U135: N/A | V135: N/A | W135: N/A | X135: N/A | Y135: N/A | BA135: Sanitation type | BB135: Sewer connection | BC135: N/A | BD135: N/A | BE135: N/A | BF135: N/A | BG135: N/A | BH135: N/A | BI135: N/A | BJ135: N/A | BK135: N/A | BL135: N/A | BM135: N/A | BN135: N/A | BO135: N/A | BP135: N/A | BQ135: N/A | BR135: N/A | BS135: N/A | BT135: N/A | BU135: N/A | BV135: N/A | BW135: N/A | BX135: N/A | BY135: N/A
B136: Septic tank connection | C136: N/A | D136: N/A | E136: N/A | F136: N/A | G136: N/A | H136: N/A | I136: N/A | J136: N/A | K136: N/A | L136: N/A | M136: N/A | N136: N/A | O136: N/A | P136: N/A | Q136: N/A | R136: N/A | S136: N/A | T136: N/A | U136: N/A | V136: N/A | W136: N/A | X136: N/A | Y136: N/A | BB136: Septic tank connection | BC136: N/A | BD136: N/A | BE136: N/A | BF136: N/A | BG136: N/A | BH136: N/A | BI136: N/A | BJ136: N/A | BK136: N/A | BL136: N/A | BM136: N/A | BN136: N/A | BO136: N/A | BP136: N/A | BQ136: N/A | BR136: N/A | BS136: N/A | BT136: N/A | BU136: N/A | BV136: N/A | BW136: N/A | BX136: N/A | BY136: N/A
B137: Improved latrines | C137: N/A | D137: N/A | E137: N/A | F137: N/A | G137: N/A | H137: N/A | I137: N/A | J137: N/A | K137: N/A | L137: N/A | M137: N/A | N137: N/A | O137: N/A | P137: N/A | Q137: N/A | R137: N/A | S137: N/A | T137: N/A | U137: N/A | V137: N/A | W137: N/A | X137: N/A | Y137: N/A | BB137: Improved latrines | BC137: N/A | BD137: N/A | BE137: N/A | BF137: N/A | BG137: N/A | BH137: N/A | BI137: N/A | BJ137: N/A | BK137: N/A | BL137: N/A | BM137: N/A | BN137: N/A | BO137: N/A | BP137: N/A | BQ137: N/A | BR137: N/A | BS137: N/A | BT137: N/A | BU137: N/A | BV137: N/A | BW137: N/A | BX137: N/A | BY137: N/A
B138: Unimproved facilities | C138: N/A | D138: N/A | E138: N/A | F138: N/A | G138: N/A | H138: N/A | I138: N/A | J138: N/A | K138: N/A | L138: N/A | M138: N/A | N138: N/A | O138: N/A | P138: N/A | Q138: N/A | R138: N/A | S138: N/A | T138: N/A | U138: N/A | V138: N/A | W138: N/A | X138: N/A | Y138: N/A | BB138: Unimproved facilities | BC138: N/A | BD138: N/A | BE138: N/A | BF138: N/A | BG138: N/A | BH138: N/A | BI138: N/A | BJ138: N/A | BK138: N/A | BL138: N/A | BM138: N/A | BN138: N/A | BO138: N/A | BP138: N/A | BQ138: N/A | BR138: N/A | BS138: N/A | BT138: N/A | BU138: N/A | BV138: N/A | BW138: N/A | BX138: N/A | BY138: N/A
B139: Open defecation | C139: N/A | D139: N/A | E139: N/A | F139: N/A | G139: N/A | H139: N/A | I139: N/A | J139: N/A | K139: N/A | L139: N/A | M139: N/A | N139: N/A | O139: N/A | P139: N/A | Q139: N/A | R139: N/A | S139: N/A | T139: N/A | U139: N/A | V139: N/A | W139: N/A | X139: N/A | Y139: N/A | BB139: Open defecation | BC139: N/A | BD139: N/A | BE139: N/A | BF139: N/A | BG139: N/A | BH139: N/A | BI139: N/A | BJ139: N/A | BK139: N/A | BL139: N/A | BM139: N/A | BN139: N/A | BO139: N/A | BP139: N/A | BQ139: N/A | BR139: N/A | BS139: N/A | BT139: N/A | BU139: N/A | BV139: N/A | BW139: N/A | BX139: N/A | BY139: N/A
A140: Septic tank emptying practices | B140: Not emptied/treated and disposed in situ | C140: N/A | D140: N/A | E140: N/A | F140: N/A | G140: N/A | H140: N/A | I140: N/A | J140: N/A | K140: N/A | L140: N/A | M140: N/A | N140: N/A | O140: N/A | P140: N/A | Q140: N/A | R140: N/A | S140: N/A | T140: N/A | U140: N/A | V140: N/A | W140: N/A | X140: N/A | Y140: N/A | BA140: Septic tank emptying practices | BB140: Not emptied/treated and disposed in situ | BC140: N/A | BD140: N/A | BE140: N/A | BF140: N/A | BG140: N/A | BH140: N/A | BI140: N/A | BJ140: N/A | BK140: N/A | BL140: N/A | BM140: N/A | BN140: N/A | BO140: N/A | BP140: N/A | BQ140: N/A | BR140: N/A | BS140: N/A | BT140: N/A | BU140: N/A | BV140: N/A | BW140: N/A | BX140: N/A | BY140: N/A
B141: Emptied and buried on site | C141: N/A | D141: N/A | E141: N/A | F141: N/A | G141: N/A | H141: N/A | I141: N/A | J141: N/A | K141: N/A | L141: N/A | M141: N/A | N141: N/A | O141: N/A | P141: N/A | Q141: N/A | R141: N/A | S141: N/A | T141: N/A | U141: N/A | V141: N/A | W141: N/A | X141: N/A | Y141: N/A | BB141: Emptied and buried on site | BC141: N/A | BD141: N/A | BE141: N/A | BF141: N/A | BG141: N/A | BH141: N/A | BI141: N/A | BJ141: N/A | BK141: N/A | BL141: N/A | BM141: N/A | BN141: N/A | BO141: N/A | BP141: N/A | BQ141: N/A | BR141: N/A | BS141: N/A | BT141: N/A | BU141: N/A | BV141: N/A | BW141: N/A | BX141: N/A | BY141: N/A
B142: Emptied and discharged locally | C142: N/A | D142: N/A | E142: N/A | F142: N/A | G142: N/A | H142: N/A | I142: N/A | J142: N/A | K142: N/A | L142: N/A | M142: N/A | N142: N/A | O142: N/A | P142: N/A | Q142: N/A | R142: N/A | S142: N/A | T142: N/A | U142: N/A | V142: N/A | W142: N/A | X142: N/A | Y142: N/A | BB142: Emptied and discharged locally | BC142: N/A | BD142: N/A | BE142: N/A | BF142: N/A | BG142: N/A | BH142: N/A | BI142: N/A | BJ142: N/A | BK142: N/A | BL142: N/A | BM142: N/A | BN142: N/A | BO142: N/A | BP142: N/A | BQ142: N/A | BR142: N/A | BS142: N/A | BT142: N/A | BU142: N/A | BV142: N/A | BW142: N/A | BX142: N/A | BY142: N/A
B143: Emptied and removed offsite | C143: N/A | D143: N/A | E143: N/A | F143: N/A | G143: N/A | H143: N/A | I143: N/A | J143: N/A | K143: N/A | L143: N/A | M143: N/A | N143: N/A | O143: N/A | P143: N/A | Q143: N/A | R143: N/A | S143: N/A | T143: N/A | U143: N/A | V143: N/A | W143: N/A | X143: N/A | Y143: N/A | BB143: Emptied and removed offsite | BC143: N/A | BD143: N/A | BE143: N/A | BF143: N/A | BG143: N/A | BH143: N/A | BI143: N/A | BJ143: N/A | BK143: N/A | BL143: N/A | BM143: N/A | BN143: N/A | BO143: N/A | BP143: N/A | BQ143: N/A | BR143: N/A | BS143: N/A | BT143: N/A | BU143: N/A | BV143: N/A | BW143: N/A | BX143: N/A | BY143: N/A
A144: Latrine emptying practices | B144: Not emptied/treated and disposed in situ | C144: N/A | D144: N/A | E144: N/A | F144: N/A | G144: N/A | H144: N/A | I144: N/A | J144: N/A | K144: N/A | L144: N/A | M144: N/A | N144: N/A | O144: N/A | P144: N/A | Q144: N/A | R144: N/A | S144: N/A | T144: N/A | U144: N/A | V144: N/A | W144: N/A | X144: N/A | Y144: N/A | BA144: Latrine emptying practices | BB144: Not emptied/treated and disposed in situ | BC144: N/A | BD144: N/A | BE144: N/A | BF144: N/A | BG144: N/A | BH144: N/A | BI144: N/A | BJ144: N/A | BK144: N/A | BL144: N/A | BM144: N/A | BN144: N/A | BO144: N/A | BP144: N/A | BQ144: N/A | BR144: N/A | BS144: N/A | BT144: N/A | BU144: N/A | BV144: N/A | BW144: N/A | BX144: N/A | BY144: N/A
B145: Emptied and buried on site | C145: N/A | D145: N/A | E145: N/A | F145: N/A | G145: N/A | H145: N/A | I145: N/A | J145: N/A | K145: N/A | L145: N/A | M145: N/A | N145: N/A | O145: N/A | P145: N/A | Q145: N/A | R145: N/A | S145: N/A | T145: N/A | U145: N/A | V145: N/A | W145: N/A | X145: N/A | Y145: N/A | BB145: Emptied and buried on site | BC145: N/A | BD145: N/A | BE145: N/A | BF145: N/A | BG145: N/A | BH145: N/A | BI145: N/A | BJ145: N/A | BK145: N/A | BL145: N/A | BM145: N/A | BN145: N/A | BO145: N/A | BP145: N/A | BQ145: N/A | BR145: N/A | BS145: N/A | BT145: N/A | BU145: N/A | BV145: N/A | BW145: N/A | BX145: N/A | BY145: N/A
B146: Emptied and discharged locally | C146: N/A | D146: N/A | E146: N/A | F146: N/A | G146: N/A | H146: N/A | I146: N/A | J146: N/A | K146: N/A | L146: N/A | M146: N/A | N146: N/A | O146: N/A | P146: N/A | Q146: N/A | R146: N/A | S146: N/A | T146: N/A | U146: N/A | V146: N/A | W146: N/A | X146: N/A | Y146: N/A | BB146: Emptied and discharged locally | BC146: N/A | BD146: N/A | BE146: N/A | BF146: N/A | BG146: N/A | BH146: N/A | BI146: N/A | BJ146: N/A | BK146: N/A | BL146: N/A | BM146: N/A | BN146: N/A | BO146: N/A | BP146: N/A | BQ146: N/A | BR146: N/A | BS146: N/A | BT146: N/A | BU146: N/A | BV146: N/A | BW146: N/A | BX146: N/A | BY146: N/A
B147: Emptied and removed offsite | C147: N/A | D147: N/A | E147: N/A | F147: N/A | G147: N/A | H147: N/A | I147: N/A | J147: N/A | K147: N/A | L147: N/A | M147: N/A | N147: N/A | O147: N/A | P147: N/A | Q147: N/A | R147: N/A | S147: N/A | T147: N/A | U147: N/A | V147: N/A | W147: N/A | X147: N/A | Y147: N/A | BB147: Emptied and removed offsite | BC147: N/A | BD147: N/A | BE147: N/A | BF147: N/A | BG147: N/A | BH147: N/A | BI147: N/A | BJ147: N/A | BK147: N/A | BL147: N/A | BM147: N/A | BN147: N/A | BO147: N/A | BP147: N/A | BQ147: N/A | BR147: N/A | BS147: N/A | BT147: N/A | BU147: N/A | BV147: N/A | BW147: N/A | BX147: N/A | BY147: N/A
A148: Shared among improved sanitation facilities | B148: Yes | C148: N/A | D148: N/A | E148: N/A | F148: N/A | G148: N/A | H148: N/A | I148: N/A | J148: N/A | K148: N/A | L148: N/A | M148: N/A | N148: N/A | O148: N/A | P148: N/A | Q148: N/A | R148: N/A | S148: N/A | T148: N/A | U148: N/A | V148: N/A | W148: N/A | X148: N/A | Y148: N/A | BA148: Shared among improved sanitation facilities | BB148: Yes | BC148: N/A | BD148: N/A | BE148: N/A | BF148: N/A | BG148: N/A | BH148: N/A | BI148: N/A | BJ148: N/A | BK148: N/A | BL148: N/A | BM148: N/A | BN148: N/A | BO148: N/A | BP148: N/A | BQ148: N/A | BR148: N/A | BS148: N/A | BT148: N/A | BU148: N/A | BV148: N/A | BW148: N/A | BX148: N/A | BY148: N/A
B149: No | C149: N/A | D149: N/A | E149: N/A | F149: N/A | G149: N/A | H149: N/A | I149: N/A | J149: N/A | K149: N/A | L149: N/A | M149: N/A | N149: N/A | O149: N/A | P149: N/A | Q149: N/A | R149: N/A | S149: N/A | T149: N/A | U149: N/A | V149: N/A | W149: N/A | X149: N/A | Y149: N/A | BB149: No | BC149: N/A | BD149: N/A | BE149: N/A | BF149: N/A | BG149: N/A | BH149: N/A | BI149: N/A | BJ149: N/A | BK149: N/A | BL149: N/A | BM149: N/A | BN149: N/A | BO149: N/A | BP149: N/A | BQ149: N/A | BR149: N/A | BS149: N/A | BT149: N/A | BU149: N/A | BV149: N/A | BW149: N/A | BX149: N/A | BY149: N/A
B150: DK/missing | C150: N/A | D150: N/A | E150: N/A | F150: N/A | G150: N/A | H150: N/A | I150: N/A | J150: N/A | K150: N/A | L150: N/A | M150: N/A | N150: N/A | O150: N/A | P150: N/A | Q150: N/A | R150: N/A | S150: N/A | T150: N/A | U150: N/A | V150: N/A | W150: N/A | X150: N/A | Y150: N/A | BB150: DK/missing | BC150: N/A | BD150: N/A | BE150: N/A | BF150: N/A | BG150: N/A | BH150: N/A | BI150: N/A | BJ150: N/A | BK150: N/A | BL150: N/A | BM150: N/A | BN150: N/A | BO150: N/A | BP150: N/A | BQ150: N/A | BR150: N/A | BS150: N/A | BT150: N/A | BU150: N/A | BV150: N/A | BW150: N/A | BX150: N/A | BY150: N/A
A151: Shared among all sanitation facilities | B151: Yes | C151: 54.87560241 | D151: 58.95974577 | E151: 66.94571503 | F151: 89.50701002 | G151: 99.72232204 | H151: 44.68788499 | I151: 65.35958808 | J151: 83.39282355 | K151: 98.51109937 | L151: 100 | M151: 61.58974684 | N151: 61.28626475 | O151: 63.12001419 | P151: 64.6174554 | Q151: 89.89815955 | R151: 75.24788836 | S151: 79.72222222 | T151: 76.5258216 | U151: 77.58135798 | V151: 69.55818966 | W151: 70.9039548 | X151: 69.83901515 | Y151: 67.05276705 | BA151: Shared among all sanitation facilities | BB151: Yes | BC151: N/A | BD151: N/A | BE151: N/A | BF151: N/A | BG151: N/A | BH151: N/A | BI151: N/A | BJ151: N/A | BK151: N/A | BL151: N/A | BM151: N/A | BN151: N/A | BO151: N/A | BP151: N/A | BQ151: N/A | BR151: N/A | BS151: N/A | BT151: N/A | BU151: N/A | BV151: N/A | BW151: N/A | BX151: N/A | BY151: N/A
B152: No | C152: 45.12439759 | D152: 41.04025423 | E152: 33.05428497 | F152: 10.49298998 | G152: 0.2776779631 | H152: 55.31211501 | I152: 34.64041192 | J152: 16.60717645 | K152: 1.48890063 | L152: 0 | M152: 38.41025316 | N152: 38.71373525 | O152: 36.87998581 | P152: 35.3825446 | Q152: 10.10184045 | R152: 24.75211164 | S152: 20.27777778 | T152: 23.4741784 | U152: 22.41864202 | V152: 30.44181034 | W152: 29.0960452 | X152: 30.16098485 | Y152: 32.94723295 | BB152: No | BC152: N/A | BD152: N/A | BE152: N/A | BF152: N/A | BG152: N/A | BH152: N/A | BI152: N/A | BJ152: N/A | BK152: N/A | BL152: N/A | BM152: N/A | BN152: N/A | BO152: N/A | BP152: N/A | BQ152: N/A | BR152: N/A | BS152: N/A | BT152: N/A | BU152: N/A | BV152: N/A | BW152: N/A | BX152: N/A | BY152: N/A
A153: Tipo de servicio sanitario | B153: Inodoro con alcantarillado/pozo séptico | C153: 6.806901952 | D153: 26.0126806 | E153: 44.39979572 | F153: 83.01064122 | G153: 99.25502524 | H153: 27.95458754 | I153: 61.19064234 | J153: 85.49365033 | K153: 98.41368662 | L153: 99.59890196 | M153: 0.5127773361 | N153: 3.057561146 | O153: 14.67584949 | P153: 22.4847211 | Q153: 57.40664529 | R153: 50.32444124 | S153: 30.00914913 | T153: 31.30287648 | U153: 76.98098257 | V153: 25.49952426 | W153: 25.83507307 | X153: 36.97822142 | Y153: 49.20071048 | BA153: Tipo de servicio sanitario | BB153: Inodoro con alcantarillado/pozo séptico | BC153: 242.607264 | BD153: 921.777897 | BE153: 1577.568915 | BF153: 2964.429521 | BG153: 3539.039584 | BH153: 583.863008 | BI153: 1277.432021 | BJ153: 1799.199021 | BK153: 2065.231855 | BL153: 2079.065087 | BM153: 7.53174 | BN153: 44.722376 | BO153: 213.371444 | BP153: 332.163768 | BQ153: 842.842861 | BR153: 1970.72622 | BS153: 305.114784 | BT153: 520.50046 | BU153: 4437.971326 | BV153: 277.842032 | BW153: 171.43038 | BX153: 758.23688 | BY153: 803.601099
B154: Letrina sanitaria | C154: 13.14460271 | D154: 11.68169147 | E154: 13.07222464 | F154: 3.085944573 | G154: 0.03913341519 | H154: 14.47245709 | I154: 12.49665824 | J154: 5.164971545 | K154: 0.2176849341 | L154: 0.06684472358 | M154: 10.79267624 | N154: 13.23535702 | O154: 9.785404973 | P154: 13.16621996 | Q154: 6.252870518 | R154: 4.938716655 | S154: 3.659652333 | T154: 7.021996616 | U154: 8.637083994 | V154: 17.45956232 | W154: 11.58663883 | X154: 9.709618875 | Y154: 8.999407934 | BB154: Letrina sanitaria | BC154: 468.491558 | BD154: 413.949072 | BE154: 464.469147 | BF154: 110.203524 | BG154: 1.395342 | BH154: 302.273547 | BI154: 260.88354 | BJ154: 108.695929 | BK154: 4.568164 | BL154: 1.395342 | BM154: 158.524228 | BN154: 193.591096 | BO154: 142.269515 | BP154: 194.502801 | BQ154: 91.804481 | BR154: 193.402215 | BS154: 37.20912 | BT154: 116.760914 | BU154: 497.929876 | BV154: 190.238854 | BW154: 76.883928 | BX154: 199.095328 | BY154: 146.988408
B155: Letrina tradicional | C155: 61.53036503 | D155: 57.90793802 | E155: 40.3786645 | F155: 13.23593112 | G155: 0.7058413424 | H155: 51.66701387 | I155: 25.00766066 | J155: 8.438933326 | K155: 1.368628446 | L155: 0.3342533194 | M155: 57.15110218 | N155: 74.1275447 | O155: 69.77482578 | P155: 61.60106844 | Q155: 35.07137172 | R155: 41.42033165 | S155: 62.99176578 | T155: 57.82571912 | U155: 12.55942948 | V155: 41.67459562 | W155: 52.50521921 | X155: 43.46642468 | Y155: 32.80047365 | BB155: Letrina tradicional | BC155: 2193.026081 | BD155: 2052.009101 | BE155: 1434.694122 | BF155: 472.674158 | BG155: 25.167496 | BH155: 1079.123707 | BI155: 522.066533 | BJ155: 177.595886 | BK155: 28.720955 | BL155: 6.97733 | BM155: 839.442799 | BN155: 1084.249756 | BO155: 1014.452713 | BP155: 910.024319 | BQ155: 514.91696 | BR155: 1622.037555 | BS155: 640.461978 | BT155: 961.519093 | BU155: 724.053994 | BV155: 454.085112 | BW155: 348.401944 | BX155: 891.277216 | BY155: 535.734066
B156: Letrina expuesta | C156: 3.17325083 | D156: 1.394018918 | E156: 0.6765997427 | F156: 0.3557754897 | G156: 0 | H156: 1.310854459 | I156: 0.1425892085 | J156: 0.4024822956 | K156: 0 | L156: 0 | M156: 5.688399336 | N156: 1.500711164 | O156: 1.989356365 | P156: 1.157826802 | Q156: 0.6052895294 | R156: 0.4686373468 | S156: 0.4574565416 | T156: 0.6768189509 | U156: 0.5546751189 | V156: 0.7611798287 | W156: 1.774530271 | X156: 5.036297641 | Y156: 0.5920663114 | BB156: Letrina expuesta | BC156: 113.098985 | BD156: 49.398055 | BE156: 24.040262 | BF156: 12.705255 | BG156: 0 | BH156: 27.37867 | BI156: 2.97673 | BJ156: 8.47017 | BK156: 0 | BL156: 0 | BM156: 83.551947 | BN156: 21.950622 | BO156: 28.923153 | BP156: 17.10442 | BQ156: 8.886845 | BR156: 18.352035 | BS156: 4.65114 | BT156: 11.254064 | BU156: 31.977148 | BV156: 8.293792 | BW156: 11.775016 | BX156: 103.269072 | BY156: 9.67029
B157: Otro | C157: 2.413258656 | D157: 2.207492055 | E157: 0.4602952169 | F157: 0.09848090737 | G157: 0 | H157: 3.094495134 | I157: 0.330218755 | J157: 0 | K157: 0 | L157: 0 | M157: 1.202509401 | N157: 2.6435467 | O157: 2.662257565 | P157: 0.9496584591 | Q157: 0.2395382973 | R157: 1.009372747 | S157: 2.058554437 | T157: 2.326565144 | U157: 0.3961965135 | V157: 3.044719315 | W157: 0.6784968685 | X157: 0.8620689655 | Y157: 0.414446418 | BB157: Otro | BC157: 86.011828 | BD157: 78.224056 | BE157: 16.354747 | BF157: 3.516895 | BG157: 0 | BH157: 64.632012 | BI157: 6.893734 | BJ157: 0 | BK157: 0 | BL157: 0 | BM157: 17.662614 | BN157: 38.666664 | BO157: 38.70643 | BP157: 14.029177 | BQ157: 3.516895 | BR157: 39.52746 | BS157: 20.93013 | BT157: 38.685845 | BU157: 22.84082 | BV157: 33.175168 | BW157: 4.502212 | BX157: 17.676688 | BY157: 6.769203
B158: No tiene sanitario, usa matorral/campo | C158: 12.72427314 | D158: 0.7669224722 | E158: 0.4829679567 | F158: 0.1551655162 | G158: 0 | H158: 1.326862502 | I158: 0.06635746614 | J158: 0.4999625015 | K158: 0 | L158: 0 | M158: 24.32585375 | N158: 5.435279266 | O158: 1.11230583 | P158: 0.4493852497 | Q158: 0.2830605791 | R158: 1.766402307 | S158: 0.7319304666 | T158: 0.8460236887 | U158: 0.5942947702 | V158: 11.03710752 | W158: 7.620041754 | X158: 3.947368421 | Y158: 7.75606868 | BB158: No tiene sanitario, usa matorral/campo | BC158: 453.510439 | BD158: 27.176445 | BE158: 17.160332 | BF158: 5.541184 | BG158: 0 | BH158: 27.713016 | BI158: 1.385296 | BJ158: 10.521624 | BK158: 0 | BL158: 0 | BM158: 357.301294 | BN158: 79.500815 | BO158: 16.171759 | BP158: 6.638708 | BQ158: 4.155888 | BR158: 69.173055 | BS158: 7.441824 | BT158: 14.06758 | BU158: 34.26123 | BV158: 120.259984 | BW158: 50.563304 | BX158: 80.940624 | BY158: 126.680799
B159: No tiene sanitario/usa el río | C159: 0.2073476814 | D159: 0.02925647313 | E159: 0.5294522165 | F159: 0.05806117056 | G159: 0 | H159: 0.1737294022 | I159: 0.765873328 | J159: 0 | K159: 0 | L159: 0 | M159: 0.3266817567 | N159: 0 | O159: 0 | P159: 0.1911199921 | Q159: 0.1412240637 | R159: 0.07209805335 | S159: 0.09149130833 | T159: 0 | U159: 0.2773375594 | V159: 0.5233111323 | W159: 0 | X159: 0 | Y159: 0.2368265246 | BB159: No tiene sanitario/usa el río | BC159: 7.390154 | BD159: 1.036724 | BE159: 18.811964 | BF159: 2.073448 | BG159: 0 | BH159: 3.628534 | BI159: 15.988574 | BJ159: 0 | BK159: 0 | BL159: 0 | BM159: 4.798344 | BN159: 0 | BO159: 0 | BP159: 2.82339 | BQ159: 2.073448 | BR159: 2.82339 | BS159: 0.930228 | BT159: 0 | BU159: 15.988574 | BV159: 5.701982 | BW159: 0 | BX159: 0 | BY159: 3.868116
BB160: Total | BC160: 3564.136309 | BD160: 3543.57135 | BE160: 3553.099489 | BF160: 3571.143985 | BG160: 3565.602422 | BH160: 2088.612494 | BI160: 2087.626428 | BJ160: 2104.48263 | BK160: 2098.520974 | BL160: 2087.437759 | BM160: 1468.812966 | BN160: 1462.681329 | BO160: 1453.895014 | BP160: 1477.286583 | BQ160: 1468.197378 | BR160: 3916.04193 | BS160: 1016.739204 | BT160: 1662.787956 | BU160: 5765.022968 | BV160: 1089.596924 | BW160: 663.556784 | BX160: 2050.495808 | BY160: 1633.311981
A208: =A1026 -> Dominican Republic
A209: =A1034 -> 2000
A210: Access to hygiene facilities
A211: by wealth quintile and sub-national region
A212: Notes:
A213: WHO/UNICEF JMP customised wealth index excludes water,
A214: sanitation and hygiene assets.
A215: Survey used for analysis: | B215: =A1025 -> MICS00
A220: Access to handwashing | C220: NATIONAL wealth index quintile | H220: URBAN wealth index quintile | M220: RURAL wealth index quintile | R220: SUB-REGIONS: | BA220: Raw numbers of respondents: | BB220: Access to handwashing | BC220: NATIONAL wealth index quintile | BH220: URBAN wealth index quintile | BM220: RURAL wealth index quintile | BR220: SUB-REGIONS:
A221: Weighted percentage (used in graphs) | C221: Poorest | D221: Poor | E221: Middle | F221: Rich | G221: Richest | H221: Poorest | I221: Poor | J221: Middle | K221: Rich | L221: Richest | M221: Poorest | N221: Poor | O221: Middle | P221: Rich | Q221: Richest | R221: Cibao Central | S221: Cibao Occidental | T221: Cibao Oriental | U221: Distrito Nacional | V221: El Valle | W221: Enriquillo | X221: Resto Valdesia | Y221: Yuma | BA221: Hygiene data, raw numbers (weighted) | BC221: Poorest | BD221: Poor | BE221: Middle | BF221: Rich | BG221: Richest | BH221: Poorest | BI221: Poor | BJ221: Middle | BK221: Rich | BL221: Richest | BM221: Poorest | BN221: Poor | BO221: Middle | BP221: Rich | BQ221: Richest | BR221: Cibao Central | BS221: Cibao Occidental | BT221: Cibao Oriental | BU221: Distrito Nacional | BV221: El Valle | BW221: Enriquillo | BX221: Resto Valdesia | BY221: Yuma
A222: Hygiene ladder | B222: Basic | C222: N/A | D222: N/A | E222: N/A | F222: N/A | G222: N/A | H222: N/A | I222: N/A | J222: N/A | K222: N/A | L222: N/A | M222: N/A | N222: N/A | O222: N/A | P222: N/A | Q222: N/A | R222: N/A | S222: N/A | T222: N/A | U222: N/A | V222: N/A | W222: N/A | X222: N/A | Y222: N/A | BA222: Hygiene ladder | BB222: Basic | BC222: N/A | BD222: N/A | BE222: N/A | BF222: N/A | BG222: N/A | BH222: N/A | BI222: N/A | BJ222: N/A | BK222: N/A | BL222: N/A | BM222: N/A | BN222: N/A | BO222: N/A | BP222: N/A | BQ222: N/A | BR222: N/A | BS222: N/A | BT222: N/A | BU222: N/A | BV222: N/A | BW222: N/A | BX222: N/A | BY222: N/A
B223: Limited | C223: N/A | D223: N/A | E223: N/A | F223: N/A | G223: N/A | H223: N/A | I223: N/A | J223: N/A | K223: N/A | L223: N/A | M223: N/A | N223: N/A | O223: N/A | P223: N/A | Q223: N/A | R223: N/A | S223: N/A | T223: N/A | U223: N/A | V223: N/A | W223: N/A | X223: N/A | Y223: N/A | BB223: Limited | BC223: N/A | BD223: N/A | BE223: N/A | BF223: N/A | BG223: N/A | BH223: N/A | BI223: N/A | BJ223: N/A | BK223: N/A | BL223: N/A | BM223: N/A | BN223: N/A | BO223: N/A | BP223: N/A | BQ223: N/A | BR223: N/A | BS223: N/A | BT223: N/A | BU223: N/A | BV223: N/A | BW223: N/A | BX223: N/A | BY223: N/A
B224: No facility | C224: N/A | D224: N/A | E224: N/A | F224: N/A | G224: N/A | H224: N/A | I224: N/A | J224: N/A | K224: N/A | L224: N/A | M224: N/A | N224: N/A | O224: N/A | P224: N/A | Q224: N/A | R224: N/A | S224: N/A | T224: N/A | U224: N/A | V224: N/A | W224: N/A | X224: N/A | Y224: N/A | BB224: No facility | BC224: N/A | BD224: N/A | BE224: N/A | BF224: N/A | BG224: N/A | BH224: N/A | BI224: N/A | BJ224: N/A | BK224: N/A | BL224: N/A | BM224: N/A | BN224: N/A | BO224: N/A | BP224: N/A | BQ224: N/A | BR224: N/A | BS224: N/A | BT224: N/A | BU224: N/A | BV224: N/A | BW224: N/A | BX224: N/A | BY224: N/A
BA225: Observed handwashing place | BB225: Fixed | BC225: N/A | BD225: N/A | BE225: N/A | BF225: N/A | BG225: N/A | BH225: N/A | BI225: N/A | BJ225: N/A | BK225: N/A | BL225: N/A | BM225: N/A | BN225: N/A | BO225: N/A | BP225: N/A | BQ225: N/A | BR225: N/A | BS225: N/A | BT225: N/A | BU225: N/A | BV225: N/A | BW225: N/A | BX225: N/A | BY225: N/A
BB226: Mobile | BC226: N/A | BD226: N/A | BE226: N/A | BF226: N/A | BG226: N/A | BH226: N/A | BI226: N/A | BJ226: N/A | BK226: N/A | BL226: N/A | BM226: N/A | BN226: N/A | BO226: N/A | BP226: N/A | BQ226: N/A | BR226: N/A | BS226: N/A | BT226: N/A | BU226: N/A | BV226: N/A | BW226: N/A | BX226: N/A | BY226: N/A
BA227: Water / Soap | BB227: Water and soap | BC227: N/A | BD227: N/A | BE227: N/A | BF227: N/A | BG227: N/A | BH227: N/A | BI227: N/A | BJ227: N/A | BK227: N/A | BL227: N/A | BM227: N/A | BN227: N/A | BO227: N/A | BP227: N/A | BQ227: N/A | BR227: N/A | BS227: N/A | BT227: N/A | BU227: N/A | BV227: N/A | BW227: N/A | BX227: N/A | BY227: N/A
BB228: Water only | BC228: N/A | BD228: N/A | BE228: N/A | BF228: N/A | BG228: N/A | BH228: N/A | BI228: N/A | BJ228: N/A | BK228: N/A | BL228: N/A | BM228: N/A | BN228: N/A | BO228: N/A | BP228: N/A | BQ228: N/A | BR228: N/A | BS228: N/A | BT228: N/A | BU228: N/A | BV228: N/A | BW228: N/A | BX228: N/A | BY228: N/A
BB229: Soap only | BC229: N/A | BD229: N/A | BE229: N/A | BF229: N/A | BG229: N/A | BH229: N/A | BI229: N/A | BJ229: N/A | BK229: N/A | BL229: N/A | BM229: N/A | BN229: N/A | BO229: N/A | BP229: N/A | BQ229: N/A | BR229: N/A | BS229: N/A | BT229: N/A | BU229: N/A | BV229: N/A | BW229: N/A | BX229: N/A | BY229: N/A
BB230: Neither | BC230: N/A | BD230: N/A | BE230: N/A | BF230: N/A | BG230: N/A | BH230: N/A | BI230: N/A | BJ230: N/A | BK230: N/A | BL230: N/A | BM230: N/A | BN230: N/A | BO230: N/A | BP230: N/A | BQ230: N/A | BR230: N/A | BS230: N/A | BT230: N/A | BU230: N/A | BV230: N/A | BW230: N/A | BX230: N/A | BY230: N/A
BA259: Raw numbers of respondents: | BB259: Menstrual health and hygiene | BC259: NATIONAL wealth index quintile | BH259: URBAN wealth index quintile | BM259: RURAL wealth index quintile | BR259: SUB-REGIONS:
BA260: MHH data, raw numbers (weighted) | BC260: Poorest | BD260: Poor | BE260: Middle | BF260: Rich | BG260: Richest | BH260: Poorest | BI260: Poor | BJ260: Middle | BK260: Rich | BL260: Richest | BM260: Poorest | BN260: Poor | BO260: Middle | BP260: Rich | BQ260: Richest | BR260: Cibao Central | BS260: Cibao Occidental | BT260: Cibao Oriental | BU260: Distrito Nacional | BV260: El Valle | BW260: Enriquillo | BX260: Resto Valdesia | BY260: Yuma
BA261: Private place to wash and change | BB261: Yes | BC261: N/A | BD261: N/A | BE261: N/A | BF261: N/A | BG261: N/A | BH261: N/A | BI261: N/A | BJ261: N/A | BK261: N/A | BL261: N/A | BM261: N/A | BN261: N/A | BO261: N/A | BP261: N/A | BQ261: N/A | BR261: N/A | BS261: N/A | BT261: N/A | BU261: N/A | BV261: N/A | BW261: N/A | BX261: N/A | BY261: N/A
BB262: No | BC262: N/A | BD262: N/A | BE262: N/A | BF262: N/A | BG262: N/A | BH262: N/A | BI262: N/A | BJ262: N/A | BK262: N/A | BL262: N/A | BM262: N/A | BN262: N/A | BO262: N/A | BP262: N/A | BQ262: N/A | BR262: N/A | BS262: N/A | BT262: N/A | BU262: N/A | BV262: N/A | BW262: N/A | BX262: N/A | BY262: N/A
BB263: DK/not sure/missing | BC263: N/A | BD263: N/A | BE263: N/A | BF263: N/A | BG263: N/A | BH263: N/A | BI263: N/A | BJ263: N/A | BK263: N/A | BL263: N/A | BM263: N/A | BN263: N/A | BO263: N/A | BP263: N/A | BQ263: N/A | BR263: N/A | BS263: N/A | BT263: N/A | BU263: N/A | BV263: N/A | BW263: N/A | BX263: N/A | BY263: N/A
BA264: Use of menstrual materials | BB264: Materials reusable | BC264: N/A | BD264: N/A | BE264: N/A | BF264: N/A | BG264: N/A | BH264: N/A | BI264: N/A | BJ264: N/A | BK264: N/A | BL264: N/A | BM264: N/A | BN264: N/A | BO264: N/A | BP264: N/A | BQ264: N/A | BR264: N/A | BS264: N/A | BT264: N/A | BU264: N/A | BV264: N/A | BW264: N/A | BX264: N/A | BY264: N/A
BB265: Materials not reusable | BC265: N/A | BD265: N/A | BE265: N/A | BF265: N/A | BG265: N/A | BH265: N/A | BI265: N/A | BJ265: N/A | BK265: N/A | BL265: N/A | BM265: N/A | BN265: N/A | BO265: N/A | BP265: N/A | BQ265: N/A | BR265: N/A | BS265: N/A | BT265: N/A | BU265: N/A | BV265: N/A | BW265: N/A | BX265: N/A | BY265: N/A
BB266: No materials used | BC266: N/A | BD266: N/A | BE266: N/A | BF266: N/A | BG266: N/A | BH266: N/A | BI266: N/A | BJ266: N/A | BK266: N/A | BL266: N/A | BM266: N/A | BN266: N/A | BO266: N/A | BP266: N/A | BQ266: N/A | BR266: N/A | BS266: N/A | BT266: N/A | BU266: N/A | BV266: N/A | BW266: N/A | BX266: N/A | BY266: N/A
BB267: DK/not sure/missing | BC267: N/A | BD267: N/A | BE267: N/A | BF267: N/A | BG267: N/A | BH267: N/A | BI267: N/A | BJ267: N/A | BK267: N/A | BL267: N/A | BM267: N/A | BN267: N/A | BO267: N/A | BP267: N/A | BQ267: N/A | BR267: N/A | BS267: N/A | BT267: N/A | BU267: N/A | BV267: N/A | BW267: N/A | BX267: N/A | BY267: N/A
BA268: Use of menstrual materials with private place to wash and change | BB268: Materials reusable | BC268: N/A | BD268: N/A | BE268: N/A | BF268: N/A | BG268: N/A | BH268: N/A | BI268: N/A | BJ268: N/A | BK268: N/A | BL268: N/A | BM268: N/A | BN268: N/A | BO268: N/A | BP268: N/A | BQ268: N/A | BR268: N/A | BS268: N/A | BT268: N/A | BU268: N/A | BV268: N/A | BW268: N/A | BX268: N/A | BY268: N/A
BB269: Materials not reusable | BC269: N/A | BD269: N/A | BE269: N/A | BF269: N/A | BG269: N/A | BH269: N/A | BI269: N/A | BJ269: N/A | BK269: N/A | BL269: N/A | BM269: N/A | BN269: N/A | BO269: N/A | BP269: N/A | BQ269: N/A | BR269: N/A | BS269: N/A | BT269: N/A | BU269: N/A | BV269: N/A | BW269: N/A | BX269: N/A | BY269: N/A
BB270: No materials used | BC270: N/A | BD270: N/A | BE270: N/A | BF270: N/A | BG270: N/A | BH270: N/A | BI270: N/A | BJ270: N/A | BK270: N/A | BL270: N/A | BM270: N/A | BN270: N/A | BO270: N/A | BP270: N/A | BQ270: N/A | BR270: N/A | BS270: N/A | BT270: N/A | BU270: N/A | BV270: N/A | BW270: N/A | BX270: N/A | BY270: N/A
BA271: Awareness of menstruation before menarche | BB271: Yes | BC271: N/A | BD271: N/A | BE271: N/A | BF271: N/A | BG271: N/A | BH271: N/A | BI271: N/A | BJ271: N/A | BK271: N/A | BL271: N/A | BM271: N/A | BN271: N/A | BO271: N/A | BP271: N/A | BQ271: N/A | BR271: N/A | BS271: N/A | BT271: N/A | BU271: N/A | BV271: N/A | BW271: N/A | BX271: N/A | BY271: N/A
BB272: No | BC272: N/A | BD272: N/A | BE272: N/A | BF272: N/A | BG272: N/A | BH272: N/A | BI272: N/A | BJ272: N/A | BK272: N/A | BL272: N/A | BM272: N/A | BN272: N/A | BO272: N/A | BP272: N/A | BQ272: N/A | BR272: N/A | BS272: N/A | BT272: N/A | BU272: N/A | BV272: N/A | BW272: N/A | BX272: N/A | BY272: N/A
BB273: DK/not sure/missing | BC273: N/A | BD273: N/A | BE273: N/A | BF273: N/A | BG273: N/A | BH273: N/A | BI273: N/A | BJ273: N/A | BK273: N/A | BL273: N/A | BM273: N/A | BN273: N/A | BO273: N/A | BP273: N/A | BQ273: N/A | BR273: N/A | BS273: N/A | BT273: N/A | BU273: N/A | BV273: N/A | BW273: N/A | BX273: N/A | BY273: N/A
BA274: Participation in (all) activities during menstruation | BB274: Yes | BC274: N/A | BD274: N/A | BE274: N/A | BF274: N/A | BG274: N/A | BH274: N/A | BI274: N/A | BJ274: N/A | BK274: N/A | BL274: N/A | BM274: N/A | BN274: N/A | BO274: N/A | BP274: N/A | BQ274: N/A | BR274: N/A | BS274: N/A | BT274: N/A | BU274: N/A | BV274: N/A | BW274: N/A | BX274: N/A | BY274: N/A
BB275: No | BC275: N/A | BD275: N/A | BE275: N/A | BF275: N/A | BG275: N/A | BH275: N/A | BI275: N/A | BJ275: N/A | BK275: N/A | BL275: N/A | BM275: N/A | BN275: N/A | BO275: N/A | BP275: N/A | BQ275: N/A | BR275: N/A | BS275: N/A | BT275: N/A | BU275: N/A | BV275: N/A | BW275: N/A | BX275: N/A | BY275: N/A
BB276: DK/not sure/missing/no such activity | BC276: N/A | BD276: N/A | BE276: N/A | BF276: N/A | BG276: N/A | BH276: N/A | BI276: N/A | BJ276: N/A | BK276: N/A | BL276: N/A | BM276: N/A | BN276: N/A | BO276: N/A | BP276: N/A | BQ276: N/A | BR276: N/A | BS276: N/A | BT276: N/A | BU276: N/A | BV276: N/A | BW276: N/A | BX276: N/A | BY276: N/A
BA277: Participation in specific activities during menstruation | BB277: Did not go to school (amongst those usually attending school) | BC277: N/A | BD277: N/A | BE277: N/A | BF277: N/A | BG277: N/A | BH277: N/A | BI277: N/A | BJ277: N/A | BK277: N/A | BL277: N/A | BM277: N/A | BN277: N/A | BO277: N/A | BP277: N/A | BQ277: N/A | BR277: N/A | BS277: N/A | BT277: N/A | BU277: N/A | BV277: N/A | BW277: N/A | BX277: N/A | BY277: N/A
BB278: Did not go to work (amongst those who usually work) | BC278: N/A | BD278: N/A | BE278: N/A | BF278: N/A | BG278: N/A | BH278: N/A | BI278: N/A | BJ278: N/A | BK278: N/A | BL278: N/A | BM278: N/A | BN278: N/A | BO278: N/A | BP278: N/A | BQ278: N/A | BR278: N/A | BS278: N/A | BT278: N/A | BU278: N/A | BV278: N/A | BW278: N/A | BX278: N/A | BY278: N/A
BB279: Did not participate in social activities | BC279: N/A | BD279: N/A | BE279: N/A | BF279: N/A | BG279: N/A | BH279: N/A | BI279: N/A | BJ279: N/A | BK279: N/A | BL279: N/A | BM279: N/A | BN279: N/A | BO279: N/A | BP279: N/A | BQ279: N/A | BR279: N/A | BS279: N/A | BT279: N/A | BU279: N/A | BV279: N/A | BW279: N/A | BX279: N/A | BY279: N/A
BB280: Did not cook food | BC280: N/A | BD280: N/A | BE280: N/A | BF280: N/A | BG280: N/A | BH280: N/A | BI280: N/A | BJ280: N/A | BK280: N/A | BL280: N/A | BM280: N/A | BN280: N/A | BO280: N/A | BP280: N/A | BQ280: N/A | BR280: N/A | BS280: N/A | BT280: N/A | BU280: N/A | BV280: N/A | BW280: N/A | BX280: N/A | BY280: N/A
BB281: Did not eat with others | BC281: N/A | BD281: N/A | BE281: N/A | BF281: N/A | BG281: N/A | BH281: N/A | BI281: N/A | BJ281: N/A | BK281: N/A | BL281: N/A | BM281: N/A | BN281: N/A | BO281: N/A | BP281: N/A | BQ281: N/A | BR281: N/A | BS281: N/A | BT281: N/A | BU281: N/A | BV281: N/A | BW281: N/A | BX281: N/A | BY281: N/A
BB282: Did not bathe in regular place | BC282: N/A | BD282: N/A | BE282: N/A | BF282: N/A | BG282: N/A | BH282: N/A | BI282: N/A | BJ282: N/A | BK282: N/A | BL282: N/A | BM282: N/A | BN282: N/A | BO282: N/A | BP282: N/A | BQ282: N/A | BR282: N/A | BS282: N/A | BT282: N/A | BU282: N/A | BV282: N/A | BW282: N/A | BX282: N/A | BY282: N/A
BB283: Did not participate in other activities | BC283: N/A | BD283: N/A | BE283: N/A | BF283: N/A | BG283: N/A | BH283: N/A | BI283: N/A | BJ283: N/A | BK283: N/A | BL283: N/A | BM283: N/A | BN283: N/A | BO283: N/A | BP283: N/A | BQ283: N/A | BR283: N/A | BS283: N/A | BT283: N/A | BU283: N/A | BV283: N/A | BW283: N/A | BX283: N/A | BY283: N/A
BB284: DK/not sure/missing/no such activity | BC284: N/A | BD284: N/A | BE284: N/A | BF284: N/A | BG284: N/A | BH284: N/A | BI284: N/A | BJ284: N/A | BK284: N/A | BL284: N/A | BM284: N/A | BN284: N/A | BO284: N/A | BP284: N/A | BQ284: N/A | BR284: N/A | BS284: N/A | BT284: N/A | BU284: N/A | BV284: N/A | BW284: N/A | BX284: N/A | BY284: N/A
BA339: Raw numbers of respondents: | BB339: Basic water, sanitation and hygiene | BC339: NATIONAL wealth index quintile | BH339: URBAN wealth index quintile | BM339: RURAL wealth index quintile | BR339: SUB-REGIONS:
BA340: WatSan data, raw numbers (weighted) | BC340: Poorest | BD340: Poor | BE340: Middle | BF340: Rich | BG340: Richest | BH340: Poorest | BI340: Poor | BJ340: Middle | BK340: Rich | BL340: Richest | BM340: Poorest | BN340: Poor | BO340: Middle | BP340: Rich | BQ340: Richest | BR340: Cibao Central | BS340: Cibao Occidental | BT340: Cibao Oriental | BU340: Distrito Nacional | BV340: El Valle | BW340: Enriquillo | BX340: Resto Valdesia | BY340: Yuma
BA341: Use of Basic Water Sanitation and Hygiene | BB341: Yes | BC341: N/A | BD341: N/A | BE341: N/A | BF341: N/A | BG341: N/A | BH341: N/A | BI341: N/A | BJ341: N/A | BK341: N/A | BL341: N/A | BM341: N/A | BN341: N/A | BO341: N/A | BP341: N/A | BQ341: N/A | BR341: N/A | BS341: N/A | BT341: N/A | BU341: N/A | BV341: N/A | BW341: N/A | BX341: N/A | BY341: N/A
BB342: No | BC342: N/A | BD342: N/A | BE342: N/A | BF342: N/A | BG342: N/A | BH342: N/A | BI342: N/A | BJ342: N/A | BK342: N/A | BL342: N/A | BM342: N/A | BN342: N/A | BO342: N/A | BP342: N/A | BQ342: N/A | BR342: N/A | BS342: N/A | BT342: N/A | BU342: N/A | BV342: N/A | BW342: N/A | BX342: N/A | BY342: N/A
BA343: Use of Basic Water and Sanitation | BB343: Yes | BC343: N/A | BD343: N/A | BE343: N/A | BF343: N/A | BG343: N/A | BH343: N/A | BI343: N/A | BJ343: N/A | BK343: N/A | BL343: N/A | BM343: N/A | BN343: N/A | BO343: N/A | BP343: N/A | BQ343: N/A | BR343: N/A | BS343: N/A | BT343: N/A | BU343: N/A | BV343: N/A | BW343: N/A | BX343: N/A | BY343: N/A
BB344: No | BC344: N/A | BD344: N/A | BE344: N/A | BF344: N/A | BG344: N/A | BH344: N/A | BI344: N/A | BJ344: N/A | BK344: N/A | BL344: N/A | BM344: N/A | BN344: N/A | BO344: N/A | BP344: N/A | BQ344: N/A | BR344: N/A | BS344: N/A | BT344: N/A | BU344: N/A | BV344: N/A | BW344: N/A | BX344: N/A | BY344: N/A
BA345: Use of Basic Water and Hygiene | BB345: Yes | BC345: N/A | BD345: N/A | BE345: N/A | BF345: N/A | BG345: N/A | BH345: N/A | BI345: N/A | BJ345: N/A | BK345: N/A | BL345: N/A | BM345: N/A | BN345: N/A | BO345: N/A | BP345: N/A | BQ345: N/A | BR345: N/A | BS345: N/A | BT345: N/A | BU345: N/A | BV345: N/A | BW345: N/A | BX345: N/A | BY345: N/A
BB346: No | BC346: N/A | BD346: N/A | BE346: N/A | BF346: N/A | BG346: N/A | BH346: N/A | BI346: N/A | BJ346: N/A | BK346: N/A | BL346: N/A | BM346: N/A | BN346: N/A | BO346: N/A | BP346: N/A | BQ346: N/A | BR346: N/A | BS346: N/A | BT346: N/A | BU346: N/A | BV346: N/A | BW346: N/A | BX346: N/A | BY346: N/A
BA347: Use of Basic Sanitation and Hygiene | BB347: Yes | BC347: N/A | BD347: N/A | BE347: N/A | BF347: N/A | BG347: N/A | BH347: N/A | BI347: N/A | BJ347: N/A | BK347: N/A | BL347: N/A | BM347: N/A | BN347: N/A | BO347: N/A | BP347: N/A | BQ347: N/A | BR347: N/A | BS347: N/A | BT347: N/A | BU347: N/A | BV347: N/A | BW347: N/A | BX347: N/A | BY347: N/A
BB348: No | BC348: N/A | BD348: N/A | BE348: N/A | BF348: N/A | BG348: N/A | BH348: N/A | BI348: N/A | BJ348: N/A | BK348: N/A | BL348: N/A | BM348: N/A | BN348: N/A | BO348: N/A | BP348: N/A | BQ348: N/A | BR348: N/A | BS348: N/A | BT348: N/A | BU348: N/A | BV348: N/A | BW348: N/A | BX348: N/A | BY348: N/A
BA349: Use of Basic Water | BB349: Yes | BC349: N/A | BD349: N/A | BE349: N/A | BF349: N/A | BG349: N/A | BH349: N/A | BI349: N/A | BJ349: N/A | BK349: N/A | BL349: N/A | BM349: N/A | BN349: N/A | BO349: N/A | BP349: N/A | BQ349: N/A | BR349: N/A | BS349: N/A | BT349: N/A | BU349: N/A | BV349: N/A | BW349: N/A | BX349: N/A | BY349: N/A
BB350: No | BC350: N/A | BD350: N/A | BE350: N/A | BF350: N/A | BG350: N/A | BH350: N/A | BI350: N/A | BJ350: N/A | BK350: N/A | BL350: N/A | BM350: N/A | BN350: N/A | BO350: N/A | BP350: N/A | BQ350: N/A | BR350: N/A | BS350: N/A | BT350: N/A | BU350: N/A | BV350: N/A | BW350: N/A | BX350: N/A | BY350: N/A
BA351: Use of Basic Sanitation | BB351: Yes | BC351: N/A | BD351: N/A | BE351: N/A | BF351: N/A | BG351: N/A | BH351: N/A | BI351: N/A | BJ351: N/A | BK351: N/A | BL351: N/A | BM351: N/A | BN351: N/A | BO351: N/A | BP351: N/A | BQ351: N/A | BR351: N/A | BS351: N/A | BT351: N/A | BU351: N/A | BV351: N/A | BW351: N/A | BX351: N/A | BY351: N/A
BB352: No | BC352: N/A | BD352: N/A | BE352: N/A | BF352: N/A | BG352: N/A | BH352: N/A | BI352: N/A | BJ352: N/A | BK352: N/A | BL352: N/A | BM352: N/A | BN352: N/A | BO352: N/A | BP352: N/A | BQ352: N/A | BR352: N/A | BS352: N/A | BT352: N/A | BU352: N/A | BV352: N/A | BW352: N/A | BX352: N/A | BY352: N/A
BA353: Access to Basic Hygiene | BB353: Yes | BC353: N/A | BD353: N/A | BE353: N/A | BF353: N/A | BG353: N/A | BH353: N/A | BI353: N/A | BJ353: N/A | BK353: N/A | BL353: N/A | BM353: N/A | BN353: N/A | BO353: N/A | BP353: N/A | BQ353: N/A | BR353: N/A | BS353: N/A | BT353: N/A | BU353: N/A | BV353: N/A | BW353: N/A | BX353: N/A | BY353: N/A
BB354: No | BC354: N/A | BD354: N/A | BE354: N/A | BF354: N/A | BG354: N/A | BH354: N/A | BI354: N/A | BJ354: N/A | BK354: N/A | BL354: N/A | BM354: N/A | BN354: N/A | BO354: N/A | BP354: N/A | BQ354: N/A | BR354: N/A | BS354: N/A | BT354: N/A | BU354: N/A | BV354: N/A | BW354: N/A | BX354: N/A | BY354: N/A
C399: INITIAL (national) Wealth Index | H399: URBAN Wealth Index | M399: RURAL Wealth Index
C400: Component Matrix | H400: Component Matrix | M400: Component Matrix
E401: Component | J401: Component | O401: Component
B402: Note: The INITIAL (national) Wealth Index is based on the first component of the Principal Component Analysis (PCA) which has been obtained at national level. The final national-level (NATIONAL) Wealth Index is based on the URBAN and RURAL specific wealth indexes. Regression procedures are used to establish the relationships between the two sets of scores (urban and rural) and the initial (national) wealth factors. This allows best use of the available information for each area and a better precision of the FINAL (NATIONAL) Wealth Index. For dependency reasons, all WASH variables (contained in the generic MICS and DHS scripts) have been excluded from the sets of asset variables used in the PCAs. The PCA can extracts as many components as there are asset variables in the input. Only the first of the components is used to represent the Wealth Index. The scores represent the weights of the asset variables on the Wealth Index (correlations between the variables and the component). The communalities are the proportion of each variable's variance that can be explained by the component. Proportion of explained variance is the part of the model's total variance that is explained by the component. For more information on the procedure used: The DHS Wealth Index, DHS Comparative Reports No. 6, Shea Oscar Rutstein, Kiersten Johnson, ORC Macro International Inc., 2004. The DHS Wealth Index: Approaches for Rural and Urban Areas, Shea O. Rutstein, ORC Macro International Inc., 2008. MICS Methodological Paper No. 4, Review of options for reporting water, sanitation and hygiene coverage by wealth quintile, UNICEF, 2016. | E402: 1 | J402: 1 | O402: 1
C403: Has no roof | E403: 0.7222902603 | H403: Has no roof | J403: 0.7995870683 | M403: Household fuel type: LPG | O403: 0.7283004791
C404: Household has: mobile telephone | E404: 0.6986564048 | H404: Has dung roof | J404: -0.7650485545 | M404: Household has: mobile telephone | O404: 0.6839517075
C405: Has no wall | E405: 0.6783916771 | H405: Has no wall | J405: 0.6776081252 | M405: Household has: television | O405: 0.6551261064
C406: Household fuel type: LPG | E406: 0.6428782317 | H406: Has cement floor | J406: -0.6135250303 | M406: Has dung floor | O406: -0.6447441526
C407: Household has: television | E407: 0.6083823418 | H407: Household has: mobile telephone | J407: 0.6117643515 | M407: Household has: electricity | O407: 0.5974095432
C408: Has dung roof | E408: -0.5901504722 | H408: Has vinyl/asphalt strip floor | J408: 0.5273096979 | M408: Household fuel type: charcoal | O408: -0.5131363104
C409: Household has: radio | E409: 0.5017886728 | H409: Household has: fan | J409: 0.5143834128 | M409: Has no wall | O409: 0.4999186233
C410: Household has: electricity | E410: 0.4961503598 | H410: Household has: television | J410: 0.4989369282 | M410: Household has: radio | O410: 0.4801236353
C411: Household has: fan | E411: 0.4934124053 | H411: Household has: radio | J411: 0.4740452366 | M411: Has cement floor | O411: 0.4285771086
C412: Has vinyl/asphalt strip floor | E412: 0.4737274791 | H412: Household fuel type: LPG | J412: 0.4535676384 | M412: Has no roof | O412: 0.381022229
C413: Has dung floor | E413: -0.436070859 | H413: Has jute wall | J413: -0.4395883056 | M413: Has mud wall | O413: -0.3341196077
C414: Household fuel type: charcoal | E414: -0.435672558 | H414: Has mud wall | J414: -0.3884264874 | M414: Household has: fan | O414: 0.3235089572
C415: Has mud wall | E415: -0.4311395782 | H415: Has ceramic tile floor | J415: 0.3872342136 | M415: Household fuel type: kerosene | O415: -0.2959992022
C416: Has ceramic tile floor | E416: 0.3565474067 | H416: Persons per sleeping rooms | J416: -0.3748295135 | M416: Household has: refrigerator | O416: 0.2807337452
C417: Household fuel type: kerosene | E417: -0.3441874982 | H417: Household fuel type: kerosene | J417: -0.3332821591 | M417: Has wood roof | O417: -0.2779137368
C418: Persons per sleeping rooms | E418: -0.3026667177 | H418: Has dung floor | J418: -0.279015774 | M418: Has bamboo with mud wall | O418: -0.2776175585
... 158 more rows

Sheet DHS02
A2: =A1026 -> Dominican Republic
A3: =A1034 -> 2002
A4: Use of drinking water sources
A5: by wealth quintile and sub-national region
A6: Notes:
A7: WHO/UNICEF JMP customised wealth index excludes water,
A8: sanitation and hygiene assets.
A9: Survey used for analysis: | B9: =A1025 -> DHS02
A10: Improved wells based on: | B10: MICS00
A11: Time to improved source based on: | B11: MICS00
A14: Use of drinking water sources | C14: NATIONAL wealth index quintile | H14: URBAN wealth index quintile | M14: RURAL wealth index quintile | R14: SUB-REGIONS: | BA14: Raw numbers of respondents: | BB14: Use of drinking water sources | BC14: NATIONAL wealth index quintile | BH14: URBAN wealth index quintile | BM14: RURAL wealth index quintile | BR14: SUB-REGIONS:
A15: Weighted percentage (used in graphs) | C15: Poorest | D15: Poor | E15: Middle | F15: Rich | G15: Richest | H15: Poorest | I15: Poor | J15: Middle | K15: Rich | L15: Richest | M15: Poorest | N15: Poor | O15: Middle | P15: Rich | Q15: Richest | R15: azua | S15: bahoruco | T15: barahona | U15: dajab¢n | V15: distrito nacional | W15: duarte | X15: el seybo | Y15: el¡as pi¤a | Z15: espaillat | AA15: hato mayor | AB15: independencia | AC15: la altagracia | AD15: la romana | AE15: la vega | AF15: mar¡a trinidad s nchez | AG15: monse¤ol nouel | AH15: monte cristi | AI15: monte plata | AJ15: pedernales | AK15: peravia | AL15: puerto plata | AM15: s nchez ram¡rez | AN15: salcedo | AO15: saman | AP15: san crist¢bal | AQ15: san jos‚ de ocoa | AR15: san juan | AS15: san pedro de macor¡s | AT15: santiago | AU15: santiago rodr¡guez | AV15: santo domingo | AW15: valverde | BA15: Water data, raw numbers (weighted) | BC15: Poorest | BD15: Poor | BE15: Middle | BF15: Rich | BG15: Richest | BH15: Poorest | BI15: Poor | BJ15: Middle | BK15: Rich | BL15: Richest | BM15: Poorest | BN15: Poor | BO15: Middle | BP15: Rich | BQ15: Richest | BR15: azua | BS15: bahoruco | BT15: barahona | BU15: dajab¢n | BV15: distrito nacional | BW15: duarte | BX15: el seybo | BY15: el¡as pi¤a | BZ15: espaillat | CA15: hato mayor | CB15: independencia | CC15: la altagracia | CD15: la romana | CE15: la vega | CF15: mar¡a trinidad s nchez | CG15: monse¤ol nouel | CH15: monte cristi | CI15: monte plata | CJ15: pedernales | CK15: peravia | CL15: puerto plata | CM15: s nchez ram¡rez | CN15: salcedo | CO15: saman | CP15: san crist¢bal | CQ15: san jos‚ de ocoa | CR15: san juan | CS15: san pedro de macor¡s | CT15: santiago | CU15: santiago rodr¡guez | CV15: santo domingo | CW15: valverde
A16: Water | B16: Improved | C16: =C58+C59+C62+C63+C64+C60*[1]MICS00!C24/100 -> 84.87693789 | D16: =D58+D59+D62+D63+D64+D60*[1]MICS00!D24/100 -> 97.79300861 | E16: =E58+E59+E62+E63+E64+E60*[1]MICS00!E24/100 -> 98.13186668 | F16: =F58+F59+F62+F63+F64+F60*[1]MICS00!F24/100 -> 99.29362881 | G16: =G58+G59+G62+G63+G64+G60*[1]MICS00!G24/100 -> 99.57351966 | H16: =H58+H59+H62+H63+H64+H60*[1]MICS00!H24/100 -> 98.98752266 | I16: =I58+I59+I62+I63+I64+I60*[1]MICS00!I24/100 -> 98.88356865 | J16: =J58+J59+J62+J63+J64+J60*[1]MICS00!J24/100 -> 99.57147192 | K16: =K58+K59+K62+K63+K64+K60*[1]MICS00!K24/100 -> 99.33209979 | L16: =L58+L59+L62+L63+L64+L60*[1]MICS00!L24/100 -> 99.57802756 | M16: =M58+M59+M62+M63+M64+M60*[1]MICS00!M24/100 -> 69.18256889 | N16: =N58+N59+N62+N63+N64+N60*[1]MICS00!N24/100 -> 89.62972029 | O16: =O58+O59+O62+O63+O64+O60*[1]MICS00!O24/100 -> 94.88507638 | P16: =P58+P59+P62+P63+P64+P60*[1]MICS00!P24/100 -> 95.30963168 | Q16: =Q58+Q59+Q62+Q63+Q64+Q60*[1]MICS00!Q24/100 -> 99.07827467 | R16: N/A | S16: N/A | T16: N/A | U16: N/A | V16: N/A | W16: N/A | X16: N/A | Y16: N/A | Z16: N/A | AA16: N/A | AB16: N/A | AC16: N/A | AD16: N/A | AE16: N/A | AF16: N/A | AG16: N/A | AH16: N/A | AI16: N/A | AJ16: N/A | AK16: N/A | AL16: N/A | AM16: N/A | AN16: N/A | AO16: N/A | AP16: N/A | AQ16: N/A | AR16: N/A | AS16: N/A | AT16: N/A | AU16: N/A | AV16: N/A | AW16: N/A | BA16: Water | BB16: Improved | BC16: N/A | BD16: N/A | BE16: N/A | BF16: N/A | BG16: N/A | BH16: N/A | BI16: N/A | BJ16: N/A | BK16: N/A | BL16: N/A | BM16: N/A | BN16: N/A | BO16: N/A | BP16: N/A | BQ16: N/A | BR16: N/A | BS16: N/A | BT16: N/A | BU16: N/A | BV16: N/A | BW16: N/A | BX16: N/A | BY16: N/A | BZ16: N/A | CA16: N/A | CB16: N/A | CC16: N/A | CD16: N/A | CE16: N/A | CF16: N/A | CG16: N/A | CH16: N/A | CI16: N/A | CJ16: N/A | CK16: N/A | CL16: N/A | CM16: N/A | CN16: N/A | CO16: N/A | CP16: N/A | CQ16: N/A | CR16: N/A | CS16: N/A | CT16: N/A | CU16: N/A | CV16: N/A | CW16: N/A
B17: Not Improved | C17: =100-C16 -> 15.12306211 | D17: =100-D16 -> 2.206991391 | E17: 1.868133322 | F17: 0.706371189 | G17: 0.426480342 | H17: 1.01247734 | I17: 1.116431352 | J17: 0.4285280787 | K17: 0.6679002072 | L17: 0.4219724388 | M17: 30.81743111 | N17: 10.37027971 | O17: 5.114923622 | P17: 4.690368321 | Q17: 0.9217253267 | R17: N/A | S17: N/A | T17: N/A | U17: N/A | V17: N/A | W17: N/A | X17: N/A | Y17: N/A | Z17: N/A | AA17: N/A | AB17: N/A | AC17: N/A | AD17: N/A | AE17: N/A | AF17: N/A | AG17: N/A | AH17: N/A | AI17: N/A | AJ17: N/A | AK17: N/A | AL17: N/A | AM17: N/A | AN17: N/A | AO17: N/A | AP17: N/A | AQ17: N/A | AR17: N/A | AS17: N/A | AT17: N/A | AU17: N/A | AV17: N/A | AW17: N/A | BB17: Not Improved | BC17: N/A | BD17: N/A | BE17: N/A | BF17: N/A | BG17: N/A | BH17: N/A | BI17: N/A | BJ17: N/A | BK17: N/A | BL17: N/A | BM17: N/A | BN17: N/A | BO17: N/A | BP17: N/A | BQ17: N/A | BR17: N/A | BS17: N/A | BT17: N/A | BU17: N/A | BV17: N/A | BW17: N/A | BX17: N/A | BY17: N/A | BZ17: N/A | CA17: N/A | CB17: N/A | CC17: N/A | CD17: N/A | CE17: N/A | CF17: N/A | CG17: N/A | CH17: N/A | CI17: N/A | CJ17: N/A | CK17: N/A | CL17: N/A | CM17: N/A | CN17: N/A | CO17: N/A | CP17: N/A | CQ17: N/A | CR17: N/A | CS17: N/A | CT17: N/A | CU17: N/A | CV17: N/A | CW17: N/A
A18: Water ladder | B18: Basic | C18: =C16*[1]MICS00!C23/100 -> 81.58299938 | D18: =D16*[1]MICS00!D23/100 -> 94.91170269 | E18: =E16*[1]MICS00!E23/100 -> 97.2712257 | F18: =F16*[1]MICS00!F23/100 -> 98.81790749 | G18: =G16*[1]MICS00!G23/100 -> 98.71566977 | H18: =H16*[1]MICS00!H23/100 -> 95.97668397 | I18: =I16*[1]MICS00!I23/100 -> 98.54815058 | J18: =J16*[1]MICS00!J23/100 -> 99.32790215 | K18: =K16*[1]MICS00!K23/100 -> 98.57456947 | L18: =L16*[1]MICS00!L23/100 -> 98.75315388 | M18: =M16*[1]MICS00!M23/100 -> 64.60099434 | N18: =N16*[1]MICS00!N23/100 -> 87.0433259 | O18: =O16*[1]MICS00!O23/100 -> 92.02182728 | P18: =P16*[1]MICS00!P23/100 -> 94.20176288 | Q18: =Q16*[1]MICS00!Q23/100 -> 97.61353948 | R18: N/A | S18: N/A | T18: N/A | U18: N/A | V18: N/A | W18: N/A | X18: N/A | Y18: N/A | Z18: N/A | AA18: N/A | AB18: N/A | AC18: N/A | AD18: N/A | AE18: N/A | AF18: N/A | AG18: N/A | AH18: N/A | AI18: N/A | AJ18: N/A | AK18: N/A | AL18: N/A | AM18: N/A | AN18: N/A | AO18: N/A | AP18: N/A | AQ18: N/A | AR18: N/A | AS18: N/A | AT18: N/A | AU18: N/A | AV18: N/A | AW18: N/A | BA18: Water ladder | BB18: Basic | BC18: N/A | BD18: N/A | BE18: N/A | BF18: N/A | BG18: N/A | BH18: N/A | BI18: N/A | BJ18: N/A | BK18: N/A | BL18: N/A | BM18: N/A | BN18: N/A | BO18: N/A | BP18: N/A | BQ18: N/A | BR18: N/A | BS18: N/A | BT18: N/A | BU18: N/A | BV18: N/A | BW18: N/A | BX18: N/A | BY18: N/A | BZ18: N/A | CA18: N/A | CB18: N/A | CC18: N/A | CD18: N/A | CE18: N/A | CF18: N/A | CG18: N/A | CH18: N/A | CI18: N/A | CJ18: N/A | CK18: N/A | CL18: N/A | CM18: N/A | CN18: N/A | CO18: N/A | CP18: N/A | CQ18: N/A | CR18: N/A | CS18: N/A | CT18: N/A | CU18: N/A | CV18: N/A | CW18: N/A
B19: Limited | C19: =C16*[1]MICS00!C22/100 -> 3.29393851 | D19: =D16*[1]MICS00!D22/100 -> 2.881305923 | E19: =E16*[1]MICS00!E22/100 -> 0.8606409804 | F19: =F16*[1]MICS00!F22/100 -> 0.4757213166 | G19: =G16*[1]MICS00!G22/100 -> 0.8578498857 | H19: =H16*[1]MICS00!H22/100 -> 3.010838695 | I19: =I16*[1]MICS00!I22/100 -> 0.3354180697 | J19: =J16*[1]MICS00!J22/100 -> 0.2435697705 | K19: =K16*[1]MICS00!K22/100 -> 0.7575303182 | L19: =L16*[1]MICS00!L22/100 -> 0.824873677 | M19: =M16*[1]MICS00!M22/100 -> 4.581574548 | N19: =N16*[1]MICS00!N22/100 -> 2.586394384 | O19: =O16*[1]MICS00!O22/100 -> 2.863249099 | P19: =P16*[1]MICS00!P22/100 -> 1.107868797 | Q19: =Q16*[1]MICS00!Q22/100 -> 1.464735197 | R19: N/A | S19: N/A | T19: N/A | U19: N/A | V19: N/A | W19: N/A | X19: N/A | Y19: N/A | Z19: N/A | AA19: N/A | AB19: N/A | AC19: N/A | AD19: N/A | AE19: N/A | AF19: N/A | AG19: N/A | AH19: N/A | AI19: N/A | AJ19: N/A | AK19: N/A | AL19: N/A | AM19: N/A | AN19: N/A | AO19: N/A | AP19: N/A | AQ19: N/A | AR19: N/A | AS19: N/A | AT19: N/A | AU19: N/A | AV19: N/A | AW19: N/A | BB19: Limited | BC19: N/A | BD19: N/A | BE19: N/A | BF19: N/A | BG19: N/A | BH19: N/A | BI19: N/A | BJ19: N/A | BK19: N/A | BL19: N/A | BM19: N/A | BN19: N/A | BO19: N/A | BP19: N/A | BQ19: N/A | BR19: N/A | BS19: N/A | BT19: N/A | BU19: N/A | BV19: N/A | BW19: N/A | BX19: N/A | BY19: N/A | BZ19: N/A | CA19: N/A | CB19: N/A | CC19: N/A | CD19: N/A | CE19: N/A | CF19: N/A | CG19: N/A | CH19: N/A | CI19: N/A | CJ19: N/A | CK19: N/A | CL19: N/A | CM19: N/A | CN19: N/A | CO19: N/A | CP19: N/A | CQ19: N/A | CR19: N/A | CS19: N/A | CT19: N/A | CU19: N/A | CV19: N/A | CW19: N/A
B20: Unimproved | C20: =100-C18-C19-C21 -> 3.650533043 | D20: =100-D18-D19-D21 -> 0.6411607162 | E20: 0.8972782787 | F20: 0.1234819639 | G20: 0.1762858735 | H20: 0.5549329305 | I20: 0.7234959709 | J20: 0.03821032823 | K20: 0.07126138485 | L20: 0.2431596234 | M20: 7.192144611 | N20: 1.959344115 | O20: 1.539999345 | P20: 2.324940926 | Q20: 0.4272841383 | R20: N/A | S20: N/A | T20: N/A | U20: N/A | V20: N/A | W20: N/A | X20: N/A | Y20: N/A | Z20: N/A | AA20: N/A | AB20: N/A | AC20: N/A | AD20: N/A | AE20: N/A | AF20: N/A | AG20: N/A | AH20: N/A | AI20: N/A | AJ20: N/A | AK20: N/A | AL20: N/A | AM20: N/A | AN20: N/A | AO20: N/A | AP20: N/A | AQ20: N/A | AR20: N/A | AS20: N/A | AT20: N/A | AU20: N/A | AV20: N/A | AW20: N/A | BB20: Unimproved | BC20: N/A | BD20: N/A | BE20: N/A | BF20: N/A | BG20: N/A | BH20: N/A | BI20: N/A | BJ20: N/A | BK20: N/A | BL20: N/A | BM20: N/A | BN20: N/A | BO20: N/A | BP20: N/A | BQ20: N/A | BR20: N/A | BS20: N/A | BT20: N/A | BU20: N/A | BV20: N/A | BW20: N/A | BX20: N/A | BY20: N/A | BZ20: N/A | CA20: N/A | CB20: N/A | CC20: N/A | CD20: N/A | CE20: N/A | CF20: N/A | CG20: N/A | CH20: N/A | CI20: N/A | CJ20: N/A | CK20: N/A | CL20: N/A | CM20: N/A | CN20: N/A | CO20: N/A | CP20: N/A | CQ20: N/A | CR20: N/A | CS20: N/A | CT20: N/A | CU20: N/A | CV20: N/A | CW20: N/A
B21: Surface water | C21: =C61 -> 11.47252907 | D21: 1.565830675 | E21: 0.9708550432 | F21: 0.5828892251 | G21: 0.2501944685 | H21: 0.4575444093 | I21: 0.3929353814 | J21: 0.3903177505 | K21: 0.5966388224 | L21: 0.1788128154 | M21: 23.6252865 | N21: 8.410935598 | O21: 3.574924277 | P21: 2.365427394 | Q21: 0.4944411884 | R21: N/A | S21: N/A | T21: N/A | U21: N/A | V21: N/A | W21: N/A | X21: N/A | Y21: N/A | Z21: N/A | AA21: N/A | AB21: N/A | AC21: N/A | AD21: N/A | AE21: N/A | AF21: N/A | AG21: N/A | AH21: N/A | AI21: N/A | AJ21: N/A | AK21: N/A | AL21: N/A | AM21: N/A | AN21: N/A | AO21: N/A | AP21: N/A | AQ21: N/A | AR21: N/A | AS21: N/A | AT21: N/A | AU21: N/A | AV21: N/A | AW21: N/A | BB21: Surface water | BC21: N/A | BD21: N/A | BE21: N/A | BF21: N/A | BG21: N/A | BH21: N/A | BI21: N/A | BJ21: N/A | BK21: N/A | BL21: N/A | BM21: N/A | BN21: N/A | BO21: N/A | BP21: N/A | BQ21: N/A | BR21: N/A | BS21: N/A | BT21: N/A | BU21: N/A | BV21: N/A | BW21: N/A | BX21: N/A | BY21: N/A | BZ21: N/A | CA21: N/A | CB21: N/A | CC21: N/A | CD21: N/A | CE21: N/A | CF21: N/A | CG21: N/A | CH21: N/A | CI21: N/A | CJ21: N/A | CK21: N/A | CL21: N/A | CM21: N/A | CN21: N/A | CO21: N/A | CP21: N/A | CQ21: N/A | CR21: N/A | CS21: N/A | CT21: N/A | CU21: N/A | CV21: N/A | CW21: N/A
A22: Improved water point at more than 30 minutes | B22: Yes | C22: N/A | D22: N/A | E22: N/A | F22: N/A | G22: N/A | H22: N/A | I22: N/A | J22: N/A | K22: N/A | L22: N/A | M22: N/A | N22: N/A | O22: N/A | P22: N/A | Q22: N/A | R22: N/A | S22: N/A | T22: N/A | U22: N/A | V22: N/A | W22: N/A | X22: N/A | Y22: N/A | Z22: N/A | AA22: N/A | AB22: N/A | AC22: N/A | AD22: N/A | AE22: N/A | AF22: N/A | AG22: N/A | AH22: N/A | AI22: N/A | AJ22: N/A | AK22: N/A | AL22: N/A | AM22: N/A | AN22: N/A | AO22: N/A | AP22: N/A | AQ22: N/A | AR22: N/A | AS22: N/A | AT22: N/A | AU22: N/A | AV22: N/A | AW22: N/A | BA22: Improved water point at more than 30 minutes | BB22: Yes | BC22: N/A | BD22: N/A | BE22: N/A | BF22: N/A | BG22: N/A | BH22: N/A | BI22: N/A | BJ22: N/A | BK22: N/A | BL22: N/A | BM22: N/A | BN22: N/A | BO22: N/A | BP22: N/A | BQ22: N/A | BR22: N/A | BS22: N/A | BT22: N/A | BU22: N/A | BV22: N/A | BW22: N/A | BX22: N/A | BY22: N/A | BZ22: N/A | CA22: N/A | CB22: N/A | CC22: N/A | CD22: N/A | CE22: N/A | CF22: N/A | CG22: N/A | CH22: N/A | CI22: N/A | CJ22: N/A | CK22: N/A | CL22: N/A | CM22: N/A | CN22: N/A | CO22: N/A | CP22: N/A | CQ22: N/A | CR22: N/A | CS22: N/A | CT22: N/A | CU22: N/A | CV22: N/A | CW22: N/A
B23: No | C23: N/A | D23: N/A | E23: N/A | F23: N/A | G23: N/A | H23: N/A | I23: N/A | J23: N/A | K23: N/A | L23: N/A | M23: N/A | N23: N/A | O23: N/A | P23: N/A | Q23: N/A | R23: N/A | S23: N/A | T23: N/A | U23: N/A | V23: N/A | W23: N/A | X23: N/A | Y23: N/A | Z23: N/A | AA23: N/A | AB23: N/A | AC23: N/A | AD23: N/A | AE23: N/A | AF23: N/A | AG23: N/A | AH23: N/A | AI23: N/A | AJ23: N/A | AK23: N/A | AL23: N/A | AM23: N/A | AN23: N/A | AO23: N/A | AP23: N/A | AQ23: N/A | AR23: N/A | AS23: N/A | AT23: N/A | AU23: N/A | AV23: N/A | AW23: N/A | BB23: No | BC23: N/A | BD23: N/A | BE23: N/A | BF23: N/A | BG23: N/A | BH23: N/A | BI23: N/A | BJ23: N/A | BK23: N/A | BL23: N/A | BM23: N/A | BN23: N/A | BO23: N/A | BP23: N/A | BQ23: N/A | BR23: N/A | BS23: N/A | BT23: N/A | BU23: N/A | BV23: N/A | BW23: N/A | BX23: N/A | BY23: N/A | BZ23: N/A | CA23: N/A | CB23: N/A | CC23: N/A | CD23: N/A | CE23: N/A | CF23: N/A | CG23: N/A | CH23: N/A | CI23: N/A | CJ23: N/A | CK23: N/A | CL23: N/A | CM23: N/A | CN23: N/A | CO23: N/A | CP23: N/A | CQ23: N/A | CR23: N/A | CS23: N/A | CT23: N/A | CU23: N/A | CV23: N/A | CW23: N/A
A24: Manually calculated ratios | B24: Improved wells
B25: Improved springs
B26: Other
C27: NATIONAL wealth index quintile | H27: URBAN wealth index quintile | M27: RURAL wealth index quintile | R27: SUB-REGIONS: | BA27: Raw numbers of respondents: | BB27: Use of drinking water sources | BC27: NATIONAL wealth index quintile | BH27: URBAN wealth index quintile | BM27: RURAL wealth index quintile | BR27: SUB-REGIONS:
A28: Percentage based on weighted population | C28: Poorest | D28: Poor | E28: Middle | F28: Rich | G28: Richest | H28: Poorest | I28: Poor | J28: Middle | K28: Rich | L28: Richest | M28: Poorest | N28: Poor | O28: Middle | P28: Rich | Q28: Richest | R28: azua | S28: bahoruco | T28: barahona | U28: dajab¢n | V28: distrito nacional | W28: duarte | X28: el seybo | Y28: el¡as pi¤a | Z28: espaillat | AA28: hato mayor | AB28: independencia | AC28: la altagracia | AD28: la romana | AE28: la vega | AF28: mar¡a trinidad s nchez | AG28: monse¤ol nouel | AH28: monte cristi | AI28: monte plata | AJ28: pedernales | AK28: peravia | AL28: puerto plata | AM28: s nchez ram¡rez | AN28: salcedo | AO28: saman | AP28: san crist¢bal | AQ28: san jos‚ de ocoa | AR28: san juan | AS28: san pedro de macor¡s | AT28: santiago | AU28: santiago rodr¡guez | AV28: santo domingo | AW28: valverde | BA28: Water data, raw numbers (weighted) | BC28: Poorest | BD28: Poor | BE28: Middle | BF28: Rich | BG28: Richest | BH28: Poorest | BI28: Poor | BJ28: Middle | BK28: Rich | BL28: Richest | BM28: Poorest | BN28: Poor | BO28: Middle | BP28: Rich | BQ28: Richest | BR28: azua | BS28: bahoruco | BT28: barahona | BU28: dajab¢n | BV28: distrito nacional | BW28: duarte | BX28: el seybo | BY28: el¡as pi¤a | BZ28: espaillat | CA28: hato mayor | CB28: independencia | CC28: la altagracia | CD28: la romana | CE28: la vega | CF28: mar¡a trinidad s nchez | CG28: monse¤ol nouel | CH28: monte cristi | CI28: monte plata | CJ28: pedernales | CK28: peravia | CL28: puerto plata | CM28: s nchez ram¡rez | CN28: salcedo | CO28: saman | CP28: san crist¢bal | CQ28: san jos‚ de ocoa | CR28: san juan | CS28: san pedro de macor¡s | CT28: santiago | CU28: santiago rodr¡guez | CV28: santo domingo | CW28: valverde
A29: Piped water | B29: Yes | C29: =C58+C59 -> 46.08271886 | D29: 40.55119411 | E29: 32.82455511 | F29: 21.15711627 | G29: 9.617129578 | H29: 51.83431527 | I29: 36.96946933 | J29: 29.40838311 | K29: 16.14936384 | L29: 9.34456781 | M29: 38.54089342 | N29: 43.46156954 | O29: 35.73756061 | P29: 31.01079751 | Q29: 13.53342807 | R29: 65.29126214 | S29: 60.95320126 | T29: 62.21712976 | U29: 66.37110016 | V29: 22.32611174 | W29: 18.47010409 | X29: 35.32269257 | Y29: 53.12205836 | Z29: 41.76245211 | AA29: 9.932600213 | AB29: 68.39378238 | AC29: 13.08016878 | AD29: 10.39026863 | AE29: 35.75178998 | AF29: 11.17166213 | AG29: 65.11278195 | AH29: 5.949656751 | AI29: 27.67235927 | AJ29: 58.6544742 | AK29: 43.14334086 | AL29: 34.71411902 | AM29: 37.72997453 | AN29: 10.32448378 | AO29: 19.77911647 | AP29: 32.83825025 | AQ29: 80.13468013 | AR29: 56.07344633 | AS29: 14.48055717 | AT29: 43.20433726 | AU29: 47.87673807 | AV29: 11.39612297 | AW29: 35.29411765 | BA29: Piped water | BB29: Yes | BC29: N/A | BD29: N/A | BE29: N/A | BF29: N/A | BG29: N/A | BH29: N/A | BI29: N/A | BJ29: N/A | BK29: N/A | BL29: N/A | BM29: N/A | BN29: N/A | BO29: N/A | BP29: N/A | BQ29: N/A | BR29: N/A | BS29: N/A | BT29: N/A | BU29: N/A | BV29: N/A | BW29: N/A | BX29: N/A | BY29: N/A | BZ29: N/A | CA29: N/A | CB29: N/A | CC29: N/A | CD29: N/A | CE29: N/A | CF29: N/A | CG29: N/A | CH29: N/A | CI29: N/A | CJ29: N/A | CK29: N/A | CL29: N/A | CM29: N/A | CN29: N/A | CO29: N/A | CP29: N/A | CQ29: N/A | CR29: N/A | CS29: N/A | CT29: N/A | CU29: N/A | CV29: N/A | CW29: N/A
B30: No | C30: =100-C29 -> 53.91728114 | D30: =100-D29 -> 59.44880589 | E30: 67.17544489 | F30: 78.84288373 | G30: 90.38287042 | H30: 48.16568473 | I30: 63.03053067 | J30: 70.59161689 | K30: 83.85063616 | L30: 90.65543219 | M30: 61.45910658 | N30: 56.53843046 | O30: 64.26243939 | P30: 68.98920249 | Q30: 86.46657193 | R30: 34.70873786 | S30: 39.04679874 | T30: 37.78287024 | U30: 33.62889984 | V30: 77.67388826 | W30: 81.52989591 | X30: 64.67730743 | Y30: 46.87794164 | Z30: 58.23754789 | AA30: 90.06739979 | AB30: 31.60621762 | AC30: 86.91983122 | AD30: 89.60973137 | AE30: 64.24821002 | AF30: 88.82833787 | AG30: 34.88721805 | AH30: 94.05034325 | AI30: 72.32764073 | AJ30: 41.3455258 | AK30: 56.85665914 | AL30: 65.28588098 | AM30: 62.27002547 | AN30: 89.67551622 | AO30: 80.22088353 | AP30: 67.16174975 | AQ30: 19.86531987 | AR30: 43.92655367 | AS30: 85.51944283 | AT30: 56.79566274 | AU30: 52.12326193 | AV30: 88.60387703 | AW30: 64.70588235 | BB30: No | BC30: N/A | BD30: N/A | BE30: N/A | BF30: N/A | BG30: N/A | BH30: N/A | BI30: N/A | BJ30: N/A | BK30: N/A | BL30: N/A | BM30: N/A | BN30: N/A | BO30: N/A | BP30: N/A | BQ30: N/A | BR30: N/A | BS30: N/A | BT30: N/A | BU30: N/A | BV30: N/A | BW30: N/A | BX30: N/A | BY30: N/A | BZ30: N/A | CA30: N/A | CB30: N/A | CC30: N/A | CD30: N/A | CE30: N/A | CF30: N/A | CG30: N/A | CH30: N/A | CI30: N/A | CJ30: N/A | CK30: N/A | CL30: N/A | CM30: N/A | CN30: N/A | CO30: N/A | CP30: N/A | CQ30: N/A | CR30: N/A | CS30: N/A | CT30: N/A | CU30: N/A | CV30: N/A | CW30: N/A
A31: Piped water on premises | B31: Yes | C31: 45.98475046 | D31: 40.55119411 | E31: 32.82455511 | F31: 21.15460387 | G31: 9.616488303 | H31: 51.7130644 | I31: 36.96946933 | J31: 29.40299794 | K31: 16.14936384 | L31: 9.343607092 | M31: 38.52340752 | N31: 43.40599853 | O31: 35.73756061 | P31: 31.01079751 | Q31: 13.53342807 | R31: 65.29126214 | S31: 60.86582569 | T31: 62.14592275 | U31: 66.21887287 | V31: 22.32611174 | W31: 18.47010409 | X31: 35.32269257 | Y31: 53.12205836 | Z31: 41.76245211 | AA31: 9.932600213 | AB31: 68.39378238 | AC31: 13.08016878 | AD31: 10.39026863 | AE31: 35.75178998 | AF31: 11.17166213 | AG31: 65.11278195 | AH31: 5.949656751 | AI31: 27.67235927 | AJ31: 58.6544742 | AK31: 43.14334086 | AL31: 34.71411902 | AM31: 37.72997453 | AN31: 10.29748284 | AO31: 19.77911647 | AP31: 32.83825025 | AQ31: 80.13468013 | AR31: 56.07344633 | AS31: 14.48055717 | AT31: 43.19626168 | AU31: 47.87673807 | AV31: 11.37607506 | AW31: 35.26941917 | BA31: Piped water on premises | BB31: Yes | BC31: N/A | BD31: N/A | BE31: N/A | BF31: N/A | BG31: N/A | BH31: N/A | BI31: N/A | BJ31: N/A | BK31: N/A | BL31: N/A | BM31: N/A | BN31: N/A | BO31: N/A | BP31: N/A | BQ31: N/A | BR31: N/A | BS31: N/A | BT31: N/A | BU31: N/A | BV31: N/A | BW31: N/A | BX31: N/A | BY31: N/A | BZ31: N/A | CA31: N/A | CB31: N/A | CC31: N/A | CD31: N/A | CE31: N/A | CF31: N/A | CG31: N/A | CH31: N/A | CI31: N/A | CJ31: N/A | CK31: N/A | CL31: N/A | CM31: N/A | CN31: N/A | CO31: N/A | CP31: N/A | CQ31: N/A | CR31: N/A | CS31: N/A | CT31: N/A | CU31: N/A | CV31: N/A | CW31: N/A
B32: No | C32: 54.01524954 | D32: 59.44880589 | E32: 67.17544489 | F32: 78.84539613 | G32: 90.3835117 | H32: 48.2869356 | I32: 63.03053067 | J32: 70.59700206 | K32: 83.85063616 | L32: 90.65639291 | M32: 61.47659248 | N32: 56.59400147 | O32: 64.26243939 | P32: 68.98920249 | Q32: 86.46657193 | R32: 34.70873786 | S32: 39.13417431 | T32: 37.85407725 | U32: 33.78112713 | V32: 77.67388826 | W32: 81.52989591 | X32: 64.67730743 | Y32: 46.87794164 | Z32: 58.23754789 | AA32: 90.06739979 | AB32: 31.60621762 | AC32: 86.91983122 | AD32: 89.60973137 | AE32: 64.24821002 | AF32: 88.82833787 | AG32: 34.88721805 | AH32: 94.05034325 | AI32: 72.32764073 | AJ32: 41.3455258 | AK32: 56.85665914 | AL32: 65.28588098 | AM32: 62.27002547 | AN32: 89.70251716 | AO32: 80.22088353 | AP32: 67.16174975 | AQ32: 19.86531987 | AR32: 43.92655367 | AS32: 85.51944283 | AT32: 56.80373832 | AU32: 52.12326193 | AV32: 88.62392494 | AW32: 64.73058083 | BB32: No | BC32: N/A | BD32: N/A | BE32: N/A | BF32: N/A | BG32: N/A | BH32: N/A | BI32: N/A | BJ32: N/A | BK32: N/A | BL32: N/A | BM32: N/A | BN32: N/A | BO32: N/A | BP32: N/A | BQ32: N/A | BR32: N/A | BS32: N/A | BT32: N/A | BU32: N/A | BV32: N/A | BW32: N/A | BX32: N/A | BY32: N/A | BZ32: N/A | CA32: N/A | CB32: N/A | CC32: N/A | CD32: N/A | CE32: N/A | CF32: N/A | CG32: N/A | CH32: N/A | CI32: N/A | CJ32: N/A | CK32: N/A | CL32: N/A | CM32: N/A | CN32: N/A | CO32: N/A | CP32: N/A | CQ32: N/A | CR32: N/A | CS32: N/A | CT32: N/A | CU32: N/A | CV32: N/A | CW32: N/A
A33: Piped water into dwelling | B33: Yes | C33: N/A | D33: N/A | E33: N/A | F33: N/A | G33: N/A | H33: N/A | I33: N/A | J33: N/A | K33: N/A | L33: N/A | M33: N/A | N33: N/A | O33: N/A | P33: N/A | Q33: N/A | R33: N/A | S33: N/A | T33: N/A | U33: N/A | V33: N/A | W33: N/A | X33: N/A | Y33: N/A | Z33: N/A | AA33: N/A | AB33: N/A | AC33: N/A | AD33: N/A | AE33: N/A | AF33: N/A | AG33: N/A | AH33: N/A | AI33: N/A | AJ33: N/A | AK33: N/A | AL33: N/A | AM33: N/A | AN33: N/A | AO33: N/A | AP33: N/A | AQ33: N/A | AR33: N/A | AS33: N/A | AT33: N/A | AU33: N/A | AV33: N/A | AW33: N/A | BA33: Piped water into dwelling | BB33: Yes | BC33: N/A | BD33: N/A | BE33: N/A | BF33: N/A | BG33: N/A | BH33: N/A | BI33: N/A | BJ33: N/A | BK33: N/A | BL33: N/A | BM33: N/A | BN33: N/A | BO33: N/A | BP33: N/A | BQ33: N/A | BR33: N/A | BS33: N/A | BT33: N/A | BU33: N/A | BV33: N/A | BW33: N/A | BX33: N/A | BY33: N/A | BZ33: N/A | CA33: N/A | CB33: N/A | CC33: N/A | CD33: N/A | CE33: N/A | CF33: N/A | CG33: N/A | CH33: N/A | CI33: N/A | CJ33: N/A | CK33: N/A | CL33: N/A | CM33: N/A | CN33: N/A | CO33: N/A | CP33: N/A | CQ33: N/A | CR33: N/A | CS33: N/A | CT33: N/A | CU33: N/A | CV33: N/A | CW33: N/A
B34: No | C34: N/A | D34: N/A | E34: N/A | F34: N/A | G34: N/A | H34: N/A | I34: N/A | J34: N/A | K34: N/A | L34: N/A | M34: N/A | N34: N/A | O34: N/A | P34: N/A | Q34: N/A | R34: N/A | S34: N/A | T34: N/A | U34: N/A | V34: N/A | W34: N/A | X34: N/A | Y34: N/A | Z34: N/A | AA34: N/A | AB34: N/A | AC34: N/A | AD34: N/A | AE34: N/A | AF34: N/A | AG34: N/A | AH34: N/A | AI34: N/A | AJ34: N/A | AK34: N/A | AL34: N/A | AM34: N/A | AN34: N/A | AO34: N/A | AP34: N/A | AQ34: N/A | AR34: N/A | AS34: N/A | AT34: N/A | AU34: N/A | AV34: N/A | AW34: N/A | BB34: No | BC34: N/A | BD34: N/A | BE34: N/A | BF34: N/A | BG34: N/A | BH34: N/A | BI34: N/A | BJ34: N/A | BK34: N/A | BL34: N/A | BM34: N/A | BN34: N/A | BO34: N/A | BP34: N/A | BQ34: N/A | BR34: N/A | BS34: N/A | BT34: N/A | BU34: N/A | BV34: N/A | BW34: N/A | BX34: N/A | BY34: N/A | BZ34: N/A | CA34: N/A | CB34: N/A | CC34: N/A | CD34: N/A | CE34: N/A | CF34: N/A | CG34: N/A | CH34: N/A | CI34: N/A | CJ34: N/A | CK34: N/A | CL34: N/A | CM34: N/A | CN34: N/A | CO34: N/A | CP34: N/A | CQ34: N/A | CR34: N/A | CS34: N/A | CT34: N/A | CU34: N/A | CV34: N/A | CW34: N/A
A35: Water source on premises | B35: Yes | C35: 66.00489385 | D35: 54.46479462 | E35: 42.95464051 | F35: 27.26465724 | G35: 11.02033771 | H35: 60.29755939 | I35: 42.90484812 | J35: 34.46692715 | K35: 18.78889831 | L35: 10.18275135 | M35: 61.87290343 | N35: 69.00896126 | O35: 61.96924065 | P35: 51.5237789 | Q35: 22.03777775 | R35: 67.5566343 | S35: 69.75344037 | T35: 70.95851216 | U35: 73.55832241 | V35: 22.78221209 | W35: 50.61728395 | X35: 56.21096461 | Y35: 55.3498588 | Z35: 62.2605364 | AA35: 53.565094 | AB35: 70.28345017 | AC35: 26.12517581 | AD35: 14.06487582 | AE35: 61.55131265 | AF35: 51.46457766 | AG35: 70.28571429 | AH35: 43.32570557 | AI35: 52.94117647 | AJ35: 70.70542129 | AK35: 51.35440181 | AL35: 42.88214702 | AM35: 49.90093405 | AN35: 63.28865642 | AO35: 46.854083 | AP35: 44.08952187 | AQ35: 83.46427235 | AR35: 58.55932203 | AS35: 19.38479396 | AT35: 49.38317757 | AU35: 56.93348365 | AV35: 14.40578577 | AW35: 43.2820154 | BA35: Water source on premises | BB35: Yes | BC35: N/A | BD35: N/A | BE35: N/A | BF35: N/A | BG35: N/A | BH35: N/A | BI35: N/A | BJ35: N/A | BK35: N/A | BL35: N/A | BM35: N/A | BN35: N/A | BO35: N/A | BP35: N/A | BQ35: N/A | BR35: N/A | BS35: N/A | BT35: N/A | BU35: N/A | BV35: N/A | BW35: N/A | BX35: N/A | BY35: N/A | BZ35: N/A | CA35: N/A | CB35: N/A | CC35: N/A | CD35: N/A | CE35: N/A | CF35: N/A | CG35: N/A | CH35: N/A | CI35: N/A | CJ35: N/A | CK35: N/A | CL35: N/A | CM35: N/A | CN35: N/A | CO35: N/A | CP35: N/A | CQ35: N/A | CR35: N/A | CS35: N/A | CT35: N/A | CU35: N/A | CV35: N/A | CW35: N/A
B36: No | C36: 33.99510615 | D36: 45.53520538 | E36: 57.04535949 | F36: 72.73534276 | G36: 88.97966229 | H36: 39.70244061 | I36: 57.09515188 | J36: 65.53307285 | K36: 81.21110169 | L36: 89.81724865 | M36: 38.12709657 | N36: 30.99103874 | O36: 38.03075935 | P36: 48.4762211 | Q36: 77.96222225 | R36: 32.4433657 | S36: 30.24655963 | T36: 29.04148784 | U36: 26.44167759 | V36: 77.21778791 | W36: 49.38271605 | X36: 43.78903539 | Y36: 44.6501412 | Z36: 37.7394636 | AA36: 46.434906 | AB36: 29.71654983 | AC36: 73.87482419 | AD36: 85.93512418 | AE36: 38.44868735 | AF36: 48.53542234 | AG36: 29.71428571 | AH36: 56.67429443 | AI36: 47.05882353 | AJ36: 29.29457871 | AK36: 48.64559819 | AL36: 57.11785298 | AM36: 50.09906595 | AN36: 36.71134358 | AO36: 53.145917 | AP36: 55.91047813 | AQ36: 16.53572765 | AR36: 41.44067797 | AS36: 80.61520604 | AT36: 50.61682243 | AU36: 43.06651635 | AV36: 85.59421423 | AW36: 56.7179846 | BB36: No | BC36: N/A | BD36: N/A | BE36: N/A | BF36: N/A | BG36: N/A | BH36: N/A | BI36: N/A | BJ36: N/A | BK36: N/A | BL36: N/A | BM36: N/A | BN36: N/A | BO36: N/A | BP36: N/A | BQ36: N/A | BR36: N/A | BS36: N/A | BT36: N/A | BU36: N/A | BV36: N/A | BW36: N/A | BX36: N/A | BY36: N/A | BZ36: N/A | CA36: N/A | CB36: N/A | CC36: N/A | CD36: N/A | CE36: N/A | CF36: N/A | CG36: N/A | CH36: N/A | CI36: N/A | CJ36: N/A | CK36: N/A | CL36: N/A | CM36: N/A | CN36: N/A | CO36: N/A | CP36: N/A | CQ36: N/A | CR36: N/A | CS36: N/A | CT36: N/A | CU36: N/A | CV36: N/A | CW36: N/A
A37: Improved Water source on premises | B37: Yes | C37: N/A | D37: N/A | E37: N/A | F37: N/A | G37: N/A | H37: N/A | I37: N/A | J37: N/A | K37: N/A | L37: N/A | M37: N/A | N37: N/A | O37: N/A | P37: N/A | Q37: N/A | R37: N/A | S37: N/A | T37: N/A | U37: N/A | V37: N/A | W37: N/A | X37: N/A | Y37: N/A | Z37: N/A | AA37: N/A | AB37: N/A | AC37: N/A | AD37: N/A | AE37: N/A | AF37: N/A | AG37: N/A | AH37: N/A | AI37: N/A | AJ37: N/A | AK37: N/A | AL37: N/A | AM37: N/A | AN37: N/A | AO37: N/A | AP37: N/A | AQ37: N/A | AR37: N/A | AS37: N/A | AT37: N/A | AU37: N/A | AV37: N/A | AW37: N/A | BA37: Improved water source on premises | BB37: Yes | BC37: N/A | BD37: N/A | BE37: N/A | BF37: N/A | BG37: N/A | BH37: N/A | BI37: N/A | BJ37: N/A | BK37: N/A | BL37: N/A | BM37: N/A | BN37: N/A | BO37: N/A | BP37: N/A | BQ37: N/A | BR37: N/A | BS37: N/A | BT37: N/A | BU37: N/A | BV37: N/A | BW37: N/A | BX37: N/A | BY37: N/A | BZ37: N/A | CA37: N/A | CB37: N/A | CC37: N/A | CD37: N/A | CE37: N/A | CF37: N/A | CG37: N/A | CH37: N/A | CI37: N/A | CJ37: N/A | CK37: N/A | CL37: N/A | CM37: N/A | CN37: N/A | CO37: N/A | CP37: N/A | CQ37: N/A | CR37: N/A | CS37: N/A | CT37: N/A | CU37: N/A | CV37: N/A | CW37: N/A
B38: No | C38: N/A | D38: N/A | E38: N/A | F38: N/A | G38: N/A | H38: N/A | I38: N/A | J38: N/A | K38: N/A | L38: N/A | M38: N/A | N38: N/A | O38: N/A | P38: N/A | Q38: N/A | R38: N/A | S38: N/A | T38: N/A | U38: N/A | V38: N/A | W38: N/A | X38: N/A | Y38: N/A | Z38: N/A | AA38: N/A | AB38: N/A | AC38: N/A | AD38: N/A | AE38: N/A | AF38: N/A | AG38: N/A | AH38: N/A | AI38: N/A | AJ38: N/A | AK38: N/A | AL38: N/A | AM38: N/A | AN38: N/A | AO38: N/A | AP38: N/A | AQ38: N/A | AR38: N/A | AS38: N/A | AT38: N/A | AU38: N/A | AV38: N/A | AW38: N/A | BB38: No | BC38: N/A | BD38: N/A | BE38: N/A | BF38: N/A | BG38: N/A | BH38: N/A | BI38: N/A | BJ38: N/A | BK38: N/A | BL38: N/A | BM38: N/A | BN38: N/A | BO38: N/A | BP38: N/A | BQ38: N/A | BR38: N/A | BS38: N/A | BT38: N/A | BU38: N/A | BV38: N/A | BW38: N/A | BX38: N/A | BY38: N/A | BZ38: N/A | CA38: N/A | CB38: N/A | CC38: N/A | CD38: N/A | CE38: N/A | CF38: N/A | CG38: N/A | CH38: N/A | CI38: N/A | CJ38: N/A | CK38: N/A | CL38: N/A | CM38: N/A | CN38: N/A | CO38: N/A | CP38: N/A | CQ38: N/A | CR38: N/A | CS38: N/A | CT38: N/A | CU38: N/A | CV38: N/A | CW38: N/A
A39: Piped water on premises available when needed | B39: Yes | C39: N/A | D39: N/A | E39: N/A | F39: N/A | G39: N/A | H39: N/A | I39: N/A | J39: N/A | K39: N/A | L39: N/A | M39: N/A | N39: N/A | O39: N/A | P39: N/A | Q39: N/A | R39: N/A | S39: N/A | T39: N/A | U39: N/A | V39: N/A | W39: N/A | X39: N/A | Y39: N/A | Z39: N/A | AA39: N/A | AB39: N/A | AC39: N/A | AD39: N/A | AE39: N/A | AF39: N/A | AG39: N/A | AH39: N/A | AI39: N/A | AJ39: N/A | AK39: N/A | AL39: N/A | AM39: N/A | AN39: N/A | AO39: N/A | AP39: N/A | AQ39: N/A | AR39: N/A | AS39: N/A | AT39: N/A | AU39: N/A | AV39: N/A | AW39: N/A | BA39: Piped water on premises available when needed | BB39: Yes | BC39: N/A | BD39: N/A | BE39: N/A | BF39: N/A | BG39: N/A | BH39: N/A | BI39: N/A | BJ39: N/A | BK39: N/A | BL39: N/A | BM39: N/A | BN39: N/A | BO39: N/A | BP39: N/A | BQ39: N/A | BR39: N/A | BS39: N/A | BT39: N/A | BU39: N/A | BV39: N/A | BW39: N/A | BX39: N/A | BY39: N/A | BZ39: N/A | CA39: N/A | CB39: N/A | CC39: N/A | CD39: N/A | CE39: N/A | CF39: N/A | CG39: N/A | CH39: N/A | CI39: N/A | CJ39: N/A | CK39: N/A | CL39: N/A | CM39: N/A | CN39: N/A | CO39: N/A | CP39: N/A | CQ39: N/A | CR39: N/A | CS39: N/A | CT39: N/A | CU39: N/A | CV39: N/A | CW39: N/A
B40: No | C40: N/A | D40: N/A | E40: N/A | F40: N/A | G40: N/A | H40: N/A | I40: N/A | J40: N/A | K40: N/A | L40: N/A | M40: N/A | N40: N/A | O40: N/A | P40: N/A | Q40: N/A | R40: N/A | S40: N/A | T40: N/A | U40: N/A | V40: N/A | W40: N/A | X40: N/A | Y40: N/A | Z40: N/A | AA40: N/A | AB40: N/A | AC40: N/A | AD40: N/A | AE40: N/A | AF40: N/A | AG40: N/A | AH40: N/A | AI40: N/A | AJ40: N/A | AK40: N/A | AL40: N/A | AM40: N/A | AN40: N/A | AO40: N/A | AP40: N/A | AQ40: N/A | AR40: N/A | AS40: N/A | AT40: N/A | AU40: N/A | AV40: N/A | AW40: N/A | BB40: No | BC40: N/A | BD40: N/A | BE40: N/A | BF40: N/A | BG40: N/A | BH40: N/A | BI40: N/A | BJ40: N/A | BK40: N/A | BL40: N/A | BM40: N/A | BN40: N/A | BO40: N/A | BP40: N/A | BQ40: N/A | BR40: N/A | BS40: N/A | BT40: N/A | BU40: N/A | BV40: N/A | BW40: N/A | BX40: N/A | BY40: N/A | BZ40: N/A | CA40: N/A | CB40: N/A | CC40: N/A | CD40: N/A | CE40: N/A | CF40: N/A | CG40: N/A | CH40: N/A | CI40: N/A | CJ40: N/A | CK40: N/A | CL40: N/A | CM40: N/A | CN40: N/A | CO40: N/A | CP40: N/A | CQ40: N/A | CR40: N/A | CS40: N/A | CT40: N/A | CU40: N/A | CV40: N/A | CW40: N/A
A41: Water point at more than 30 minutes | B41: Yes | C41: 4.24865546 | D41: 0.8121883588 | E41: 0.6295338215 | F41: 1.098749577 | G41: 0.3582172981 | H41: 0.3616993696 | I41: 0.5502598255 | J41: 0.3367559948 | K41: 0.5809284338 | L41: 0.3710916539 | M41: 7.57051609 | N41: 3.064919777 | O41: 1.470931539 | P41: 1.103136709 | Q41: 2.065553834 | R41: 0.1143728555 | S41: 3.895685769 | T41: 3.268678161 | U41: 0.8603031544 | V41: 0 | W41: 0.7637017071 | X41: 3.818615752 | Y41: 10.60711793 | Z41: 0.6638217165 | AA41: 1.212121212 | AB41: 1.467820851 | AC41: 3.758542141 | AD41: 0 | AE41: 1.472098596 | AF41: 0.4076878276 | AG41: 1.421436804 | AH41: 0.4061738424 | AI41: 3.702196908 | AJ41: 6.370192308 | AK41: 2.353530295 | AL41: 4.15954416 | AM41: 4.15921288 | AN41: 1.037906137 | AO41: 3.171247357 | AP41: 2.852551225 | AQ41: 0.1730103806 | AR41: 8.111792774 | AS41: 1.494565217 | AT41: 0.3921568627 | AU41: 2.813599062 | AV41: 0 | AW41: 1.360057266 | BA41: Water point at more than 30 minutes | BB41: Yes | BC41: N/A | BD41: N/A | BE41: N/A | BF41: N/A | BG41: N/A | BH41: N/A | BI41: N/A | BJ41: N/A | BK41: N/A | BL41: N/A | BM41: N/A | BN41: N/A | BO41: N/A | BP41: N/A | BQ41: N/A | BR41: N/A | BS41: N/A | BT41: N/A | BU41: N/A | BV41: N/A | BW41: N/A | BX41: N/A | BY41: N/A | BZ41: N/A | CA41: N/A | CB41: N/A | CC41: N/A | CD41: N/A | CE41: N/A | CF41: N/A | CG41: N/A | CH41: N/A | CI41: N/A | CJ41: N/A | CK41: N/A | CL41: N/A | CM41: N/A | CN41: N/A | CO41: N/A | CP41: N/A | CQ41: N/A | CR41: N/A | CS41: N/A | CT41: N/A | CU41: N/A | CV41: N/A | CW41: N/A
B42: No | C42: 95.75134454 | D42: 99.18781164 | E42: 99.37046618 | F42: 98.90125042 | G42: 99.6417827 | H42: 99.63830063 | I42: 99.44974017 | J42: 99.66324401 | K42: 99.41907157 | L42: 99.62890835 | M42: 92.42948391 | N42: 96.93508022 | O42: 98.52906846 | P42: 98.89686329 | Q42: 97.93444617 | R42: 99.88562714 | S42: 96.10431423 | T42: 96.73132184 | U42: 99.13969685 | V42: 100 | W42: 99.23629829 | X42: 96.18138425 | Y42: 89.39288207 | Z42: 99.33617828 | AA42: 98.78787879 | AB42: 98.53217915 | AC42: 96.24145786 | AD42: 100 | AE42: 98.5279014 | AF42: 99.59231217 | AG42: 98.5785632 | AH42: 99.59382616 | AI42: 96.29780309 | AJ42: 93.62980769 | AK42: 97.6464697 | AL42: 95.84045584 | AM42: 95.84078712 | AN42: 98.96209386 | AO42: 96.82875264 | AP42: 97.14744877 | AQ42: 99.82698962 | AR42: 91.88820723 | AS42: 98.50543478 | AT42: 99.60784314 | AU42: 97.18640094 | AV42: 100 | AW42: 98.63994273 | BB42: No | BC42: N/A | BD42: N/A | BE42: N/A | BF42: N/A | BG42: N/A | BH42: N/A | BI42: N/A | BJ42: N/A | BK42: N/A | BL42: N/A | BM42: N/A | BN42: N/A | BO42: N/A | BP42: N/A | BQ42: N/A | BR42: N/A | BS42: N/A | BT42: N/A | BU42: N/A | BV42: N/A | BW42: N/A | BX42: N/A | BY42: N/A | BZ42: N/A | CA42: N/A | CB42: N/A | CC42: N/A | CD42: N/A | CE42: N/A | CF42: N/A | CG42: N/A | CH42: N/A | CI42: N/A | CJ42: N/A | CK42: N/A | CL42: N/A | CM42: N/A | CN42: N/A | CO42: N/A | CP42: N/A | CQ42: N/A | CR42: N/A | CS42: N/A | CT42: N/A | CU42: N/A | CV42: N/A | CW42: N/A
A43: Water source available when needed | B43: Yes | C43: N/A | D43: N/A | E43: N/A | F43: N/A | G43: N/A | H43: N/A | I43: N/A | J43: N/A | K43: N/A | L43: N/A | M43: N/A | N43: N/A | O43: N/A | P43: N/A | Q43: N/A | R43: N/A | S43: N/A | T43: N/A | U43: N/A | V43: N/A | W43: N/A | X43: N/A | Y43: N/A | Z43: N/A | AA43: N/A | AB43: N/A | AC43: N/A | AD43: N/A | AE43: N/A | AF43: N/A | AG43: N/A | AH43: N/A | AI43: N/A | AJ43: N/A | AK43: N/A | AL43: N/A | AM43: N/A | AN43: N/A | AO43: N/A | AP43: N/A | AQ43: N/A | AR43: N/A | AS43: N/A | AT43: N/A | AU43: N/A | AV43: N/A | AW43: N/A | BA43: Water source available when needed | BB43: Yes | BC43: N/A | BD43: N/A | BE43: N/A | BF43: N/A | BG43: N/A | BH43: N/A | BI43: N/A | BJ43: N/A | BK43: N/A | BL43: N/A | BM43: N/A | BN43: N/A | BO43: N/A | BP43: N/A | BQ43: N/A | BR43: N/A | BS43: N/A | BT43: N/A | BU43: N/A | BV43: N/A | BW43: N/A | BX43: N/A | BY43: N/A | BZ43: N/A | CA43: N/A | CB43: N/A | CC43: N/A | CD43: N/A | CE43: N/A | CF43: N/A | CG43: N/A | CH43: N/A | CI43: N/A | CJ43: N/A | CK43: N/A | CL43: N/A | CM43: N/A | CN43: N/A | CO43: N/A | CP43: N/A | CQ43: N/A | CR43: N/A | CS43: N/A | CT43: N/A | CU43: N/A | CV43: N/A | CW43: N/A
B44: No | C44: N/A | D44: N/A | E44: N/A | F44: N/A | G44: N/A | H44: N/A | I44: N/A | J44: N/A | K44: N/A | L44: N/A | M44: N/A | N44: N/A | O44: N/A | P44: N/A | Q44: N/A | R44: N/A | S44: N/A | T44: N/A | U44: N/A | V44: N/A | W44: N/A | X44: N/A | Y44: N/A | Z44: N/A | AA44: N/A | AB44: N/A | AC44: N/A | AD44: N/A | AE44: N/A | AF44: N/A | AG44: N/A | AH44: N/A | AI44: N/A | AJ44: N/A | AK44: N/A | AL44: N/A | AM44: N/A | AN44: N/A | AO44: N/A | AP44: N/A | AQ44: N/A | AR44: N/A | AS44: N/A | AT44: N/A | AU44: N/A | AV44: N/A | AW44: N/A | BB44: No | BC44: N/A | BD44: N/A | BE44: N/A | BF44: N/A | BG44: N/A | BH44: N/A | BI44: N/A | BJ44: N/A | BK44: N/A | BL44: N/A | BM44: N/A | BN44: N/A | BO44: N/A | BP44: N/A | BQ44: N/A | BR44: N/A | BS44: N/A | BT44: N/A | BU44: N/A | BV44: N/A | BW44: N/A | BX44: N/A | BY44: N/A | BZ44: N/A | CA44: N/A | CB44: N/A | CC44: N/A | CD44: N/A | CE44: N/A | CF44: N/A | CG44: N/A | CH44: N/A | CI44: N/A | CJ44: N/A | CK44: N/A | CL44: N/A | CM44: N/A | CN44: N/A | CO44: N/A | CP44: N/A | CQ44: N/A | CR44: N/A | CS44: N/A | CT44: N/A | CU44: N/A | CV44: N/A | CW44: N/A
A45: Improved water source available when needed | B45: Yes | C45: N/A | D45: N/A | E45: N/A | F45: N/A | G45: N/A | H45: N/A | I45: N/A | J45: N/A | K45: N/A | L45: N/A | M45: N/A | N45: N/A | O45: N/A | P45: N/A | Q45: N/A | R45: N/A | S45: N/A | T45: N/A | U45: N/A | V45: N/A | W45: N/A | X45: N/A | Y45: N/A | Z45: N/A | AA45: N/A | AB45: N/A | AC45: N/A | AD45: N/A | AE45: N/A | AF45: N/A | AG45: N/A | AH45: N/A | AI45: N/A | AJ45: N/A | AK45: N/A | AL45: N/A | AM45: N/A | AN45: N/A | AO45: N/A | AP45: N/A | AQ45: N/A | AR45: N/A | AS45: N/A | AT45: N/A | AU45: N/A | AV45: N/A | AW45: N/A | BA45: Improved water source available when needed | BB45: Yes | BC45: N/A | BD45: N/A | BE45: N/A | BF45: N/A | BG45: N/A | BH45: N/A | BI45: N/A | BJ45: N/A | BK45: N/A | BL45: N/A | BM45: N/A | BN45: N/A | BO45: N/A | BP45: N/A | BQ45: N/A | BR45: N/A | BS45: N/A | BT45: N/A | BU45: N/A | BV45: N/A | BW45: N/A | BX45: N/A | BY45: N/A | BZ45: N/A | CA45: N/A | CB45: N/A | CC45: N/A | CD45: N/A | CE45: N/A | CF45: N/A | CG45: N/A | CH45: N/A | CI45: N/A | CJ45: N/A | CK45: N/A | CL45: N/A | CM45: N/A | CN45: N/A | CO45: N/A | CP45: N/A | CQ45: N/A | CR45: N/A | CS45: N/A | CT45: N/A | CU45: N/A | CV45: N/A | CW45: N/A
B46: No | C46: N/A | D46: N/A | E46: N/A | F46: N/A | G46: N/A | H46: N/A | I46: N/A | J46: N/A | K46: N/A | L46: N/A | M46: N/A | N46: N/A | O46: N/A | P46: N/A | Q46: N/A | R46: N/A | S46: N/A | T46: N/A | U46: N/A | V46: N/A | W46: N/A | X46: N/A | Y46: N/A | Z46: N/A | AA46: N/A | AB46: N/A | AC46: N/A | AD46: N/A | AE46: N/A | AF46: N/A | AG46: N/A | AH46: N/A | AI46: N/A | AJ46: N/A | AK46: N/A | AL46: N/A | AM46: N/A | AN46: N/A | AO46: N/A | AP46: N/A | AQ46: N/A | AR46: N/A | AS46: N/A | AT46: N/A | AU46: N/A | AV46: N/A | AW46: N/A | BB46: No | BC46: N/A | BD46: N/A | BE46: N/A | BF46: N/A | BG46: N/A | BH46: N/A | BI46: N/A | BJ46: N/A | BK46: N/A | BL46: N/A | BM46: N/A | BN46: N/A | BO46: N/A | BP46: N/A | BQ46: N/A | BR46: N/A | BS46: N/A | BT46: N/A | BU46: N/A | BV46: N/A | BW46: N/A | BX46: N/A | BY46: N/A | BZ46: N/A | CA46: N/A | CB46: N/A | CC46: N/A | CD46: N/A | CE46: N/A | CF46: N/A | CG46: N/A | CH46: N/A | CI46: N/A | CJ46: N/A | CK46: N/A | CL46: N/A | CM46: N/A | CN46: N/A | CO46: N/A | CP46: N/A | CQ46: N/A | CR46: N/A | CS46: N/A | CT46: N/A | CU46: N/A | CV46: N/A | CW46: N/A
A47: Microbiological quality at point of collection | B47: Not contaminated (No E. coli in 100 mL) | C47: N/A | D47: N/A | E47: N/A | F47: N/A | G47: N/A | H47: N/A | I47: N/A | J47: N/A | K47: N/A | L47: N/A | M47: N/A | N47: N/A | O47: N/A | P47: N/A | Q47: N/A | R47: N/A | S47: N/A | T47: N/A | U47: N/A | V47: N/A | W47: N/A | X47: N/A | Y47: N/A | Z47: N/A | AA47: N/A | AB47: N/A | AC47: N/A | AD47: N/A | AE47: N/A | AF47: N/A | AG47: N/A | AH47: N/A | AI47: N/A | AJ47: N/A | AK47: N/A | AL47: N/A | AM47: N/A | AN47: N/A | AO47: N/A | AP47: N/A | AQ47: N/A | AR47: N/A | AS47: N/A | AT47: N/A | AU47: N/A | AV47: N/A | AW47: N/A | BA47: Microbiological quality at point of collection | BB47: Not contaminated (No E. coli in 100 mL) | BC47: N/A | BD47: N/A | BE47: N/A | BF47: N/A | BG47: N/A | BH47: N/A | BI47: N/A | BJ47: N/A | BK47: N/A | BL47: N/A | BM47: N/A | BN47: N/A | BO47: N/A | BP47: N/A | BQ47: N/A | BR47: N/A | BS47: N/A | BT47: N/A | BU47: N/A | BV47: N/A | BW47: N/A | BX47: N/A | BY47: N/A | BZ47: N/A | CA47: N/A | CB47: N/A | CC47: N/A | CD47: N/A | CE47: N/A | CF47: N/A | CG47: N/A | CH47: N/A | CI47: N/A | CJ47: N/A | CK47: N/A | CL47: N/A | CM47: N/A | CN47: N/A | CO47: N/A | CP47: N/A | CQ47: N/A | CR47: N/A | CS47: N/A | CT47: N/A | CU47: N/A | CV47: N/A | CW47: N/A
B48: Contaminated (E. coli detected in 100 mL) | C48: N/A | D48: N/A | E48: N/A | F48: N/A | G48: N/A | H48: N/A | I48: N/A | J48: N/A | K48: N/A | L48: N/A | M48: N/A | N48: N/A | O48: N/A | P48: N/A | Q48: N/A | R48: N/A | S48: N/A | T48: N/A | U48: N/A | V48: N/A | W48: N/A | X48: N/A | Y48: N/A | Z48: N/A | AA48: N/A | AB48: N/A | AC48: N/A | AD48: N/A | AE48: N/A | AF48: N/A | AG48: N/A | AH48: N/A | AI48: N/A | AJ48: N/A | AK48: N/A | AL48: N/A | AM48: N/A | AN48: N/A | AO48: N/A | AP48: N/A | AQ48: N/A | AR48: N/A | AS48: N/A | AT48: N/A | AU48: N/A | AV48: N/A | AW48: N/A | BB48: Contaminated (E. coli detected in 100 mL) | BC48: N/A | BD48: N/A | BE48: N/A | BF48: N/A | BG48: N/A | BH48: N/A | BI48: N/A | BJ48: N/A | BK48: N/A | BL48: N/A | BM48: N/A | BN48: N/A | BO48: N/A | BP48: N/A | BQ48: N/A | BR48: N/A | BS48: N/A | BT48: N/A | BU48: N/A | BV48: N/A | BW48: N/A | BX48: N/A | BY48: N/A | BZ48: N/A | CA48: N/A | CB48: N/A | CC48: N/A | CD48: N/A | CE48: N/A | CF48: N/A | CG48: N/A | CH48: N/A | CI48: N/A | CJ48: N/A | CK48: N/A | CL48: N/A | CM48: N/A | CN48: N/A | CO48: N/A | CP48: N/A | CQ48: N/A | CR48: N/A | CS48: N/A | CT48: N/A | CU48: N/A | CV48: N/A | CW48: N/A
B49: Highly contaminated (>100 CFU/100 mL) | C49: N/A | D49: N/A | E49: N/A | F49: N/A | G49: N/A | H49: N/A | I49: N/A | J49: N/A | K49: N/A | L49: N/A | M49: N/A | N49: N/A | O49: N/A | P49: N/A | Q49: N/A | R49: N/A | S49: N/A | T49: N/A | U49: N/A | V49: N/A | W49: N/A | X49: N/A | Y49: N/A | Z49: N/A | AA49: N/A | AB49: N/A | AC49: N/A | AD49: N/A | AE49: N/A | AF49: N/A | AG49: N/A | AH49: N/A | AI49: N/A | AJ49: N/A | AK49: N/A | AL49: N/A | AM49: N/A | AN49: N/A | AO49: N/A | AP49: N/A | AQ49: N/A | AR49: N/A | AS49: N/A | AT49: N/A | AU49: N/A | AV49: N/A | AW49: N/A | BB49: Highly contaminated (>100 CFU/100 mL) | BC49: N/A | BD49: N/A | BE49: N/A | BF49: N/A | BG49: N/A | BH49: N/A | BI49: N/A | BJ49: N/A | BK49: N/A | BL49: N/A | BM49: N/A | BN49: N/A | BO49: N/A | BP49: N/A | BQ49: N/A | BR49: N/A | BS49: N/A | BT49: N/A | BU49: N/A | BV49: N/A | BW49: N/A | BX49: N/A | BY49: N/A | BZ49: N/A | CA49: N/A | CB49: N/A | CC49: N/A | CD49: N/A | CE49: N/A | CF49: N/A | CG49: N/A | CH49: N/A | CI49: N/A | CJ49: N/A | CK49: N/A | CL49: N/A | CM49: N/A | CN49: N/A | CO49: N/A | CP49: N/A | CQ49: N/A | CR49: N/A | CS49: N/A | CT49: N/A | CU49: N/A | CV49: N/A | CW49: N/A
A50: Microbiological quality of improved water sources at point of collection | B50: Not contaminated (No E. coli in 100 mL) | C50: N/A | D50: N/A | E50: N/A | F50: N/A | G50: N/A | H50: N/A | I50: N/A | J50: N/A | K50: N/A | L50: N/A | M50: N/A | N50: N/A | O50: N/A | P50: N/A | Q50: N/A | R50: N/A | S50: N/A | T50: N/A | U50: N/A | V50: N/A | W50: N/A | X50: N/A | Y50: N/A | Z50: N/A | AA50: N/A | AB50: N/A | AC50: N/A | AD50: N/A | AE50: N/A | AF50: N/A | AG50: N/A | AH50: N/A | AI50: N/A | AJ50: N/A | AK50: N/A | AL50: N/A | AM50: N/A | AN50: N/A | AO50: N/A | AP50: N/A | AQ50: N/A | AR50: N/A | AS50: N/A | AT50: N/A | AU50: N/A | AV50: N/A | AW50: N/A | BA50: Microbiological quality of improved water sources at point of collection | BB50: Not contaminated (No E. coli in 100 mL) | BC50: N/A | BD50: N/A | BE50: N/A | BF50: N/A | BG50: N/A | BH50: N/A | BI50: N/A | BJ50: N/A | BK50: N/A | BL50: N/A | BM50: N/A | BN50: N/A | BO50: N/A | BP50: N/A | BQ50: N/A | BR50: N/A | BS50: N/A | BT50: N/A | BU50: N/A | BV50: N/A | BW50: N/A | BX50: N/A | BY50: N/A | BZ50: N/A | CA50: N/A | CB50: N/A | CC50: N/A | CD50: N/A | CE50: N/A | CF50: N/A | CG50: N/A | CH50: N/A | CI50: N/A | CJ50: N/A | CK50: N/A | CL50: N/A | CM50: N/A | CN50: N/A | CO50: N/A | CP50: N/A | CQ50: N/A | CR50: N/A | CS50: N/A | CT50: N/A | CU50: N/A | CV50: N/A | CW50: N/A
B51: Contaminated (E. coli detected in 100 mL) | C51: N/A | D51: N/A | E51: N/A | F51: N/A | G51: N/A | H51: N/A | I51: N/A | J51: N/A | K51: N/A | L51: N/A | M51: N/A | N51: N/A | O51: N/A | P51: N/A | Q51: N/A | R51: N/A | S51: N/A | T51: N/A | U51: N/A | V51: N/A | W51: N/A | X51: N/A | Y51: N/A | Z51: N/A | AA51: N/A | AB51: N/A | AC51: N/A | AD51: N/A | AE51: N/A | AF51: N/A | AG51: N/A | AH51: N/A | AI51: N/A | AJ51: N/A | AK51: N/A | AL51: N/A | AM51: N/A | AN51: N/A | AO51: N/A | AP51: N/A | AQ51: N/A | AR51: N/A | AS51: N/A | AT51: N/A | AU51: N/A | AV51: N/A | AW51: N/A | BB51: Contaminated (E. coli detected in 100 mL) | BC51: N/A | BD51: N/A | BE51: N/A | BF51: N/A | BG51: N/A | BH51: N/A | BI51: N/A | BJ51: N/A | BK51: N/A | BL51: N/A | BM51: N/A | BN51: N/A | BO51: N/A | BP51: N/A | BQ51: N/A | BR51: N/A | BS51: N/A | BT51: N/A | BU51: N/A | BV51: N/A | BW51: N/A | BX51: N/A | BY51: N/A | BZ51: N/A | CA51: N/A | CB51: N/A | CC51: N/A | CD51: N/A | CE51: N/A | CF51: N/A | CG51: N/A | CH51: N/A | CI51: N/A | CJ51: N/A | CK51: N/A | CL51: N/A | CM51: N/A | CN51: N/A | CO51: N/A | CP51: N/A | CQ51: N/A | CR51: N/A | CS51: N/A | CT51: N/A | CU51: N/A | CV51: N/A | CW51: N/A
B52: Highly contaminated (>100 CFU/100 mL) | C52: N/A | D52: N/A | E52: N/A | F52: N/A | G52: N/A | H52: N/A | I52: N/A | J52: N/A | K52: N/A | L52: N/A | M52: N/A | N52: N/A | O52: N/A | P52: N/A | Q52: N/A | R52: N/A | S52: N/A | T52: N/A | U52: N/A | V52: N/A | W52: N/A | X52: N/A | Y52: N/A | Z52: N/A | AA52: N/A | AB52: N/A | AC52: N/A | AD52: N/A | AE52: N/A | AF52: N/A | AG52: N/A | AH52: N/A | AI52: N/A | AJ52: N/A | AK52: N/A | AL52: N/A | AM52: N/A | AN52: N/A | AO52: N/A | AP52: N/A | AQ52: N/A | AR52: N/A | AS52: N/A | AT52: N/A | AU52: N/A | AV52: N/A | AW52: N/A | BB52: Highly contaminated (>100 CFU/100 mL) | BC52: N/A | BD52: N/A | BE52: N/A | BF52: N/A | BG52: N/A | BH52: N/A | BI52: N/A | BJ52: N/A | BK52: N/A | BL52: N/A | BM52: N/A | BN52: N/A | BO52: N/A | BP52: N/A | BQ52: N/A | BR52: N/A | BS52: N/A | BT52: N/A | BU52: N/A | BV52: N/A | BW52: N/A | BX52: N/A | BY52: N/A | BZ52: N/A | CA52: N/A | CB52: N/A | CC52: N/A | CD52: N/A | CE52: N/A | CF52: N/A | CG52: N/A | CH52: N/A | CI52: N/A | CJ52: N/A | CK52: N/A | CL52: N/A | CM52: N/A | CN52: N/A | CO52: N/A | CP52: N/A | CQ52: N/A | CR52: N/A | CS52: N/A | CT52: N/A | CU52: N/A | CV52: N/A | CW52: N/A
A53: Microbiological quality of piped on premises at point of collection | B53: Not contaminated (No E. coli in 100 mL) | C53: N/A | D53: N/A | E53: N/A | F53: N/A | G53: N/A | H53: N/A | I53: N/A | J53: N/A | K53: N/A | L53: N/A | M53: N/A | N53: N/A | O53: N/A | P53: N/A | Q53: N/A | R53: N/A | S53: N/A | T53: N/A | U53: N/A | V53: N/A | W53: N/A | X53: N/A | Y53: N/A | Z53: N/A | AA53: N/A | AB53: N/A | AC53: N/A | AD53: N/A | AE53: N/A | AF53: N/A | AG53: N/A | AH53: N/A | AI53: N/A | AJ53: N/A | AK53: N/A | AL53: N/A | AM53: N/A | AN53: N/A | AO53: N/A | AP53: N/A | AQ53: N/A | AR53: N/A | AS53: N/A | AT53: N/A | AU53: N/A | AV53: N/A | AW53: N/A | BA53: Microbiological quality of piped on premises at point of collection | BB53: Not contaminated (No E. coli in 100 mL) | BC53: N/A | BD53: N/A | BE53: N/A | BF53: N/A | BG53: N/A | BH53: N/A | BI53: N/A | BJ53: N/A | BK53: N/A | BL53: N/A | BM53: N/A | BN53: N/A | BO53: N/A | BP53: N/A | BQ53: N/A | BR53: N/A | BS53: N/A | BT53: N/A | BU53: N/A | BV53: N/A | BW53: N/A | BX53: N/A | BY53: N/A | BZ53: N/A | CA53: N/A | CB53: N/A | CC53: N/A | CD53: N/A | CE53: N/A | CF53: N/A | CG53: N/A | CH53: N/A | CI53: N/A | CJ53: N/A | CK53: N/A | CL53: N/A | CM53: N/A | CN53: N/A | CO53: N/A | CP53: N/A | CQ53: N/A | CR53: N/A | CS53: N/A | CT53: N/A | CU53: N/A | CV53: N/A | CW53: N/A
B54: Contaminated (E. coli detected in 100 mL) | C54: N/A | D54: N/A | E54: N/A | F54: N/A | G54: N/A | H54: N/A | I54: N/A | J54: N/A | K54: N/A | L54: N/A | M54: N/A | N54: N/A | O54: N/A | P54: N/A | Q54: N/A | R54: N/A | S54: N/A | T54: N/A | U54: N/A | V54: N/A | W54: N/A | X54: N/A | Y54: N/A | Z54: N/A | AA54: N/A | AB54: N/A | AC54: N/A | AD54: N/A | AE54: N/A | AF54: N/A | AG54: N/A | AH54: N/A | AI54: N/A | AJ54: N/A | AK54: N/A | AL54: N/A | AM54: N/A | AN54: N/A | AO54: N/A | AP54: N/A | AQ54: N/A | AR54: N/A | AS54: N/A | AT54: N/A | AU54: N/A | AV54: N/A | AW54: N/A | BB54: Contaminated (E. coli detected in 100 mL) | BC54: N/A | BD54: N/A | BE54: N/A | BF54: N/A | BG54: N/A | BH54: N/A | BI54: N/A | BJ54: N/A | BK54: N/A | BL54: N/A | BM54: N/A | BN54: N/A | BO54: N/A | BP54: N/A | BQ54: N/A | BR54: N/A | BS54: N/A | BT54: N/A | BU54: N/A | BV54: N/A | BW54: N/A | BX54: N/A | BY54: N/A | BZ54: N/A | CA54: N/A | CB54: N/A | CC54: N/A | CD54: N/A | CE54: N/A | CF54: N/A | CG54: N/A | CH54: N/A | CI54: N/A | CJ54: N/A | CK54: N/A | CL54: N/A | CM54: N/A | CN54: N/A | CO54: N/A | CP54: N/A | CQ54: N/A | CR54: N/A | CS54: N/A | CT54: N/A | CU54: N/A | CV54: N/A | CW54: N/A
B55: Highly contaminated (>100 CFU/100 mL) | C55: N/A | D55: N/A | E55: N/A | F55: N/A | G55: N/A | H55: N/A | I55: N/A | J55: N/A | K55: N/A | L55: N/A | M55: N/A | N55: N/A | O55: N/A | P55: N/A | Q55: N/A | R55: N/A | S55: N/A | T55: N/A | U55: N/A | V55: N/A | W55: N/A | X55: N/A | Y55: N/A | Z55: N/A | AA55: N/A | AB55: N/A | AC55: N/A | AD55: N/A | AE55: N/A | AF55: N/A | AG55: N/A | AH55: N/A | AI55: N/A | AJ55: N/A | AK55: N/A | AL55: N/A | AM55: N/A | AN55: N/A | AO55: N/A | AP55: N/A | AQ55: N/A | AR55: N/A | AS55: N/A | AT55: N/A | AU55: N/A | AV55: N/A | AW55: N/A | BB55: Highly contaminated (>100 CFU/100 mL) | BC55: N/A | BD55: N/A | BE55: N/A | BF55: N/A | BG55: N/A | BH55: N/A | BI55: N/A | BJ55: N/A | BK55: N/A | BL55: N/A | BM55: N/A | BN55: N/A | BO55: N/A | BP55: N/A | BQ55: N/A | BR55: N/A | BS55: N/A | BT55: N/A | BU55: N/A | BV55: N/A | BW55: N/A | BX55: N/A | BY55: N/A | BZ55: N/A | CA55: N/A | CB55: N/A | CC55: N/A | CD55: N/A | CE55: N/A | CF55: N/A | CG55: N/A | CH55: N/A | CI55: N/A | CJ55: N/A | CK55: N/A | CL55: N/A | CM55: N/A | CN55: N/A | CO55: N/A | CP55: N/A | CQ55: N/A | CR55: N/A | CS55: N/A | CT55: N/A | CU55: N/A | CV55: N/A | CW55: N/A
C56: NATIONAL wealth index quintile | H56: URBAN wealth index quintile | M56: RURAL wealth index quintile | R56: SUB-REGIONS: | BA56: Raw numbers of respondents: | BB56: Use of drinking water sources | BC56: NATIONAL wealth index quintile | BH56: URBAN wealth index quintile | BM56: RURAL wealth index quintile | BR56: SUB-REGIONS:
A57: Percentage based on weighted population | C57: Poorest | D57: Poor | E57: Middle | F57: Rich | G57: Richest | H57: Poorest | I57: Poor | J57: Middle | K57: Rich | L57: Richest | M57: Poorest | N57: Poor | O57: Middle | P57: Rich | Q57: Richest | R57: azua | S57: bahoruco | T57: barahona | U57: dajab¢n | V57: distrito nacional | W57: duarte | X57: el seybo | Y57: el¡as pi¤a | Z57: espaillat | AA57: hato mayor | AB57: independencia | AC57: la altagracia | AD57: la romana | AE57: la vega | AF57: mar¡a trinidad s nchez | AG57: monse¤ol nouel | AH57: monte cristi | AI57: monte plata | AJ57: pedernales | AK57: peravia | AL57: puerto plata | AM57: s nchez ram¡rez | AN57: salcedo | AO57: saman | AP57: san crist¢bal | AQ57: san jos‚ de ocoa | AR57: san juan | AS57: san pedro de macor¡s | AT57: santiago | AU57: santiago rodr¡guez | AV57: santo domingo | AW57: valverde | BA57: Water data, raw numbers (weighted) | BC57: Poorest | BD57: Poor | BE57: Middle | BF57: Rich | BG57: Richest | BH57: Poorest | BI57: Poor | BJ57: Middle | BK57: Rich | BL57: Richest | BM57: Poorest | BN57: Poor | BO57: Middle | BP57: Rich | BQ57: Richest | BR57: azua | BS57: bahoruco | BT57: barahona | BU57: dajab¢n | BV57: distrito nacional | BW57: duarte | BX57: el seybo | BY57: el¡as pi¤a | BZ57: espaillat | CA57: hato mayor | CB57: independencia | CC57: la altagracia | CD57: la romana | CE57: la vega | CF57: mar¡a trinidad s nchez | CG57: monse¤ol nouel | CH57: monte cristi | CI57: monte plata | CJ57: pedernales | CK57: peravia | CL57: puerto plata | CM57: s nchez ram¡rez | CN57: salcedo | CO57: saman | CP57: san crist¢bal | CQ57: san jos‚ de ocoa | CR57: san juan | CS57: san pedro de macor¡s | CT57: santiago | CU57: santiago rodr¡guez | CV57: santo domingo | CW57: valverde
A58: source of drinking water | B58: piped into dwelling | C58: 5.116774985 | D58: 8.688185627 | E58: 13.96578125 | F58: 13.07168248 | G58: 8.438412584 | H58: 7.887182584 | I58: 13.43710336 | J58: 15.74059164 | K58: 11.94068372 | L58: 8.439079565 | M58: 3.392527381 | N58: 4.473113931 | O58: 7.009608771 | P58: 10.33776286 | Q58: 9.005319348 | R58: 12.43257821 | S58: 11.94372667 | T58: 18.73388714 | U58: 26.53530378 | V58: 7.799315849 | W58: 4.06681191 | X58: 7.009021513 | Y58: 11.20175714 | Z58: 16.63473819 | AA58: 2.802412203 | AB58: 14.41633648 | AC58: 2.601969058 | AD58: 3.015712114 | AE58: 10.38186158 | AF58: 3.40599455 | AG58: 29.29323308 | AH58: 1.296720061 | AI58: 2.624920936 | AJ58: 16.68843893 | AK58: 14.4751693 | AL58: 11.40606768 | AM58: 10.0764223 | AN58: 1.638806949 | AO58: 5.957161981 | AP58: 7.629704985 | AQ58: 23.71866816 | AR58: 9.322033898 | AS58: 3.859547301 | AT58: 23.68667041 | AU58: 20.51860203 | AV58: 3.798707656 | AW58: 9.558823529
B59: piped into yard/lot | C59: 40.96594388 | D59: 31.86300848 | E59: 18.85877385 | F59: 8.085433791 | G59: 1.178716994 | H59: 43.94713269 | I59: 23.53236596 | J59: 13.66779147 | K59: 4.208680114 | L59: 0.9054882449 | M59: 35.14836604 | N59: 38.98845561 | O59: 28.72795184 | P59: 20.67303465 | Q59: 4.528108724 | R59: 52.85868393 | S59: 49.00947459 | T59: 43.48324262 | U59: 39.83579639 | V59: 14.5267959 | W59: 14.40329218 | X59: 28.31367106 | Y59: 41.92030122 | Z59: 25.12771392 | AA59: 7.13018801 | AB59: 53.9774459 | AC59: 10.47819972 | AD59: 7.374556513 | AE59: 25.3699284 | AF59: 7.765667575 | AG59: 35.81954887 | AH59: 4.65293669 | AI59: 25.04743833 | AJ59: 41.96603527 | AK59: 28.66817156 | AL59: 23.30805134 | AM59: 27.65355222 | AN59: 8.685676827 | AO59: 13.82195448 | AP59: 25.20854527 | AQ59: 56.41601197 | AR59: 46.75141243 | AS59: 10.62100987 | AT59: 19.51766685 | AU59: 27.35813604 | AV59: 7.597415312 | AW59: 25.73529412
B60: water from well | C60: 8.223958856 | D60: 2.388697805 | E60: 1.552589206 | F60: 0.5497736503 | G60: 0.08441640878 | H60: 1.896299387 | I60: 0.6066691614 | J60: 0.2085016864 | K60: 0.1162619515 | L60: 0.05804845604 | M60: 13.62027348 | N60: 7.620615526 | O60: 4.679181819 | P60: 4.144085971 | Q60: 1.006170322 | R60: 0.836030205 | S60: 9.244903819 | T60: 1.145803495 | U60: 5.353037767 | V60: 0 | W60: 2.51755023 | X60: 12.80360861 | Y60: 4.549733291 | Z60: 1.213282248 | AA60: 6.562610855 | AB60: 5.150868638 | AC60: 5.731364276 | AD60: 3.091738469 | AE60: 1.145584726 | AF60: 3.337874659 | AG60: 3.518796992 | AH60: 0.1525553013 | AI60: 24.44655281 | AJ60: 1.992161986 | AK60: 1.890519187 | AL60: 3.675612602 | AM60: 10.4726861 | AN60: 0.4916420846 | AO60: 4.417670683 | AP60: 1.281790437 | AQ60: 2.207257763 | AR60: 13.81355932 | AS60: 1.886244922 | AT60: 0.03739016639 | AU60: 0.3006388576 | AV60: 0.1174858038 | AW60: 0.2450980392
B61: surface water, spring, river, stream | C61: 11.47252907 | D61: 1.565830675 | E61: 0.9708550432 | F61: 0.5828892251 | G61: 0.2501944685 | H61: 0.4575444093 | I61: 0.3929353814 | J61: 0.3903177505 | K61: 0.5966388224 | L61: 0.1788128154 | M61: 23.6252865 | N61: 8.410935598 | O61: 3.574924277 | P61: 2.365427394 | Q61: 0.4944411884 | R61: 2.373247033 | S61: 11.31208728 | T61: 3.380120309 | U61: 2.955665025 | V61: 0 | W61: 1.984991527 | X61: 6.800832755 | Y61: 31.81675557 | Z61: 3.19284802 | AA61: 3.795672224 | AB61: 6.248095093 | AC61: 1.195499297 | AD61: 0 | AE61: 6.1575179 | AF61: 1.226158038 | AG61: 6.796992481 | AH61: 0.2669717773 | AI61: 6.51486401 | AJ61: 5.845852384 | AK61: 1.523702032 | AL61: 6.301050175 | AM61: 4.670251911 | AN61: 0.7538511963 | AO61: 13.65461847 | AP61: 5.20854527 | AQ61: 4.190048634 | AR61: 11.24293785 | AS61: 0.1741149158 | AT61: 1.888203403 | AU61: 11.19879744 | AV61: 0 | AW61: 2.170868347
B62: rainwater | C62: 15.99175351 | D62: 11.8296382 | E62: 8.921229261 | F62: 5.294184209 | G62: 1.198988886 | H62: 5.860390416 | I62: 4.762954267 | J62: 3.998252892 | K62: 1.926583182 | L62: 0.5994023768 | M62: 18.18155923 | N62: 21.86688286 | O62: 23.72815338 | P62: 18.59092678 | Q62: 8.978583775 | R62: 0.6472491909 | S62: 0.8613264427 | T62: 2.492122601 | U62: 2.824302135 | V62: 0.1596351197 | W62: 30.30743161 | X62: 17.76544067 | Y62: 0.1882648259 | Z62: 20.97701149 | AA62: 44.44838595 | AB62: 0.609570253 | AC62: 12.30661041 | AD62: 1.951343132 | AE62: 25.46539379 | AF62: 44.20980926 | AG62: 1.052631579 | AH62: 15.86575133 | AI62: 20.74636306 | AJ62: 1.73089484 | AK62: 1.18510158 | AL62: 6.680280047 | AM62: 10.41607699 | AN62: 61.75024582 | AO62: 25.87014726 | AP62: 8.891149542 | AQ62: 0.1496445941 | AR62: 0.197740113 | AS62: 5.281485781 | AT62: 5.365488876 | AU62: 2.480270575 | AV62: 1.997258665 | AW62: 6.757703081
B63: tanker truck | C63: 3.763153177 | D63: 2.885395309 | E63: 1.85150333 | F63: 1.169426135 | G63: 0.2569091772 | H63: 3.595878085 | I63: 1.708360387 | J63: 1.408299417 | K63: 0.8456558122 | L63: 0.2295289054 | M63: 3.023046175 | N63: 4.042966917 | O63: 3.681160983 | P63: 2.651146187 | Q63: 0.4729541476 | R63: 0.8899676375 | S63: 6.632213609 | T63: 9.79661988 | U63: 2.36453202 | V63: 0.2736602052 | W63: 0.58097313 | X63: 0.1387925052 | Y63: 0 | Z63: 0.4789272031 | AA63: 0.07094714438 | AB63: 0.5486132277 | AC63: 0.4219409283 | AD63: 1.013684744 | AE63: 1.479713604 | AF63: 0.5449591281 | AG63: 1.864661654 | AH63: 25.93440122 | AI63: 0 | AJ63: 13.74918354 | AK63: 9.255079007 | AL63: 0.3500583431 | AM63: 0.5660911407 | AN63: 0.6882989184 | AO63: 0 | AP63: 2.380467955 | AQ63: 0 | AR63: 0.9322033898 | AS63: 0.02901915264 | AT63: 2.935128061 | AU63: 2.292371289 | AV63: 1.23360094 | AW63: 4.586834734
B64: bottler water | C64: 14.07084353 | D64: 40.63888168 | E64: 53.83480748 | F64: 71.17559886 | G64: 88.41607561 | H64: 36.10100036 | I64: 55.44278467 | J64: 64.54803481 | K64: 80.29423501 | L64: 89.34648001 | M64: 2.422226898 | N64: 14.42942203 | O64: 28.45611626 | P64: 41.17095473 | Q64: 75.46147179 | R64: 29.26105717 | S64: 10.5081826 | T64: 20.05156116 | U64: 20.06568144 | V64: 76.89851767 | W64: 45.75163399 | X64: 27.02984039 | Y64: 10.07216818 | Z64: 32.37547893 | AA64: 35.18978361 | AB64: 18.83572082 | AC64: 67.26441632 | AD64: 83.42625443 | AE64: 29.97613365 | AF64: 39.47547684 | AG64: 21.65413534 | AH64: 51.83066362 | AI64: 20.61986085 | AJ64: 18.02743305 | AK64: 42.97404063 | AL64: 48.24970828 | AM64: 36.14491933 | AN64: 25.9914782 | AO64: 36.24497992 | AP64: 48.87080366 | AQ64: 13.31836887 | AR64: 16.97740113 | AS64: 78.14857806 | AT64: 46.56945223 | AU64: 35.55054491 | AV64: 85.25553162 | AW64: 50.6302521
B65: other | C65: 0.3950429967 | D65: 0.1403622266 | E65: 0.04446057667 | F65: 0.07101164783 | G65: 0.1762858735 | H65: 0.2545720686 | I65: 0.1168268094 | J65: 0.03821032823 | K65: 0.07126138485 | L65: 0.2431596234 | M65: 0.5867143071 | N65: 0.167607522 | O65: 0.1429026746 | P65: 0.06666142601 | Q65: 0.05295070368 | R65: 0.7011866235 | S65: 0.4880849842 | T65: 0.9166427958 | U65: 0.06568144499 | V65: 0.3420752566 | W65: 0.38731542 | X65: 0.1387925052 | Y65: 0.2510197678 | Z65: 0 | AA65: 0 | AB65: 0.2133495885 | AC65: 0 | AD65: 0.126710593 | AE65: 0.02386634845 | AF65: 0.0340599455 | AG65: 0 | AH65: 0 | AI65: 0 | AJ65: 0 | AK65: 0.02821670429 | AL65: 0.02917152859 | AM65: 0 | AN65: 0 | AO65: 0.03346720214 | AP65: 0.5289928789 | AQ65: 0 | AR65: 0.7627118644 | AS65: 0 | AT65: 0 | AU65: 0.3006388576 | AV65: 0 | AW65: 0.3151260504
A108: =A1026 -> Dominican Republic
A109: =A1034 -> 2002
A110: Use of sanitation facilities
A111: by wealth quintile and sub-national region
A112: Notes:
A113: WHO/UNICEF JMP customised wealth index excludes water,
A114: sanitation and hygiene assets.
A115: Survey used for analysis: | B115: =A1025 -> DHS02
A120: Use of sanitation facilities | C120: NATIONAL wealth index quintile | H120: URBAN wealth index quintile | M120: RURAL wealth index quintile | R120: SUB-REGIONS: | BA120: Raw numbers of respondents: | BB120: Use of sanitation facilities | BC120: NATIONAL wealth index quintile | BH120: URBAN wealth index quintile | BM120: RURAL wealth index quintile | BR120: SUB-REGIONS:
A121: Weighted percentage (used in graphs) | C121: Poorest | D121: Poor | E121: Middle | F121: Rich | G121: Richest | H121: Poorest | I121: Poor | J121: Middle | K121: Rich | L121: Richest | M121: Poorest | N121: Poor | O121: Middle | P121: Rich | Q121: Richest | R121: azua | S121: bahoruco | T121: barahona | U121: dajab¢n | V121: distrito nacional | W121: duarte | X121: el seybo | Y121: el¡as pi¤a | Z121: espaillat | AA121: hato mayor | AB121: independencia | AC121: la altagracia | AD121: la romana | AE121: la vega | AF121: mar¡a trinidad s nchez | AG121: monse¤ol nouel | AH121: monte cristi | AI121: monte plata | AJ121: pedernales | AK121: peravia | AL121: puerto plata | AM121: s nchez ram¡rez | AN121: salcedo | AO121: saman | AP121: san crist¢bal | AQ121: san jos‚ de ocoa | AR121: san juan | AS121: san pedro de macor¡s | AT121: santiago | AU121: santiago rodr¡guez | AV121: santo domingo | AW121: valverde | BA121: Sanitation data, raw numbers (weighted) | BC121: Poorest | BD121: Poor | BE121: Middle | BF121: Rich | BG121: Richest | BH121: Poorest | BI121: Poor | BJ121: Middle | BK121: Rich | BL121: Richest | BM121: Poorest | BN121: Poor | BO121: Middle | BP121: Rich | BQ121: Richest | BR121: azua | BS121: bahoruco | BT121: barahona | BU121: dajab¢n | BV121: distrito nacional | BW121: duarte | BX121: el seybo | BY121: el¡as pi¤a | BZ121: espaillat | CA121: hato mayor | CB121: independencia | CC121: la altagracia | CD121: la romana | CE121: la vega | CF121: mar¡a trinidad s nchez | CG121: monse¤ol nouel | CH121: monte cristi | CI121: monte plata | CJ121: pedernales | CK121: peravia | CL121: puerto plata | CM121: s nchez ram¡rez | CN121: salcedo | CO121: saman | CP121: san crist¢bal | CQ121: san jos‚ de ocoa | CR121: san juan | CS121: san pedro de macor¡s | CT121: santiago | CU121: santiago rodr¡guez | CV121: santo domingo | CW121: valverde
A122: Sanitation | B122: Improved | C122: =C153+C154+C155+C157 -> 75.72079157 | D122: =D153+D154+D155+D157 -> 89.05998946 | E122: 95.40931926 | F122: 98.26697342 | G122: 99.73609601 | H122: 82.38645236 | I122: 93.69606713 | J122: 97.48821703 | K122: 99.36215348 | L122: 99.85365164 | M122: 67.23206479 | N122: 83.27256611 | O122: 89.78798578 | P122: 92.6370936 | Q122: 98.36566169 | R122: 85.08629989 | S122: 66.29310345 | T122: 79.16905444 | U122: 95.31454784 | V122: 96.80365297 | W122: 93.72121212 | X122: 72.86606523 | Y122: 72.20125786 | Z122: 95.87727709 | AA122: 83.5402625 | AB122: 76.19628162 | AC122: 89.44405348 | AD122: 90.42067917 | AE122: 90.33412888 | AF122: 89.61171662 | AG122: 92.84210526 | AH122: 89.06727829 | AI122: 80.53882726 | AJ122: 77.62900065 | AK122: 90.09593679 | AL122: 96.82030338 | AM122: 89.1310501 | AN122: 95.22094926 | AO122: 87.06867672 | AP122: 90.7000407 | AQ122: 87.8742515 | AR122: 79.74576271 | AS122: 86.05461941 | AT122: 95.75621612 | AU122: 92.17456734 | AV122: 96.74637397 | AW122: 91.84744577 | BA122: Sanitation | BB122: Improved | BC122: N/A | BD122: N/A | BE122: N/A | BF122: N/A | BG122: N/A | BH122: N/A | BI122: N/A | BJ122: N/A | BK122: N/A | BL122: N/A | BM122: N/A | BN122: N/A | BO122: N/A | BP122: N/A | BQ122: N/A | BR122: N/A | BS122: N/A | BT122: N/A | BU122: N/A | BV122: N/A | BW122: N/A | BX122: N/A | BY122: N/A | BZ122: N/A | CA122: N/A | CB122: N/A | CC122: N/A | CD122: N/A | CE122: N/A | CF122: N/A | CG122: N/A | CH122: N/A | CI122: N/A | CJ122: N/A | CK122: N/A | CL122: N/A | CM122: N/A | CN122: N/A | CO122: N/A | CP122: N/A | CQ122: N/A | CR122: N/A | CS122: N/A | CT122: N/A | CU122: N/A | CV122: N/A | CW122: N/A
B123: Not Improved | C123: =100-C122 -> 24.27920843 | D123: =100-D122 -> 10.94001054 | E123: 4.590680743 | F123: 1.733026576 | G123: 0.2639039869 | H123: 17.61354764 | I123: 6.303932868 | J123: 2.511782972 | K123: 0.637846522 | L123: 0.1463483619 | M123: 32.76793521 | N123: 16.72743389 | O123: 10.21201422 | P123: 7.362906405 | Q123: 1.634338315 | R123: 14.91370011 | S123: 33.70689655 | T123: 20.83094556 | U123: 4.685452163 | V123: 3.196347032 | W123: 6.278787879 | X123: 27.13393477 | Y123: 27.79874214 | Z123: 4.122722915 | AA123: 16.4597375 | AB123: 23.80371838 | AC123: 10.55594652 | AD123: 9.579320831 | AE123: 9.665871122 | AF123: 10.38828338 | AG123: 7.157894737 | AH123: 10.93272171 | AI123: 19.46117274 | AJ123: 22.37099935 | AK123: 9.904063205 | AL123: 3.179696616 | AM123: 10.8689499 | AN123: 4.779050736 | AO123: 12.93132328 | AP123: 9.2999593 | AQ123: 12.1257485 | AR123: 20.25423729 | AS123: 13.94538059 | AT123: 4.243783885 | AU123: 7.825432656 | AV123: 3.253626029 | AW123: 8.152554234 | BB123: Not Improved | BC123: N/A | BD123: N/A | BE123: N/A | BF123: N/A | BG123: N/A | BH123: N/A | BI123: N/A | BJ123: N/A | BK123: N/A | BL123: N/A | BM123: N/A | BN123: N/A | BO123: N/A | BP123: N/A | BQ123: N/A | BR123: N/A | BS123: N/A | BT123: N/A | BU123: N/A | BV123: N/A | BW123: N/A | BX123: N/A | BY123: N/A | BZ123: N/A | CA123: N/A | CB123: N/A | CC123: N/A | CD123: N/A | CE123: N/A | CF123: N/A | CG123: N/A | CH123: N/A | CI123: N/A | CJ123: N/A | CK123: N/A | CL123: N/A | CM123: N/A | CN123: N/A | CO123: N/A | CP123: N/A | CQ123: N/A | CR123: N/A | CS123: N/A | CT123: N/A | CU123: N/A | CV123: N/A | CW123: N/A
A124: Sanitation ladder | B124: Basic | C124: =C153+C155 -> 55.62595562 | D124: =D153+D155 -> 64.78696422 | E124: 79.57225662 | F124: 92.31651113 | G124: 98.76961333 | H124: 52.03638954 | I124: 72.1543926 | J124: 86.82140705 | K124: 95.57601859 | L124: 99.43572514 | M124: 54.60578165 | N124: 64.87592318 | O124: 70.79520261 | P124: 78.84397349 | Q124: 94.37276856 | R124: 70.28047465 | S124: 56.35057471 | T124: 64.64183381 | U124: 88.30275229 | V124: 82.83105023 | W124: 86.93333333 | X124: 58.60513532 | Y124: 63.27044025 | Z124: 82.77404922 | AA124: 74.13976587 | AB124: 65.58975922 | AC124: 70.68965517 | AD124: 66.24429802 | AE124: 77.94749403 | AF124: 79.15531335 | AG124: 83.0075188 | AH124: 78.40214067 | AI124: 71.06180666 | AJ124: 67.34160679 | AK124: 74.83069977 | AL124: 84.13068845 | AM124: 77.80922729 | AN124: 86.4811784 | AO124: 68.17420436 | AP124: 69.92266992 | AQ124: 73.24101796 | AR124: 70.31073446 | AS124: 66.67635096 | AT124: 84.74481211 | AU124: 83.63431151 | AV124: 83.67306938 | AW124: 77.39678097 | BA124: Sanitation ladder | BB124: Basic | BC124: N/A | BD124: N/A | BE124: N/A | BF124: N/A | BG124: N/A | BH124: N/A | BI124: N/A | BJ124: N/A | BK124: N/A | BL124: N/A | BM124: N/A | BN124: N/A | BO124: N/A | BP124: N/A | BQ124: N/A | BR124: N/A | BS124: N/A | BT124: N/A | BU124: N/A | BV124: N/A | BW124: N/A | BX124: N/A | BY124: N/A | BZ124: N/A | CA124: N/A | CB124: N/A | CC124: N/A | CD124: N/A | CE124: N/A | CF124: N/A | CG124: N/A | CH124: N/A | CI124: N/A | CJ124: N/A | CK124: N/A | CL124: N/A | CM124: N/A | CN124: N/A | CO124: N/A | CP124: N/A | CQ124: N/A | CR124: N/A | CS124: N/A | CT124: N/A | CU124: N/A | CV124: N/A | CW124: N/A
B125: Limited | C125: =C154+C157 -> 20.09483595 | D125: =D154+D157 -> 24.27302525 | E125: 15.83706264 | F125: 5.950462292 | G125: 0.9664826786 | H125: 30.35006282 | I125: 21.54167453 | J125: 10.66680998 | K125: 3.786134886 | L125: 0.4179265022 | M125: 12.62628314 | N125: 18.39664294 | O125: 18.99278317 | P125: 13.7931201 | Q125: 3.992893128 | R125: 14.80582524 | S125: 9.942528736 | T125: 14.52722063 | U125: 7.011795544 | V125: 13.97260274 | W125: 6.787878788 | X125: 14.26092991 | Y125: 8.93081761 | Z125: 13.10322787 | AA125: 9.40049663 | AB125: 10.6065224 | AC125: 18.75439831 | AD125: 24.17638115 | AE125: 12.38663484 | AF125: 10.45640327 | AG125: 9.834586466 | AH125: 10.66513761 | AI125: 9.477020602 | AJ125: 10.28739386 | AK125: 15.26523702 | AL125: 12.68961494 | AM125: 11.32182281 | AN125: 8.739770867 | AO125: 18.89447236 | AP125: 20.77737078 | AQ125: 14.63323353 | AR125: 9.435028249 | AS125: 19.37826845 | AT125: 11.011404 | AU125: 8.540255831 | AV125: 13.07330459 | AW125: 14.4506648 | BB125: Limited | BC125: N/A | BD125: N/A | BE125: N/A | BF125: N/A | BG125: N/A | BH125: N/A | BI125: N/A | BJ125: N/A | BK125: N/A | BL125: N/A | BM125: N/A | BN125: N/A | BO125: N/A | BP125: N/A | BQ125: N/A | BR125: N/A | BS125: N/A | BT125: N/A | BU125: N/A | BV125: N/A | BW125: N/A | BX125: N/A | BY125: N/A | BZ125: N/A | CA125: N/A | CB125: N/A | CC125: N/A | CD125: N/A | CE125: N/A | CF125: N/A | CG125: N/A | CH125: N/A | CI125: N/A | CJ125: N/A | CK125: N/A | CL125: N/A | CM125: N/A | CN125: N/A | CO125: N/A | CP125: N/A | CQ125: N/A | CR125: N/A | CS125: N/A | CT125: N/A | CU125: N/A | CV125: N/A | CW125: N/A
B126: Unimproved | C126: =100-C124-C125-C127 -> 7.692399392 | D126: =100-D124-D125-D127 -> 5.128998267 | E126: 3.060744995 | F126: 0.9642450221 | G126: 0.2639039869 | H126: 6.70831954 | I126: 3.335313836 | J126: 1.605786659 | K126: 0.3857819373 | L126: 0.1463483619 | M126: 8.65421925 | N126: 6.77583017 | O126: 4.789740161 | P126: 5.032541512 | Q126: 0.9439914977 | R126: 6.472491909 | S126: 10.45977011 | T126: 10.20057307 | U126: 2.52293578 | V126: 0.7305936073 | W126: 2.109090909 | X126: 6.453851492 | Y126: 9.779874214 | Z126: 1.182486417 | AA126: 5.3565094 | AB126: 7.25388601 | AC126: 3.342716397 | AD126: 3.117080588 | AE126: 6.181384248 | AF126: 3.678474114 | AG126: 4.060150376 | AH126: 3.325688073 | AI126: 4.595879556 | AJ126: 9.209666884 | AK126: 7.054176072 | AL126: 1.021003501 | AM126: 6.311916219 | AN126: 1.996726678 | AO126: 6.231155779 | AP126: 5.20960521 | AQ126: 3.255988024 | AR126: 7.824858757 | AS126: 4.154561302 | AT126: 2.000373902 | AU126: 5.154251317 | AV126: 1.313210506 | AW126: 5.528341498 | BB126: Unimproved | BC126: N/A | BD126: N/A | BE126: N/A | BF126: N/A | BG126: N/A | BH126: N/A | BI126: N/A | BJ126: N/A | BK126: N/A | BL126: N/A | BM126: N/A | BN126: N/A | BO126: N/A | BP126: N/A | BQ126: N/A | BR126: N/A | BS126: N/A | BT126: N/A | BU126: N/A | BV126: N/A | BW126: N/A | BX126: N/A | BY126: N/A | BZ126: N/A | CA126: N/A | CB126: N/A | CC126: N/A | CD126: N/A | CE126: N/A | CF126: N/A | CG126: N/A | CH126: N/A | CI126: N/A | CJ126: N/A | CK126: N/A | CL126: N/A | CM126: N/A | CN126: N/A | CO126: N/A | CP126: N/A | CQ126: N/A | CR126: N/A | CS126: N/A | CT126: N/A | CU126: N/A | CV126: N/A | CW126: N/A
B127: Open defecation | C127: =C159 -> 16.58680903 | D127: =D159 -> 5.811012269 | E127: 1.529935748 | F127: 0.7687815541 | G127: 0 | H127: 10.9052281 | I127: 2.968619032 | J127: 0.9059963125 | K127: 0.2520645847 | L127: 0 | M127: 24.11371596 | N127: 9.951603715 | O127: 5.422274057 | P127: 2.330364893 | Q127: 0.6903468169 | R127: 8.441208198 | S127: 23.24712644 | T127: 10.63037249 | U127: 2.162516383 | V127: 2.465753425 | W127: 4.16969697 | X127: 20.68008328 | Y127: 18.01886792 | Z127: 2.940236497 | AA127: 11.1032281 | AB127: 16.54983237 | AC127: 7.21323012 | AD127: 6.462240243 | AE127: 3.484486874 | AF127: 6.709809264 | AG127: 3.097744361 | AH127: 7.607033639 | AI127: 14.86529319 | AJ127: 13.16133246 | AK127: 2.849887133 | AL127: 2.158693116 | AM127: 4.557033682 | AN127: 2.782324059 | AO127: 6.700167504 | AP127: 4.09035409 | AQ127: 8.869760479 | AR127: 12.42937853 | AS127: 9.790819291 | AT127: 2.243409983 | AU127: 2.671181339 | AV127: 1.940415523 | AW127: 2.624212736 | BB127: Open defecation | BC127: N/A | BD127: N/A | BE127: N/A | BF127: N/A | BG127: N/A | BH127: N/A | BI127: N/A | BJ127: N/A | BK127: N/A | BL127: N/A | BM127: N/A | BN127: N/A | BO127: N/A | BP127: N/A | BQ127: N/A | BR127: N/A | BS127: N/A | BT127: N/A | BU127: N/A | BV127: N/A | BW127: N/A | BX127: N/A | BY127: N/A | BZ127: N/A | CA127: N/A | CB127: N/A | CC127: N/A | CD127: N/A | CE127: N/A | CF127: N/A | CG127: N/A | CH127: N/A | CI127: N/A | CJ127: N/A | CK127: N/A | CL127: N/A | CM127: N/A | CN127: N/A | CO127: N/A | CP127: N/A | CQ127: N/A | CR127: N/A | CS127: N/A | CT127: N/A | CU127: N/A | CV127: N/A | CW127: N/A
A128: Shared among Improved Sanitation | B128: Yes | C128: N/A | D128: N/A | E128: N/A | F128: N/A | G128: N/A | H128: N/A | I128: N/A | J128: N/A | K128: N/A | L128: N/A | M128: N/A | N128: N/A | O128: N/A | P128: N/A | Q128: N/A | R128: N/A | S128: N/A | T128: N/A | U128: N/A | V128: N/A | W128: N/A | X128: N/A | Y128: N/A | Z128: N/A | AA128: N/A | AB128: N/A | AC128: N/A | AD128: N/A | AE128: N/A | AF128: N/A | AG128: N/A | AH128: N/A | AI128: N/A | AJ128: N/A | AK128: N/A | AL128: N/A | AM128: N/A | AN128: N/A | AO128: N/A | AP128: N/A | AQ128: N/A | AR128: N/A | AS128: N/A | AT128: N/A | AU128: N/A | AV128: N/A | AW128: N/A | BA128: Shared among improved sanitation facilities | BB128: Yes | BC128: N/A | BD128: N/A | BE128: N/A | BF128: N/A | BG128: N/A | BH128: N/A | BI128: N/A | BJ128: N/A | BK128: N/A | BL128: N/A | BM128: N/A | BN128: N/A | BO128: N/A | BP128: N/A | BQ128: N/A | BR128: N/A | BS128: N/A | BT128: N/A | BU128: N/A | BV128: N/A | BW128: N/A | BX128: N/A | BY128: N/A | BZ128: N/A | CA128: N/A | CB128: N/A | CC128: N/A | CD128: N/A | CE128: N/A | CF128: N/A | CG128: N/A | CH128: N/A | CI128: N/A | CJ128: N/A | CK128: N/A | CL128: N/A | CM128: N/A | CN128: N/A | CO128: N/A | CP128: N/A | CQ128: N/A | CR128: N/A | CS128: N/A | CT128: N/A | CU128: N/A | CV128: N/A | CW128: N/A
B129: No | C129: N/A | D129: N/A | E129: N/A | F129: N/A | G129: N/A | H129: N/A | I129: N/A | J129: N/A | K129: N/A | L129: N/A | M129: N/A | N129: N/A | O129: N/A | P129: N/A | Q129: N/A | R129: N/A | S129: N/A | T129: N/A | U129: N/A | V129: N/A | W129: N/A | X129: N/A | Y129: N/A | Z129: N/A | AA129: N/A | AB129: N/A | AC129: N/A | AD129: N/A | AE129: N/A | AF129: N/A | AG129: N/A | AH129: N/A | AI129: N/A | AJ129: N/A | AK129: N/A | AL129: N/A | AM129: N/A | AN129: N/A | AO129: N/A | AP129: N/A | AQ129: N/A | AR129: N/A | AS129: N/A | AT129: N/A | AU129: N/A | AV129: N/A | AW129: N/A | BB129: No | BC129: N/A | BD129: N/A | BE129: N/A | BF129: N/A | BG129: N/A | BH129: N/A | BI129: N/A | BJ129: N/A | BK129: N/A | BL129: N/A | BM129: N/A | BN129: N/A | BO129: N/A | BP129: N/A | BQ129: N/A | BR129: N/A | BS129: N/A | BT129: N/A | BU129: N/A | BV129: N/A | BW129: N/A | BX129: N/A | BY129: N/A | BZ129: N/A | CA129: N/A | CB129: N/A | CC129: N/A | CD129: N/A | CE129: N/A | CF129: N/A | CG129: N/A | CH129: N/A | CI129: N/A | CJ129: N/A | CK129: N/A | CL129: N/A | CM129: N/A | CN129: N/A | CO129: N/A | CP129: N/A | CQ129: N/A | CR129: N/A | CS129: N/A | CT129: N/A | CU129: N/A | CV129: N/A | CW129: N/A
A130: Manually calculated ratios | B130: Improved latrines | C130: =(C155+C157)/(C155+C156+C157+C158)*100 -> 89.79382615 | D130: =(D155+D157)/(D155+D156+D157+D158)*100 -> 91.95619729 | E130: 93.19709814 | F130: 93.82481933 | G130: 87.7141761 | H130: 89.5113428 | I130: 92.64749671 | J130: 93.21390268 | K130: 93.46434051 | L130: 74.12749694 | M130: 88.76616749 | N130: 91.72821041 | O130: 93.725837 | P130: 91.9456174 | Q130: 95.04356426 | R130: 89.10576487 | S130: 82.71005342 | T130: 81.8788501 | U130: 96.25668449 | V130: 91.83673469 | W130: 96.14867891 | X130: 88.9566809 | Y130: 85.87008061 | Z130: 97.90723982 | AA130: 90.78144078 | AB130: 87.8600823 | AC130: 92.86858974 | AD130: 93.39559706 | AE130: 89.02542373 | AF130: 94.39868204 | AG130: 91.17647059 | AH130: 94.84597156 | AI130: 92.94403893 | AJ130: 82.38636364 | AK130: 84.60559796 | AL130: 97.91044776 | AM130: 90.21929825 | AN130: 97.01419481 | AO130: 90.85457271 | AP130: 88.42152872 | AQ130: 94.58281445 | AR130: 87.74685817 | AS130: 90.50151976 | AT130: 93.35483871 | AU130: 91.94591417 | AV130: 92.69230769 | AW130: 92.25741579
B131: Other
B132: Other
C133: NATIONAL wealth index quintile | H133: URBAN wealth index quintile | M133: RURAL wealth index quintile | R133: SUB-REGIONS: | BA133: Raw numbers of respondents: | BB133: Use of sanitation facilities | BC133: NATIONAL wealth index quintile | BH133: URBAN wealth index quintile | BM133: RURAL wealth index quintile | BR133: SUB-REGIONS:
A134: Percentage based on weighted population | C134: Poorest | D134: Poor | E134: Middle | F134: Rich | G134: Richest | H134: Poorest | I134: Poor | J134: Middle | K134: Rich | L134: Richest | M134: Poorest | N134: Poor | O134: Middle | P134: Rich | Q134: Richest | R134: azua | S134: bahoruco | T134: barahona | U134: dajab¢n | V134: distrito nacional | W134: duarte | X134: el seybo | Y134: el¡as pi¤a | Z134: espaillat | AA134: hato mayor | AB134: independencia | AC134: la altagracia | AD134: la romana | AE134: la vega | AF134: mar¡a trinidad s nchez | AG134: monse¤ol nouel | AH134: monte cristi | AI134: monte plata | AJ134: pedernales | AK134: peravia | AL134: puerto plata | AM134: s nchez ram¡rez | AN134: salcedo | AO134: saman | AP134: san crist¢bal | AQ134: san jos‚ de ocoa | AR134: san juan | AS134: san pedro de macor¡s | AT134: santiago | AU134: santiago rodr¡guez | AV134: santo domingo | AW134: valverde | BA134: Sanitation data, raw numbers (weighted) | BC134: Poorest | BD134: Poor | BE134: Middle | BF134: Rich | BG134: Richest | BH134: Poorest | BI134: Poor | BJ134: Middle | BK134: Rich | BL134: Richest | BM134: Poorest | BN134: Poor | BO134: Middle | BP134: Rich | BQ134: Richest | BR134: azua | BS134: bahoruco | BT134: barahona | BU134: dajab¢n | BV134: distrito nacional | BW134: duarte | BX134: el seybo | BY134: el¡as pi¤a | BZ134: espaillat | CA134: hato mayor | CB134: independencia | CC134: la altagracia | CD134: la romana | CE134: la vega | CF134: mar¡a trinidad s nchez | CG134: monse¤ol nouel | CH134: monte cristi | CI134: monte plata | CJ134: pedernales | CK134: peravia | CL134: puerto plata | CM134: s nchez ram¡rez | CN134: salcedo | CO134: saman | CP134: san crist¢bal | CQ134: san jos‚ de ocoa | CR134: san juan | CS134: san pedro de macor¡s | CT134: santiago | CU134: santiago rodr¡guez | CV134: santo domingo | CW134: valverde
A135: Sanitation type | B135: Sewer connection | C135: N/A | D135: N/A | E135: N/A | F135: N/A | G135: N/A | H135: N/A | I135: N/A | J135: N/A | K135: N/A | L135: N/A | M135: N/A | N135: N/A | O135: N/A | P135: N/A | Q135: N/A | R135: N/A | S135: N/A | T135: N/A | U135: N/A | V135: N/A | W135: N/A | X135: N/A | Y135: N/A | Z135: N/A | AA135: N/A | AB135: N/A | AC135: N/A | AD135: N/A | AE135: N/A | AF135: N/A | AG135: N/A | AH135: N/A | AI135: N/A | AJ135: N/A | AK135: N/A | AL135: N/A | AM135: N/A | AN135: N/A | AO135: N/A | AP135: N/A | AQ135: N/A | AR135: N/A | AS135: N/A | AT135: N/A | AU135: N/A | AV135: N/A | AW135: N/A | BA135: Sanitation type | BB135: Sewer connection | BC135: N/A | BD135: N/A | BE135: N/A | BF135: N/A | BG135: N/A | BH135: N/A | BI135: N/A | BJ135: N/A | BK135: N/A | BL135: N/A | BM135: N/A | BN135: N/A | BO135: N/A | BP135: N/A | BQ135: N/A | BR135: N/A | BS135: N/A | BT135: N/A | BU135: N/A | BV135: N/A | BW135: N/A | BX135: N/A | BY135: N/A | BZ135: N/A | CA135: N/A | CB135: N/A | CC135: N/A | CD135: N/A | CE135: N/A | CF135: N/A | CG135: N/A | CH135: N/A | CI135: N/A | CJ135: N/A | CK135: N/A | CL135: N/A | CM135: N/A | CN135: N/A | CO135: N/A | CP135: N/A | CQ135: N/A | CR135: N/A | CS135: N/A | CT135: N/A | CU135: N/A | CV135: N/A | CW135: N/A
B136: Septic tank connection | C136: N/A | D136: N/A | E136: N/A | F136: N/A | G136: N/A | H136: N/A | I136: N/A | J136: N/A | K136: N/A | L136: N/A | M136: N/A | N136: N/A | O136: N/A | P136: N/A | Q136: N/A | R136: N/A | S136: N/A | T136: N/A | U136: N/A | V136: N/A | W136: N/A | X136: N/A | Y136: N/A | Z136: N/A | AA136: N/A | AB136: N/A | AC136: N/A | AD136: N/A | AE136: N/A | AF136: N/A | AG136: N/A | AH136: N/A | AI136: N/A | AJ136: N/A | AK136: N/A | AL136: N/A | AM136: N/A | AN136: N/A | AO136: N/A | AP136: N/A | AQ136: N/A | AR136: N/A | AS136: N/A | AT136: N/A | AU136: N/A | AV136: N/A | AW136: N/A | BB136: Septic tank connection | BC136: N/A | BD136: N/A | BE136: N/A | BF136: N/A | BG136: N/A | BH136: N/A | BI136: N/A | BJ136: N/A | BK136: N/A | BL136: N/A | BM136: N/A | BN136: N/A | BO136: N/A | BP136: N/A | BQ136: N/A | BR136: N/A | BS136: N/A | BT136: N/A | BU136: N/A | BV136: N/A | BW136: N/A | BX136: N/A | BY136: N/A | BZ136: N/A | CA136: N/A | CB136: N/A | CC136: N/A | CD136: N/A | CE136: N/A | CF136: N/A | CG136: N/A | CH136: N/A | CI136: N/A | CJ136: N/A | CK136: N/A | CL136: N/A | CM136: N/A | CN136: N/A | CO136: N/A | CP136: N/A | CQ136: N/A | CR136: N/A | CS136: N/A | CT136: N/A | CU136: N/A | CV136: N/A | CW136: N/A
B137: Improved latrines | C137: N/A | D137: N/A | E137: N/A | F137: N/A | G137: N/A | H137: N/A | I137: N/A | J137: N/A | K137: N/A | L137: N/A | M137: N/A | N137: N/A | O137: N/A | P137: N/A | Q137: N/A | R137: N/A | S137: N/A | T137: N/A | U137: N/A | V137: N/A | W137: N/A | X137: N/A | Y137: N/A | Z137: N/A | AA137: N/A | AB137: N/A | AC137: N/A | AD137: N/A | AE137: N/A | AF137: N/A | AG137: N/A | AH137: N/A | AI137: N/A | AJ137: N/A | AK137: N/A | AL137: N/A | AM137: N/A | AN137: N/A | AO137: N/A | AP137: N/A | AQ137: N/A | AR137: N/A | AS137: N/A | AT137: N/A | AU137: N/A | AV137: N/A | AW137: N/A | BB137: Improved latrines | BC137: N/A | BD137: N/A | BE137: N/A | BF137: N/A | BG137: N/A | BH137: N/A | BI137: N/A | BJ137: N/A | BK137: N/A | BL137: N/A | BM137: N/A | BN137: N/A | BO137: N/A | BP137: N/A | BQ137: N/A | BR137: N/A | BS137: N/A | BT137: N/A | BU137: N/A | BV137: N/A | BW137: N/A | BX137: N/A | BY137: N/A | BZ137: N/A | CA137: N/A | CB137: N/A | CC137: N/A | CD137: N/A | CE137: N/A | CF137: N/A | CG137: N/A | CH137: N/A | CI137: N/A | CJ137: N/A | CK137: N/A | CL137: N/A | CM137: N/A | CN137: N/A | CO137: N/A | CP137: N/A | CQ137: N/A | CR137: N/A | CS137: N/A | CT137: N/A | CU137: N/A | CV137: N/A | CW137: N/A
B138: Unimproved facilities | C138: N/A | D138: N/A | E138: N/A | F138: N/A | G138: N/A | H138: N/A | I138: N/A | J138: N/A | K138: N/A | L138: N/A | M138: N/A | N138: N/A | O138: N/A | P138: N/A | Q138: N/A | R138: N/A | S138: N/A | T138: N/A | U138: N/A | V138: N/A | W138: N/A | X138: N/A | Y138: N/A | Z138: N/A | AA138: N/A | AB138: N/A | AC138: N/A | AD138: N/A | AE138: N/A | AF138: N/A | AG138: N/A | AH138: N/A | AI138: N/A | AJ138: N/A | AK138: N/A | AL138: N/A | AM138: N/A | AN138: N/A | AO138: N/A | AP138: N/A | AQ138: N/A | AR138: N/A | AS138: N/A | AT138: N/A | AU138: N/A | AV138: N/A | AW138: N/A | BB138: Unimproved facilities | BC138: N/A | BD138: N/A | BE138: N/A | BF138: N/A | BG138: N/A | BH138: N/A | BI138: N/A | BJ138: N/A | BK138: N/A | BL138: N/A | BM138: N/A | BN138: N/A | BO138: N/A | BP138: N/A | BQ138: N/A | BR138: N/A | BS138: N/A | BT138: N/A | BU138: N/A | BV138: N/A | BW138: N/A | BX138: N/A | BY138: N/A | BZ138: N/A | CA138: N/A | CB138: N/A | CC138: N/A | CD138: N/A | CE138: N/A | CF138: N/A | CG138: N/A | CH138: N/A | CI138: N/A | CJ138: N/A | CK138: N/A | CL138: N/A | CM138: N/A | CN138: N/A | CO138: N/A | CP138: N/A | CQ138: N/A | CR138: N/A | CS138: N/A | CT138: N/A | CU138: N/A | CV138: N/A | CW138: N/A
B139: Open defecation | C139: 16.54933993 | D139: 5.806916631 | E139: 1.528821128 | F139: 0.7683124819 | G139: 0 | H139: 10.87590979 | I139: 2.967671643 | J139: 0.9048230738 | K139: 0.2520117347 | L139: 0 | M139: 24.09789553 | N139: 9.938879354 | O139: 5.417129981 | P139: 2.330107297 | Q139: 0.6894449027 | R139: 8.441208198 | S139: 23.19380734 | T139: 10.61516452 | U139: 2.162516383 | V139: 2.462941847 | W139: 4.163640765 | X139: 20.68008328 | Y139: 17.97929087 | Z139: 2.937420179 | AA139: 11.1032281 | AB139: 16.54983237 | AC139: 7.208157525 | AD139: 6.462240243 | AE139: 3.484486874 | AF139: 6.709809264 | AG139: 3.097744361 | AH139: 7.58962624 | AI139: 14.83238457 | AJ139: 13.16133246 | AK139: 2.849887133 | AL139: 2.158693116 | AM139: 4.557033682 | AN139: 2.778685845 | AO139: 6.693440428 | AP139: 4.089521872 | AQ139: 8.8664422 | AR139: 12.42937853 | AS139: 9.77945444 | AT139: 2.242990654 | AU139: 2.668169861 | AV139: 1.935105551 | AW139: 2.624212736 | BB139: Open defecation | BC139: N/A | BD139: N/A | BE139: N/A | BF139: N/A | BG139: N/A | BH139: N/A | BI139: N/A | BJ139: N/A | BK139: N/A | BL139: N/A | BM139: N/A | BN139: N/A | BO139: N/A | BP139: N/A | BQ139: N/A | BR139: N/A | BS139: N/A | BT139: N/A | BU139: N/A | BV139: N/A | BW139: N/A | BX139: N/A | BY139: N/A | BZ139: N/A | CA139: N/A | CB139: N/A | CC139: N/A | CD139: N/A | CE139: N/A | CF139: N/A | CG139: N/A | CH139: N/A | CI139: N/A | CJ139: N/A | CK139: N/A | CL139: N/A | CM139: N/A | CN139: N/A | CO139: N/A | CP139: N/A | CQ139: N/A | CR139: N/A | CS139: N/A | CT139: N/A | CU139: N/A | CV139: N/A | CW139: N/A
A140: Septic tank emptying practices | B140: Not emptied/treated and disposed in situ | C140: N/A | D140: N/A | E140: N/A | F140: N/A | G140: N/A | H140: N/A | I140: N/A | J140: N/A | K140: N/A | L140: N/A | M140: N/A | N140: N/A | O140: N/A | P140: N/A | Q140: N/A | R140: N/A | S140: N/A | T140: N/A | U140: N/A | V140: N/A | W140: N/A | X140: N/A | Y140: N/A | Z140: N/A | AA140: N/A | AB140: N/A | AC140: N/A | AD140: N/A | AE140: N/A | AF140: N/A | AG140: N/A | AH140: N/A | AI140: N/A | AJ140: N/A | AK140: N/A | AL140: N/A | AM140: N/A | AN140: N/A | AO140: N/A | AP140: N/A | AQ140: N/A | AR140: N/A | AS140: N/A | AT140: N/A | AU140: N/A | AV140: N/A | AW140: N/A | BA140: Septic tank emptying practices | BB140: Not emptied/treated and disposed in situ | BC140: N/A | BD140: N/A | BE140: N/A | BF140: N/A | BG140: N/A | BH140: N/A | BI140: N/A | BJ140: N/A | BK140: N/A | BL140: N/A | BM140: N/A | BN140: N/A | BO140: N/A | BP140: N/A | BQ140: N/A | BR140: N/A | BS140: N/A | BT140: N/A | BU140: N/A | BV140: N/A | BW140: N/A | BX140: N/A | BY140: N/A | BZ140: N/A | CA140: N/A | CB140: N/A | CC140: N/A | CD140: N/A | CE140: N/A | CF140: N/A | CG140: N/A | CH140: N/A | CI140: N/A | CJ140: N/A | CK140: N/A | CL140: N/A | CM140: N/A | CN140: N/A | CO140: N/A | CP140: N/A | CQ140: N/A | CR140: N/A | CS140: N/A | CT140: N/A | CU140: N/A | CV140: N/A | CW140: N/A
B141: Emptied and buried on site | C141: N/A | D141: N/A | E141: N/A | F141: N/A | G141: N/A | H141: N/A | I141: N/A | J141: N/A | K141: N/A | L141: N/A | M141: N/A | N141: N/A | O141: N/A | P141: N/A | Q141: N/A | R141: N/A | S141: N/A | T141: N/A | U141: N/A | V141: N/A | W141: N/A | X141: N/A | Y141: N/A | Z141: N/A | AA141: N/A | AB141: N/A | AC141: N/A | AD141: N/A | AE141: N/A | AF141: N/A | AG141: N/A | AH141: N/A | AI141: N/A | AJ141: N/A | AK141: N/A | AL141: N/A | AM141: N/A | AN141: N/A | AO141: N/A | AP141: N/A | AQ141: N/A | AR141: N/A | AS141: N/A | AT141: N/A | AU141: N/A | AV141: N/A | AW141: N/A | BB141: Emptied and buried on site | BC141: N/A | BD141: N/A | BE141: N/A | BF141: N/A | BG141: N/A | BH141: N/A | BI141: N/A | BJ141: N/A | BK141: N/A | BL141: N/A | BM141: N/A | BN141: N/A | BO141: N/A | BP141: N/A | BQ141: N/A | BR141: N/A | BS141: N/A | BT141: N/A | BU141: N/A | BV141: N/A | BW141: N/A | BX141: N/A | BY141: N/A | BZ141: N/A | CA141: N/A | CB141: N/A | CC141: N/A | CD141: N/A | CE141: N/A | CF141: N/A | CG141: N/A | CH141: N/A | CI141: N/A | CJ141: N/A | CK141: N/A | CL141: N/A | CM141: N/A | CN141: N/A | CO141: N/A | CP141: N/A | CQ141: N/A | CR141: N/A | CS141: N/A | CT141: N/A | CU141: N/A | CV141: N/A | CW141: N/A
B142: Emptied and discharged locally | C142: N/A | D142: N/A | E142: N/A | F142: N/A | G142: N/A | H142: N/A | I142: N/A | J142: N/A | K142: N/A | L142: N/A | M142: N/A | N142: N/A | O142: N/A | P142: N/A | Q142: N/A | R142: N/A | S142: N/A | T142: N/A | U142: N/A | V142: N/A | W142: N/A | X142: N/A | Y142: N/A | Z142: N/A | AA142: N/A | AB142: N/A | AC142: N/A | AD142: N/A | AE142: N/A | AF142: N/A | AG142: N/A | AH142: N/A | AI142: N/A | AJ142: N/A | AK142: N/A | AL142: N/A | AM142: N/A | AN142: N/A | AO142: N/A | AP142: N/A | AQ142: N/A | AR142: N/A | AS142: N/A | AT142: N/A | AU142: N/A | AV142: N/A | AW142: N/A | BB142: Emptied and discharged locally | BC142: N/A | BD142: N/A | BE142: N/A | BF142: N/A | BG142: N/A | BH142: N/A | BI142: N/A | BJ142: N/A | BK142: N/A | BL142: N/A | BM142: N/A | BN142: N/A | BO142: N/A | BP142: N/A | BQ142: N/A | BR142: N/A | BS142: N/A | BT142: N/A | BU142: N/A | BV142: N/A | BW142: N/A | BX142: N/A | BY142: N/A | BZ142: N/A | CA142: N/A | CB142: N/A | CC142: N/A | CD142: N/A | CE142: N/A | CF142: N/A | CG142: N/A | CH142: N/A | CI142: N/A | CJ142: N/A | CK142: N/A | CL142: N/A | CM142: N/A | CN142: N/A | CO142: N/A | CP142: N/A | CQ142: N/A | CR142: N/A | CS142: N/A | CT142: N/A | CU142: N/A | CV142: N/A | CW142: N/A
B143: Emptied and removed offsite | C143: N/A | D143: N/A | E143: N/A | F143: N/A | G143: N/A | H143: N/A | I143: N/A | J143: N/A | K143: N/A | L143: N/A | M143: N/A | N143: N/A | O143: N/A | P143: N/A | Q143: N/A | R143: N/A | S143: N/A | T143: N/A | U143: N/A | V143: N/A | W143: N/A | X143: N/A | Y143: N/A | Z143: N/A | AA143: N/A | AB143: N/A | AC143: N/A | AD143: N/A | AE143: N/A | AF143: N/A | AG143: N/A | AH143: N/A | AI143: N/A | AJ143: N/A | AK143: N/A | AL143: N/A | AM143: N/A | AN143: N/A | AO143: N/A | AP143: N/A | AQ143: N/A | AR143: N/A | AS143: N/A | AT143: N/A | AU143: N/A | AV143: N/A | AW143: N/A | BB143: Emptied and removed offsite | BC143: N/A | BD143: N/A | BE143: N/A | BF143: N/A | BG143: N/A | BH143: N/A | BI143: N/A | BJ143: N/A | BK143: N/A | BL143: N/A | BM143: N/A | BN143: N/A | BO143: N/A | BP143: N/A | BQ143: N/A | BR143: N/A | BS143: N/A | BT143: N/A | BU143: N/A | BV143: N/A | BW143: N/A | BX143: N/A | BY143: N/A | BZ143: N/A | CA143: N/A | CB143: N/A | CC143: N/A | CD143: N/A | CE143: N/A | CF143: N/A | CG143: N/A | CH143: N/A | CI143: N/A | CJ143: N/A | CK143: N/A | CL143: N/A | CM143: N/A | CN143: N/A | CO143: N/A | CP143: N/A | CQ143: N/A | CR143: N/A | CS143: N/A | CT143: N/A | CU143: N/A | CV143: N/A | CW143: N/A
A144: Latrine emptying practices | B144: Not emptied/treated and disposed in situ | C144: N/A | D144: N/A | E144: N/A | F144: N/A | G144: N/A | H144: N/A | I144: N/A | J144: N/A | K144: N/A | L144: N/A | M144: N/A | N144: N/A | O144: N/A | P144: N/A | Q144: N/A | R144: N/A | S144: N/A | T144: N/A | U144: N/A | V144: N/A | W144: N/A | X144: N/A | Y144: N/A | Z144: N/A | AA144: N/A | AB144: N/A | AC144: N/A | AD144: N/A | AE144: N/A | AF144: N/A | AG144: N/A | AH144: N/A | AI144: N/A | AJ144: N/A | AK144: N/A | AL144: N/A | AM144: N/A | AN144: N/A | AO144: N/A | AP144: N/A | AQ144: N/A | AR144: N/A | AS144: N/A | AT144: N/A | AU144: N/A | AV144: N/A | AW144: N/A | BA144: Latrine emptying practices | BB144: Not emptied/treated and disposed in situ | BC144: N/A | BD144: N/A | BE144: N/A | BF144: N/A | BG144: N/A | BH144: N/A | BI144: N/A | BJ144: N/A | BK144: N/A | BL144: N/A | BM144: N/A | BN144: N/A | BO144: N/A | BP144: N/A | BQ144: N/A | BR144: N/A | BS144: N/A | BT144: N/A | BU144: N/A | BV144: N/A | BW144: N/A | BX144: N/A | BY144: N/A | BZ144: N/A | CA144: N/A | CB144: N/A | CC144: N/A | CD144: N/A | CE144: N/A | CF144: N/A | CG144: N/A | CH144: N/A | CI144: N/A | CJ144: N/A | CK144: N/A | CL144: N/A | CM144: N/A | CN144: N/A | CO144: N/A | CP144: N/A | CQ144: N/A | CR144: N/A | CS144: N/A | CT144: N/A | CU144: N/A | CV144: N/A | CW144: N/A
B145: Emptied and buried on site | C145: N/A | D145: N/A | E145: N/A | F145: N/A | G145: N/A | H145: N/A | I145: N/A | J145: N/A | K145: N/A | L145: N/A | M145: N/A | N145: N/A | O145: N/A | P145: N/A | Q145: N/A | R145: N/A | S145: N/A | T145: N/A | U145: N/A | V145: N/A | W145: N/A | X145: N/A | Y145: N/A | Z145: N/A | AA145: N/A | AB145: N/A | AC145: N/A | AD145: N/A | AE145: N/A | AF145: N/A | AG145: N/A | AH145: N/A | AI145: N/A | AJ145: N/A | AK145: N/A | AL145: N/A | AM145: N/A | AN145: N/A | AO145: N/A | AP145: N/A | AQ145: N/A | AR145: N/A | AS145: N/A | AT145: N/A | AU145: N/A | AV145: N/A | AW145: N/A | BB145: Emptied and buried on site | BC145: N/A | BD145: N/A | BE145: N/A | BF145: N/A | BG145: N/A | BH145: N/A | BI145: N/A | BJ145: N/A | BK145: N/A | BL145: N/A | BM145: N/A | BN145: N/A | BO145: N/A | BP145: N/A | BQ145: N/A | BR145: N/A | BS145: N/A | BT145: N/A | BU145: N/A | BV145: N/A | BW145: N/A | BX145: N/A | BY145: N/A | BZ145: N/A | CA145: N/A | CB145: N/A | CC145: N/A | CD145: N/A | CE145: N/A | CF145: N/A | CG145: N/A | CH145: N/A | CI145: N/A | CJ145: N/A | CK145: N/A | CL145: N/A | CM145: N/A | CN145: N/A | CO145: N/A | CP145: N/A | CQ145: N/A | CR145: N/A | CS145: N/A | CT145: N/A | CU145: N/A | CV145: N/A | CW145: N/A
B146: Emptied and discharged locally | C146: N/A | D146: N/A | E146: N/A | F146: N/A | G146: N/A | H146: N/A | I146: N/A | J146: N/A | K146: N/A | L146: N/A | M146: N/A | N146: N/A | O146: N/A | P146: N/A | Q146: N/A | R146: N/A | S146: N/A | T146: N/A | U146: N/A | V146: N/A | W146: N/A | X146: N/A | Y146: N/A | Z146: N/A | AA146: N/A | AB146: N/A | AC146: N/A | AD146: N/A | AE146: N/A | AF146: N/A | AG146: N/A | AH146: N/A | AI146: N/A | AJ146: N/A | AK146: N/A | AL146: N/A | AM146: N/A | AN146: N/A | AO146: N/A | AP146: N/A | AQ146: N/A | AR146: N/A | AS146: N/A | AT146: N/A | AU146: N/A | AV146: N/A | AW146: N/A | BB146: Emptied and discharged locally | BC146: N/A | BD146: N/A | BE146: N/A | BF146: N/A | BG146: N/A | BH146: N/A | BI146: N/A | BJ146: N/A | BK146: N/A | BL146: N/A | BM146: N/A | BN146: N/A | BO146: N/A | BP146: N/A | BQ146: N/A | BR146: N/A | BS146: N/A | BT146: N/A | BU146: N/A | BV146: N/A | BW146: N/A | BX146: N/A | BY146: N/A | BZ146: N/A | CA146: N/A | CB146: N/A | CC146: N/A | CD146: N/A | CE146: N/A | CF146: N/A | CG146: N/A | CH146: N/A | CI146: N/A | CJ146: N/A | CK146: N/A | CL146: N/A | CM146: N/A | CN146: N/A | CO146: N/A | CP146: N/A | CQ146: N/A | CR146: N/A | CS146: N/A | CT146: N/A | CU146: N/A | CV146: N/A | CW146: N/A
B147: Emptied and removed offsite | C147: N/A | D147: N/A | E147: N/A | F147: N/A | G147: N/A | H147: N/A | I147: N/A | J147: N/A | K147: N/A | L147: N/A | M147: N/A | N147: N/A | O147: N/A | P147: N/A | Q147: N/A | R147: N/A | S147: N/A | T147: N/A | U147: N/A | V147: N/A | W147: N/A | X147: N/A | Y147: N/A | Z147: N/A | AA147: N/A | AB147: N/A | AC147: N/A | AD147: N/A | AE147: N/A | AF147: N/A | AG147: N/A | AH147: N/A | AI147: N/A | AJ147: N/A | AK147: N/A | AL147: N/A | AM147: N/A | AN147: N/A | AO147: N/A | AP147: N/A | AQ147: N/A | AR147: N/A | AS147: N/A | AT147: N/A | AU147: N/A | AV147: N/A | AW147: N/A | BB147: Emptied and removed offsite | BC147: N/A | BD147: N/A | BE147: N/A | BF147: N/A | BG147: N/A | BH147: N/A | BI147: N/A | BJ147: N/A | BK147: N/A | BL147: N/A | BM147: N/A | BN147: N/A | BO147: N/A | BP147: N/A | BQ147: N/A | BR147: N/A | BS147: N/A | BT147: N/A | BU147: N/A | BV147: N/A | BW147: N/A | BX147: N/A | BY147: N/A | BZ147: N/A | CA147: N/A | CB147: N/A | CC147: N/A | CD147: N/A | CE147: N/A | CF147: N/A | CG147: N/A | CH147: N/A | CI147: N/A | CJ147: N/A | CK147: N/A | CL147: N/A | CM147: N/A | CN147: N/A | CO147: N/A | CP147: N/A | CQ147: N/A | CR147: N/A | CS147: N/A | CT147: N/A | CU147: N/A | CV147: N/A | CW147: N/A
A148: Shared among improved sanitation facilities | B148: Yes | C148: N/A | D148: N/A | E148: N/A | F148: N/A | G148: N/A | H148: N/A | I148: N/A | J148: N/A | K148: N/A | L148: N/A | M148: N/A | N148: N/A | O148: N/A | P148: N/A | Q148: N/A | R148: N/A | S148: N/A | T148: N/A | U148: N/A | V148: N/A | W148: N/A | X148: N/A | Y148: N/A | Z148: N/A | AA148: N/A | AB148: N/A | AC148: N/A | AD148: N/A | AE148: N/A | AF148: N/A | AG148: N/A | AH148: N/A | AI148: N/A | AJ148: N/A | AK148: N/A | AL148: N/A | AM148: N/A | AN148: N/A | AO148: N/A | AP148: N/A | AQ148: N/A | AR148: N/A | AS148: N/A | AT148: N/A | AU148: N/A | AV148: N/A | AW148: N/A | BA148: Shared among improved sanitation facilities | BB148: Yes | BC148: N/A | BD148: N/A | BE148: N/A | BF148: N/A | BG148: N/A | BH148: N/A | BI148: N/A | BJ148: N/A | BK148: N/A | BL148: N/A | BM148: N/A | BN148: N/A | BO148: N/A | BP148: N/A | BQ148: N/A | BR148: N/A | BS148: N/A | BT148: N/A | BU148: N/A | BV148: N/A | BW148: N/A | BX148: N/A | BY148: N/A | BZ148: N/A | CA148: N/A | CB148: N/A | CC148: N/A | CD148: N/A | CE148: N/A | CF148: N/A | CG148: N/A | CH148: N/A | CI148: N/A | CJ148: N/A | CK148: N/A | CL148: N/A | CM148: N/A | CN148: N/A | CO148: N/A | CP148: N/A | CQ148: N/A | CR148: N/A | CS148: N/A | CT148: N/A | CU148: N/A | CV148: N/A | CW148: N/A
B149: No | C149: N/A | D149: N/A | E149: N/A | F149: N/A | G149: N/A | H149: N/A | I149: N/A | J149: N/A | K149: N/A | L149: N/A | M149: N/A | N149: N/A | O149: N/A | P149: N/A | Q149: N/A | R149: N/A | S149: N/A | T149: N/A | U149: N/A | V149: N/A | W149: N/A | X149: N/A | Y149: N/A | Z149: N/A | AA149: N/A | AB149: N/A | AC149: N/A | AD149: N/A | AE149: N/A | AF149: N/A | AG149: N/A | AH149: N/A | AI149: N/A | AJ149: N/A | AK149: N/A | AL149: N/A | AM149: N/A | AN149: N/A | AO149: N/A | AP149: N/A | AQ149: N/A | AR149: N/A | AS149: N/A | AT149: N/A | AU149: N/A | AV149: N/A | AW149: N/A | BB149: No | BC149: N/A | BD149: N/A | BE149: N/A | BF149: N/A | BG149: N/A | BH149: N/A | BI149: N/A | BJ149: N/A | BK149: N/A | BL149: N/A | BM149: N/A | BN149: N/A | BO149: N/A | BP149: N/A | BQ149: N/A | BR149: N/A | BS149: N/A | BT149: N/A | BU149: N/A | BV149: N/A | BW149: N/A | BX149: N/A | BY149: N/A | BZ149: N/A | CA149: N/A | CB149: N/A | CC149: N/A | CD149: N/A | CE149: N/A | CF149: N/A | CG149: N/A | CH149: N/A | CI149: N/A | CJ149: N/A | CK149: N/A | CL149: N/A | CM149: N/A | CN149: N/A | CO149: N/A | CP149: N/A | CQ149: N/A | CR149: N/A | CS149: N/A | CT149: N/A | CU149: N/A | CV149: N/A | CW149: N/A
B150: DK/missing | C150: N/A | D150: N/A | E150: N/A | F150: N/A | G150: N/A | H150: N/A | I150: N/A | J150: N/A | K150: N/A | L150: N/A | M150: N/A | N150: N/A | O150: N/A | P150: N/A | Q150: N/A | R150: N/A | S150: N/A | T150: N/A | U150: N/A | V150: N/A | W150: N/A | X150: N/A | Y150: N/A | Z150: N/A | AA150: N/A | AB150: N/A | AC150: N/A | AD150: N/A | AE150: N/A | AF150: N/A | AG150: N/A | AH150: N/A | AI150: N/A | AJ150: N/A | AK150: N/A | AL150: N/A | AM150: N/A | AN150: N/A | AO150: N/A | AP150: N/A | AQ150: N/A | AR150: N/A | AS150: N/A | AT150: N/A | AU150: N/A | AV150: N/A | AW150: N/A | BB150: DK/missing | BC150: N/A | BD150: N/A | BE150: N/A | BF150: N/A | BG150: N/A | BH150: N/A | BI150: N/A | BJ150: N/A | BK150: N/A | BL150: N/A | BM150: N/A | BN150: N/A | BO150: N/A | BP150: N/A | BQ150: N/A | BR150: N/A | BS150: N/A | BT150: N/A | BU150: N/A | BV150: N/A | BW150: N/A | BX150: N/A | BY150: N/A | BZ150: N/A | CA150: N/A | CB150: N/A | CC150: N/A | CD150: N/A | CE150: N/A | CF150: N/A | CG150: N/A | CH150: N/A | CI150: N/A | CJ150: N/A | CK150: N/A | CL150: N/A | CM150: N/A | CN150: N/A | CO150: N/A | CP150: N/A | CQ150: N/A | CR150: N/A | CS150: N/A | CT150: N/A | CU150: N/A | CV150: N/A | CW150: N/A
A151: Shared among all sanitation facilities | B151: Yes | C151: 21.83622702 | D151: 25.54274393 | E151: 16.34757595 | F151: 6.018718445 | G151: 1.082881523 | H151: 32.69590521 | I151: 22.06081767 | J151: 10.91152848 | K151: 3.785341053 | L151: 0.5637570338 | M151: 14.05055729 | N151: 19.73208391 | O151: 19.92837721 | P151: 14.48408765 | Q151: 4.121507207 | R151: 15.37216828 | S151: 11.81192661 | T151: 17.56795422 | U151: 7.142857143 | V151: 14.09350057 | W151: 6.947470346 | X151: 16.6204025 | Y151: 10.26043301 | Z151: 13.37803321 | AA151: 9.435970202 | AB151: 13.44102408 | AC151: 19.9718706 | AD151: 25.84896097 | AE151: 14.60620525 | AF151: 11.0013624 | AG151: 10.04511278 | AH151: 10.98398169 | AI151: 10.62618596 | AJ151: 12.34487263 | AK151: 17.57900677 | AL151: 12.86464411 | AM151: 11.8596094 | AN151: 8.924485126 | AO151: 19.64524766 | AP151: 21.8311292 | AQ151: 15.22633745 | AR151: 11.15819209 | AS151: 20.71967499 | AT151: 11.21495327 | AU151: 9.169485156 | AV151: 13.38936669 | AW151: 15.15045486 | BA151: Shared among all sanitation facilities | BB151: Yes | BC151: N/A | BD151: N/A | BE151: N/A | BF151: N/A | BG151: N/A | BH151: N/A | BI151: N/A | BJ151: N/A | BK151: N/A | BL151: N/A | BM151: N/A | BN151: N/A | BO151: N/A | BP151: N/A | BQ151: N/A | BR151: N/A | BS151: N/A | BT151: N/A | BU151: N/A | BV151: N/A | BW151: N/A | BX151: N/A | BY151: N/A | BZ151: N/A | CA151: N/A | CB151: N/A | CC151: N/A | CD151: N/A | CE151: N/A | CF151: N/A | CG151: N/A | CH151: N/A | CI151: N/A | CJ151: N/A | CK151: N/A | CL151: N/A | CM151: N/A | CN151: N/A | CO151: N/A | CP151: N/A | CQ151: N/A | CR151: N/A | CS151: N/A | CT151: N/A | CU151: N/A | CV151: N/A | CW151: N/A
B152: No | C152: 78.16377298 | D152: 74.45725607 | E152: 83.65242405 | F152: 93.98128155 | G152: 98.91711848 | H152: 67.30409479 | I152: 77.93918233 | J152: 89.08847152 | K152: 96.21465895 | L152: 99.43624297 | M152: 85.94944271 | N152: 80.26791609 | O152: 80.07162279 | P152: 85.51591235 | Q152: 95.87849279 | R152: 84.62783172 | S152: 88.18807339 | T152: 82.43204578 | U152: 92.85714286 | V152: 85.90649943 | W152: 93.05252965 | X152: 83.3795975 | Y152: 89.73956699 | Z152: 86.62196679 | AA152: 90.5640298 | AB152: 86.55897592 | AC152: 80.0281294 | AD152: 74.15103903 | AE152: 85.39379475 | AF152: 88.9986376 | AG152: 89.95488722 | AH152: 89.01601831 | AI152: 89.37381404 | AJ152: 87.65512737 | AK152: 82.42099323 | AL152: 87.13535589 | AM152: 88.1403906 | AN152: 91.07551487 | AO152: 80.35475234 | AP152: 78.1688708 | AQ152: 84.77366255 | AR152: 88.84180791 | AS152: 79.28032501 | AT152: 88.78504673 | AU152: 90.83051484 | AV152: 86.61063331 | AW152: 84.84954514 | BB152: No | BC152: N/A | BD152: N/A | BE152: N/A | BF152: N/A | BG152: N/A | BH152: N/A | BI152: N/A | BJ152: N/A | BK152: N/A | BL152: N/A | BM152: N/A | BN152: N/A | BO152: N/A | BP152: N/A | BQ152: N/A | BR152: N/A | BS152: N/A | BT152: N/A | BU152: N/A | BV152: N/A | BW152: N/A | BX152: N/A | BY152: N/A | BZ152: N/A | CA152: N/A | CB152: N/A | CC152: N/A | CD152: N/A | CE152: N/A | CF152: N/A | CG152: N/A | CH152: N/A | CI152: N/A | CJ152: N/A | CK152: N/A | CL152: N/A | CM152: N/A | CN152: N/A | CO152: N/A | CP152: N/A | CQ152: N/A | CR152: N/A | CS152: N/A | CT152: N/A | CU152: N/A | CV152: N/A | CW152: N/A
A153: type of toilet facility | B153: flush toilet private | C153: 6.442213296 | D153: 22.95946023 | E153: 48.3839055 | F153: 80.02350322 | G153: 97.36850021 | H153: 17.31967357 | I153: 43.04315065 | J153: 69.41137124 | K153: 90.79246008 | L153: 99.02598059 | M153: 1.029308158 | N153: 6.68717093 | O153: 15.4724563 | P153: 32.41316428 | Q153: 80.79977995 | R153: 29.55771305 | S153: 16.06321839 | T153: 31.14613181 | U153: 29.61992136 | V153: 77.64840183 | W153: 40.63030303 | X153: 20.99236641 | Y153: 14.62264151 | Z153: 37.87152445 | AA153: 28.34338418 | AB153: 22.31027126 | AC153: 43.56087262 | AD153: 46.02128738 | AE153: 39.23627685 | AF153: 30.85831063 | AG153: 48.81203008 | AH153: 26.87308869 | AI153: 19.68304279 | AJ153: 32.65839321 | AK153: 48.89954853 | AL153: 45.44924154 | AM153: 28.7857345 | AN153: 29.68903437 | AO153: 25.29313233 | AP153: 45.74684575 | AQ153: 28.96706587 | AR153: 23.07909605 | AS153: 45.49680418 | AT153: 63.80631894 | AU153: 31.94130926 | AV153: 74.55899647 | AW153: 25.68229531 | BA153: type of toilet facility | BB153: flush toilet private | BC153: 1400.558456 | BD153: 4999.404216 | BE153: 10530.58453 | BF153: 17426.6346 | BG153: 21199.37756 | BH153: 2441.155751 | BI153: 6079.621531 | BJ153: 9795.650837 | BK153: 12831.48488 | BL153: 13980.85554 | BM153: 78.751067 | BN153: 511.374815 | BO153: 1183.325794 | BP153: 2484.148076 | BQ153: 6170.191081 | BR153: 816.489312 | BS153: 193.027172 | BT153: 703.174865 | BU153: 238.031336 | BV153: 8820.976442 | BW153: 1571.273464 | BX153: 236.556815 | BY153: 116.402055 | BZ153: 1036.28961 | CA153: 322.563491 | CB153: 135.396576 | CC153: 1067.735384 | CD153: 1392.719456 | CE153: 1994.561628 | CF153: 523.00662 | CG153: 1114.729959 | CH153: 379.750758 | CI153: 508.402143 | CJ153: 88.528 | CK153: 1140.716056 | CL153: 1831.88082 | CM153: 587.994822 | CN153: 369.669618 | CO153: 304.901465 | CP153: 3033.91204 | CQ153: 218.685186 | CR153: 697.778458 | CS153: 1765.293858 | CT153: 7853.487063 | CU153: 239.776278 | CV153: 15719.6534 | CW153: 533.195216
